Workbook

Sheet Instructions
A2: Cost Allocation Model (“CA Model”) Version 3.3
A4: Instructions Sheet
A6: General:
A7: These instructions are included with the OEB CA Model version 2 and higher, as a reference for distributor staff and other users of the model.
A8: Version 3.3 is designed for use with 2016 COS rate applications.
A9: The instructions are organized by Input sheet (I1 to I9). The instructions are followed by suggestions of how to use Output sheets O1, O2, O3.1 and O3.6, and the Exhibit sheets E2 - E5.
A10: There are numerous references in these instructions to specific Excel cells in the Revenue Requirement Work Form (“RRWF”). The cross-references to RRWF are intended to ensure consistency within the application. it is probably most convenient to complete the RRWF first, then the CA model. I f completing the CA model first, leave the required cross references blank temporarily, eg at the top of worksheet I-3 and I-6.1, ignoring the corresponding error messages in the rose-coloured diagnostic cells. Once the RRWF is completed, the necessary information should be included in the CA Model so that the error warnings are operational.
A11: The original model and related documents are on the web-site in EB-2005-0317; http://www.ontarioenergyboard.ca/OEB/Industry/Regulatory+Proceedings/Policy+Initiatives+and+Consultations/Archived+OEB+Key+Initiatives/Cost+Allocation+Review.
A12: A staff report "Board Staff Implementation of the Board’s Findings on the Review of Electricity Cost Allocation Policy" documents the rationale for the significant changes in Version 2 relative to version 1.2. The subsequent changes (versions 3.0 and 3.1) are noted in red font in these instructions.
A14: Worksheet I1 Introduction
A15: This input worksheet is for basic information about the utility and the application. This worksheet does not require any changes after filing the initial application.
A16: ● Input to Cell C11 is carried forward to the heading on all worksheets.
A17: ● The colour-coding used throughout the model is explained just below the applicant information area.
A19: Worksheet I2 LDC Classes
A21: The main purpose of this worksheet is to define the rate classes.
A22: ● Input to Cell C-17 is copied to the header of all worksheets. When the CA Model is modified for a specific reason, such as a run using final proposed rates for the purposes of a draft rate order, a new description should be entered in Cell C-17.
A23: ● Cell C20 and below shows common rate class names. Substitute the proper name if applicable. Any input to Column D will appear as the column headings if different from Column C;
A24: ● In Column E, choose Yes or No as applicable for the proposed customer classes, and click Update.
A25: ● Do not include microFIT as a rate classification in CA Model until further notice in the Filing Requirements.
A26: ● If the applicant is a Host Distributor with a separate class for the Embedded Distributor(s), use Row 29. Otherwise, a Host Distributor should refer to Filing Requirements for instructions on how to reflect the Embedded Distributor in the applicable rate class.
A27: ● Be aware that the “Update” button hides and unhides columns, nothing more. If you have entered data for a class in an input sheet, the data will remain until you delete the data. (If you enter data for a class and subsequently change to ‘No’ for that class in I-2 and click Update, the data for the class will be hidden but will continue to affect range totals, allocators, etc.).
A28: ● For the user’s convenience, a space is available at B46 to describe a scenario (customer classes, load data, choice of allocators, etc.) to keep track of alternative cost allocation outcomes as they are being studied. This information is in addition to the summary description in Cell C 17.
A29: ● The Residential, GS < 50 kW and Street Light customer classes are now locked from being edited and removed. This is to ensure that the Residential and Street Light class data is always in the same position for the calculation of the street light adjustment factor.
A31: Worksheet I3 Trial Balance Data
A32: The main purpose of this owrkdsheet is to enter the forecast account balances. For convenience the accounts that affect the test year revenue requirement have a yellow background in column A. (All accounts that are reported for the RRRTrial Balance are included in I-3, although many of them do not affect the revenue requirement.)
A34: There are diagnostic cells at the top of I-3 for cross-references to the user's RRWF, to avoid filing information that is inconsistent. The CA model works regardless of whether the diagnostic messages in cells H14 and H16 are flagging a discrepancy.
A35: ▪ At Cell F10, input the return on equity RRWF tab 9 'Revenue Requirement' cell F23;
A36: ▪ At Cell F11, input the forecast of PILs from RRWF tab 9 'Revenue Requirement' cell F19;
A37: ▪ At Cell F12, input Interest Cost from RRWF tab 9 'Revenue Requirement' cell F22;
A38: ▪ Cell F13 should be entered equal to RRWF tab 9 'Service Revenue Requirement' cell F26;
A39: ▪ Cell F15 should be entered equal to RRWF tab 4 'Rate Base' cell G19
A41: ● Starting at Row 20, enter forecast amounts for USoA accounts in column D. The CA Model has a few new Rows that are inserted for finer granularity within existing accounts.
A42: ● Cells D78 and D79 are the balances in Account 1575 and 1576. The recovery of these balances is not done through the service revenue requirement and distribution rates, rather through a rate rider per memo June 25, 2013. Version 3.1 differs from 3.0 in this regard.
A43: ● Column D contains the forecast amounts for the test year, and is to match the amounts in the rate application. For asset accounts, enter the mid-year average amounts matching the corresponding amounts in the rate base;
A44: ● Remember to include revenue accounts as negative numbers, as in the Trial Balance.
A45: ● Note that SSS Administration revenue is now Account 4086, whereas it was previously a sub-account of 4080.
A47: ● Column F is available to re-assign amounts among the accounts in Column D. Generally if costs are removed from one USoA account and added to another account, the rationale for the re-assignment is to be provided by the distributor in its prefiled evidence.
A48: ● No rationale is required if the entries in column F have been directed by Board policy. For example see note below re Account 4235.
A49: ● Row 274 has been added, to allow for new account 4086 SSS Administration Charge.
A50: ● Rows 284 and 285 have been added, to allow for separate allocation of the Account Set-Up Charges sub-account distinct from other revenue streams in Account 4235. Enter the sub-account amounts at Cell F284 and F285 and enter negative sum at F284 (should be the negative of D284). No explanation is required.
A51: ● Row 469 has been added to allow for inclusion of LEAP, distinct from other donations which are not recoverable. Enter full amount of Account 6205 in cell D468, negative amount of LEAP in F468, and positive amount of LEAP in F469. (Only the latter is recovered, and therefore must be allocated to classes.)
A52: ● Column G is used for costs that are directly allocated. Put the appropriate total amount in Column G, and the model places it into I-9 to be included in the class revenue requirement of the applicable class.
A53: ● Note that the model has Rows in I9 for most capital and OM&A accounts, but not revenue accounts. If an account has no corresponding Row in I9, the model does not provide a ready means of direct allocation.
A54: ● Column I has drop-down menus in the new Rows. If necessary use the menu to select the allocator for the account that the distributor considers most appropriate. (The model on the website has an allocator already selected at the suggestion of the CA Working Group, but the distributor is ultimately responsible for selecting the most appropriate allocator considering how it uses the sub-account in question.).
A59: Worksheet I4 Break Out Assets
A60: This input worksheet is for breaking the asset accounts into a more granular level.
A61: ● Cell C12 requires data entry from the RRWF tab 4. Rate Base, Cell G14. The message at D93 is intended to ensure consistency between the cost allocation model and the rest of the application.
A62: ● Columns L - O require the break-out of the aggregate depreciation accounts into the sub-accounts for each asset account.
A63: ● Worksheet I4 is designed for assets that are not allocated directly to any customer class. The gross and net values of assets directly allocated to one or more classes are recorded in worksheet I9.
A66: Worksheet I5.1 Miscellaneous Data
A68: ● In cell D15, enter the km of distribution line, regardless of voltage (structures, not circuits) used in determining customer density of the service area.
A69: ● In Cell D19, enter the percentage of OM&A plus Cost of Power that is included as working capital, eg.13%, or a percentage based on the distributor’s lead-lag study;
A70: ● Cell D21 yields a weighting factor to attribute pole access revenue in the same proportions as the corresponding allocation of costs. Considering the NBV of all poles that yield pole rental revenue, enter the estimated percentage of poles that are at Secondary voltage, and the remainder percentage (i.e. the poles at Primary voltage).
A72: Worksheet I5.2 Weighting Factors
A73: This worksheet is used to input a weighting factor for services and a weighting factor for Billing and Collection. Generallythe Residential wieghting factor should be 1.0, with each other class weighted relative to that.
A74: ● Row 11: calculate weighting factors reflecting only installed capital costs recorded in Account 1855 – Services. Where there is variety of situations within a class, provide a single factor that is suitable for the whole class. See examples in the boxes below.
A75: ● Row 15: calculate weighting factors reflecting costs in Account 5315 – Customer Billing, Account 5320 – Collecting, and Account 5340 – Miscellaneous Customer Account Expenses.
A76: ● Default weights are no longer provided in the model. The weights previously provided in version 1.2 can be found in the Board staff’s implementation documentation [EB-2010-0219].
A78: Example: Weighting Factor for Services:
A80: Assume that the amount recorded in 1855 for a typical residential customer is $1,000.
A81: Assume that there are 500 customers in the GS>50 class.
A82: Assume that 100 of them are industrial customers served by a single span of overhead conductor. The amount remaining on the books in Account 1855 is $500, though the current cost of replacing the service including labour would be much larger.
A83: Assume that 100 customers have underground service that required extensive permits, street repairs, and labour costs, as well as materials. The services are recent, and the amount recorded in 1855 averages $25,000.
A84: Assume 300 customers have no costs recorded in Account 1855, and would have no cost recorded even if replaced (per distributor’s accounting practice and conditions of service)
A85: Calculation of a single factor for GS>50 class -- weighted average of embedded book values including installation
A86: Ø [ (100 * $5,000) + (100 * $25,000) + (300 * $0) ] / 500 = $6,000 per customer
A87: Weighting factor for residential @ $1,000 is 1.00
A88: Weighting factor for GS>50 kW = $6,000/$1,000 = 6.00
A90: Example: Weighting Factor for Billing and Collecting:
A92: Assume that the Residential cost averaged over all residential customers is $1.50 for bill preparation and mailing, $0.50 to record revenue from a normal payment, and $1.00 per bill on average for other costs associated with collecting, etc. that are recorded in accounts 5315, 5320 and 5340. Total $3 per residential bill.
A93: Assume that there are 15 customers in the USL class:
A94: Assume that 5 of the15 customers have a large number of devices and the number of devices changes from time to time, so additional clerical attention is required each month amounting to $50 over the group ($10 per bill). Assuming that other costs are the same as for a residential customer at $1.50 per bill, the average cost is $11.50 per bill.
A95: Assume the other 10 USL customers have a small number of devices and require the same amount of effort as a typical residential customer. There are less issues with collecting, so the incidental costs are $0.50 per month. Total cost is $2.50 per bill
A96: Calculation of index for USL class (weighted average of 5 and 10 customers)
A97: Ø [(5 * $11.50) + (10 * $2.50)] / 15 = $5.50 per bill.
A98: Weighting factor for Residential = $3.00 / $3.00 = 1.00
A99: Weighting factor for USL = $5.50 / $3.00 = 1.83
A101: Worksheet I6.1 Revenue
A102: This input sheet is used to calculate hypothetical revenues, based on the test year volumetric forecast at the current rates. (This calculation is also used in RRWF for the calculation of Revenue Sufficiency/Deficiency.)
A103: ● Cells B10, B13, B16 and B19 are used to flag internal inconsistencies that may exist amongst the application exhibits.
A104: ● Cell B10 – from Exhibit 3 of the application, input total energy from the test year load forecast, adjusted downward for distribution line losses.
A105: ● Cell B13 – from Exhibit 3 of the application, input the total billing demands of all demand-billed classes.
A106: ● Cell B16 –from RRWF tab 8 Revenue Deficiency/Sufficiency H16.
A107: ● Cell B19 – enter data from RRWF tab 8. Revenue Deficiency/Sufficiency F18.
A108: ● Rows 25 and 26: enter weather-normalized load after line losses. These quantities will be the results found in the distributor’s load forecast Exhibit 3.
A109: ● Rows 31, 44, 50 and 51 found in versions 3.0 and earlier of the model no longer play a role in the model. The model now relies on the distributor’s load forecast.
A110: ● Row 29 is the forecast of billing demand of customers that are not Wholesale Market Participants. Host distributors -- remember that this may apply to embedded distributors.
A111: ● Rows 33-36 - enter the currently approved rates for each class. Include the Transformer Ownership Allowance for the applicable classes.
A112: ● Row 37 – a placeholder Row for any other rate (e.g. separate rates per street lighting fixture, if charged in accition to kW demand).
A113: ● Row 39 is class revenue gross of TOA, and row 41 is net. The model uses the latter in worksheet O1.
A114: Note that the revenue formula calculates monthly fixed revenue from the largest of # of customers / connections / devices from Rows 18, 19 and 21 in worksheet I-6.2. This is approriate if a class, eg streetlights, is billed per device, of if the number of devices equals the number of connections. If this is not appropriate for the distributor’s rate structure, the distributor should correct the formula in row 39 for the applicable class(es), or over-write it with apecific cell references. For example, if USL is billed per customer without regard to number of connections or devices, replace the MAX term with a simple reference to I-6.2 row 21.
A115: ● As an alternative run of the CA Model, but not for submission with the application, it may be useful to enter the rates that are being proposed in the application in Rows 33-36. See notes to Worksheet O-1 below.
A116: ● If the Conditions of Service for a class of large customers require that all customers supply their own transformation, then the published rate is presumably for the class standard and the TOA should be entered as $0.
A118: Worksheet I6.2 Customer Data
A119: This input sheet is for inputting the various customer data by rate class, such as number of bill, number of customers, etc.
A120: ● Row 18 ‘Number of devices’ was added as of version 2 of the model. Generally this will require input for the Street Lighting and Unmetered Scattered Load classes.
A121: ● The number of devices (Row 18) should be equal to or greater than the number of connections (Row 19)
A122: ● The number of connections should be equal to or greater than the number of customers (Row 21).
A123: ● The allocation of customer-related costs is based on customer count and connections. "Daisy-chaining" is the situation where the number of devices exceeds the number of connections. The allocation formula is appropriate if the distributors costs are proportional to the number of connections (and the corresponding weighting factor). If this is not appropriate to the applicant's proposed approach, change the cell reference in the formula (eg to the corresponding number of devices) in worksheet E2, row 82, and also in the appropriate column(s) in worksheet E3.
A124: ● The Streetlighting Adjustment Factors for Primary and Line Transformer costs are calculated here (Rows 52 and 53). All relevant data inputs are automatically populated to allow for each double checking of the calculations.
A125: ● Cells J23 and J24 calculate the "adjusted connections" for the CCP and CCLT allocators by dividing the number of devices by the relevant street lighting adjustment factors. This calculation reflects the implementation of the OEB's cost allocation policy for street lighting outlined in a letter issued on June 12, 2015.
A127: Worksheet I7.1 Meter Capital
A128: The purpose of this input worksheet is to derive the weighting factor of each class for the allocator CWMC, which is used to allocate accounts 1860 Meters, 5065 Meter Expense, and 5175 Maintenance. It does not affect the deferral account 1555 Smart Meter Capital and Recovery VA.
A129: ● As a general rule, include one meter per customer in this worksheet, i.e. include smart meter or standard meter, not both.
A130: ● Replace meter descriptions in Column C with new descriptions that match the meters actually in use, and input the applicable average installed replacement cost of each type of meter.
A131: ● During the transitional period, until all smart meters are in the Rate Base, include in the documentation of the application an explanation of which unit cost is being used. Since the weighting factor will remain unchanged during the IRM period, the distributor may consider including smart meters rather than the soon-to-be-stranded meters, even though not all smart meters have been transferred to account 1860 at the time of the cost-of-service application.
A132: ● If the cost of equipment used to download billing data is included in Account 1860 – Meters, the cost of such equipment should be considered in this worksheet.
A133: ● Note that Account 1920 – Computer Hardware, Account 1925 – Computer Software and Account 1955 – Communications Equipment are allocated to the customer classes by the composite allocator Net Fixed Assets (excluding credit for capital contributions). If equipment for automated meter-reading and data storage are recorded in these accounts, the distributor may consider moving capital costs to Account 1860 – Meters in worksheet I-3 and reflecting this in the meter capital weighting factors, with the objective of reaching a more accurate allocation of these costs.
A134: ● Entries for USL, Street lighting and Sentinel Lighting in worksheet I7.1 and I7.2 are 0. For any cost of estimating or verifying unmetered loads, see note re direct allocation under worksheet I9.
A136: Worksheet I7.2 Meter Reading
A137: The purpose of this input worksheet is to derive the weighting factors for the allocator CWMR, which is used only to allocate costs that are recorded in account 5310 Meter Reading Expense. The data in Column C are relative amounts, with the typical Residential reading having a weight of 1.0.
A138: ● This worksheet has not been modified to reflect automated meter reading. The Rows in worksheet I7.2continue to reflect differences in customer density, relative difficulty in reaching the meter, and frequency of reading the meter in the respective classes. To the extent that these factors are now more nearly uniform due to automated meter reading, the distributor may find that the appropriate weights are close to 1.0 for all classes.
A139: Note that the cost of the Smart Meter Entity is treated as a pass-through cost with its own rate rider. It is not included in the service revenue requirement and is not allocated in this model, except as a component of Working Capital (account 4751).
A141: Worksheet I8 Demand Data
A142: This input sheet is to record the various coincident and non-coincident peaks by rate class, which are used a cost allocators in the CA Model.
A143: ● There have been no changes to this worksheet. If the distributor's most up-to-date load profile data comes from the Hydro One analysis used in the Informational Filing in 2006-7, then the data in worksheet I-8 may be the same for each class as was used for the Informational Filing -- except scaled up or down to reflect the current energy forecast compared to the class's energy used in the previous filing.
A145: Worksheet I9 Direct Allocation
A146: This input worksheet allows for directly allocating costs to specific rate classes.
A147: ● The total amount of direct allocation is found in column C. This amount must be attributed to one class, or to a subset of classes, in columns E - X.
A148: ● Remember that costs associated with verifying and updating estimates of unmetered loads may be allocated directly to the applicable class. [EB-2005-0317, Cost allocation Review, Board Directions, p. 87].
A149: ● Additional information on direct allocations can be found above in the notes for Column G in input sheet I3 Trial Balance.
A150: ● The numerous columns to the right of I-9 are used for the purpose of burdening directly-allocated costs for a share of overhead costs. No inputs are required
A151: ● The formula at cell C148 has been corrected in version 3.2 so that cells E149:X151 are calculated from NBV in all instances.
A153: Worksheet O1
A154: This is an output worksheet that shows the allocated revenue requirements and the revenue-to-cost ratios by rate class. The diagnostic cells in this sheet check that the allocated costs reconcile to the account totals entered in worksheet I-3.
A155: ● In these instructions for Worksheet 01, “RRWF” means RRWF tab 8. Revenue Sufficiency / Deficiency.
A156: ● “Appendix 2-P” means Appendix 2-P in 2014 Appendix 2 Filing Requirements.
A157: ● Row 18 – Distribution Revenue at Existing Rates:
A158: ▪ Cell C18 should equal the total in RRWF Cell F17 – Distribution Revenue at Currently Approved Rates”, and
A159: ▪ Cells D18 and beyond are the inputs to Appendix 2-P, Table B, Column 7B.
A160: ● Row 19 – Miscellaneous Revenue:
A161: ▪ Cell C19 should equal RRWF Cell F18,
A162: ▪ Cells D19 and beyond are the inputs to Appendix 2-P, Table B, Column 7E,
A163: ▪ Note the diagnostic test in Row 20 for Miscellaneous Revenue. The model calculates the status quo rates from the test year Service Revenue Requirement less Miscellaneous Revenue. If Miscellaneous Revenue is entered inaccurately, the status quo rates and status quo ratios in Row 75 will also be inaccurate for the respective classes.
A164: ● Cell C21 – Total Revenue at Existing Rates should be equal to RRWF Cell F19;
A165: ● Row 23 – Distribution Revenue at Status Quo Rates”:
A166: ▪ Cell C23 should equal RRWF, sum of Cells H16 & H17
A167: ▪ Cells D23 and beyond are the hypothetical distribution revenue, by class, if there were no rate re-balancing. These cells are the inputs to Appendix 2-P, Table B, Column 7C.
A168: ● Cell C25 should equal RRWF Cell H19 – Total Revenue.
A169: ● Row 40 – Revenue Requirement (includes NI):
A170: ▪ Cell C40 is the total revenue requirement, and should be equal to RRWF worksheet tab 9 Revenue Requirement, Cell F22; and
A171: ▪ Cells D40 and beyond are inputs to Appendix O, table (a), Column 7A.
A172: ● Row 75 – Revenue to Expenses Status Quo:
A173: ▪ Cell C75 should equal 100%, and
A174: ▪ Cells D75 and beyond are the inputs to Appendix 2-P, table C, second column “Status Quo Ratios”.
A175: ● Cells C71 and C81 should equal the corresponding target returns on equity (RRWF Column H).
A177: The 2014 Filing Requirements do not require a second version of the model showing revenue with proposed rates. However, it may be helpful to the user to verify the proposed distribution rates and ratios by substituting proposed rates in place of currently approved ones in I-6.1. Having made that change, there should be no deficiency row 21 versus 25, and the revenue to cost ratios (row 75) should now be the proposed ratios.
A179: It may also be useful to run an updated version when preparing a Draft Rate Order:
A180: Ø At worksheet I3, modify Miscellaneous Income accounts if necessary, along with forecast capital and OM&A accounts, if any of these have changed as a result of a Decision or settlement agreement.
A181: Ø At worksheet I6.1, modify the class load forecast inputs if it has changed since the original application, at Rows 25 -27.
A182: Ø At worksheet I6.1, substitute the proposed rates at Rows 33 – 36.
A183: Ø At worksheet I8, data may need to be changed if the load forecast has been changed.
A184: Ø On worksheet O1:
A185: ▪ Cell C22 should now equal 1.00 and Rows 18 and 23 should be identical.
A186: ▪ Cells D75 and beyond should show the newly-approved revenue to cost ratios.
A188: Worksheet O2
A189: Rows 14 - 17 provide information relevant to the Monthly Service Charge of each class, usually referred to as the floor (alternate versions in rows 14 and 16) and the ceiling in row 17 (based on Minimum System assumptions)
A190: Users of the model have observed that for some classes, the ceiling comes out lower than the floor, or even negative. This occurs in situations where customer-related costs are relatively low compared to Demand-related costs, and appears to be a result of prorated depreciation on General Plant. With this discrepancy remaining in the model, the precise calculation of the ceiling should be used with appropriate caution.
A192: Worksheet O3.1
A193: The purpose of this output worksheet is to provide information on the cost per unit of providing customers with transformation service.
A194: ● Row 27, expresses the transformer costs in per kW terms. The amount found in Row 27 is not necessarily identical to the cost that would be saved if the customer provides its own transformer. While it is useful information, the value in Row 27 should not be presented as the sole evidence to support changing the Transformer Ownership Allowance.
A196: Worksheet O3.6
A197: The purpose of this output worksheet is to provide information to be used to update the provincial standard monthly charge for microFIT installations.
A198: ● Check that Cell 23 is equal to O-2 Cell D132 less Cell D81, which is an update of the information that underpins the current rate; and
A199: ● Cells C24 and C25 have been added in version 2 of the model per Board Report (p. 8).
A201: If the distributor intends to propose a microFIT charge based on its own costs, this will require sub-account information as per the Board’s FAQ # 18, December 23, 2010. The information from Worksheet O-3.6 will not likely be considered relevant for approval of a non-uniform charge.
A204: Worksheets E2 and E4
A205: Worksheet E2 shows the proportions allocated to each rate class by the various allocators. These allocators are linked to the applicable USoA accounts in worksheet E4.
A206: ● Worksheet E4 is not locked, and the user may propose to allocate any account using a different allocator than the defalt found in the model. If the applicant is proposing to use a different allocator, please note that this would be a departure from standard policy and should be identified and explained in Exhibit 7 of the applicaiton.
A208: Worksheet E3
A209: The Peak Load Carrying Capability adjustment is entered at cell A14. The default is 400 Watts. The adjustment is related to the definition of Minimum System, i.e. categorization between customer-related and demand-related cost. For further explanation see the Board Report EB-2005-0317.
A210: ● If proposing a PLCC of other than 400 Watts, this should be identified and explained in Exhibit 7.
A211: ● Worksheet E3 has been updated to use the "adjusted connections", calculated on Sheet I6.2 for the calculation of the CCP and CCLT allocators.
A213: Worksheet E5
A214: The purpose of this worksheet is to aid in detecting and correcting instances in which an account is not fully allocated to the rate classes.
A215: Each cell in columns J and L should be zero. If the calculation is not zero, and the account involved is one that affects the revenue requirement (highlighted in column A of I-3) the reason for the discrepancy should be traced

Sheet I1 Intro
T1: EB-2006-0247
T2: EB-2007-0001
T3: EB-2007-0002
B4: Sheet I1 Utility Information Sheet | G4: Version | H4: 3.3a | T4: EB-2007-0003
B9: Name of LDC: | C9: Hydro Ottawa Limited
B11: Application EB Number: | C11: EB-2015-0004
B13: Date of Application: | C13: 2015-04-29
A15: Contact Information:
B16: Name: | C16: April Barrie
B18: Title: | C18: Manager, Rates and Revenue
B20: Phone Number: | C20: 613-738-5499 x 106
B22: E-Mail Address: | C22: RegulatoryAffairs@HydroOttawa.com
A25: Copyright
A26: This cost allocation model is protected by copyright and is being made available to you solely for the purpose of preparing or reviewing an cost allocation filing. You may use and copy this cost allocation model for that purpose, and provide a copy of this cost allocation model to any person that is advising or assisting you in that regard. Except as indicated above, any copying, reproduction, publication, sale, adaptation, translation, modification, reverse engineering or other use or dissemination of this cost allocation model without the express written consent of the Ontario Energy Board is prohibited. If you provide a copy of this cost allocation model to a person that is advising or assisting you in preparing or reviewing a cost allocation filing, you must ensure that the person understands and agrees to the restrictions noted above.
A29: **Please Note: Colour Coding Legend **
C30: Input Cells
C31: Output Cells
C32: Exhibition
C33: Brought Forward | D33: Brought Forward
C34: Calculation | D34: Calculation
C35: Diagnostic
A37: Brief Description of Each Worksheet's Function
A39: INPUTS | B39: I1 | C39: Intro | D39: Brief explanation of what the pages do.
B40: I2 | C40: LDC data and Classes | D40: Enter LDC specific information and number of classes etc
B41: I3 | C41: TB Data | D41: Forecast Trial Balance
B42: I4 | C42: BO ASSETS | D42: Break out assets into detail functions - bulk deliver, primary and secondary
B43: I5.1 | C43: Misc Data | D43: Input for miscellaneous data where necessary - TBD
B44: I5.2 | C44: Weighting Factors | D44: Invput for weighting factors to be applied to billing and services
B45: I6.1 | C45: Revenue | D45: Input rates and volumes for working up revenue
B46: I6.2 | C46: Customer Data | D46: Input customer related data for generating customer allocators
B47: I7.1 | C47: Meter Capital | D47: Input meter related data for calculating capital costs weighing factors
B48: I7.2 | C48: Meter Reading | D48: Input meter related data for calculating meter reading weighing factors
B49: I8 | C49: Demand Data | D49: Input demand allocators using load data and making LDC specific adjustments
B50: I9 | C50: Direct Allocation
A51: OUTPUTS | B51: O1 | C51: Revenue to cost | D51: Output showing revenue to cost ratios, inter class subsidy etc.
B52: O2 | C52: Fixed Charge | D52: Output showing the range for the Basic Customer charge - TBD
B53: O2.1 | C53: Line Transformer PLCC Adjustment
B54: O2.2 | C54: Primary Cost PLCC Adjustment
B55: O2.3 | C55: Secondary Cost PLCC Adjustment
B56: O3.1 | C56: Line Tran Unit Cost
B57: O3.2 | C57: Substat Tran Unit Cost
B58: O3.3 | C58: Primary Cost Pool
B59: O3.4 | C59: Secondary Cost Pool
B60: O3.5 | C60: USL Metering Credit
B61: O3.6 | C61: MicroFIT Charges
B62: O4 | C62: Summary by Class | D62: Output showing summary of all allocation by class and by US of A
B63: O5 | C63: Detail by Class | D63: Output showing details of individual allocation by class and by USofA
B64: O6 | C64: Source Data for E2
B65: O7 | C65: Amortization
A66: EXHIBITS | B66: E1 | C66: Categorization | D66: Exhibit showing how costs are categorized
B67: E2 | C67: Allocation Factors | D67: Exhibit summarizing all allocation factors created in I5 to I8 and present the findings in percentages
B68: E3 | C68: PLCC | D68: Backup documentation for calculating Peak Load Carrying Capability.
B69: E4 | C69: Trial Balance Index | D69: Exhibit showing 1. how accounts are grouped for reporting, how accounts are categorized and how accounts are allocated
B70: E5 | C70: Reconciliation | D70: Exhibit showing reconciliation of accounts included and excluded from the allocation study to TB balance

Sheet I2 LDC class
C4: ='I1 Intro'!C11 -> EB-2015-0004
C5: Sheet I2 Class Selection - | D5: =C17 -> 
C14: Please input the date on which this Run of the model was prepared or submitted
C16: Please provide summary identification of this Run
D19: Utility's Class Definition | E19: Current
B20: 1 | C20: Residential | E20: YES | Q20: yes
B21: 2 | C21: GS <50 | E21: YES | Q21: yes
B22: 3 | C22: GS>50-Regular | D22: GS 50 to 1,499 kW | E22: YES | Q22: yes
B23: 4 | C23: GS> 50-TOU | D23: GS 1,500 to 4,999 kW | E23: YES | Q23: yes
B24: 5 | C24: GS >50-Intermediate | E24: NO | Q24: yes
B25: 6 | C25: Large Use >5MW | D25: Large Use | E25: YES | Q25: yes
B26: 7 | C26: Street Light | E26: YES | Q26: yes
B27: 8 | C27: Sentinel | E27: YES | Q27: yes
B28: 9 | C28: Unmetered Scattered Load | E28: YES | Q28: yes
B29: 10 | C29: Embedded Distributor | E29: NO | Q29: yes
B30: 11 | C30: Back-up/Standby Power | D30: Standby Power GS 50 to 1,499 kW | E30: YES | Q30: yes
B31: 12 | C31: Rate Class 1 | D31: Standby Power GS 1,500 to 4,999 kW | E31: YES | Q31: yes
B32: 13 | C32: Rate class 2 | D32: Standby Power Large Use | E32: YES | Q32: yes
B33: 14 | C33: Rate class 3 | E33: NO | Q33: yes
B34: 15 | C34: Rate class 4 | E34: NO | Q34: yes
B35: 16 | C35: Rate class 5 | E35: NO | Q35: yes
B36: 17 | C36: Rate class 6 | E36: NO | Q36: yes
B37: 18 | C37: Rate class 7 | E37: NO | Q37: yes
B38: 19 | C38: Rate class 8 | E38: NO | Q38: yes
B39: 20 | C39: Rate class 9 | E39: NO | Q39: yes
A44: ** | B44: Space available for additional information about this run

Sheet I3 TB Data
B3: ='I1 Intro'!C11 -> EB-2015-0004
B5: ="Sheet I3 Trial Balance Data " -> Sheet I3 Trial Balance Data
A8: Comparisons with RRWF
B9: RRWF Reference:
B10: 9. cel lF23 | D10: Return on Deemed Equity | F10: 36058234.3
B11: 9. cell F19 | D11: Income Taxes (Grossed up) | F11: 4835440
B12: 9. cell F22 | D12: Deemed Interest Expense | F12: 22224279
B13: 9. cell F25 | D13: Service Revenue Requirement | F13: 197107850.4 | G13: From this Sheet | H13: Differences?
D14: Revenue Requirement to be Used in this model ($) | F14: =ROUND(F13,0) -> 197107850 | G14: =IF(ISERROR(ROUND(F10+F11+F12+SUM(H364:H378) + SUM(H380:H398)+H402+ SUM(H412:H444) + SUM(H447:H449) + SUM(H452:H454)+H465+SUM(H469:H472)+SUM(G364:G378) + SUM(G380:G398)+G402+ SUM(G412:G444) + SUM(G447:G449) + SUM(G452:G454)+G465+SUM(G469:G472),0)), "Error", ROUND(F10+F11+F12+SUM(H364:H378) + SUM(H380:H398)+H402+ SUM(H412:H444) + SUM(H447:H449) + SUM(H452:H454)+H465+SUM(H469:H472)+SUM(G364:G378) + SUM(G380:G398)+G402+ SUM(G412:G444) + SUM(G447:G449) + SUM(G452:G454)+G465+SUM(G469:G472),0)) -> 197107850 | H14: =IF(ROUND(F14-G14,-1)=0,"Rev Req Matches", "Rev Req does not match") -> Rev Req Matches | J14: =F14-G14 -> 0
B15: 9. cell G19 | D15: Rate Base ($) | F15: 969307373.7
D16: Rate Base to be Used in this model ($) | F16: =ROUND(F15,0) -> 969307374 | G16: =ROUND(H84+H105+SUM(H133:H147)+SUM(H151:H164)+SUM(H166:H168) + SUM(H170:H173) +H177+ H183+H184+G84+G105+SUM(G133:G147)+SUM(G151:G164)+SUM(G166:G168) + SUM(G170:G173) +G177+ G183+G184+(F14-F10-F11-F12-SUM(H447:H449)-SUM(G447:G449) + SUM(H332:H336)+H338+H341+H342+H343+H446+SUM(G332:G336)+G338+G341+G342+G343+ G446-G452-G453-G454-H452-H453-H454) * 'I5.1 Misc Data'!$D$19,0) -> 969307374 | H16: =IF(ROUND(F16-G16,-1)=0,"Rate Base Matches","Rate Base does not match") -> Rate Base Matches | J16: =F16-G16 -> 0 | K16: =J16*(100/15) -> 0
A18: Uniform System of Accounts - Detail Accounts
A19: USoA Account # | B19: Accounts | D19: Forecast Financial Statement | E19: Model Adjustments | F19: Reclassify accounts | G19: Direct Allocation | H19: Reclassified Balance
A20: 1005 | B20: Cash | H20: =+D20+E20+F20-G20 -> 0 | J20: Unclassified Asset
A21: 1010 | B21: Cash Advances and Working Funds | H21: =+D21+E21+F21-G21 -> 0 | J21: Unclassified Asset
A22: 1020 | B22: Interest Special Deposits | H22: 0 | J22: Unclassified Asset
A23: 1030 | B23: Dividend Special Deposits | H23: 0 | J23: Unclassified Asset
A24: 1040 | B24: Other Special Deposits | H24: 0 | J24: Unclassified Asset
A25: 1060 | B25: Term Deposits | H25: 0 | J25: Unclassified Asset
A26: 1070 | B26: Current Investments | H26: 0 | J26: Unclassified Asset
A27: 1100 | B27: Customer Accounts Receivable | H27: 0 | J27: Unclassified Asset
A28: 1102 | B28: Accounts Receivable - Services | H28: 0 | J28: Unclassified Asset
A29: 1104 | B29: Accounts Receivable - Recoverable Work | H29: 0 | J29: Unclassified Asset
A30: 1105 | B30: Accounts Receivable - Merchandise, Jobbing, etc. | H30: 0 | J30: Unclassified Asset
A31: 1110 | B31: Other Accounts Receivable | H31: 0 | J31: Unclassified Asset
A32: 1120 | B32: Accrued Utility Revenues | H32: 0 | J32: Unclassified Asset
A33: 1130 | B33: Accumulated Provision for Uncollectible Accounts--Credit | H33: 0 | J33: Unclassified Asset
A34: 1140 | B34: Interest and Dividends Receivable | H34: 0 | J34: Unclassified Asset
A35: 1150 | B35: Rents Receivable | H35: 0 | J35: Unclassified Asset
A36: 1170 | B36: Notes Receivable | H36: 0 | J36: Unclassified Asset
A37: 1180 | B37: Prepayments | H37: 0 | J37: Unclassified Asset
A38: 1190 | B38: Miscellaneous Current and Accrued Assets | H38: 0 | J38: Unclassified Asset
A39: 1200 | B39: Accounts Receivable from Associated Companies | H39: 0 | J39: Unclassified Asset
A40: 1210 | B40: Notes Receivable from Associated Companies | H40: 0 | J40: Unclassified Asset
A41: 1305 | B41: Fuel Stock | H41: 0 | J41: Unclassified Asset
A42: 1330 | B42: Plant Materials and Operating Supplies | H42: 0 | J42: Unclassified Asset
A43: 1340 | B43: Merchandise | H43: 0 | J43: Unclassified Asset
A44: 1350 | B44: Other Materials and Supplies | H44: 0 | J44: Unclassified Asset
A45: 1405 | B45: Long Term Investments in Non-Associated Companies | H45: 0 | J45: Unclassified Asset
A46: 1408 | B46: Long Term Receivable - Street Lighting Transfer | H46: 0 | J46: Unclassified Asset
A47: 1410 | B47: Other Special or Collateral Funds | H47: 0 | J47: Unclassified Asset
A48: 1415 | B48: Sinking Funds | H48: 0 | J48: Unclassified Asset
A49: 1425 | B49: Unamortized Debt Expense | H49: 0 | J49: Unclassified Asset
A50: 1445 | B50: Unamortized Discount on Long-Term Debt--Debit | H50: 0 | J50: Unclassified Asset
A51: 1455 | B51: Unamortized Deferred Foreign Currency Translation Gains and Losses | H51: 0 | J51: Unclassified Asset
A52: 1460 | B52: Other Non-Current Assets | H52: 0 | J52: Unclassified Asset
A53: 1465 | B53: O.M.E.R.S. Past Service Costs | H53: 0 | J53: Unclassified Asset
A54: 1470 | B54: Past Service Costs - Employee Future Benefits | H54: 0 | J54: Unclassified Asset
A55: 1475 | B55: Past Service Costs - Other Pension Plans | H55: 0 | J55: Unclassified Asset
A56: 1480 | B56: Portfolio Investments - Associated Companies | H56: 0 | J56: Unclassified Asset
A57: 1485 | B57: Investment in Associated Companies - Significant Influence | H57: 0 | J57: Unclassified Asset
A58: 1490 | B58: Investment in Subsidiary Companies | H58: 0 | J58: Unclassified Asset
A59: 1505 | B59: Unrecovered Plant and Regulatory Study Costs | H59: 0 | J59: Unclassified Asset
A60: 1508 | B60: Other Regulatory Assets | H60: 0 | J60: Unclassified Asset
A61: 1510 | B61: Preliminary Survey and Investigation Charges | H61: 0 | J61: Unclassified Asset
A62: 1515 | B62: Emission Allowance Inventory | H62: 0 | J62: Unclassified Asset
A63: 1516 | B63: Emission Allowances Withheld | H63: 0 | J63: Unclassified Asset
A64: 1518 | B64: RCVARetail | H64: 0 | J64: Unclassified Asset
A65: 1520 | B65: Power Purchase Variance Account | H65: 0 | J65: Unclassified Asset
A66: 1521 | B66: Special Purpose Charge Assessment Variance Account | H66: =+D66+E66+F66-G66 -> 0 | J66: Unclassified Asset
A67: 1525 | B67: Miscellaneous Deferred Debits | H67: 0 | J67: Unclassified Asset
A68: 1530 | B68: Deferred Losses from Disposition of Utility Plant | H68: 0 | J68: Unclassified Asset
A69: 1531 | B69: Renewable Connection Capital Deferral Account | H69: =+D69+E69+F69-G69 -> 0 | J69: Unclassified Asset
A70: 1532 | B70: Renewable Connection OM&A Deferral Account | H70: 0 | J70: Unclassified Asset
A71: 1533 | B71: Renewable Connection Funding Adder Deferral Account | H71: 0 | J71: Unclassified Asset
A72: 1534 | B72: Smart Grid Capital Deferral Account | H72: 0 | J72: Unclassified Asset
A73: 1535 | B73: Smart Grid OM&A Deferral Account | H73: 0 | J73: Unclassified Asset
A74: 1536 | B74: Smart Grid Funding Adder Deferral Account | H74: 0 | J74: Unclassified Asset
A75: 1540 | B75: Unamortized Loss on Reacquired Debt | H75: 0 | J75: Unclassified Asset
A76: 1545 | B76: Development Charge Deposits/ Receivables | H76: 0 | J76: Unclassified Asset
A77: 1548 | B77: RCVASTR | H77: 0 | J77: Unclassified Asset
A78: 1550 | B78: LV Variance Account | H78: =+D78+E78+F78-G78 -> 0 | J78: Unclassified Asset
A79: 1555 | B79: Smart Meter Capital and Recovery Variance Account | H79: 0 | J79: Unclassified Asset
A80: 1556 | B80: Smart Meter OM&A Variance Account | H80: 0 | J80: Unclassified Asset
A81: 1560 | B81: Deferred Development Costs | H81: 0 | J81: Unclassified Asset
A82: 1562 | B82: Deferred Payments in Lieu of Taxes | H82: 0 | J82: Unclassified Asset
A83: 1563 | B83: Account 1563 - Deferred PILs Contra Account | H83: 0 | J83: Unclassified Asset
A84: 1565 | B84: Conservation and Demand Management Expenditures and Recoveries | H84: 0 | J84: CDM Expenditures and Recoveries
A85: 1566 | B85: CDM Contra Account | H85: =+D85+E85+F85-G85 -> 0 | J85: Unclassified Asset
A86: 1567 | B86: Bd-approved CDM Variance Account | H86: 0 | J86: Unclassified Asset
A87: 1568 | B87: LRAM Variance Account | H87: 0 | J87: Unclassified Asset
A88: 1570 | B88: Qualifying Transition Costs | H88: 0 | J88: Unclassified Asset
A89: 1571 | B89: Pre-market Opening Energy Variance | H89: 0 | J89: Unclassified Asset
A90: 1572 | B90: Extraordinary Event Costs | H90: 0 | J90: Unclassified Asset
A91: 1574 | B91: Deferred Rate Impact Amounts | H91: 0 | J91: Unclassified Asset
A92: 1575 | B92: IFRS -CGAAP Transition PP&E Amounts | H92: =+D92+E92+F92-G92 -> 0 | J92: Unclassified Asset
A93: 1576 | B93: Accounting Changes under CGAAP | H93: =+D93+E93+F93-G93 -> 0 | J93: Unclassified Asset | Q93: New row
A94: 1580 | B94: RSVAWMS | H94: 0 | J94: Unclassified Asset
A95: 1582 | B95: RSVAONE-TIME | H95: 0 | J95: Unclassified Asset
A96: 1584 | B96: RSVANW | H96: 0 | J96: Unclassified Asset
A97: 1586 | B97: RSVACN | H97: 0 | J97: Unclassified Asset
A98: 1588 | B98: RSVAPOWER | H98: 0 | J98: Unclassified Asset
A99: 1589 | B99: RSVA-GA | H99: =+D99+E99+F99-G99 -> 0 | J99: Unclassified Asset
A100: 1590 | B100: Recovery of Regulatory Asset Balances | H100: =+D100+E100+F100-G100 -> 0 | J100: Unclassified Asset
A101: 1592 | B101: 2006 PILs Variance | H101: =+D101+E101+F101-G101 -> 0 | J101: Unclassified Asset
A102: 1595 | B102: Reg Balance Control Account | H102: 0 | J102: Unclassified Asset
A103: 1605 | B103: Electric Plant in Service - Control Account | H103: =+D103+E103+F103-G103 -> 0 | J103: Unclassified Asset
A104: 1606 | B104: Organization | H104: 0 | J104: Non-Distribution Asset
A105: 1608 | B105: Franchises and Consents | H105: 0 | J105: Other Distribution Assets
A106: 1610 | B106: Miscellaneous Intangible Plant | H106: 0 | J106: Non-Distribution Asset
A107: 1615 | B107: Land | H107: 0 | J107: Non-Distribution Asset
A108: 1616 | B108: Land Rights | H108: 0 | J108: Non-Distribution Asset
A109: 1620 | B109: Buildings and Fixtures | H109: 0 | J109: Non-Distribution Asset
A110: 1630 | B110: Leasehold Improvements | H110: 0 | J110: Non-Distribution Asset
A111: 1635 | B111: Boiler Plant Equipment | H111: 0 | J111: Non-Distribution Asset
A112: 1640 | B112: Engines and Engine-Driven Generators | H112: 0 | J112: Non-Distribution Asset
A113: 1645 | B113: Turbogenerator Units | H113: 0 | J113: Non-Distribution Asset
A114: 1650 | B114: Reservoirs, Dams and Waterways | H114: 0 | J114: Non-Distribution Asset
A115: 1655 | B115: Water Wheels, Turbines and Generators | H115: 0 | J115: Non-Distribution Asset
A116: 1660 | B116: Roads, Railroads and Bridges | H116: 0 | J116: Non-Distribution Asset
A117: 1665 | B117: Fuel Holders, Producers and Accessories | H117: 0 | J117: Non-Distribution Asset
A118: 1670 | B118: Prime Movers | H118: 0 | J118: Non-Distribution Asset
A119: 1675 | B119: Generators | H119: 0 | J119: Non-Distribution Asset
A120: 1680 | B120: Accessory Electric Equipment | H120: 0 | J120: Non-Distribution Asset
A121: 1685 | B121: Miscellaneous Power Plant Equipment | H121: 0 | J121: Non-Distribution Asset
A122: 1705 | B122: Land | H122: 0 | J122: Non-Distribution Asset
A123: 1706 | B123: Land Rights | H123: 0 | J123: Non-Distribution Asset
A124: 1708 | B124: Buildings and Fixtures | H124: 0 | J124: Non-Distribution Asset
A125: 1710 | B125: Leasehold Improvements | H125: 0 | J125: Non-Distribution Asset
A126: 1715 | B126: Station Equipment | H126: 0 | J126: Non-Distribution Asset
A127: 1720 | B127: Towers and Fixtures | H127: 0 | J127: Non-Distribution Asset
A128: 1725 | B128: Poles and Fixtures | H128: 0 | J128: Non-Distribution Asset
A129: 1730 | B129: Overhead Conductors and Devices | H129: 0 | J129: Non-Distribution Asset
A130: 1735 | B130: Underground Conduit | H130: 0 | J130: Non-Distribution Asset
A131: 1740 | B131: Underground Conductors and Devices | H131: 0 | J131: Non-Distribution Asset
A132: 1745 | B132: Roads and Trails | H132: 0 | J132: Non-Distribution Asset
A133: 1805 | B133: Land | D133: 25110078.57 | H133: 25110078.57 | J133: Land and Buildings
A134: 1806 | B134: Land Rights | H134: 0 | J134: Land and Buildings
A135: 1808 | B135: Buildings and Fixtures | D135: 30838415.31 | H135: 30838415.31 | J135: Land and Buildings
A136: 1810 | B136: Leasehold Improvements | D136: 0 | H136: 0 | J136: Land and Buildings
A137: 1815 | B137: Transformer Station Equipment - Normally Primary above 50 kV | D137: 95441187.51 | H137: 95441187.51 | J137: TS Primary Above 50
A138: 1820 | B138: Distribution Station Equipment - Normally Primary below 50 kV | D138: 96788277.31 | H138: 96788277.31 | J138: DS
A139: 1825 | B139: Storage Battery Equipment | D139: 0 | H139: 0 | J139: Other Distribution Assets
A140: 1830 | B140: Poles, Towers and Fixtures | D140: 108409676.2 | H140: 108409676.2 | J140: Poles, Wires
A141: 1835 | B141: Overhead Conductors and Devices | D141: 100124289.4 | H141: 100124289.4 | J141: Poles, Wires
A142: 1840 | B142: Underground Conduit | D142: 115405778.1 | H142: 115405778.1 | J142: Poles, Wires
A143: 1845 | B143: Underground Conductors and Devices | D143: 119607378.2 | H143: 119607378.2 | J143: Poles, Wires
A144: 1850 | B144: Line Transformers | D144: 82290154.87 | H144: 82290154.87 | J144: Line Transformers
A145: 1855 | B145: Services | D145: 55133927.5 | H145: 55133927.5 | J145: Services and Meters
A146: 1860 | B146: Meters | D146: 42357668.45 | H146: 42357668.45 | J146: Services and Meters
B147: blank row
A148: 1865 | B148: Other Installations on Customer's Premises | H148: 0 | J148: Non-Distribution Asset
A149: 1870 | B149: Leased Property on Customer Premises | H149: 0 | J149: Non-Distribution Asset
A150: 1875 | B150: Street Lighting and Signal Systems | H150: 0 | J150: Non-Distribution Asset
A151: 1905 | B151: Land | H151: 0 | J151: Land and Buildings
A152: 1906 | B152: Land Rights | D152: 1925714.68 | H152: 1925714.68 | J152: Land and Buildings
A153: 1908 | B153: Buildings and Fixtures | D153: 33719353.98 | H153: 33719353.98 | J153: General Plant
A154: 1910 | B154: Leasehold Improvements | D154: 0 | H154: 0 | J154: General Plant
A155: 1915 | B155: Office Furniture and Equipment | D155: 1640801.35 | H155: 1640801.35 | J155: Equipment
A156: 1920 | B156: Computer Equipment - Hardware | D156: 9739695.04 | H156: 9739695.04 | J156: IT Assets
A157: 1925 | B157: Computer Software | D157: 61442469.72 | H157: 61442469.72 | J157: IT Assets
A158: 1930 | B158: Transportation Equipment | D158: 14298740.29 | H158: 14298740.29 | J158: Equipment
A159: 1935 | B159: Stores Equipment | D159: 1084676.78 | H159: 1084676.78 | J159: Equipment
A160: 1940 | B160: Tools, Shop and Garage Equipment | D160: 4541782.131 | H160: 4541782.131 | J160: Equipment
A161: 1945 | B161: Measurement and Testing Equipment | D161: 229168.79 | H161: 229168.79 | J161: Equipment
A162: 1950 | B162: Power Operated Equipment | D162: 0 | H162: 0 | J162: Equipment
A163: 1955 | B163: Communication Equipment | D163: 4437661.83 | H163: 4437661.83 | J163: Equipment
A164: 1960 | B164: Miscellaneous Equipment | D164: 3049925.298 | H164: 3049925.298 | J164: Equipment
A165: 1965 | B165: Water Heater Rental Units | H165: 0 | J165: Non-Distribution Asset
A166: 1970 | B166: Load Management Controls - Customer Premises | D166: 134245.07 | H166: 134245.07 | J166: Other Distribution Assets
A167: 1975 | B167: Load Management Controls - Utility Premises | D167: 17974.33 | H167: 17974.33 | J167: Other Distribution Assets
A168: 1980 | B168: System Supervisory Equipment | D168: 7524127.262 | H168: =+D168+E168+F168-G168 -> 7524127.262 | J168: Other Distribution Assets
A169: 1985 | B169: Sentinel Lighting Rental Units | H169: 0 | J169: Non-Distribution Asset
A170: 1990 | B170: Other Tangible Property | H170: 0 | J170: Other Distribution Assets
A171: 1995 | B171: Contributions and Grants - Credit | D171: -56190742.93 | F171: 2716043.274 | H171: -53474699.66 | J171: Contributions and Grants
A172: 2005 | B172: Property Under Capital Leases | H172: 0 | J172: Other Distribution Assets
A173: 2010 | B173: Electric Plant Purchased or Sold | H173: 0 | J173: Other Distribution Assets
A174: 2020 | B174: Experimental Electric Plant Unclassified | H174: 0 | J174: Non-Distribution Asset
A175: 2030 | B175: Electric Plant and Equipment Leased to Others | H175: 0 | J175: Non-Distribution Asset
A176: 2040 | B176: Electric Plant Held for Future Use | H176: 0 | J176: Non-Distribution Asset
A177: 2050 | B177: Completed Construction Not Classified--Electric | H177: 0 | J177: Other Distribution Assets
A178: 2055 | B178: Construction Work in Progress--Electric | H178: 0 | J178: Non-Distribution Asset
A179: 2060 | B179: Electric Plant Acquisition Adjustment | H179: 0 | J179: Unclassified Asset
A180: 2065 | B180: Other Electric Plant Adjustment | H180: 0 | J180: Non-Distribution Asset
A181: 2070 | B181: Other Utility Plant | H181: 0 | J181: Non-Distribution Asset
A182: 2075 | B182: Non-Utility Property Owned or Under Capital Leases | H182: 0 | J182: Non-Distribution Asset
A183: 2105 | B183: Accum. Amortization of Electric Utility Plant - Property, Plant, & Equipment | D183: -132028863.8 | F183: =-F171 -> -2716043.274 | H183: -134744907 | J183: Accumulated Amortization
A184: 2120 | B184: Accumulated Amortization of Electric Utility Plant - Intangibles | H184: 0 | J184: Accumulated Amortization
A185: 2140 | B185: Accumulated Amortization of Electric Plant Acquisition Adjustment | H185: 0 | J185: Unclassified Asset
A186: 2160 | B186: Accumulated Amortization of Other Utility Plant | H186: 0 | J186: Non-Distribution Asset
A187: 2180 | B187: Accumulated Amortization of Non-Utility Property | H187: 0 | J187: Non-Distribution Asset
A188: 2205 | B188: Accounts Payable | H188: 0 | J188: Liability
A189: 2208 | B189: Customer Credit Balances | H189: 0 | J189: Liability
A190: 2210 | B190: Current Portion of Customer Deposits | H190: 0 | J190: Liability
A191: 2215 | B191: Dividends Declared | H191: 0 | J191: Liability
A192: 2220 | B192: Miscellaneous Current and Accrued Liabilities | H192: 0 | J192: Liability
A193: 2225 | B193: Notes and Loans Payable | H193: 0 | J193: Liability
A194: 2240 | B194: Accounts Payable to Associated Companies | H194: 0 | J194: Liability
A195: 2242 | B195: Notes Payable to Associated Companies | H195: 0 | J195: Liability
A196: 2250 | B196: Debt Retirement Charges( DRC) Payable | H196: 0 | J196: Liability
A197: 2252 | B197: Transmission Charges Payable | H197: 0 | J197: Liability
A198: 2254 | B198: Electrical Safety Authority Fees Payable | H198: 0 | J198: Liability
A199: 2256 | B199: Independent Market Operator Fees and Penalties Payable | H199: 0 | J199: Liability
A200: 2260 | B200: Current Portion of Long Term Debt | H200: 0 | J200: Liability
A201: 2262 | B201: Ontario Hydro Debt - Current Portion | H201: 0 | J201: Liability
A202: 2264 | B202: Pensions and Employee Benefits - Current Portion | H202: 0 | J202: Liability
A203: 2268 | B203: Accrued Interest on Long Term Debt | H203: 0 | J203: Liability
A204: 2270 | B204: Matured Long Term Debt | H204: 0 | J204: Liability
A205: 2272 | B205: Matured Interest on Long Term Debt | H205: 0 | J205: Liability
A206: 2285 | B206: Obligations Under Capital Leases--Current | H206: 0 | J206: Liability
... 321 more rows

Sheet I4 BO ASSETS
B4: ='I1 Intro'!C11 -> EB-2015-0004
B5: ="Sheet I4 Break Out Worksheet - "& 'I2 LDC class'!$C$17 -> Sheet I4 Break Out Worksheet -
A12: Enter Net Fixed Assets from the Revenue Requirement Work Form, Rate Base sheet, cell G15 | C12: 827073561.3
A14: RATE BASE AND DISTRIBUTION ASSETS | C14: BALANCE SHEET ITEMS | L14: EXPENSE ITEMS
L15: 5705 | M15: 5710 | N15: 5715 | O15: 5720
A16: Account | B16: Description | C16: Break out Functions | D16: BREAK OUT (%) | E16: BREAK OUT ($) | F16: After BO | G16: Contributed Capital - 1995 | H16: Accumulated Depreciation - 2105 Capital Contribution | I16: Accumulated Depreciation - 2105 Fixed Assets Only | J16: Accumulated Depreciation - 2120 | K16: Asset net of Accumulated Depreciation and Contributed Capital | L16: Amortization Expense - Property, Plant, and Equipment | M16: Amortization of Limited Term Electric Plant | N16: Amortization of Intangibles and Other Electric Plant | O16: Amortization of Electric Plant Acquisition Adjustments
A17: 1565 | B17: Conservation and Demand Management | C17: =+'I3 TB Data'!H84 -> 0 | E17: 0 | F17: =+E17+C17 -> 0 | K17: =+F17+G17+H17+I17+J17 -> 0
A18: 1805 | B18: Land | C18: =+'I3 TB Data'!H133 -> 25110078.57 | E18: =-SUM(E19:E20) -> -25110078.57 | F18: =+E18+C18 -> 0
A19: 1805-1 | B19: Land Station >50 kV | D19: 0.058 | E19: =C18*D19 -> 1456384.557 | F19: =E19 -> 1456384.557 | K19: 1456384.557
A20: 1805-2 | B20: Land Station <50 kV | D20: =1-D19 -> 0.942 | E20: =C18*D20 -> 23653694.01 | F20: =E20 -> 23653694.01 | K20: 23653694.01
A21: 1806 | B21: Land Rights | C21: =+'I3 TB Data'!H134 -> 0 | E21: =-SUM(E22:E23) -> 0 | F21: =+E21+C21 -> 0
A22: 1806-1 | B22: Land Rights Station >50 kV | E22: =C21*D22 -> 0 | F22: =E22 -> 0 | K22: 0
A23: 1806-2 | B23: Land Rights Station <50 kV | D23: =1-D22 -> 1 | E23: =C21*D23 -> 0 | F23: =E23 -> 0 | K23: 0
A24: 1808 | B24: Buildings and Fixtures | C24: =+'I3 TB Data'!H135 -> 30838415.31 | E24: =-SUM(E25:E26) -> -30838415.31 | F24: =+E24+C24 -> 0
A25: 1808-1 | B25: Buildings and Fixtures > 50 kV | D25: 0.14 | E25: =C24*D25 -> 4317378.143 | F25: =E25 -> 4317378.143 | G25: -3338.255853 | I25: -398479.7264 | K25: 3915560.161 | L25: 119407.82
A26: 1808-2 | B26: Buildings and Fixtures < 50 KV | D26: =1-D25 -> 0.86 | E26: =C24*D26 -> 26521037.17 | F26: =E26 -> 26521037.17 | G26: -20506.42881 | I26: -2447804.034 | K26: 24052726.7 | L26: 733505.18
A27: 1810 | B27: Leasehold Improvements | C27: =+'I3 TB Data'!H136 -> 0 | E27: =-SUM(E28:E29) -> 0 | F27: =+E27+C27 -> 0
A28: 1810-1 | B28: Leasehold Improvements >50 kV | E28: =C27*D28 -> 0 | F28: =E28 -> 0 | K28: 0
A29: 1810-2 | B29: Leasehold Improvements <50 kV | D29: =1-D28 -> 1 | E29: =C27*D29 -> 0 | F29: =E29 -> 0 | K29: 0
A30: 1815 | B30: Transformer Station Equipment - Normally Primary above 50 kV | C30: =+'I3 TB Data'!H137 -> 95441187.51 | E30: 0 | F30: =+E30+C30 -> 95441187.51 | I30: -10635130.06 | K30: 84806057.45 | L30: 3150357.66
A31: 1820 | B31: Distribution Station Equipment - Normally Primary below 50 kV | C31: =+'I3 TB Data'!H138 -> 96788277.31 | E31: =-SUM(E32:E34) -> -96788277.31 | F31: =+E31+C31 -> 0 | K31: 0
A32: 1820-1 | B32: Distribution Station Equipment - Normally Primary below 50 kV (Bulk) | E32: =C31*D32 -> 0 | F32: =E32 -> 0 | K32: 0
A33: 1820-2 | B33: Distribution Station Equipment - Normally Primary below 50 kV Primary) | D33: 0.92 | E33: =C31*D33 -> 89045215.13 | F33: =E33 -> 89045215.13 | G33: -212597.9249 | I33: -11323983.51 | K33: 77508633.69 | L33: 3115558.766
A34: 1820-3 | B34: Distribution Station Equipment - Normally Primary below 50 kV (Wholesale Meters) | D34: =1-(D32+D33) -> 0.08 | E34: =C31*D34 -> 7743062.185 | F34: =E34 -> 7743062.185 | G34: -18486.77608 | I34: -984694.2184 | K34: 6739881.191 | L34: 270918.1536
A35: 1825 | B35: Storage Battery Equipment | C35: =+'I3 TB Data'!H139 -> 0 | E35: =-SUM(E36:E37) -> 0 | F35: =+E35+C35 -> 0
A36: 1825-1 | B36: Storage Battery Equipment > 50 kV | E36: =C35*D36 -> 0 | F36: =E36 -> 0 | K36: 0
A37: 1825-2 | B37: Storage Battery Equipment <50 kV | D37: =1-D36 -> 1 | E37: =C35*D37 -> 0 | F37: =E37 -> 0 | K37: 0
A38: 1830 | B38: Poles, Towers and Fixtures | C38: =+'I3 TB Data'!H140 -> 108409676.2 | E38: =-SUM(E39:E41) -> -108409676.2 | F38: =+E38+C38 -> 0
A39: 1830-3 | B39: Poles, Towers and Fixtures - Subtransmission Bulk Delivery | E39: =C38*D39 -> 0 | F39: =E39 -> 0 | K39: 0
A40: 1830-4 | B40: Poles, Towers and Fixtures - Primary | D40: 0.7 | E40: =C38*D40 -> 75886773.37 | F40: =E40 -> 75886773.37 | G40: -2715409.814 | I40: -5642337.589 | K40: 67529025.97 | L40: 1941767.73
A41: 1830-5 | B41: Poles, Towers and Fixtures - Secondary | D41: =1-(D39+D40) -> 0.3 | E41: =C38*D41 -> 32522902.87 | F41: =E41 -> 32522902.87 | G41: -1163747.063 | I41: -2418144.681 | K41: 28941011.13 | L41: 832186.17
A42: 1835 | B42: Overhead Conductors and Devices | C42: =+'I3 TB Data'!H141 -> 100124289.4 | E42: =-SUM(E43:E45) -> -100124289.4 | F42: =+E42+C42 -> 0
A43: 1835-3 | B43: Overhead Conductors and Devices - Subtransmission Bulk Delivery | E43: =C42*D43 -> 0 | F43: =E43 -> 0 | K43: 0
A44: 1835-4 | B44: Overhead Conductors and Devices - Primary | D44: 1 | E44: =C42*D44 -> 100124289.4 | F44: =E44 -> 100124289.4 | G44: -4072221.744 | I44: -7491308.095 | K44: 88560759.56 | L44: 2681086.95
A45: 1835-5 | B45: Overhead Conductors and Devices - Secondary | D45: =1-(D43+D44) -> 0 | E45: =C42*D45 -> 0 | F45: =E45 -> 0 | K45: 0
A46: 1840 | B46: Underground Conduit | C46: =+'I3 TB Data'!H142 -> 115405778.1 | E46: =-SUM(E47:E49) -> -115405778.1 | F46: =+E46+C46 -> 0
A47: 1840-3 | B47: Underground Conduit - Bulk Delivery | E47: =C46*D47 -> 0 | F47: =E47 -> 0 | K47: 0
A48: 1840-4 | B48: Underground Conduit - Primary | D48: 0.71 | E48: =C46*D48 -> 81938102.42 | F48: =E48 -> 81938102.42 | G48: -8005804.536 | I48: -7076430.769 | K48: 66855867.12 | L48: 2515131.69
A49: 1840-5 | B49: Underground Conduit - Secondary | D49: =1-(D47+D48) -> 0.29 | E49: =C46*D49 -> 33467675.64 | F49: =E49 -> 33467675.64 | G49: -3269976.501 | I49: -2890373.131 | K49: 27307326.01 | L49: 1027307.31
A50: 1845 | B50: Underground Conductors and Devices | C50: =+'I3 TB Data'!H143 -> 119607378.2 | E50: =-SUM(E51:E53) -> -119607378.2 | F50: =+E50+C50 -> 0
A51: 1845-3 | B51: Underground Conductors and Devices - Bulk Delivery | E51: =C50*D51 -> 0 | F51: =E51 -> 0 | K51: 0
A52: 1845-4 | B52: Underground Conductors and Devices - Primary | D52: 1 | E52: =C50*D52 -> 119607378.2 | F52: =E52 -> 119607378.2 | G52: -14320431.01 | I52: -11182023.27 | K52: 94104923.9 | L52: 4293409.96
A53: 1845-5 | B53: Underground Conductors and Devices - Secondary | D53: =1-(D51+D52) -> 0 | E53: =C50*D53 -> 0 | F53: =E53 -> 0 | K53: 0
A54: 1850 | B54: Line Transformers | C54: =+'I3 TB Data'!H144 -> 82290154.87 | E54: 0 | F54: =+E54+C54 -> 82290154.87 | G54: -11377452.58 | I54: -7785429.045 | K54: 63127273.24 | L54: 2942172.17
A55: 1855 | B55: Services | C55: =+'I3 TB Data'!H145 -> 55133927.5 | E55: 0 | F55: =+E55+C55 -> 55133927.5 | G55: -7337388.743 | I55: -4768062.19 | K55: 43028476.57 | L55: 1536284.24
A56: 1860 | B56: Meters | C56: =+'I3 TB Data'!H146 -> 42357668.45 | E56: 0 | F56: =+E56+C56 -> 42357668.45 | G56: -932225.2812 | I56: -11874657.19 | K56: 29550785.98 | L56: 4307675.032
B58: Total | C58: =SUM(C17:C56) -> 871506831.4 | E58: =SUM(E17:E56) -> 0 | F58: 871506831.4 | G58: -53449586.66 | H58: 0 | I58: -86918857.51 | J58: 0 | K58: =+F58+G58+H58+I58+J58 -> 731138387.2 | L58: =SUM(L17:L56) -> 29466768.83 | M58: =SUM(M17:M56) -> 0 | N58: =SUM(N17:N56) -> 0 | O58: =SUM(O17:O56) -> 0
B59: SUB TOTAL from I3 | C59: =+SUM('I3 TB Data'!H133:H146)+'I3 TB Data'!H84 -> 871506831.4 | E59: =IF(ROUND(E58,-1)<>0, "Breakout does not match Total", "") -> 
L60: 5705 | M60: 5710 | N60: 5715 | O60: 5720
A61: General Plant | C61: Break out Functions | G61: Contributed Capital - 1995 | H61: Accumulated Depreciation - 2105 Capital Contribution | I61: Accumulated Depreciation - 2105 Fixed Assets Only | J61: Accumulated Depreciation - 2120 | K61: Net Asset | L61: Amortization Expense - Property, Plant, and Equipment | M61: Amortization of Limited Term Electric Plant | N61: Amortization of Intangibles and Other Electric Plant | O61: Amortization of Electric Plant Acquisition Adjustments
A62: 1905 | B62: Land | C62: ='I3 TB Data'!H151 -> 0 | F62: =+E62+C62 -> 0 | K62: =+F62+G62+H62+I62+J62 -> 0
A63: 1906 | B63: Land Rights | C63: ='I3 TB Data'!H152 -> 1925714.68 | F63: 1925714.68 | I63: -174863.5 | K63: =+F63+G63+H63+I63+J63 -> 1750851.18 | L63: 51667
A64: 1908 | B64: Buildings and Fixtures | C64: ='I3 TB Data'!H153 -> 33719353.98 | F64: 33719353.98 | I64: -6396615.66 | K64: =+F64+G64+H64+I64+J64 -> 27322738.32 | L64: 1832004
A65: 1910 | B65: Leasehold Improvements | C65: ='I3 TB Data'!H154 -> 0 | F65: 0 | K65: 0
A66: 1915 | B66: Office Furniture and Equipment | C66: ='I3 TB Data'!H155 -> 1640801.35 | F66: 1640801.35 | I66: -836540.65 | K66: 804260.7 | L66: 226757
A67: 1920 | B67: Computer Equipment - Hardware | C67: ='I3 TB Data'!H156 -> 9739695.04 | F67: 9739695.04 | I67: -5274795.85 | K67: 4464899.19 | L67: 1714119
A68: 1925 | B68: Computer Software | C68: ='I3 TB Data'!H157 -> 61442469.72 | F68: 61442469.72 | I68: -24398311.66 | K68: 37044158.06 | L68: 9090500
A69: 1930 | B69: Transportation Equipment | C69: ='I3 TB Data'!H158 -> 14298740.29 | F69: 14298740.29 | I69: -4356964.16 | K69: 9941776.13 | L69: 1446015
A70: 1935 | B70: Stores Equipment | C70: ='I3 TB Data'!H159 -> 1084676.78 | F70: 1084676.78 | I70: -234573.87 | K70: 850102.91 | L70: 79506
A71: 1940 | B71: Tools, Shop and Garage Equipment | C71: ='I3 TB Data'!H160 -> 4541782.131 | F71: 4541782.131 | I71: -2170469.08 | K71: 2371313.051 | L71: 512161
A72: 1945 | B72: Measurement and Testing Equipment | C72: ='I3 TB Data'!H161 -> 229168.79 | F72: 229168.79 | I72: -100827.96 | K72: 128340.83 | L72: 24704
A73: 1950 | B73: Power Operated Equipment | C73: ='I3 TB Data'!H162 -> 0 | F73: 0 | I73: 0 | K73: 0 | L73: 0
A74: 1955 | B74: Communication Equipment | C74: ='I3 TB Data'!H163 -> 4437661.83 | F74: 4437661.83 | I74: -918214.46 | K74: 3519447.37 | L74: 336374
A75: 1960 | B75: Miscellaneous Equipment | C75: ='I3 TB Data'!H164 -> 3049925.298 | F75: 3049925.298 | I75: -225339.03 | K75: 2824586.268 | L75: 193857
A76: 1970 | B76: Load Management Controls - Customer Premises | C76: ='I3 TB Data'!H166 -> 134245.07 | F76: 134245.07 | I76: -133438.69 | K76: 806.38 | L76: 1613
A77: 1975 | B77: Load Management Controls - Utility Premises | C77: ='I3 TB Data'!H167 -> 17974.33 | F77: 17974.33 | I77: -17974.33 | K77: 0 | L77: 0
A78: 1980 | B78: System Supervisory Equipment | C78: ='I3 TB Data'!H168 -> 7524127.262 | F78: 7524127.262 | G78: -25113.33568 | I78: -2587120.615 | K78: 4911893.311 | L78: 722411.75
A79: 1990 | B79: Other Tangible Property | C79: ='I3 TB Data'!H170 -> 0 | F79: 0 | K79: 0 | L79: -1640700.371
A80: 2005 | B80: Property Under Capital Leases | C80: ='I3 TB Data'!H172 -> 0 | F80: 0 | K80: 0 | L80: 0
A81: 2010 | B81: Electric Plant Purchased or Sold | C81: =+'I3 TB Data'!H173 -> 0 | F81: 0 | K81: 0 | L81: 0
B83: Total | C83: =SUM(C62:C81) -> 143786336.6 | E83: 0 | F83: 143786336.6 | G83: -25113.33568 | H83: 0 | I83: -47826049.52 | J83: =SUM(J62:J81) -> 0 | K83: 95935173.7 | L83: 14590988.38 | M83: 0 | N83: 0 | O83: 0
B84: SUB TOTAL from I3 | C84: =+SUM('I3 TB Data'!H151:H170)+'I3 TB Data'!H172+'I3 TB Data'!H173 -> 143786336.6
B85: I3 Directly Allocated | C85: ='I3 TB Data'!G485 -> 0
B86: Grand Total | C86: =+C83+C58+C85 -> 1015293168 | E86: =+E83+E58 -> 0 | F86: 1015293168 | G86: -53474700 | H86: 0 | I86: -134744907 | J86: 0 | K86: =+K83+K58 -> 827073561 | L86: =+L83+L58 -> 44057757.21 | M86: =+M83+M58 -> 0 | N86: =+N83+N58 -> 0 | O86: =+O83+O58 -> 0
A87: To be Prorated
A89: 1995 | B89: Contributed Capital - 1995 | C89: =ROUND('I3 TB Data'!H171,0) -> -53474700 | G89: =-G83-G58 -> 53474700 | H89: =IF(ROUND(C89-G86,-1)<>0,"Error out of balance","Balanced") -> Balanced
A90: 2105 | B90: Accumulated Depreciation - 2105 | C90: =ROUND('I3 TB Data'!H183,0) -> -134744907 | I90: =-H83-H58+(-I83-I58) -> 134744907 | J90: =IF(ROUND(C90-H86-I86,-1)<>0,"Error out of balance","Balanced") -> Balanced
A91: 2120 | B91: Accumulated Depreciation - 2120 | C91: =ROUND('I3 TB Data'!H184,0) -> 0 | J91: =-J83-J58 -> 0 | K91: =IF(ROUND(C91-J86,-1)<>0,"Error out of balance","Balanced") -> Balanced
B92: Total | C92: =+SUM(C89:C91) -> -188219607
B93: Net Assets | C93: =+C86+C92 -> 827073561 | D93: =IF((ROUND(C93-C12,-1))<>0,"Net Fixed Assets Do Not Match","Net Fixed Assets Match") -> Net Fixed Assets Match
A95: Amortization Expenses
A96: 5705 | B96: Amortization Expense - Property, Plant, and Equipment | C96: =ROUND('I3 TB Data'!H447,0) -> 44057757 | L96: =-L83-L58 -> -44057757.21 | M96: =IF(ROUND(C96-L86,-1)<>0,"Error out of balance","Balanced") -> Balanced
A97: 5710 | B97: Amortization of Limited Term Electric Plant | C97: =ROUND('I3 TB Data'!H448,0) -> 0 | M97: =-M83-M58 -> 0 | N97: =IF(ROUND(C97-M86,-1)<>0,"Error out of balance","Balanced") -> Balanced
A98: 5715 | B98: Amortization of Intangibles and Other Electric Plant | C98: =ROUND('I3 TB Data'!H449,0) -> 0 | N98: =-N83-N58 -> 0 | O98: =IF(ROUND(C98-N86,-1)<>0,"Error out of balance","Balanced") -> Balanced
A99: 5720 | B99: Amortization of Electric Plant Acquisition Adjustments | C99: =ROUND('I3 TB Data'!H450,0) -> 0 | O99: =-O83-O58 -> 0 | P99: =IF(ROUND(C99-O86,-1)<>0,"Error out of balance","Balanced") -> Balanced
B100: Total Amortization Expense | C100: =+SUM(C96:C99) -> 44057757

Sheet I5.1 Misc Data
B4: ='I1 Intro'!C11 -> EB-2015-0004
B5: ="Sheet I5.1 Miscellaneous Data Worksheet - "& 'I2 LDC class'!$C$17 -> Sheet I5.1 Miscellaneous Data Worksheet -
A15: Structure KM (kMs of Roads in Service Area that have distribution line) | D15: 4100
A17: Deemed Equity Component of Rate Base (ref: RRWF 7. cell F24) | D17: 0.4
A19: Working Capital Allowance to be included in Rate Base (%) | D19: 0.142
A21: Portion of pole leasing revenue from Secondary - Remainder assumed to be Primary (%) | D21: 0.1

Sheet I5.2 Weighting Factors
A4: ='I1 Intro'!C11 -> EB-2015-0004
A5: ="Sheet I5.2 Weighting Factors Worksheet - "& 'I2 LDC class'!$C$17 -> Sheet I5.2 Weighting Factors Worksheet -
D9: 1 | E9: 2 | F9: 3 | G9: 4 | H9: 5 | I9: 6 | J9: 7 | K9: 8 | L9: 9 | M9: 10 | N9: 11 | O9: 12 | P9: 13 | Q9: 14 | R9: 15 | S9: 16 | T9: 17 | U9: 18 | V9: 19 | W9: 20
D10: =IF('I2 LDC class'!$D20="",'I2 LDC class'!$C20,'I2 LDC class'!$D20) -> Residential | E10: =IF('I2 LDC class'!$D21="",'I2 LDC class'!$C21,'I2 LDC class'!$D21) -> GS <50 | F10: =IF('I2 LDC class'!$D22="",'I2 LDC class'!$C22,'I2 LDC class'!$D22) -> GS 50 to 1,499 kW | G10: =IF('I2 LDC class'!$D23="",'I2 LDC class'!$C23,'I2 LDC class'!$D23) -> GS 1,500 to 4,999 kW | H10: =IF('I2 LDC class'!$D24="",'I2 LDC class'!$C24,'I2 LDC class'!$D24) -> GS >50-Intermediate | I10: =IF('I2 LDC class'!$D25="",'I2 LDC class'!$C25,'I2 LDC class'!$D25) -> Large Use | J10: =IF('I2 LDC class'!$D26="",'I2 LDC class'!$C26,'I2 LDC class'!$D26) -> Street Light | K10: =IF('I2 LDC class'!$D27="",'I2 LDC class'!$C27,'I2 LDC class'!$D27) -> Sentinel | L10: =IF('I2 LDC class'!$D28="",'I2 LDC class'!$C28,'I2 LDC class'!$D28) -> Unmetered Scattered Load | M10: =IF('I2 LDC class'!$D29="",'I2 LDC class'!$C29,'I2 LDC class'!$D29) -> Embedded Distributor | N10: =IF('I2 LDC class'!$D30="",'I2 LDC class'!$C30,'I2 LDC class'!$D30) -> Standby Power GS 50 to 1,499 kW | O10: =IF('I2 LDC class'!$D31="",'I2 LDC class'!$C31,'I2 LDC class'!$D31) -> Standby Power GS 1,500 to 4,999 kW | P10: =IF('I2 LDC class'!$D32="",'I2 LDC class'!$C32,'I2 LDC class'!$D32) -> Standby Power Large Use | Q10: =IF('I2 LDC class'!$D33="",'I2 LDC class'!$C33,'I2 LDC class'!$D33) -> Rate class 3 | R10: =IF('I2 LDC class'!$D34="",'I2 LDC class'!$C34,'I2 LDC class'!$D34) -> Rate class 4 | S10: =IF('I2 LDC class'!$D35="",'I2 LDC class'!$C35,'I2 LDC class'!$D35) -> Rate class 5 | T10: =IF('I2 LDC class'!$D36="",'I2 LDC class'!$C36,'I2 LDC class'!$D36) -> Rate class 6 | U10: =IF('I2 LDC class'!$D37="",'I2 LDC class'!$C37,'I2 LDC class'!$D37) -> Rate class 7 | V10: =IF('I2 LDC class'!$D38="",'I2 LDC class'!$C38,'I2 LDC class'!$D38) -> Rate class 8 | W10: =IF('I2 LDC class'!$D39="",'I2 LDC class'!$C39,'I2 LDC class'!$D39) -> Rate class 9
A12: Insert Weighting Factor for Services Account 1855 | D12: 1 | E12: 2 | F12: 10 | G12: 10 | I12: 30 | J12: 1 | K12: 1 | L12: 1 | N12: 10 | O12: 10 | P12: 10 | X12: =#REF! ->  | Y12: =#REF! -> 
A15: Insert Weighting Factor for Billing and Collecting | D15: 1 | E15: 1.030034746 | F15: 6.433312874 | G15: 25.27992493 | I15: 25.21835618 | J15: 25.17486088 | K15: 0.7059353038 | L15: 1.042127521 | N15: 24.91165344 | O15: 24.91165344 | P15: 24.91165344 | X15: =X21 -> 0 | Y15: 0

Sheet I6.1 Revenue
A4: ='I1 Intro'!C11 -> EB-2015-0004
A5: ="Sheet I6.1 Revenue Worksheet - "& 'I2 LDC class'!$C$17 -> Sheet I6.1 Revenue Worksheet -
A10: Total kWhs from Load Forecast | B10: 7379644000
A13: Total kWs from Load Forecast | B13: 10034217
A16: Deficiency/sufficiency ( RRWF 8. cell F51) | B16: -27670798.49
A19: Miscellaneous Revenue (RRWF 5. cell F48) | B19: 11565131.37 | D19: For 2017 Year
D21: 1 | E21: 2 | F21: 3 | G21: 4 | H21: 5 | I21: 6 | J21: 7 | K21: 8 | L21: 9 | M21: 10 | N21: 11 | O21: 12 | P21: 13 | Q21: 14 | R21: 15 | S21: 16 | T21: 17 | U21: 18 | V21: 19 | W21: 20
B22: ID | C22: Total | D22: =IF('I2 LDC class'!$D20="",'I2 LDC class'!$C20,'I2 LDC class'!$D20) -> Residential | E22: =IF('I2 LDC class'!$D21="",'I2 LDC class'!$C21,'I2 LDC class'!$D21) -> GS <50 | F22: =IF('I2 LDC class'!$D22="",'I2 LDC class'!$C22,'I2 LDC class'!$D22) -> GS 50 to 1,499 kW | G22: =IF('I2 LDC class'!$D23="",'I2 LDC class'!$C23,'I2 LDC class'!$D23) -> GS 1,500 to 4,999 kW | H22: =IF('I2 LDC class'!$D24="",'I2 LDC class'!$C24,'I2 LDC class'!$D24) -> GS >50-Intermediate | I22: =IF('I2 LDC class'!$D25="",'I2 LDC class'!$C25,'I2 LDC class'!$D25) -> Large Use | J22: =IF('I2 LDC class'!$D26="",'I2 LDC class'!$C26,'I2 LDC class'!$D26) -> Street Light | K22: =IF('I2 LDC class'!$D27="",'I2 LDC class'!$C27,'I2 LDC class'!$D27) -> Sentinel | L22: =IF('I2 LDC class'!$D28="",'I2 LDC class'!$C28,'I2 LDC class'!$D28) -> Unmetered Scattered Load | M22: =IF('I2 LDC class'!$D29="",'I2 LDC class'!$C29,'I2 LDC class'!$D29) -> Embedded Distributor | N22: =IF('I2 LDC class'!$D30="",'I2 LDC class'!$C30,'I2 LDC class'!$D30) -> Standby Power GS 50 to 1,499 kW | O22: =IF('I2 LDC class'!$D31="",'I2 LDC class'!$C31,'I2 LDC class'!$D31) -> Standby Power GS 1,500 to 4,999 kW | P22: =IF('I2 LDC class'!$D32="",'I2 LDC class'!$C32,'I2 LDC class'!$D32) -> Standby Power Large Use | Q22: =IF('I2 LDC class'!$D33="",'I2 LDC class'!$C33,'I2 LDC class'!$D33) -> Rate class 3 | R22: =IF('I2 LDC class'!$D34="",'I2 LDC class'!$C34,'I2 LDC class'!$D34) -> Rate class 4 | S22: =IF('I2 LDC class'!$D35="",'I2 LDC class'!$C35,'I2 LDC class'!$D35) -> Rate class 5 | T22: =IF('I2 LDC class'!$D36="",'I2 LDC class'!$C36,'I2 LDC class'!$D36) -> Rate class 6 | U22: =IF('I2 LDC class'!$D37="",'I2 LDC class'!$C37,'I2 LDC class'!$D37) -> Rate class 7 | V22: =IF('I2 LDC class'!$D38="",'I2 LDC class'!$C38,'I2 LDC class'!$D38) -> Rate class 8 | W22: =IF('I2 LDC class'!$D39="",'I2 LDC class'!$C39,'I2 LDC class'!$D39) -> Rate class 9
A23: Billing Data
A25: Forecast kWh | B25: CEN | C25: =IF(ROUND(SUM(D25:W25),0)=ROUND(B10,0),SUM(D25:W25),"Error") -> 7379644000 | D25: 2198259000 | E25: 716896000 | F25: 2907445000 | G25: 877400000 | I25: 619253000 | J25: 43653000 | K25: 48000 | L25: 16690000
A26: Forecast kW | B26: CDEM | C26: =IF(ROUND(SUM(D26:W26),0)=ROUND(B13,0),SUM(D26:W26),"Error") -> 10034217 | F26: 6908640 | G26: 1877691 | I26: 1119726 | J26: 123144 | K26: 216 | O26: 4800
A27: Forecast kW, included in CDEM, of customers receiving line transformer allowance | C27: =+SUM(D27:W27) -> 2476514.25 | F27: 1727160 | G27: 469422.75 | H27: 0 | I27: 279931.5
A28: Optional - Forecast kWh, included in CEN, from customers that receive a line transformation allowance on a kWh basis. In most cases this will not be applicable and will be left blank. | C28: =+SUM(D28:W28) -> 0
A29: KWh excluding KWh from Wholesale Market Participants | B29: CEN EWMP | C29: =+SUM(D29:W29) -> 7379644000 | D29: 2198259000 | E29: 716896000 | F29: 2907445000 | G29: 877400000 | H29: 0 | I29: 619253000 | J29: 43653000 | K29: 48000 | L29: 16690000 | M29: 0 | N29: 0 | O29: 0 | P29: 0 | Q29: =Q25 -> 0 | R29: 0 | S29: 0 | T29: 0 | U29: 0 | V29: 0 | W29: 0
A33: Existing Monthly Charge | D33: 9.67 | E33: 16.72 | F33: 260.82 | G33: 4193.93 | I33: 15231.32 | J33: 0.57 | K33: 2.62 | L33: 4.43 | N33: 122.41 | O33: 122.41 | P33: 122.41
A34: Existing Distribution kWh Rate | D34: 0.0234 | E34: 0.021 | L34: 0.0219
A35: Existing Distribution kW Rate | F35: 3.5691 | G35: 3.4887 | I35: 3.3129 | J35: 3.9997 | K35: 10.0361 | N35: 1.6337 | O35: 1.4985 | P35: 1.6629
A36: Existing TOA Rate | F36: 0.45 | G36: 0.45 | H36: 0.45 | I36: 0.45
A37: Additional Charges
A39: Distribution Revenue from Rates | C39: =SUM(D39:W39) -> 158986351.5 | D39: =D34*D25+D35*D26+D33*MAX('I6.2 Customer Data'!D18,'I6.2 Customer Data'!D19,'I6.2 Customer Data'!D21)*12+D37 -> 86397219.58 | E39: =E34*E25+E35*E26+E33*MAX('I6.2 Customer Data'!E18,'I6.2 Customer Data'!E19,'I6.2 Customer Data'!E21)*12+E37 -> 19995810.08 | F39: =F34*F26+F35*F26+F33*MAX('I6.2 Customer Data'!F18,'I6.2 Customer Data'!F19,'I6.2 Customer Data'!F21)*12+F37 -> 35058606.98 | G39: =G34*G26+G35*G26+G33*MAX('I6.2 Customer Data'!G18,'I6.2 Customer Data'!G19,'I6.2 Customer Data'!G21)*12+G37 -> 10375564.75 | H39: =H34*H25+H35*H26+H33*MAX('I6.2 Customer Data'!H18,'I6.2 Customer Data'!H19,'I6.2 Customer Data'!H21)*12+H37 -> 0 | I39: =I34*I25+I35*I26+I33*MAX('I6.2 Customer Data'!I18,'I6.2 Customer Data'!I19,'I6.2 Customer Data'!I21)*12+I37 -> 5720074.505 | J39: =J34*J26+J35*J26+J33*MAX('I6.2 Customer Data'!J18,'I6.2 Customer Data'!J19,'I6.2 Customer Data'!J21)*12+J37 -> 872268.4968 | K39: =K34*K26+K35*K26+K33*MAX('I6.2 Customer Data'!K18,'I6.2 Customer Data'!K19,'I6.2 Customer Data'!K21)*12+K37 -> 3776.4776 | L39: =L34*L25+L35*L26+L33*MAX('I6.2 Customer Data'!L18,'I6.2 Customer Data'!L19,'I6.2 Customer Data'!L21)*12+L37 -> 552900 | M39: =M34*M25+M35*M26+M33*MAX('I6.2 Customer Data'!M18,'I6.2 Customer Data'!M19,'I6.2 Customer Data'!M21)*12+M37 -> 0 | N39: =N34*N25+N35*N26+N33*MAX('I6.2 Customer Data'!N18,'I6.2 Customer Data'!N19,'I6.2 Customer Data'!N21)*12+N37 -> 0 | O39: =O34*O25+O35*O26+O33*MAX('I6.2 Customer Data'!O18,'I6.2 Customer Data'!O19,'I6.2 Customer Data'!O21)*12+O37 -> 10130.64 | P39: =P34*P25+P35*P26+P33*MAX('I6.2 Customer Data'!P18,'I6.2 Customer Data'!P19,'I6.2 Customer Data'!P21)*12+P37 -> 0 | Q39: =Q34*Q25+Q35*Q26+Q33*MAX('I6.2 Customer Data'!Q18,'I6.2 Customer Data'!Q19,'I6.2 Customer Data'!Q21)*12+Q37 -> 0 | R39: =R34*R25+R35*R26+R33*MAX('I6.2 Customer Data'!R18,'I6.2 Customer Data'!R19,'I6.2 Customer Data'!R21)*12+R37 -> 0 | S39: =S34*S25+S35*S26+S33*MAX('I6.2 Customer Data'!S18,'I6.2 Customer Data'!S19,'I6.2 Customer Data'!S21)*12+S37 -> 0 | T39: =T34*T25+T35*T26+T33*MAX('I6.2 Customer Data'!T18,'I6.2 Customer Data'!T19,'I6.2 Customer Data'!T21)*12+T37 -> 0 | U39: =U34*U25+U35*U26+U33*MAX('I6.2 Customer Data'!U18,'I6.2 Customer Data'!U19,'I6.2 Customer Data'!U21)*12+U37 -> 0 | V39: =V34*V25+V35*V26+V33*MAX('I6.2 Customer Data'!V18,'I6.2 Customer Data'!V19,'I6.2 Customer Data'!V21)*12+V37 -> 0 | W39: =W34*W25+W35*W26+W33*MAX('I6.2 Customer Data'!W18,'I6.2 Customer Data'!W19,'I6.2 Customer Data'!W21)*12+W37 -> 0
A40: Transformer Ownership Allowance | C40: =+SUM(D40:W40) -> 1114431.413 | D40: =D27*D36 -> 0 | E40: =E27*E36 -> 0 | F40: 777222 | G40: 211240.2375 | H40: 0 | I40: 125969.175 | J40: 0 | K40: 0 | L40: 0 | M40: 0 | N40: 0 | O40: 0 | P40: 0 | Q40: 0 | R40: 0 | S40: 0 | T40: 0 | U40: 0 | V40: 0 | W40: 0
A41: Net Class Revenue | B41: CREV | C41: =+SUM(D41:W41) -> 157871920.1 | D41: =D39-D40 -> 86397219.58 | E41: =E39-E40 -> 19995810.08 | F41: 34281384.98 | G41: 10164324.51 | H41: 0 | I41: 5594105.33 | J41: 872268.4968 | K41: 3776.4776 | L41: 552900 | M41: 0 | N41: 0 | O41: 10130.64 | P41: 0 | Q41: 0 | R41: 0 | S41: 0 | T41: 0 | U41: 0 | V41: 0 | W41: 0

Sheet I6.2 Customer Data
A4: ='I1 Intro'!C11 -> EB-2015-0004
A5: ="Sheet I6.2 Customer Data Worksheet - "& 'I2 LDC class'!$C$17 -> Sheet I6.2 Customer Data Worksheet -
D10: 1 | E10: 2 | F10: 3 | G10: 4 | H10: 5 | I10: 6 | J10: 7 | K10: 8 | L10: 9 | M10: 10 | N10: 11 | O10: 12 | P10: 13 | Q10: 14 | R10: 15 | S10: 16 | T10: 17 | U10: 18 | V10: 19 | W10: 20
B11: ID | C11: Total | D11: =IF('I2 LDC class'!$D20="",'I2 LDC class'!$C20,'I2 LDC class'!$D20) -> Residential | E11: =IF('I2 LDC class'!$D21="",'I2 LDC class'!$C21,'I2 LDC class'!$D21) -> GS <50 | F11: =IF('I2 LDC class'!$D22="",'I2 LDC class'!$C22,'I2 LDC class'!$D22) -> GS 50 to 1,499 kW | G11: =IF('I2 LDC class'!$D23="",'I2 LDC class'!$C23,'I2 LDC class'!$D23) -> GS 1,500 to 4,999 kW | H11: =IF('I2 LDC class'!$D24="",'I2 LDC class'!$C24,'I2 LDC class'!$D24) -> GS >50-Intermediate | I11: =IF('I2 LDC class'!$D25="",'I2 LDC class'!$C25,'I2 LDC class'!$D25) -> Large Use | J11: =IF('I2 LDC class'!$D26="",'I2 LDC class'!$C26,'I2 LDC class'!$D26) -> Street Light | K11: =IF('I2 LDC class'!$D27="",'I2 LDC class'!$C27,'I2 LDC class'!$D27) -> Sentinel | L11: =IF('I2 LDC class'!$D28="",'I2 LDC class'!$C28,'I2 LDC class'!$D28) -> Unmetered Scattered Load | M11: =IF('I2 LDC class'!$D29="",'I2 LDC class'!$C29,'I2 LDC class'!$D29) -> Embedded Distributor | N11: =IF('I2 LDC class'!$D30="",'I2 LDC class'!$C30,'I2 LDC class'!$D30) -> Standby Power GS 50 to 1,499 kW | O11: =IF('I2 LDC class'!$D31="",'I2 LDC class'!$C31,'I2 LDC class'!$D31) -> Standby Power GS 1,500 to 4,999 kW | P11: =IF('I2 LDC class'!$D32="",'I2 LDC class'!$C32,'I2 LDC class'!$D32) -> Standby Power Large Use | Q11: =IF('I2 LDC class'!$D33="",'I2 LDC class'!$C33,'I2 LDC class'!$D33) -> Rate class 3 | R11: =IF('I2 LDC class'!$D34="",'I2 LDC class'!$C34,'I2 LDC class'!$D34) -> Rate class 4 | S11: =IF('I2 LDC class'!$D35="",'I2 LDC class'!$C35,'I2 LDC class'!$D35) -> Rate class 5 | T11: =IF('I2 LDC class'!$D36="",'I2 LDC class'!$C36,'I2 LDC class'!$D36) -> Rate class 6 | U11: =IF('I2 LDC class'!$D37="",'I2 LDC class'!$C37,'I2 LDC class'!$D37) -> Rate class 7 | V11: =IF('I2 LDC class'!$D38="",'I2 LDC class'!$C38,'I2 LDC class'!$D38) -> Rate class 8 | W11: =IF('I2 LDC class'!$D39="",'I2 LDC class'!$C39,'I2 LDC class'!$D39) -> Rate class 9
A12: Billing Data
A14: Bad Debt 3 Year Historical Average | B14: BDHA | C14: =+SUM(D14:W14) -> 2000008 | D14: =D41 -> 1354005 | E14: =E41 -> 422002 | F14: 150001 | G14: 74000 | H14: 0 | I14: 0 | J14: 0 | K14: 0 | L14: 0 | M14: 0 | N14: 0 | O14: 0 | P14: 0 | Q14: 0 | R14: 0 | S14: 0 | T14: 0 | U14: 0 | V14: 0 | W14: 0
A15: Late Payment 3 Year Historical Average | B15: LPHA | C15: =+SUM(D15:W15) -> 884963.97 | D15: 658888.64 | E15: 119576.6033 | F15: 93648.78667 | G15: 12109.16667 | I15: 102.4733333 | J15: 156.49 | K15: 104.3733333 | L15: 377.4366667
A17: Number of Bills | B17: CNB | C17: =+SUM(D17:W17) -> 3952466 | D17: 3615094 | E17: 295514 | F17: 39878 | G17: 912 | I17: 132 | J17: 180 | K17: 612 | L17: 120 | O17: 24
A18: Number of Devices | B18: CDEV | J18: 55516 | K18: 51.16666667 | L18: 3525
A19: Number of Connections (Unmetered) | B19: CCON | C19: =+SUM(D19:W19) -> 7277.233333 | J19: 3701.066667 | K19: 51.16666667 | L19: 3525
A21: Total Number of Customers | B21: CCA | C21: =+SUM(D21:W21) -> 329372.1667 | D21: 301257.8333 | E21: 24626.16667 | F21: 3323.166667 | G21: 76 | I21: 11 | J21: 15 | K21: 51 | L21: 10 | O21: 2
A22: Bulk Customer Base | B22: CCB | C22: =+SUM(D22:W22) -> 329372.1667 | D22: 301257.8333 | E22: 24626.16667 | F22: 3323.166667 | G22: 76 | I22: 11 | J22: 15 | K22: 51 | L22: 10 | O22: 2
A23: Primary Customer Base | B23: CCP | C23: =+SUM(D23:W23) -> 337636.6497 | D23: 301257.8333 | E23: 24626.16667 | F23: 3323.166667 | G23: 76 | I23: 11 | J23: =IF(ISERROR(J$18/C59),0,J$18/C59) -> 8281.482985 | K23: 51 | L23: 10
A24: Line Transformer Customer Base | B24: CCLT | C24: =+SUM(D24:W24) -> 337212.7414 | D24: 301257.8333 | E24: 24626.16667 | F24: 2947.648441 | G24: 33.43998419 | I24: 5.170009843 | J24: =IF(ISERROR(J$18/C60),0,J$18/C60) -> 8281.482985 | K24: 51 | L24: 10
A25: Secondary Customer Base | B25: CCS | C25: =+SUM(D25:W25) -> 327621.5841 | D25: 301257.8333 | E25: 24626.16667 | F25: 1661.584074 | J25: 15 | K25: 51 | L25: 10
A27: Weighted - Services | B27: CWCS | C27: =+SUM(D27:W27) -> 374403.2407 | D27: =IF(D19>0,D19*'I5.2 Weighting Factors'!D12,'I5.2 Weighting Factors'!D12*D25) -> 301257.8333 | E27: =IF(E19>0,E19*'I5.2 Weighting Factors'!E12,'I5.2 Weighting Factors'!E12*E25) -> 49252.33333 | F27: =IF(F19>0,F19*'I5.2 Weighting Factors'!F12,'I5.2 Weighting Factors'!F12*F25) -> 16615.84074 | G27: =IF(G19>0,G19*'I5.2 Weighting Factors'!G12,'I5.2 Weighting Factors'!G12*G25) -> 0 | H27: =IF(H19>0,H19*'I5.2 Weighting Factors'!H12,'I5.2 Weighting Factors'!H12*H25) -> 0 | I27: =IF(I19>0,I19*'I5.2 Weighting Factors'!I12,'I5.2 Weighting Factors'!I12*I25) -> 0 | J27: =IF(J19>0,J19*'I5.2 Weighting Factors'!J12,'I5.2 Weighting Factors'!J12*J25) -> 3701.066667 | K27: =IF(K19>0,K19*'I5.2 Weighting Factors'!K12,'I5.2 Weighting Factors'!K12*K25) -> 51.16666667 | L27: =IF(L19>0,L19*'I5.2 Weighting Factors'!L12,'I5.2 Weighting Factors'!L12*L25) -> 3525 | M27: =IF(M19>0,M19*'I5.2 Weighting Factors'!M12,'I5.2 Weighting Factors'!M12*M25) -> 0 | N27: =IF(N19>0,N19*'I5.2 Weighting Factors'!N12,'I5.2 Weighting Factors'!N12*N25) -> 0 | O27: =IF(O19>0,O19*'I5.2 Weighting Factors'!O12,'I5.2 Weighting Factors'!O12*O25) -> 0 | P27: =IF(P19>0,P19*'I5.2 Weighting Factors'!P12,'I5.2 Weighting Factors'!P12*P25) -> 0 | Q27: =IF(Q19>0,Q19*'I5.2 Weighting Factors'!Q12,'I5.2 Weighting Factors'!Q12*Q25) -> 0 | R27: =IF(R19>0,R19*'I5.2 Weighting Factors'!R12,'I5.2 Weighting Factors'!R12*R25) -> 0 | S27: =IF(S19>0,S19*'I5.2 Weighting Factors'!S12,'I5.2 Weighting Factors'!S12*S25) -> 0 | T27: =IF(T19>0,T19*'I5.2 Weighting Factors'!T12,'I5.2 Weighting Factors'!T12*T25) -> 0 | U27: =IF(U19>0,U19*'I5.2 Weighting Factors'!U12,'I5.2 Weighting Factors'!U12*U25) -> 0 | V27: =IF(V19>0,V19*'I5.2 Weighting Factors'!V12,'I5.2 Weighting Factors'!V12*V25) -> 0 | W27: =IF(W19>0,W19*'I5.2 Weighting Factors'!W12,'I5.2 Weighting Factors'!W12*W25) -> 0
A28: Weighted Meter -Capital | B28: CWMC | C28: =SUM(D28:W28) -> 61277413 | D28: ='I7.1 Meter Capital'!F22 -> 44596728 | E28: ='I7.1 Meter Capital'!I22 -> 9189973 | F28: ='I7.1 Meter Capital'!L22 -> 6600712 | G28: ='I7.1 Meter Capital'!O22 -> 760000 | H28: ='I7.1 Meter Capital'!R22 -> 0 | I28: ='I7.1 Meter Capital'!U22 -> 110000 | J28: ='I7.1 Meter Capital'!X22 -> 0 | K28: ='I7.1 Meter Capital'!AA22 -> 0 | L28: ='I7.1 Meter Capital'!AD22 -> 0 | M28: ='I7.1 Meter Capital'!AG22 -> 0 | N28: ='I7.1 Meter Capital'!AJ22 -> 0 | O28: ='I7.1 Meter Capital'!AM22 -> 20000 | P28: ='I7.1 Meter Capital'!AP22 -> 0 | Q28: ='I7.1 Meter Capital'!AS22 -> 0 | R28: ='I7.1 Meter Capital'!AV22 -> 0 | S28: ='I7.1 Meter Capital'!AY22 -> 0 | T28: ='I7.1 Meter Capital'!BB22 -> 0 | U28: ='I7.1 Meter Capital'!BE22 -> 0 | V28: ='I7.1 Meter Capital'!BH22 -> 0 | W28: ='I7.1 Meter Capital'!BK22 -> 0
A29: Weighted Meter Reading | B29: CWMR | C29: =SUM(D29:W29) -> 506048.7245 | D29: ='I7.2 Meter Reading'!E20 -> 301257.8333 | E29: ='I7.2 Meter Reading'!H20 -> 24626.16667 | F29: ='I7.2 Meter Reading'!K20 -> 161214.8614 | G29: ='I7.2 Meter Reading'!N20 -> 16181.90553 | H29: ='I7.2 Meter Reading'!Q20 -> 0 | I29: ='I7.2 Meter Reading'!T20 -> 2342.117905 | J29: ='I7.2 Meter Reading'!W20 -> 0 | K29: ='I7.2 Meter Reading'!Z20 -> 0 | L29: ='I7.2 Meter Reading'!AC20 -> 0 | M29: ='I7.2 Meter Reading'!AF20 -> 0 | N29: ='I7.2 Meter Reading'!AI20 -> 0 | O29: ='I7.2 Meter Reading'!AL20 -> 425.8396192 | P29: ='I7.2 Meter Reading'!AO20 -> 0 | Q29: ='I7.2 Meter Reading'!AR20 -> 0 | R29: ='I7.2 Meter Reading'!AU20 -> 0 | S29: ='I7.2 Meter Reading'!AX20 -> 0 | T29: ='I7.2 Meter Reading'!BA20 -> 0 | U29: ='I7.2 Meter Reading'!BD20 -> 0 | V29: ='I7.2 Meter Reading'!BG20 -> 0 | W29: ='I7.2 Meter Reading'!BJ20 -> 0
A30: Weighted Bills | B30: CWNB | C30: =SUM(D30:W30) -> 4208101.896 | D30: ='I5.2 Weighting Factors'!D15*D17 -> 3615094 | E30: ='I5.2 Weighting Factors'!E15*E17 -> 304389.6879 | F30: ='I5.2 Weighting Factors'!F15*F17 -> 256547.6508 | G30: ='I5.2 Weighting Factors'!G15*G17 -> 23055.29154 | H30: ='I5.2 Weighting Factors'!H15*H17 -> 0 | I30: ='I5.2 Weighting Factors'!I15*I17 -> 3328.823016 | J30: ='I5.2 Weighting Factors'!J15*J17 -> 4531.474958 | K30: ='I5.2 Weighting Factors'!K15*K17 -> 432.0324059 | L30: ='I5.2 Weighting Factors'!L15*L17 -> 125.0553025 | M30: ='I5.2 Weighting Factors'!M15*M17 -> 0 | N30: ='I5.2 Weighting Factors'!N15*N17 -> 0 | O30: ='I5.2 Weighting Factors'!O15*O17 -> 597.8796825 | P30: ='I5.2 Weighting Factors'!P15*P17 -> 0 | Q30: ='I5.2 Weighting Factors'!Q15*Q17 -> 0 | R30: ='I5.2 Weighting Factors'!R15*R17 -> 0 | S30: ='I5.2 Weighting Factors'!S15*S17 -> 0 | T30: ='I5.2 Weighting Factors'!T15*T17 -> 0 | U30: ='I5.2 Weighting Factors'!U15*U17 -> 0 | V30: ='I5.2 Weighting Factors'!V15*V17 -> 0 | W30: ='I5.2 Weighting Factors'!W15*W17 -> 0
A33: Bad Debt Data
A38: Historic Year: | B38: 2012 | C38: =+SUM(D38:W38) -> 2000008 | D38: 1354005 | E38: 422002 | F38: 150001 | G38: 74000
A39: Historic Year: | B39: 2013 | C39: =+SUM(D39:W39) -> 2000008 | D39: 1354005 | E39: 422002 | F39: 150001 | G39: 74000
A40: Historic Year: | B40: 2014 | C40: =+SUM(D40:W40) -> 2000008 | D40: 1354005 | E40: 422002 | F40: 150001 | G40: 74000
A41: Three-year average | C41: =+SUM(D41:W41) -> 2000008 | D41: =SUM(D38:D40)/3 -> 1354005 | E41: =SUM(E33:E40)/3 -> 422002 | F41: 150001 | G41: 74000 | H41: 0 | I41: 0 | J41: 0 | K41: 0 | L41: 0 | M41: 0 | N41: 0 | O41: 0 | P41: 0 | Q41: 0 | R41: 0 | S41: 0 | T41: 0 | U41: 0 | V41: 0 | W41: 0
A43: SSS Admin Charge Data
A45: Historic Year: | B45: 2012 | C45: =+SUM(D45:W45) -> 979656.91 | D45: 895929.17 | E45: 74331.91 | F45: 9078.3 | G45: 225.78 | I45: 34.5 | J45: 55.5 | L45: 1.75
A46: Historic Year: | B46: 2013 | C46: =+SUM(D46:W46) -> 896212.33 | D46: 819690.04 | E46: 67433.39 | F46: 8586.3 | G46: 213.92 | I46: 30 | J46: -11.75 | L46: 270.43
A47: Historic Year: | B47: 2014 | C47: =+SUM(D47:W47) -> 920025.66 | D47: 842936.81 | E47: 67671.36 | F47: 8715.12 | G47: 252.66 | I47: 30.35 | J47: 20.99 | L47: 398.37
A48: Three-year average | C48: =+SUM(D48:W48) -> 1362633.633 | D48: =SUM(D45:D47)/3 -> 852852.0067 | E48: =SUM(E40:E47)/3 -> 351146.8867 | F48: 108793.9067 | G48: 49564.12 | H48: 0 | I48: 31.61666667 | J48: 21.58 | K48: 0 | L48: 223.5166667 | M48: 0 | N48: 0 | O48: 0 | P48: 0
A50: Street Lighting Adjustment Factors
A51: NCP Test Results | B51: ='I8 Demand Data'!C15 -> 4 NCP
B53: Primary Asset Data | D53: Line Transformer Asset Data
A54: Class | B54: Customers/ Devices | C54: =B51 -> 4 NCP | D54: Customers/ Devices | E54: =B51 -> 4 NCP
A55: Residential | B55: =D23 -> 301257.8333 | C55: =IF(C54="1 NCP",'I8 Demand Data'!D56,IF(C54="4 NCP",'I8 Demand Data'!D62,"")) -> 1945514.854 | D55: =D24 -> 301257.8333 | E55: =IF(C54="1 NCP",'I8 Demand Data'!D57,IF(C54="4 NCP",'I8 Demand Data'!D63,"")) -> 1945514.854
A56: Street Light | B56: =J18 -> 55516 | C56: =IF(C54="1 NCP",'I8 Demand Data'!J56,IF(C54="4 NCP",'I8 Demand Data'!J62,"")) -> 53481.59079 | D56: =J18 -> 55516 | E56: =IF(C54="1 NCP",'I8 Demand Data'!J57,IF(C54="4 NCP",'I8 Demand Data'!J63,"")) -> 53481.59079
B58: Street Lighting Adjustment Factors
B59: Primary | C59: =IF(ISERROR((C55/B55)/(C56/B56)),"",(C55/B55)/(C56/B56)) -> 6.703630268
B60: Line Transformer | C60: =IF(ISERROR((E55/D55)/(E56/D56)),"",(E55/D55)/(E56/D56)) -> 6.703630268

Sheet I7.1 Meter Capital
A4: ='I1 Intro'!C11 -> EB-2015-0004
A5: ="Sheet I7.1 Meter Capital Worksheet - "& 'I2 LDC class'!$C$17 -> Sheet I7.1 Meter Capital Worksheet -
E13: 1 | H13: 2 | K13: 3 | N13: 4 | Q13: 5 | T13: 6 | W13: 7 | Z13: 8 | AC13: 9 | AF13: 10 | AI13: 11 | AL13: 12 | AO13: 13 | AR13: 14 | AU13: 15 | AX13: 16 | BA13: 17 | BD13: 18 | BG13: 19 | BJ13: 20
E14: =IF('I2 LDC class'!$D$20="",'I2 LDC class'!$C$20,'I2 LDC class'!$D$20) -> Residential | H14: =IF('I2 LDC class'!$D$21="",'I2 LDC class'!$C$21,'I2 LDC class'!$D$21) -> GS <50 | K14: =IF('I2 LDC class'!$D$22="",'I2 LDC class'!$C$22,'I2 LDC class'!$D$22) -> GS 50 to 1,499 kW | N14: =IF('I2 LDC class'!$D$23="",'I2 LDC class'!$C$23,'I2 LDC class'!$D$23) -> GS 1,500 to 4,999 kW | Q14: =IF('I2 LDC class'!$D$24="",'I2 LDC class'!$C$24,'I2 LDC class'!$D$24) -> GS >50-Intermediate | T14: =IF('I2 LDC class'!$D$25="",'I2 LDC class'!$C$25,'I2 LDC class'!$D$25) -> Large Use | W14: =IF('I2 LDC class'!$D$26="",'I2 LDC class'!$C$26,'I2 LDC class'!$D$26) -> Street Light | Z14: =IF('I2 LDC class'!$D$27="",'I2 LDC class'!$C$27,'I2 LDC class'!$D$27) -> Sentinel | AC14: =IF('I2 LDC class'!$D$28="",'I2 LDC class'!$C$28,'I2 LDC class'!$D$28) -> Unmetered Scattered Load | AF14: =IF('I2 LDC class'!$D$29="",'I2 LDC class'!$C$29,'I2 LDC class'!$D$29) -> Embedded Distributor | AI14: =IF('I2 LDC class'!$D$30="",'I2 LDC class'!$C$30,'I2 LDC class'!$D$30) -> Standby Power GS 50 to 1,499 kW | AL14: =IF('I2 LDC class'!$D$31="",'I2 LDC class'!$C$31,'I2 LDC class'!$D$31) -> Standby Power GS 1,500 to 4,999 kW | AO14: =IF('I2 LDC class'!$D$32="",'I2 LDC class'!$C$32,'I2 LDC class'!$D$32) -> Standby Power Large Use | AR14: =IF('I2 LDC class'!$D$33="",'I2 LDC class'!$C$33,'I2 LDC class'!$D$33) -> Rate class 3 | AU14: =IF('I2 LDC class'!$D$34="",'I2 LDC class'!$C$34,'I2 LDC class'!$D$34) -> Rate class 4 | AX14: =IF('I2 LDC class'!$D$35="",'I2 LDC class'!$C$35,'I2 LDC class'!$D$35) -> Rate class 5 | BA14: =IF('I2 LDC class'!$D$36="",'I2 LDC class'!$C$36,'I2 LDC class'!$D$36) -> Rate class 6 | BD14: =IF('I2 LDC class'!$D$37="",'I2 LDC class'!$C$37,'I2 LDC class'!$D$37) -> Rate class 7 | BG14: =IF('I2 LDC class'!$D$38="",'I2 LDC class'!$C$38,'I2 LDC class'!$D$38) -> Rate class 8 | BJ14: =IF('I2 LDC class'!$D$39="",'I2 LDC class'!$C$39,'I2 LDC class'!$D$39) -> Rate class 9 | BM14: TOTAL
E15: 1 | F15: 2 | G15: 3 | H15: 1 | I15: 2 | J15: 3 | K15: 1 | L15: 2 | M15: 3 | N15: 1 | O15: 2 | P15: 3 | Q15: 1 | R15: 2 | S15: 3 | T15: 1 | U15: 2 | V15: 3 | W15: 1 | X15: 2 | Y15: 3 | Z15: 1 | AA15: 2 | AB15: 3 | AC15: 1 | AD15: 2 | AE15: 3 | AF15: 1 | AG15: 2 | AH15: 3 | AI15: 1 | AJ15: 2 | AK15: 3 | AL15: 1 | AM15: 2 | AN15: 3 | AO15: 1 | AP15: 2 | AQ15: 3 | AR15: 1 | AS15: 2 | AT15: 3 | AU15: 1 | AV15: 2 | AW15: 3 | AX15: 1 | AY15: 2 | AZ15: 3 | BA15: 1 | BB15: 2 | BC15: 3 | BD15: 1 | BE15: 2 | BF15: 3 | BG15: 1 | BH15: 2 | BI15: 3 | BJ15: 1 | BK15: 2 | BL15: 3 | BM15: 1 | BN15: 2 | BO15: 3
E17: Number of Meters | F17: Weighted Metering Costs (1) | G17: Weighted Average Costs (2) | H17: Number of Meters | I17: Weighted Metering Costs (1) | J17: Weighted Average Costs (2) | K17: Number of Meters | L17: Weighted Metering Costs (1) | M17: Weighted Average Costs (2) | N17: Number of Meters | O17: Weighted Metering Costs (1) | P17: Weighted Average Costs (2) | Q17: Number of Meters | R17: Weighted Metering Costs (1) | S17: Weighted Average Costs (2) | T17: Number of Meters | U17: Weighted Metering Costs (1) | V17: Weighted Average Costs (2) | W17: Number of Meters | X17: Weighted Metering Costs (1) | Y17: Weighted Average Costs (2) | Z17: Number of Meters | AA17: Weighted Metering Costs (1) | AB17: Weighted Average Costs (2) | AC17: Number of Meters | AD17: Weighted Metering Costs (1) | AE17: Weighted Average Costs (2) | AF17: Number of Meters | AG17: Weighted Metering Costs (1) | AH17: Weighted Average Costs (2) | AI17: Number of Meters | AJ17: Weighted Metering Costs (1) | AK17: Weighted Average Costs (2) | AL17: Number of Meters | AM17: Weighted Metering Costs (1) | AN17: Weighted Average Costs (2) | AO17: Number of Meters | AP17: Weighted Metering Costs (1) | AQ17: Weighted Average Costs (2) | AR17: Number of Meters | AS17: Weighted Metering Costs (1) | AT17: Weighted Average Costs (2) | AU17: Number of Meters | AV17: Weighted Metering Costs (1) | AW17: Weighted Average Costs (2) | AX17: Number of Meters | AY17: Weighted Metering Costs (1) | AZ17: Weighted Average Costs (2) | BA17: Number of Meters | BB17: Weighted Metering Costs (1) | BC17: Weighted Average Costs (2) | BD17: Number of Meters | BE17: Weighted Metering Costs (1) | BF17: Weighted Average Costs (2) | BG17: Number of Meters | BH17: Weighted Metering Costs (1) | BI17: Weighted Average Costs (2) | BJ17: Number of Meters | BK17: Weighted Metering Costs (1) | BL17: Weighted Average Costs (2) | BM17: Number of Meters | BN17: Weighted Metering Costs (1) | BO17: Weighted Average Costs (2)
D20: Allocation Percentage Weighted Factor | G20: =IF(ISERROR(F22/$BN$22), "-", F22/$BN$22) -> 0.7277841184 | J20: =IF(ISERROR(I22/$BN$22), "-", I22/$BN$22) -> 0.1499732536 | M20: =IF(ISERROR(L22/$BN$22), "-", L22/$BN$22) -> 0.1077185161 | P20: =IF(ISERROR(O22/$BN$22), "-", O22/$BN$22) -> 0.01240261236 | S20: =IF(ISERROR(R22/$BN$22), "-", R22/$BN$22) -> 0 | V20: =IF(ISERROR(U22/$BN$22), "-", U22/$BN$22) -> 0.001795114947 | Y20: =IF(ISERROR(X22/$BN$22), "-", X22/$BN$22) -> 0 | AB20: =IF(ISERROR(AA22/$BN$22), "-", AA22/$BN$22) -> 0 | AE20: =IF(ISERROR(AD22/$BN$22), "-", AD22/$BN$22) -> 0 | AH20: =IF(ISERROR(AG22/$BN$22), "-", AG22/$BN$22) -> 0 | AK20: =IF(ISERROR(AJ22/$BN$22), "-", AJ22/$BN$22) -> 0 | AN20: =IF(ISERROR(AM22/$BN$22), "-", AM22/$BN$22) -> 0.0003263845358 | AQ20: =IF(ISERROR(AP22/$BN$22), "-", AP22/$BN$22) -> 0 | AT20: =IF(ISERROR(AS22/$BN$22), "-", AS22/$BN$22) -> 0 | AW20: =IF(ISERROR(AV22/$BN$22), "-", AV22/$BN$22) -> 0 | AZ20: =IF(ISERROR(AY22/$BN$22), "-", AY22/$BN$22) -> 0 | BC20: =IF(ISERROR(BB22/$BN$22), "-", BB22/$BN$22) -> 0 | BF20: =IF(ISERROR(BE22/$BN$22), "-", BE22/$BN$22) -> 0 | BI20: =IF(ISERROR(BH22/$BN$22), "-", BH22/$BN$22) -> 0 | BL20: =IF(ISERROR(BK22/$BN$22), "-", BK22/$BN$22) -> 0 | BO20: =IF(ISERROR(BN22/$BN$22), "-", BN22/$BN$22) -> 1
D21: Cost Relative to Residential Average Cost | G21: =IF(ISERROR(G22/$G$22),"-", (G22/$G$22)) -> 1 | J21: =IF(ISERROR(J22/$G$22),"-", (J22/$G$22)) -> 2.52090194 | M21: =IF(ISERROR(M22/$G$22),"-", (M22/$G$22)) -> 13.41825482 | P21: =IF(ISERROR(P22/$G$22),"-", (P22/$G$22)) -> 67.55159257 | S21: =IF(ISERROR(S22/$G$22),"-", (S22/$G$22)) -> - | V21: =IF(ISERROR(V22/$G$22),"-", (V22/$G$22)) -> 67.55159257 | Y21: =IF(ISERROR(Y22/$G$22),"-", (Y22/$G$22)) -> - | AB21: =IF(ISERROR(AB22/$G$22),"-", (AB22/$G$22)) -> - | AE21: =IF(ISERROR(AE22/$G$22),"-", (AE22/$G$22)) -> - | AH21: =IF(ISERROR(AH22/$G$22),"-", (AH22/$G$22)) -> - | AK21: =IF(ISERROR(AK22/$G$22),"-", (AK22/$G$22)) -> - | AN21: =IF(ISERROR(AN22/$G$22),"-", (AN22/$G$22)) -> 67.55159257 | AQ21: =IF(ISERROR(AQ22/$G$22),"-", (AQ22/$G$22)) -> - | AT21: =IF(ISERROR(AT22/$G$22),"-", (AT22/$G$22)) -> - | AW21: =IF(ISERROR(AW22/$G$22),"-", (AW22/$G$22)) -> - | AZ21: =IF(ISERROR(AZ22/$G$22),"-", (AZ22/$G$22)) -> - | BC21: =IF(ISERROR(BC22/$G$22),"-", (BC22/$G$22)) -> - | BF21: =IF(ISERROR(BF22/$G$22),"-", (BF22/$G$22)) -> - | BI21: =IF(ISERROR(BI22/$G$22),"-", (BI22/$G$22)) -> - | BL21: =IF(ISERROR(BL22/$G$22),"-", (BL22/$G$22)) -> - | BO21: =IF(ISERROR(BO22/$G$22),"-", (BO22/$G$22)) -> 1.257041336
D22: Total | E22: =+SUM(E24:E37) -> 301258 | F22: =+SUM(F24:F37) -> 44596728 | G22: =IF(ISERROR(+F22/E22), "-", +F22/E22) -> 148.0349999 | H22: =+SUM(H24:H37) -> 24626 | I22: =+SUM(I24:I37) -> 9189973 | J22: =IF(ISERROR(+I22/H22), "-", +I22/H22) -> 373.1817185 | K22: =+SUM(K24:K37) -> 3323 | L22: =+SUM(L24:L37) -> 6600712 | M22: =IF(ISERROR(+L22/K22), "-", +L22/K22) -> 1986.371351 | N22: =+SUM(N24:N37) -> 76 | O22: =+SUM(O24:O37) -> 760000 | P22: =IF(ISERROR(+O22/N22), "-", +O22/N22) -> 10000 | Q22: =+SUM(Q24:Q37) -> 0 | R22: =+SUM(R24:R37) -> 0 | S22: =IF(ISERROR(+R22/Q22), "-", +R22/Q22) -> - | T22: =+SUM(T24:T37) -> 11 | U22: =+SUM(U24:U37) -> 110000 | V22: =IF(ISERROR(+U22/T22), "-", +U22/T22) -> 10000 | W22: =+SUM(W24:W37) -> 0 | X22: =+SUM(X24:X37) -> 0 | Y22: =IF(ISERROR(+X22/W22), "-", +X22/W22) -> - | Z22: =+SUM(Z24:Z37) -> 0 | AA22: =+SUM(AA24:AA37) -> 0 | AB22: =IF(ISERROR(+AA22/Z22), "-", +AA22/Z22) -> - | AC22: =+SUM(AC24:AC37) -> 0 | AD22: =+SUM(AD24:AD37) -> 0 | AE22: =IF(ISERROR(+AD22/AC22), "-", +AD22/AC22) -> - | AF22: =+SUM(AF24:AF37) -> 0 | AG22: =+SUM(AG24:AG37) -> 0 | AH22: =IF(ISERROR(+AG22/AF22), "-", +AG22/AF22) -> - | AI22: =+SUM(AI24:AI37) -> 0 | AJ22: =+SUM(AJ24:AJ37) -> 0 | AK22: =IF(ISERROR(+AJ22/AI22), "-", +AJ22/AI22) -> - | AL22: =+SUM(AL24:AL37) -> 2 | AM22: =+SUM(AM24:AM37) -> 20000 | AN22: =IF(ISERROR(+AM22/AL22), "-", +AM22/AL22) -> 10000 | AO22: =+SUM(AO24:AO37) -> 0 | AP22: =+SUM(AP24:AP37) -> 0 | AQ22: =IF(ISERROR(+AP22/AO22), "-", +AP22/AO22) -> - | AR22: =+SUM(AR24:AR37) -> 0 | AS22: =+SUM(AS24:AS37) -> 0 | AT22: =IF(ISERROR(+AS22/AR22), "-", +AS22/AR22) -> - | AU22: =+SUM(AU24:AU37) -> 0 | AV22: =+SUM(AV24:AV37) -> 0 | AW22: =IF(ISERROR(+AV22/AU22), "-", +AV22/AU22) -> - | AX22: =+SUM(AX24:AX37) -> 0 | AY22: =+SUM(AY24:AY37) -> 0 | AZ22: =IF(ISERROR(+AY22/AX22), "-", +AY22/AX22) -> - | BA22: =+SUM(BA24:BA37) -> 0 | BB22: =+SUM(BB24:BB37) -> 0 | BC22: =IF(ISERROR(+BB22/BA22), "-", +BB22/BA22) -> - | BD22: =+SUM(BD24:BD37) -> 0 | BE22: =+SUM(BE24:BE37) -> 0 | BF22: =IF(ISERROR(+BE22/BD22), "-", +BE22/BD22) -> - | BG22: =+SUM(BG24:BG37) -> 0 | BH22: =+SUM(BH24:BH37) -> 0 | BI22: =IF(ISERROR(+BH22/BG22), "-", +BH22/BG22) -> - | BJ22: =+SUM(BJ24:BJ37) -> 0 | BK22: =+SUM(BK24:BK37) -> 0 | BL22: =IF(ISERROR(+BK22/BJ22), "-", +BK22/BJ22) -> - | BM22: =+E22+H22+K22+N22+Q22+T22+W22+Z22+AC22+AF22+AI22+AL22+AO22+AR22+AU22+AX22+BA22+BD22+BG22 -> 329296 | BN22: =+F22+I22+L22+O22+R22+U22+X22+AA22+AD22+AG22+AJ22+AM22+AP22+AS22+AV22+AY22+BB22+BE22+BH22 -> 61277413 | BO22: =IF(ISERROR(+BN22/BM22), "-", +BN22/BM22) -> 186.086114
C23: Meter Types | D23: Cost per Meter (Installed)
C24: Single Phase 200 Amp - Urban | D24: 88 | F24: =+$D24*E24 -> 0 | I24: =+$D24*H24 -> 0 | L24: =+$D24*K24 -> 0 | O24: =+$D24*N24 -> 0 | R24: =+$D24*Q24 -> 0 | U24: =+$D24*T24 -> 0 | X24: =+$D24*W24 -> 0 | AA24: =+$D24*Z24 -> 0 | AD24: =+$D24*AC24 -> 0 | AG24: =+$D24*AF24 -> 0 | AJ24: =+$D24*AI24 -> 0 | AM24: =+$D24*AL24 -> 0 | AP24: =+$D24*AO24 -> 0 | AS24: =+$D24*AR24 -> 0 | AV24: =+$D24*AU24 -> 0 | AY24: =+$D24*AX24 -> 0 | BB24: =+$D24*BA24 -> 0 | BE24: =+$D24*BD24 -> 0 | BH24: =+$D24*BG24 -> 0 | BK24: =+$D24*BJ24 -> 0 | BM24: =+E24+H24+K24+N24+Q24+T24+W24+Z24+AC24+AF24+AI24+AL24+AO24+AR24+AU24+AX24+BA24+BD24+BG24 -> 0 | BN24: =+F24+I24+L24+O24+R24+U24+X24+AA24+AD24+AG24+AJ24+AM24+AP24+AS24+AV24+AY24+BB24+BE24+BH24 -> 0
C25: Single Phase 200 Amp - Rural | D25: 164 | F25: =+$D25*E25 -> 0 | I25: =+$D25*H25 -> 0 | L25: =+$D25*K25 -> 0 | O25: =+$D25*N25 -> 0 | R25: =+$D25*Q25 -> 0 | U25: =+$D25*T25 -> 0 | X25: =+$D25*W25 -> 0 | AA25: =+$D25*Z25 -> 0 | AD25: =+$D25*AC25 -> 0 | AG25: =+$D25*AF25 -> 0 | AJ25: =+$D25*AI25 -> 0 | AM25: =+$D25*AL25 -> 0 | AP25: =+$D25*AO25 -> 0 | AS25: =+$D25*AR25 -> 0 | AV25: =+$D25*AU25 -> 0 | AY25: =+$D25*AX25 -> 0 | BB25: =+$D25*BA25 -> 0 | BE25: =+$D25*BD25 -> 0 | BH25: =+$D25*BG25 -> 0 | BK25: =+$D25*BJ25 -> 0 | BM25: 0 | BN25: 0
C26: Central Meter | D26: 250 | F26: 0 | I26: 0 | L26: 0 | O26: 0 | R26: 0 | U26: 0 | X26: 0 | AA26: 0 | AD26: 0 | AG26: 0 | AJ26: 0 | AM26: 0 | AP26: 0 | AS26: 0 | AV26: 0 | AY26: 0 | BB26: 0 | BE26: 0 | BH26: 0 | BK26: 0 | BM26: 0 | BN26: 0
C27: Network Meter (Costs to be updated) | D27: 225 | F27: 0 | I27: 0 | L27: 0 | O27: 0 | R27: 0 | U27: 0 | X27: 0 | AA27: 0 | AD27: 0 | AG27: 0 | AJ27: 0 | AM27: 0 | AP27: 0 | AS27: 0 | AV27: 0 | AY27: 0 | BB27: 0 | BE27: 0 | BH27: 0 | BK27: 0 | BM27: 0 | BN27: 0
C28: Three-phase - No demand | D28: 381 | F28: 0 | I28: 0 | L28: 0 | O28: 0 | R28: 0 | U28: 0 | X28: 0 | AA28: 0 | AD28: 0 | AG28: 0 | AJ28: 0 | AM28: 0 | AP28: 0 | AS28: 0 | AV28: 0 | AY28: 0 | BB28: 0 | BE28: 0 | BH28: 0 | BK28: 0 | BM28: 0 | BN28: 0
C29: Smart Meters | D29: 146 | E29: 299748 | F29: 43763208 | I29: 0 | L29: 0 | O29: 0 | R29: 0 | U29: 0 | X29: 0 | AA29: 0 | AD29: 0 | AG29: 0 | AJ29: 0 | AM29: 0 | AP29: 0 | AS29: 0 | AV29: 0 | AY29: 0 | BB29: 0 | BE29: 0 | BH29: 0 | BK29: 0 | BM29: 299748 | BN29: 43763208
C30: Demand without IT (usually three-phase) | D30: 381 | F30: 0 | I30: 0 | L30: 0 | O30: 0 | R30: 0 | U30: 0 | X30: 0 | AA30: 0 | AD30: 0 | AG30: 0 | AJ30: 0 | AM30: 0 | AP30: 0 | AS30: 0 | AV30: 0 | AY30: 0 | BB30: 0 | BE30: 0 | BH30: 0 | BK30: 0 | BM30: 0 | BN30: 0
C31: Demand with IT | D31: 3000 | F31: =+$D31*E31 -> 0 | I31: 0 | L31: 0 | O31: 0 | R31: 0 | U31: 0 | X31: 0 | AA31: 0 | AD31: 0 | AG31: 0 | AJ31: 0 | AM31: 0 | AP31: 0 | AS31: 0 | AV31: 0 | AY31: 0 | BB31: 0 | BE31: 0 | BH31: 0 | BK31: 0 | BM31: =+E31+H31+K31+N31+Q31+T31+W31+Z31+AC31+AF31+AI31+AL31+AO31+AR31+AU31+AX31+BA31+BD31+BG31 -> 0 | BN31: 0
C32: Demand with IT and Interval Capability - Secondary | D32: 2300 | F32: 0 | I32: 0 | L32: 0 | O32: 0 | R32: 0 | U32: 0 | X32: 0 | AA32: 0 | AD32: 0 | AG32: 0 | AJ32: 0 | AM32: 0 | AP32: 0 | AS32: 0 | AV32: 0 | AY32: 0 | BB32: 0 | BE32: 0 | BH32: 0 | BK32: 0 | BM32: 0 | BN32: 0
C33: Demand with IT and Interval Capability - Primary | D33: 10000 | F33: 0 | I33: 0 | K33: 271 | L33: 2710000 | N33: 76 | O33: 760000 | R33: 0 | T33: 11 | U33: 110000 | X33: 0 | AA33: 0 | AD33: 0 | AG33: 0 | AJ33: 0 | AL33: 2 | AM33: 20000 | AP33: 0 | AS33: 0 | AV33: 0 | AY33: 0 | BB33: 0 | BE33: 0 | BH33: 0 | BK33: 0 | BM33: 360 | BN33: 3600000
C34: Demand with IT and Interval Capability -Special (WMP) | D34: 3383 | F34: 0 | I34: 0 | K34: 336 | L34: 1136688 | O34: 0 | R34: 0 | U34: 0 | X34: 0 | AA34: 0 | AD34: 0 | AG34: 0 | AJ34: 0 | AM34: 0 | AP34: 0 | AS34: 0 | AV34: 0 | AY34: 0 | BB34: 0 | BE34: 0 | BH34: 0 | BK34: 0 | BM34: 336 | BN34: 1136688
C35: Smart Meters | D35: 552 | E35: 1510 | F35: 833520 | H35: 25 | I35: 13800 | L35: 0 | O35: 0 | R35: 0 | U35: 0 | X35: 0 | AA35: 0 | AD35: 0 | AG35: 0 | AJ35: 0 | AM35: 0 | AP35: 0 | AS35: 0 | AV35: 0 | AY35: 0 | BB35: 0 | BE35: 0 | BH35: 0 | BK35: 0 | BM35: 1535 | BN35: 847320
C36: Smart Meters | D36: 373 | F36: 0 | H36: 24601 | I36: 9176173 | L36: 0 | O36: 0 | R36: 0 | U36: 0 | X36: 0 | AA36: 0 | AD36: 0 | AG36: 0 | AJ36: 0 | AM36: 0 | AP36: 0 | AS36: 0 | AV36: 0 | AY36: 0 | BB36: 0 | BE36: 0 | BH36: 0 | BK36: 0 | BM36: 24601 | BN36: 9176173
C37: LDC Specific 3 | D37: 1014 | F37: 0 | I37: 0 | K37: 2716 | L37: 2754024 | O37: 0 | R37: 0 | U37: 0 | X37: 0 | AA37: 0 | AD37: 0 | AG37: 0 | AJ37: 0 | AM37: 0 | AP37: 0 | AS37: 0 | AV37: 0 | AY37: 0 | BB37: 0 | BE37: 0 | BH37: 0 | BK37: 0 | BM37: 2716 | BN37: 2754024

Sheet I7.2 Meter Reading
A4: ='I1 Intro'!C11 -> EB-2015-0004
A5: ="Sheet I7.2 Meter Reading Worksheet - "& 'I2 LDC class'!$C$17 -> Sheet I7.2 Meter Reading Worksheet -
A12: Weighting Factors based on Contractor Pricing
D14: 1 | G14: 2 | J14: 3 | M14: 4 | P14: 5 | S14: 6 | V14: 7 | Y14: 8 | AB14: 9 | AE14: 10 | AH14: 11 | AK14: 12 | AN14: 13 | AQ14: 14 | AT14: 15 | AW14: 16 | AZ14: 17 | BC14: 18 | BF14: 19 | BI14: 20
A15: Description | D15: =IF('I2 LDC class'!$D$20="",'I2 LDC class'!$C$20,'I2 LDC class'!$D$20) -> Residential | G15: =IF('I2 LDC class'!$D$21="",'I2 LDC class'!$C$21,'I2 LDC class'!$D$21) -> GS <50 | J15: =IF('I2 LDC class'!$D$22="",'I2 LDC class'!$C$22,'I2 LDC class'!$D$22) -> GS 50 to 1,499 kW | M15: =IF('I2 LDC class'!$D$23="",'I2 LDC class'!$C$23,'I2 LDC class'!$D$23) -> GS 1,500 to 4,999 kW | P15: =IF('I2 LDC class'!$D$24="",'I2 LDC class'!$C$24,'I2 LDC class'!$D$24) -> GS >50-Intermediate | S15: =IF('I2 LDC class'!$D$25="",'I2 LDC class'!$C$25,'I2 LDC class'!$D$25) -> Large Use | V15: =IF('I2 LDC class'!$D$26="",'I2 LDC class'!$C$26,'I2 LDC class'!$D$26) -> Street Light | Y15: =IF('I2 LDC class'!$D$27="",'I2 LDC class'!$C$27,'I2 LDC class'!$D$27) -> Sentinel | AB15: =IF('I2 LDC class'!$D$28="",'I2 LDC class'!$C$28,'I2 LDC class'!$D$28) -> Unmetered Scattered Load | AE15: =IF('I2 LDC class'!$D$29="",'I2 LDC class'!$C$29,'I2 LDC class'!$D$29) -> Embedded Distributor | AH15: =IF('I2 LDC class'!$D$30="",'I2 LDC class'!$C$30,'I2 LDC class'!$D$30) -> Standby Power GS 50 to 1,499 kW | AK15: =IF('I2 LDC class'!$D$31="",'I2 LDC class'!$C$31,'I2 LDC class'!$D$31) -> Standby Power GS 1,500 to 4,999 kW | AN15: =IF('I2 LDC class'!$D$32="",'I2 LDC class'!$C$32,'I2 LDC class'!$D$32) -> Standby Power Large Use | AQ15: =IF('I2 LDC class'!$D$33="",'I2 LDC class'!$C$33,'I2 LDC class'!$D$33) -> Rate class 3 | AT15: =IF('I2 LDC class'!$D$34="",'I2 LDC class'!$C$34,'I2 LDC class'!$D$34) -> Rate class 4 | AW15: =IF('I2 LDC class'!$D$35="",'I2 LDC class'!$C$35,'I2 LDC class'!$D$35) -> Rate class 5 | AZ15: =IF('I2 LDC class'!$D$36="",'I2 LDC class'!$C$36,'I2 LDC class'!$D$36) -> Rate class 6 | BC15: =IF('I2 LDC class'!$D$37="",'I2 LDC class'!$C$37,'I2 LDC class'!$D$37) -> Rate class 7 | BF15: =IF('I2 LDC class'!$D$38="",'I2 LDC class'!$C$38,'I2 LDC class'!$D$38) -> Rate class 8 | BI15: =IF('I2 LDC class'!$D$39="",'I2 LDC class'!$C$39,'I2 LDC class'!$D$39) -> Rate class 9 | BL15: TOTAL
D16: Units | E16: Weighted Factor | F16: Weighted Average Costs | G16: Units | H16: Weighted Factor | I16: Weighted Average Costs | J16: Units | K16: Weighted Factor | L16: Weighted Average Costs | M16: Units | N16: Weighted Factor | O16: Weighted Average Costs | P16: Units | Q16: Weighted Factor | R16: Weighted Average Costs | S16: Units | T16: Weighted Factor | U16: Weighted Average Costs | V16: Units | W16: Weighted Factor | X16: Weighted Average Costs | Y16: Units | Z16: Weighted Factor | AA16: Weighted Average Costs | AB16: Units | AC16: Weighted Factor | AD16: Weighted Average Costs | AE16: Units | AF16: Weighted Factor | AG16: Weighted Average Costs | AH16: Units | AI16: Weighted Factor | AJ16: Weighted Average Costs | AK16: Units | AL16: Weighted Factor | AM16: Weighted Average Costs | AN16: Units | AO16: Weighted Factor | AP16: Weighted Average Costs | AQ16: Units | AR16: Weighted Factor | AS16: Weighted Average Costs | AT16: Units | AU16: Weighted Factor | AV16: Weighted Average Costs | AW16: Units | AX16: Weighted Factor | AY16: Weighted Average Costs | AZ16: Units | BA16: Weighted Factor | BB16: Weighted Average Costs | BC16: Units | BD16: Weighted Factor | BE16: Weighted Average Costs | BF16: Units | BG16: Weighted Factor | BH16: Weighted Average Costs | BI16: Units | BJ16: Weighted Factor | BK16: Weighted Average Costs | BL16: Units | BM16: Weighted Factor | BN16: Weighted Average Costs
B18: Allocation Percentage Weighted Factor | F18: =IF(ISERROR(+E20/$BM20), "-", +E20/$BM20) -> 0.5953138873 | I18: =IF(ISERROR(+H20/$BM20), "-", +H20/$BM20) -> 0.04866362758 | L18: =IF(ISERROR(+K20/$BM20), "-", +K20/$BM20) -> 0.3185757687 | O18: =IF(ISERROR(+N20/$BM20), "-", +N20/$BM20) -> 0.03197697128 | R18: =IF(ISERROR(+Q20/$BM20), "-", +Q20/$BM20) -> 0 | U18: =IF(ISERROR(+T20/$BM20), "-", +T20/$BM20) -> 0.004628245843 | X18: =IF(ISERROR(+W20/$BM20), "-", +W20/$BM20) -> 0 | AA18: =IF(ISERROR(+Z20/$BM20), "-", +Z20/$BM20) -> 0 | AD18: =IF(ISERROR(+AC20/$BM20), "-", +AC20/$BM20) -> 0 | AG18: =IF(ISERROR(+AF20/$BM20), "-", +AF20/$BM20) -> 0 | AJ18: =IF(ISERROR(+AI20/$BM20), "-", +AI20/$BM20) -> 0 | AM18: =IF(ISERROR(+AL20/$BM20), "-", +AL20/$BM20) -> 0.0008414992442 | AP18: =IF(ISERROR(+AO20/$BM20), "-", +AO20/$BM20) -> 0 | AS18: =IF(ISERROR(+AR20/$BM20), "-", +AR20/$BM20) -> 0 | AV18: =IF(ISERROR(+AU20/$BM20), "-", +AU20/$BM20) -> 0 | AY18: =IF(ISERROR(+AX20/$BM20), "-", +AX20/$BM20) -> 0 | BB18: =IF(ISERROR(+BA20/$BM20), "-", +BA20/$BM20) -> 0 | BE18: =IF(ISERROR(+BD20/$BM20), "-", +BD20/$BM20) -> 0 | BH18: =IF(ISERROR(+BG20/$BM20), "-", +BG20/$BM20) -> 0 | BK18: =IF(ISERROR(+BJ20/$BM20), "-", +BJ20/$BM20) -> 0 | BN18: =IF(ISERROR(+BM20/$BM20), "-", +BM20/$BM20) -> 1
B19: Cost Relative to Residential Average Cost | F19: =IF(ISERROR(F20/$F20), "0", (F20/$F20)) -> 1 | I19: =IF(ISERROR(I20/$F20), "0", (I20/$F20)) -> 1 | L19: =IF(ISERROR(L20/$F20), "0", (L20/$F20)) -> 48.51242131 | O19: =IF(ISERROR(O20/$F20), "0", (O20/$F20)) -> 212.9198096 | R19: =IF(ISERROR(R20/$F20), "0", (R20/$F20)) -> 0 | U19: =IF(ISERROR(U20/$F20), "0", (U20/$F20)) -> 212.9198096 | X19: =IF(ISERROR(X20/$F20), "0", (X20/$F20)) -> 0 | AA19: =IF(ISERROR(AA20/$F20), "0", (AA20/$F20)) -> 0 | AD19: =IF(ISERROR(AD20/$F20), "0", (AD20/$F20)) -> 0 | AG19: =IF(ISERROR(AG20/$F20), "0", (AG20/$F20)) -> 0 | AJ19: =IF(ISERROR(AJ20/$F20), "0", (AJ20/$F20)) -> 0 | AM19: =IF(ISERROR(AM20/$F20), "0", (AM20/$F20)) -> 212.9198096 | AP19: =IF(ISERROR(AP20/$F20), "0", (AP20/$F20)) -> 0 | AS19: =IF(ISERROR(AS20/$F20), "0", (AS20/$F20)) -> 0 | AV19: =IF(ISERROR(AV20/$F20), "0", (AV20/$F20)) -> 0 | AY19: =IF(ISERROR(AY20/$F20), "0", (AY20/$F20)) -> 0 | BB19: =IF(ISERROR(BB20/$F20), "0", (BB20/$F20)) -> 0 | BE19: =IF(ISERROR(BE20/$F20), "0", (BE20/$F20)) -> 0 | BH19: =IF(ISERROR(BH20/$F20), "0", (BH20/$F20)) -> 0 | BK19: =IF(ISERROR(BK20/$F20), "0", (BK20/$F20)) -> 0 | BN19: =IF(ISERROR(BN20/$F20), "0", (BN20/$F20)) -> 689.2718501
B20: Total | D20: =SUM(D22:D38) -> 301257.8333 | E20: =SUM(E22:E38) -> 301257.8333 | F20: =IF(ISERROR(E20/D20), "0", (E20/D20)) -> 1 | G20: =SUM(G22:G38) -> 24626.16667 | H20: =SUM(H22:H38) -> 24626.16667 | I20: =IF(ISERROR(H20/G20), "0", (H20/G20)) -> 1 | J20: =SUM(J22:J38) -> 3323.166667 | K20: =SUM(K22:K38) -> 161214.8614 | L20: =IF(ISERROR(K20/J20), "0", (K20/J20)) -> 48.51242131 | M20: =SUM(M22:M38) -> 76 | N20: =SUM(N22:N38) -> 16181.90553 | O20: =IF(ISERROR(N20/M20), "0", (N20/M20)) -> 212.9198096 | P20: =SUM(P22:P38) -> 0 | Q20: =SUM(Q22:Q38) -> 0 | R20: =IF(ISERROR(Q20/P20), "0", (Q20/P20)) -> 0 | S20: =SUM(S22:S38) -> 11 | T20: =SUM(T22:T38) -> 2342.117905 | U20: =IF(ISERROR(T20/S20), "0", (T20/S20)) -> 212.9198096 | V20: =SUM(V22:V38) -> 0 | W20: =SUM(W22:W38) -> 0 | X20: =IF(ISERROR(W20/V20), "0", (W20/V20)) -> 0 | Y20: =SUM(Y22:Y38) -> 0 | Z20: =SUM(Z22:Z38) -> 0 | AA20: =IF(ISERROR(Z20/Y20), "0", (Z20/Y20)) -> 0 | AB20: =SUM(AB22:AB38) -> 0 | AC20: =SUM(AC22:AC38) -> 0 | AD20: =IF(ISERROR(AC20/AB20), "0", (AC20/AB20)) -> 0 | AE20: =SUM(AE22:AE38) -> 0 | AF20: =SUM(AF22:AF38) -> 0 | AG20: =IF(ISERROR(AF20/AE20), "0", (AF20/AE20)) -> 0 | AH20: =SUM(AH22:AH38) -> 0 | AI20: =SUM(AI22:AI38) -> 0 | AJ20: =IF(ISERROR(AI20/AH20), "0", (AI20/AH20)) -> 0 | AK20: =SUM(AK22:AK38) -> 2 | AL20: =SUM(AL22:AL38) -> 425.8396192 | AM20: =IF(ISERROR(AL20/AK20), "0", (AL20/AK20)) -> 212.9198096 | AN20: =SUM(AN22:AN38) -> 0 | AO20: =SUM(AO22:AO38) -> 0 | AP20: =IF(ISERROR(AO20/AN20), "0", (AO20/AN20)) -> 0 | AQ20: =SUM(AQ22:AQ38) -> 0 | AR20: =SUM(AR22:AR38) -> 0 | AS20: =IF(ISERROR(AR20/AQ20), "0", (AR20/AQ20)) -> 0 | AT20: =SUM(AT22:AT38) -> 0 | AU20: =SUM(AU22:AU38) -> 0 | AV20: =IF(ISERROR(AU20/AT20), "0", (AU20/AT20)) -> 0 | AW20: =SUM(AW22:AW38) -> 0 | AX20: =SUM(AX22:AX38) -> 0 | AY20: =IF(ISERROR(AX20/AW20), "0", (AX20/AW20)) -> 0 | AZ20: =SUM(AZ22:AZ38) -> 0 | BA20: =SUM(BA22:BA38) -> 0 | BB20: =IF(ISERROR(BA20/AZ20), "0", (BA20/AZ20)) -> 0 | BC20: =SUM(BC22:BC38) -> 0 | BD20: =SUM(BD22:BD38) -> 0 | BE20: =IF(ISERROR(BD20/BC20), "0", (BD20/BC20)) -> 0 | BF20: =SUM(BF22:BF38) -> 0 | BG20: =SUM(BG22:BG38) -> 0 | BH20: =IF(ISERROR(BG20/BF20), "0", (BG20/BF20)) -> 0 | BI20: =SUM(BI22:BI38) -> 0 | BJ20: =SUM(BJ22:BJ38) -> 0 | BK20: =IF(ISERROR(BJ20/BI20), "0", (BJ20/BI20)) -> 0 | BL20: =+D20+G20+J20+M20+P20+S20+V20+Y20+AB20+AE20+AH20+AK20+AN20+AQ20+AT20+AW20+AZ20+BC20+BF20+BI20 -> 329296.1667 | BM20: =+E20+H20+K20+N20+Q20+T20+W20+Z20+AC20+AF20+AI20+AL20+AO20+AR20+AU20+AX20+BA20+BD20+BG20+BJ20 -> 506048.7245 | BN20: =+F20+I20+L20+O20+R20+U20+X20+AA20+AD20+AG20+AJ20+AM20+AP20+AS20+AV20+AY20+BB20+BE20+BH20+BK20 -> 689.2718501
C21: Factor
A22: Residential - Urban - Outside | C22: 1 | E22: =+D22*$C22 -> 0 | H22: =+G22*$C22 -> 0 | K22: =+J22*$C22 -> 0 | N22: =+M22*$C22 -> 0 | Q22: =+P22*$C22 -> 0 | T22: =+S22*$C22 -> 0 | W22: =+V22*$C22 -> 0 | Z22: =+Y22*$C22 -> 0 | AC22: =+AB22*$C22 -> 0 | AF22: =+AE22*$C22 -> 0 | AI22: =+AH22*$C22 -> 0 | AL22: =+AK22*$C22 -> 0 | AO22: =+AN22*$C22 -> 0 | AR22: =+AQ22*$C22 -> 0 | AU22: =+AT22*$C22 -> 0 | AX22: =+AW22*$C22 -> 0 | BA22: =+AZ22*$C22 -> 0 | BD22: =+BC22*$C22 -> 0 | BG22: =+BF22*$C22 -> 0 | BJ22: =+BI22*$C22 -> 0 | BL22: =+D22+G22+J22+M22+P22+S22+V22+Y22+AB22+AE22+AH22+AK22+AN22+AQ22+AT22+AW22+AZ22+BC22+BF22+BI22 -> 0 | BM22: =+E22+H22+K22+N22+Q22+T22+W22+Z22+AC22+AF22+AI22+AL22+AO22+AR22+AU22+AX22+BA22+BD22+BG22+BJ22 -> 0
A23: Residential - Urban - Outside with other services | C23: 1 | E23: =+D23*$C23 -> 0 | H23: =+G23*$C23 -> 0 | K23: =+J23*$C23 -> 0 | N23: =+M23*$C23 -> 0 | Q23: =+P23*$C23 -> 0 | T23: =+S23*$C23 -> 0 | W23: =+V23*$C23 -> 0 | Z23: =+Y23*$C23 -> 0 | AC23: =+AB23*$C23 -> 0 | AF23: =+AE23*$C23 -> 0 | AI23: =+AH23*$C23 -> 0 | AL23: =+AK23*$C23 -> 0 | AO23: =+AN23*$C23 -> 0 | AR23: =+AQ23*$C23 -> 0 | AU23: =+AT23*$C23 -> 0 | AX23: =+AW23*$C23 -> 0 | BA23: =+AZ23*$C23 -> 0 | BD23: =+BC23*$C23 -> 0 | BG23: =+BF23*$C23 -> 0 | BJ23: =+BI23*$C23 -> 0 | BL23: 0 | BM23: 0
A24: Residential - Urban - Inside | C24: 6 | E24: 0 | H24: 0 | K24: 0 | N24: 0 | Q24: 0 | T24: 0 | W24: 0 | Z24: 0 | AC24: 0 | AF24: 0 | AI24: 0 | AL24: 0 | AO24: 0 | AR24: 0 | AU24: 0 | AX24: 0 | BA24: 0 | BD24: 0 | BG24: 0 | BJ24: 0 | BL24: 0 | BM24: 0
A25: Residential - Urban - Inside - with other services | C25: 1 | E25: 0 | H25: 0 | K25: 0 | N25: 0 | Q25: 0 | T25: 0 | W25: 0 | Z25: 0 | AC25: 0 | AF25: 0 | AI25: 0 | AL25: 0 | AO25: 0 | AR25: 0 | AU25: 0 | AX25: 0 | BA25: 0 | BD25: 0 | BG25: 0 | BJ25: 0 | BL25: 0 | BM25: 0
A26: Residential - Rural - Outside | C26: 14 | E26: 0 | H26: 0 | K26: 0 | N26: 0 | Q26: 0 | T26: 0 | W26: 0 | Z26: 0 | AC26: 0 | AF26: 0 | AI26: 0 | AL26: 0 | AO26: 0 | AR26: 0 | AU26: 0 | AX26: 0 | BA26: 0 | BD26: 0 | BG26: 0 | BJ26: 0 | BL26: 0 | BM26: 0
A27: Residential - Rural - Outside with other services | C27: 2 | E27: 0 | H27: 0 | K27: 0 | N27: 0 | Q27: 0 | T27: 0 | W27: 0 | Z27: 0 | AC27: 0 | AF27: 0 | AI27: 0 | AL27: 0 | AO27: 0 | AR27: 0 | AU27: 0 | AX27: 0 | BA27: 0 | BD27: 0 | BG27: 0 | BJ27: 0 | BL27: 0 | BM27: 0
A28: Smart Meter | C28: 1 | D28: =ccar -> 301257.8333 | E28: 301257.8333 | G28: ='I6.2 Customer Data'!E21 -> 24626.16667 | H28: 24626.16667 | J28: =0.7758*'I6.2 Customer Data'!F21 -> 2578.1127 | K28: 2578.1127 | N28: 0 | Q28: 0 | T28: 0 | W28: 0 | Z28: 0 | AC28: 0 | AF28: 0 | AI28: 0 | AL28: 0 | AO28: 0 | AR28: 0 | AU28: 0 | AX28: 0 | BA28: 0 | BD28: 0 | BG28: 0 | BJ28: 0 | BL28: 328462.1127 | BM28: 328462.1127
A29: Smart Meter with Demand | E29: 0 | H29: 0 | K29: 0 | N29: 0 | Q29: 0 | T29: 0 | W29: 0 | Z29: 0 | AC29: 0 | AF29: 0 | AI29: 0 | AL29: 0 | AO29: 0 | AR29: 0 | AU29: 0 | AX29: 0 | BA29: 0 | BD29: 0 | BG29: 0 | BJ29: 0 | BL29: 0 | BM29: 0
A30: GS - Walking | C30: 8 | E30: 0 | H30: 0 | K30: 0 | N30: 0 | Q30: 0 | T30: 0 | W30: 0 | Z30: 0 | AC30: 0 | AF30: 0 | AI30: 0 | AL30: 0 | AO30: 0 | AR30: 0 | AU30: 0 | AX30: 0 | BA30: 0 | BD30: 0 | BG30: 0 | BJ30: 0 | BL30: 0 | BM30: 0
A31: GS - Walking - with other services | C31: 3 | E31: 0 | H31: 0 | K31: 0 | N31: 0 | Q31: 0 | T31: 0 | W31: 0 | Z31: 0 | AC31: 0 | AF31: 0 | AI31: 0 | AL31: 0 | AO31: 0 | AR31: 0 | AU31: 0 | AX31: 0 | BA31: 0 | BD31: 0 | BG31: 0 | BJ31: 0 | BL31: 0 | BM31: 0
A32: GS - Vehicle with other services --- TOU Read | C32: 14 | E32: 0 | H32: 0 | K32: 0 | N32: 0 | Q32: 0 | T32: 0 | W32: 0 | Z32: 0 | AC32: 0 | AF32: 0 | AI32: 0 | AL32: 0 | AO32: 0 | AR32: 0 | AU32: 0 | AX32: 0 | BA32: 0 | BD32: 0 | BG32: 0 | BJ32: 0 | BL32: 0 | BM32: 0
A33: GS - Vehicle with other services | C33: 3 | E33: 0 | H33: 0 | K33: 0 | N33: 0 | Q33: 0 | T33: 0 | W33: 0 | Z33: 0 | AC33: 0 | AF33: 0 | AI33: 0 | AL33: 0 | AO33: 0 | AR33: 0 | AU33: 0 | AX33: 0 | BA33: 0 | BD33: 0 | BG33: 0 | BJ33: 0 | BL33: 0 | BM33: 0
A34: LDC Specific 3 | E34: 0 | H34: 0 | K34: 0 | N34: 0 | Q34: 0 | T34: 0 | W34: 0 | Z34: 0 | AC34: 0 | AF34: 0 | AI34: 0 | AL34: 0 | AO34: 0 | AR34: 0 | AU34: 0 | AX34: 0 | BA34: 0 | BD34: 0 | BG34: 0 | BJ34: 0 | BL34: 0 | BM34: 0
A35: LDC Specific 4 | C35: 0 | E35: 0 | H35: 0 | K35: 0 | N35: 0 | Q35: 0 | T35: 0 | W35: 0 | Z35: 0 | AC35: 0 | AF35: 0 | AI35: 0 | AL35: 0 | AO35: 0 | AR35: 0 | AU35: 0 | AX35: 0 | BA35: 0 | BD35: 0 | BG35: 0 | BJ35: 0 | BL35: 0 | BM35: 0
A36: Interval | C36: 212.9198096 | E36: 0 | H36: 0 | J36: ='I6.2 Customer Data'!F21-J28 -> 745.0539667 | K36: 158636.7487 | M36: ='I6.2 Customer Data'!G21 -> 76 | N36: 16181.90553 | Q36: 0 | S36: ='I6.2 Customer Data'!I21 -> 11 | T36: 2342.117905 | W36: 0 | Z36: 0 | AC36: 0 | AF36: 0 | AI36: 0 | AK36: 2 | AL36: 425.8396192 | AO36: 0 | AR36: 0 | AU36: 0 | AX36: 0 | BA36: 0 | BD36: 0 | BG36: 0 | BJ36: 0 | BL36: 834.0539667 | BM36: 177586.6118
A37: LDC Specific 5 | E37: 0 | H37: 0 | K37: 0 | N37: 0 | Q37: 0 | T37: 0 | W37: 0 | Z37: 0 | AC37: 0 | AF37: 0 | AI37: 0 | AL37: 0 | AO37: 0 | AR37: 0 | AU37: 0 | AX37: 0 | BA37: 0 | BD37: 0 | BG37: 0 | BJ37: 0 | BL37: 0 | BM37: 0
A38: LDC Specific 6 | E38: 0 | H38: 0 | K38: 0 | N38: 0 | Q38: 0 | T38: 0 | W38: 0 | Z38: 0 | AC38: 0 | AF38: 0 | AI38: 0 | AL38: 0 | AO38: 0 | AR38: 0 | AU38: 0 | AX38: 0 | BA38: 0 | BD38: 0 | BG38: 0 | BJ38: 0 | BL38: 0 | BM38: 0
A50: Meter Reading Costs
B53: Model Defaults
A54: Based on Contractor Pricing
A55: August 2005 Data
A56: Description | B56: Combined | D56: Winter
B57: Relativity | C57: Relativity | D57: Relativity | E57: Relativity | F57: Recalculated
A58: Residential - Urban - Outside | B58: 1 | C58: 1 | D58: 1 | E58: 1 | F58: =IF((+B58+C58+D58+E58)/4<1,1,ROUND((+B58+C58+D58+E58)/4,0)) -> 1
A59: Residential - Urban - Outside With Water | B59: 0.7368421053 | F59: =IF((+B59)/1<1,1,ROUND((+B59)/1,0)) -> 1
A60: Residential - Urban - Inside | B60: 1.315789474 | C60: 2.184986595 | D60: 1.974630021 | E60: 1.76744186 | F60: =IF((+B60+C60+D60+E60)/4<1,1,ROUND((+B60+C60+D60+E60)/4,0)) -> 2
A61: Residential - Urban - Inside - With Water | B61: 1.052631579 | F61: =IF((+B61)/1<1,1,ROUND((+B61)/1,0)) -> 1
A62: Residential - Rural - Outside | B62: 3.078947368 | C62: 3.428954424 | D62: 3.264270613 | F62: =IF((+B62+C62+D62)/3<1,1,ROUND((+B62+C62+D62)/3,0)) -> 3
A63: Residential - Rural - Outside With Water | B63: 1.973684211 | F63: =IF((+B63)/1<1,1,ROUND((+B63)/1,0)) -> 2
A64: Residential with vehicle | E64: 2.674418605 | F64: =IF((+E64)/1<1,1,ROUND((+E64)/1,0)) -> 3
A65: GS - Walking | B65: 1.526315789 | F65: =IF((+B65)/1<1,1,ROUND((+B65)/1,0)) -> 2
A66: GS - Walking - With Water | B66: 1.263157895 | C66: 3.571045576 | D66: 3.143763214 | F66: =IF((+B66+C66+D66)/3<1,1,ROUND((+B66+C66+D66)/3,0)) -> 3
A67: GS - Vehicle | B67: 3.210526316 | F67: =IF((+B67)/1<1,1,ROUND((+B67)/1,0)) -> 3
A68: GS - Vehicle With Water | B68: 2.631578947 | E68: 3.325581395 | F68: =IF((+B68+E68)/2<1,1,ROUND((+B68+E68)/2,0)) -> 3
A69: Interval | B69: 48.68421053 | F69: =IF((+B69)/1<1,1,ROUND((+B69)/1,0)) -> 49
A70: Time of Use Read -- ignore | C70: 3.571045576 | D70: 3.378435518 | F70: =IF((C70+D70)/2<1,1,ROUND((C70+D70)/2,0)) -> 3
A71: Special Reads -- ignore | B71: let misc charges pick up the difference | E71: 8.139534884 | F71: =+E71 -> 8.139534884

Sheet I8 Demand Data
A4: ='I1 Intro'!C11 -> EB-2015-0004
A5: ="Sheet I8 Demand Data Worksheet - "& 'I2 LDC class'!$C$17 -> Sheet I8 Demand Data Worksheet -
A14: CP TEST RESULTS | C14: =IF(OR(ISERROR(('I8 Demand Data'!$C$50/12)/'I8 Demand Data'!$C$40), (ISERROR(('I8 Demand Data'!$C$45/4)/'I8 Demand Data'!$C$40))),"-", IF(('I8 Demand Data'!$C$50/12)/'I8 Demand Data'!$C$40>=0.83,"12 CP",IF(('I8 Demand Data'!$C$45/4)/'I8 Demand Data'!$C$40>=0.83,"4 CP","1 CP"))) -> 12 CP
A15: NCP TEST RESULTS | C15: =IF(ISERROR(('I8 Demand Data'!$C$61/4)/'I8 Demand Data'!$C$55), "-", IF(('I8 Demand Data'!$C$61/4)/'I8 Demand Data'!$C$55>=0.83,"4 NCP","1 NCP")) -> 4 NCP
A17: Co-incident Peak | C17: Indicator
A18: 1 CP | C18: CP 1
A19: 4 CP | C19: CP 4
A20: 12 CP | C20: CP 12
A22: 4 NCP | C22: NCP 4
A23: 12 NCP | C23: NCP 12
A24: Non-co-incident Peak | C24: Indicator
A25: 1 NCP | C25: NCP 1
A26: 4 NCP | C26: NCP 4
A27: 12 NCP | C27: NCP 12
D28: For 2017 Year
D30: 1 | E30: 2 | F30: 3 | G30: 4 | H30: 5 | I30: 6 | J30: 7 | K30: 8 | L30: 9 | M30: 10 | N30: 11 | O30: 12 | P30: 13 | Q30: 14 | R30: 15 | S30: 16 | T30: 17 | U30: 18 | V30: 19 | W30: 20
A31: Customer Classes | C31: Total | D31: =IF('I2 LDC class'!$D$20="",'I2 LDC class'!$C$20,'I2 LDC class'!$D$20) -> Residential | E31: =IF('I2 LDC class'!$D$21="",'I2 LDC class'!$C$21,'I2 LDC class'!$D$21) -> GS <50 | F31: =IF('I2 LDC class'!$D$22="",'I2 LDC class'!$C$22,'I2 LDC class'!$D$22) -> GS 50 to 1,499 kW | G31: =IF('I2 LDC class'!$D$23="",'I2 LDC class'!$C$23,'I2 LDC class'!$D$23) -> GS 1,500 to 4,999 kW | H31: =IF('I2 LDC class'!$D$24="",'I2 LDC class'!$C$24,'I2 LDC class'!$D$24) -> GS >50-Intermediate | I31: =IF('I2 LDC class'!$D$25="",'I2 LDC class'!$C$25,'I2 LDC class'!$D$25) -> Large Use | J31: =IF('I2 LDC class'!$D$26="",'I2 LDC class'!$C$26,'I2 LDC class'!$D$26) -> Street Light | K31: =IF('I2 LDC class'!$D$27="",'I2 LDC class'!$C$27,'I2 LDC class'!$D$27) -> Sentinel | L31: =IF('I2 LDC class'!$D$28="",'I2 LDC class'!$C$28,'I2 LDC class'!$D$28) -> Unmetered Scattered Load | M31: =IF('I2 LDC class'!$D$29="",'I2 LDC class'!$C$29,'I2 LDC class'!$D$29) -> Embedded Distributor | N31: =IF('I2 LDC class'!$D$30="",'I2 LDC class'!$C$30,'I2 LDC class'!$D$30) -> Standby Power GS 50 to 1,499 kW | O31: =IF('I2 LDC class'!$D$31="",'I2 LDC class'!$C$31,'I2 LDC class'!$D$31) -> Standby Power GS 1,500 to 4,999 kW | P31: =IF('I2 LDC class'!$D$32="",'I2 LDC class'!$C$32,'I2 LDC class'!$D$32) -> Standby Power Large Use | Q31: =IF('I2 LDC class'!$D$33="",'I2 LDC class'!$C$33,'I2 LDC class'!$D$33) -> Rate class 3 | R31: =IF('I2 LDC class'!$D$34="",'I2 LDC class'!$C$34,'I2 LDC class'!$D$34) -> Rate class 4 | S31: =IF('I2 LDC class'!$D$35="",'I2 LDC class'!$C$35,'I2 LDC class'!$D$35) -> Rate class 5 | T31: =IF('I2 LDC class'!$D$36="",'I2 LDC class'!$C$36,'I2 LDC class'!$D$36) -> Rate class 6 | U31: =IF('I2 LDC class'!$D$37="",'I2 LDC class'!$C$37,'I2 LDC class'!$D$37) -> Rate class 7 | V31: =IF('I2 LDC class'!$D$38="",'I2 LDC class'!$C$38,'I2 LDC class'!$D$38) -> Rate class 8 | W31: =IF('I2 LDC class'!$D$39="",'I2 LDC class'!$C$39,'I2 LDC class'!$D$39) -> Rate class 9
A35: CO-INCIDENT PEAK
A37: 1 CP
A38: Transformation CP | B38: TCP1 | C38: =SUM(D38:W38) -> 1270901.303 | D38: 433446.4751 | E38: 151152.5948 | F38: 500092.8166 | G38: 107082.4818 | I38: 77391.38253 | J38: 0 | K38: 0 | L38: 1735.552491 | O38: 0
A39: Bulk Delivery CP | B39: BCP1 | C39: =SUM(D39:W39) -> 1270901.303 | D39: 433446.4751 | E39: 151152.5948 | F39: 500092.8166 | G39: 107082.4818 | H39: 0 | I39: 77391.38253 | J39: 0 | K39: 0 | L39: 1735.552491 | M39: 0 | N39: 0 | O39: 0
A40: Total Sytem CP | B40: DCP1 | C40: =SUM(D40:W40) -> 1270901.303 | D40: 433446.4751 | E40: 151152.5948 | F40: 500092.8166 | G40: 107082.4818 | H40: 0 | I40: 77391.38253 | J40: 0 | K40: 0 | L40: 1735.552491 | M40: 0 | N40: 0 | O40: 0
A42: 4 CP
A43: Transformation CP | B43: TCP4 | C43: =SUM(D43:W43) -> 4962106.408 | D43: 1778342.527 | E43: 484980.0174 | F43: 1890013.953 | G43: 468304.4273 | I43: 315702.5282 | J43: 17375.50948 | K43: 14.06340194 | L43: 7373.382534 | O43: 0
A44: Bulk Delivery CP | B44: BCP4 | C44: =SUM(D44:W44) -> 4962106.408 | D44: 1778342.527 | E44: 484980.0174 | F44: 1890013.953 | G44: 468304.4273 | H44: 0 | I44: 315702.5282 | J44: 17375.50948 | K44: 14.06340194 | L44: 7373.382534 | M44: 0 | N44: 0 | O44: 0
A45: Total Sytem CP | B45: DCP4 | C45: =SUM(D45:W45) -> 4962106.408 | D45: 1778342.527 | E45: 484980.0174 | F45: 1890013.953 | G45: 468304.4273 | H45: 0 | I45: 315702.5282 | J45: 17375.50948 | K45: 14.06340194 | L45: 7373.382534 | M45: 0 | N45: 0 | O45: 0
A47: 12 CP
A48: Transformation CP | B48: TCP12 | C48: =SUM(D48:W48) -> 13737495.44 | D48: 4668144.548 | E48: 1371988.082 | F48: 5281389.471 | G48: 1395029.935 | I48: 947866.0117 | J48: 50282.28166 | K48: 44.95022771 | L48: 22520.39782 | O48: 229.76
A49: Bulk Delivery CP | B49: BCP12 | C49: =SUM(D49:W49) -> 13737495.44 | D49: 4668144.548 | E49: 1371988.082 | F49: 5281389.471 | G49: 1395029.935 | H49: 0 | I49: 947866.0117 | J49: 50282.28166 | K49: 44.95022771 | L49: 22520.39782 | M49: 0 | N49: 0 | O49: 229.76
A50: Total Sytem CP | B50: DCP12 | C50: =SUM(D50:W50) -> 13737495.44 | D50: 4668144.548 | E50: 1371988.082 | F50: 5281389.471 | G50: 1395029.935 | H50: 0 | I50: 947866.0117 | J50: 50282.28166 | K50: 44.95022771 | L50: 22520.39782 | M50: 0 | N50: 0 | O50: 229.76
A52: NON CO_INCIDENT PEAK
A54: 1 NCP
A55: Classification NCP from Load Data Provider | B55: DNCP1 | C55: =SUM(D55:W55) -> 1446037.988 | D55: 493271.5341 | E55: 151152.5948 | F55: 519528.1431 | G55: 159389.5448 | I55: 105423.3687 | J55: 13837.4243 | K55: 12.91773166 | L55: 2270.460155 | O55: 1152
A56: Primary NCP | B56: PNCP1 | C56: =SUM(D56:W56) -> 1446037.988 | D56: 493271.5341 | E56: 151152.5948 | F56: 519528.1431 | G56: 159389.5448 | I56: 105423.3687 | J56: 13837.4243 | K56: 12.91773166 | L56: 2270.460155 | O56: 1152
A57: Line Transformer NCP | B57: LTNCP1 | C57: =SUM(D57:W57) -> 1232894.356 | D57: 493271.5341 | E57: 151152.5948 | F57: 451989.5661 | G57: 70131.14187 | I57: 49549.16035 | J57: 13837.4243 | K57: 12.91773166 | L57: 2270.460155 | M57: 0 | N57: 0 | O57: 679.5563506
A58: Secondary NCP | B58: SNCP1 | C58: =SUM(D58:W58) -> 920309.4563 | D58: 493271.5341 | E58: 151152.5948 | F58: 259764.5252 | J58: 13837.4243 | K58: 12.91773166 | L58: 2270.460155 | M58: 0 | N58: 0
A60: 4 NCP
A61: Classification NCP from Load Data Provider | B61: DNCP4 | C61: =SUM(D61:W61) -> 5618628.228 | D61: 1945514.854 | E61: 569447.601 | F61: 2017404.013 | G61: 614594.9279 | I61: 405372.8769 | J61: 53481.59079 | K61: 49.81110802 | L61: 8926.712051 | O61: 3835.84
A62: Primary NCP | B62: PNCP4 | C62: =SUM(D62:W62) -> 5618628.228 | D62: 1945514.854 | E62: 569447.601 | F62: 2017404.013 | G62: 614594.9279 | I62: 405372.8769 | J62: 53481.59079 | K62: 49.81110802 | L62: 8926.712051 | O62: 3835.84
A63: Line Transformer NCP | B63: LTNCP4 | C63: =SUM(D63:W63) -> 4830068.059 | D63: 1945514.854 | E63: 569447.601 | F63: 1789437.122 | G63: 270421.6404 | I63: 190525.6149 | J63: 53481.59079 | K63: 49.81110802 | L63: 8926.712051 | M63: 0 | N63: 0 | O63: 2263.112965
A64: Secondary NCP | B64: SNCP4 | C64: =SUM(D64:W64) -> 3586123.026 | D64: 1945514.854 | E64: 569447.601 | F64: 1008702.456 | J64: 53481.59079 | K64: 49.81110802 | L64: 8926.712051 | M64: 0 | N64: 0
A66: 12 NCP
A67: Classification NCP from Load Data Provider | B67: DNCP12 | C67: =SUM(D67:W67) -> 15541461.18 | D67: 5396319.65 | E67: 1558335.843 | F67: 5661573.395 | G67: 1668863.079 | I67: 1092326.016 | J67: 130316.9281 | K67: 121.7247657 | L67: 25947.5821 | O67: 7656.96
A68: Primary NCP | B68: PNCP12 | C68: =SUM(D68:W68) -> 15541461.18 | D68: 5396319.65 | E68: 1558335.843 | F68: 5661573.395 | G68: 1668863.079 | I68: 1092326.016 | J68: 130316.9281 | K68: 121.7247657 | L68: 25947.5821 | O68: 7656.96
A69: Line Transformer NCP | B69: LTNCP12 | C69: =SUM(D69:W69) -> 13288821.47 | D69: 5396319.65 | E69: 1558335.843 | F69: 4925568.808 | G69: 734299.97 | I69: 513393.5164 | J69: 130316.9281 | K69: 121.7247657 | L69: 25947.5821 | M69: 0 | N69: 0 | O69: 4517.446828
A70: Secondary NCP | B70: SNCP12 | C70: =SUM(D70:W70) -> 9941828.876 | D70: 5396319.65 | E70: 1558335.843 | F70: 2830787.149 | J70: 130316.9281 | K70: 121.7247657 | L70: 25947.5821 | M70: 0 | N70: 0

Sheet I9 Direct Allocation
A4: ='I1 Intro'!C11 -> EB-2015-0004
A5: ="Sheet I9 Direct Allocation Worksheet - "& 'I2 LDC class'!$C$17 -> Sheet I9 Direct Allocation Worksheet -
E19: 1 | F19: 2 | G19: 3 | H19: 4 | I19: 5 | J19: 6 | K19: 7 | L19: 8 | M19: 9 | N19: 10 | O19: 11 | P19: 12 | Q19: 13 | R19: 14 | S19: 15 | T19: 16 | U19: 17 | V19: 18 | W19: 19 | X19: 20 | AA19: Demand Related | AY19: Customer Related
A20: ='I3 TB Data'!A19:B19 -> USoA Account # | B20: ='I3 TB Data'!B19:D19 -> Accounts | C20: ='I3 TB Data'!G19 -> Direct Allocation | D20: Total Allocated to Rate Classifications? | E20: ='O4 Summary by Class & Accounts'!E18 -> Residential | F20: ='O4 Summary by Class & Accounts'!F18 -> GS <50 | G20: ='O4 Summary by Class & Accounts'!G18 -> GS 50 to 1,499 kW | H20: ='O4 Summary by Class & Accounts'!H18 -> GS 1,500 to 4,999 kW | I20: ='O4 Summary by Class & Accounts'!I18 -> GS >50-Intermediate | J20: ='O4 Summary by Class & Accounts'!J18 -> Large Use | K20: ='O4 Summary by Class & Accounts'!K18 -> Street Light | L20: ='O4 Summary by Class & Accounts'!L18 -> Sentinel | M20: ='O4 Summary by Class & Accounts'!M18 -> Unmetered Scattered Load | N20: ='O4 Summary by Class & Accounts'!N18 -> Embedded Distributor | O20: ='O4 Summary by Class & Accounts'!O18 -> Standby Power GS 50 to 1,499 kW | P20: ='O4 Summary by Class & Accounts'!P18 -> Standby Power GS 1,500 to 4,999 kW | Q20: ='O4 Summary by Class & Accounts'!Q18 -> Standby Power Large Use | R20: ='O4 Summary by Class & Accounts'!R18 -> Rate class 3 | S20: ='O4 Summary by Class & Accounts'!S18 -> Rate class 4 | T20: ='O4 Summary by Class & Accounts'!T18 -> Rate class 5 | U20: ='O4 Summary by Class & Accounts'!U18 -> Rate class 6 | V20: ='O4 Summary by Class & Accounts'!V18 -> Rate class 7 | W20: ='O4 Summary by Class & Accounts'!W18 -> Rate class 8 | X20: ='O4 Summary by Class & Accounts'!X18 -> Rate class 9 | AA20: =A20 -> USoA Account # | AB20: =B20 -> Accounts | AC20: =E20 -> Residential | AD20: GS <50 | AE20: GS 50 to 1,499 kW | AF20: GS 1,500 to 4,999 kW | AG20: GS >50-Intermediate | AH20: Large Use | AI20: Street Light | AJ20: Sentinel | AK20: Unmetered Scattered Load | AL20: Embedded Distributor | AM20: Standby Power GS 50 to 1,499 kW | AN20: Standby Power GS 1,500 to 4,999 kW | AO20: Standby Power Large Use | AP20: Rate class 3 | AQ20: Rate class 4 | AR20: Rate class 5 | AS20: Rate class 6 | AT20: Rate class 7 | AU20: Rate class 8 | AV20: Rate class 9 | AY20: =AA20 -> USoA Account # | AZ20: =AB20 -> Accounts | BA20: =AC20 -> Residential | BB20: =AD20 -> GS <50 | BC20: =AE20 -> GS 50 to 1,499 kW | BD20: =AF20 -> GS 1,500 to 4,999 kW | BE20: =AG20 -> GS >50-Intermediate | BF20: =AH20 -> Large Use | BG20: =AI20 -> Street Light | BH20: =AJ20 -> Sentinel | BI20: =AK20 -> Unmetered Scattered Load | BJ20: =AL20 -> Embedded Distributor | BK20: =AM20 -> Standby Power GS 50 to 1,499 kW | BL20: =AN20 -> Standby Power GS 1,500 to 4,999 kW | BM20: =AO20 -> Standby Power Large Use | BN20: =AP20 -> Rate class 3 | BO20: =AQ20 -> Rate class 4 | BP20: =AR20 -> Rate class 5 | BQ20: =AS20 -> Rate class 6 | BR20: =AT20 -> Rate class 7 | BS20: =AU20 -> Rate class 8 | BT20: =AV20 -> Rate class 9
A23: ='I3 TB Data'!A171:B171 -> 1995 | B23: ='I3 TB Data'!B171:D171 -> Contributions and Grants - Credit | C23: ='I3 TB Data'!G171 -> 0 | D23: =IF(SUM(E23:X23)<>C23,"No","Yes") -> Yes
A27: ='I3 TB Data'!A133:B133 -> 1805 | B27: ='I3 TB Data'!B133 -> Land | C27: ='I3 TB Data'!G133 -> 0 | D27: =IF(SUM(E27:X27)<>C27,"No","Yes") -> Yes | AA27: =A27 -> 1805 | AB27: =B27 -> Land | AC27: =IF(ISERROR(E27*(1-VLOOKUP($A27, 'E1 Categorization'!$A$32:$E$124, 5,0))), E27*0.5, E27*(1-VLOOKUP($A27, 'E1 Categorization'!$A$32:$E$124, 5,0))) -> 0 | AD27: =IF(ISERROR(F27*(1-VLOOKUP($A27, 'E1 Categorization'!$A$32:$E$124, 5,0))), F27*0.5, F27*(1-VLOOKUP($A27, 'E1 Categorization'!$A$32:$E$124, 5,0))) -> 0 | AE27: =IF(ISERROR(G27*(1-VLOOKUP($A27, 'E1 Categorization'!$A$32:$E$124, 5,0))), G27*0.5, G27*(1-VLOOKUP($A27, 'E1 Categorization'!$A$32:$E$124, 5,0))) -> 0 | AF27: =IF(ISERROR(H27*(1-VLOOKUP($A27, 'E1 Categorization'!$A$32:$E$124, 5,0))), H27*0.5, H27*(1-VLOOKUP($A27, 'E1 Categorization'!$A$32:$E$124, 5,0))) -> 0 | AG27: =IF(ISERROR(I27*(1-VLOOKUP($A27, 'E1 Categorization'!$A$32:$E$124, 5,0))), I27*0.5, I27*(1-VLOOKUP($A27, 'E1 Categorization'!$A$32:$E$124, 5,0))) -> 0 | AH27: =IF(ISERROR(J27*(1-VLOOKUP($A27, 'E1 Categorization'!$A$32:$E$124, 5,0))), J27*0.5, J27*(1-VLOOKUP($A27, 'E1 Categorization'!$A$32:$E$124, 5,0))) -> 0 | AI27: =IF(ISERROR(K27*(1-VLOOKUP($A27, 'E1 Categorization'!$A$32:$E$124, 5,0))), K27*0.5, K27*(1-VLOOKUP($A27, 'E1 Categorization'!$A$32:$E$124, 5,0))) -> 0 | AJ27: =IF(ISERROR(L27*(1-VLOOKUP($A27, 'E1 Categorization'!$A$32:$E$124, 5,0))), L27*0.5, L27*(1-VLOOKUP($A27, 'E1 Categorization'!$A$32:$E$124, 5,0))) -> 0 | AK27: =IF(ISERROR(M27*(1-VLOOKUP($A27, 'E1 Categorization'!$A$32:$E$124, 5,0))), M27*0.5, M27*(1-VLOOKUP($A27, 'E1 Categorization'!$A$32:$E$124, 5,0))) -> 0 | AL27: =IF(ISERROR(N27*(1-VLOOKUP($A27, 'E1 Categorization'!$A$32:$E$124, 5,0))), N27*0.5, N27*(1-VLOOKUP($A27, 'E1 Categorization'!$A$32:$E$124, 5,0))) -> 0 | AM27: =IF(ISERROR(O27*(1-VLOOKUP($A27, 'E1 Categorization'!$A$32:$E$124, 5,0))), O27*0.5, O27*(1-VLOOKUP($A27, 'E1 Categorization'!$A$32:$E$124, 5,0))) -> 0 | AN27: =IF(ISERROR(P27*(1-VLOOKUP($A27, 'E1 Categorization'!$A$32:$E$124, 5,0))), P27*0.5, P27*(1-VLOOKUP($A27, 'E1 Categorization'!$A$32:$E$124, 5,0))) -> 0 | AO27: =IF(ISERROR(Q27*(1-VLOOKUP($A27, 'E1 Categorization'!$A$32:$E$124, 5,0))), Q27*0.5, Q27*(1-VLOOKUP($A27, 'E1 Categorization'!$A$32:$E$124, 5,0))) -> 0 | AP27: =IF(ISERROR(R27*(1-VLOOKUP($A27, 'E1 Categorization'!$A$32:$E$124, 5,0))), R27*0.5, R27*(1-VLOOKUP($A27, 'E1 Categorization'!$A$32:$E$124, 5,0))) -> 0 | AQ27: =IF(ISERROR(S27*(1-VLOOKUP($A27, 'E1 Categorization'!$A$32:$E$124, 5,0))), S27*0.5, S27*(1-VLOOKUP($A27, 'E1 Categorization'!$A$32:$E$124, 5,0))) -> 0 | AR27: =IF(ISERROR(T27*(1-VLOOKUP($A27, 'E1 Categorization'!$A$32:$E$124, 5,0))), T27*0.5, T27*(1-VLOOKUP($A27, 'E1 Categorization'!$A$32:$E$124, 5,0))) -> 0 | AS27: =IF(ISERROR(U27*(1-VLOOKUP($A27, 'E1 Categorization'!$A$32:$E$124, 5,0))), U27*0.5, U27*(1-VLOOKUP($A27, 'E1 Categorization'!$A$32:$E$124, 5,0))) -> 0 | AT27: =IF(ISERROR(V27*(1-VLOOKUP($A27, 'E1 Categorization'!$A$32:$E$124, 5,0))), V27*0.5, V27*(1-VLOOKUP($A27, 'E1 Categorization'!$A$32:$E$124, 5,0))) -> 0 | AU27: =IF(ISERROR(W27*(1-VLOOKUP($A27, 'E1 Categorization'!$A$32:$E$124, 5,0))), W27*0.5, W27*(1-VLOOKUP($A27, 'E1 Categorization'!$A$32:$E$124, 5,0))) -> 0 | AV27: =IF(ISERROR(X27*(1-VLOOKUP($A27, 'E1 Categorization'!$A$32:$E$124, 5,0))), X27*0.5, X27*(1-VLOOKUP($A27, 'E1 Categorization'!$A$32:$E$124, 5,0))) -> 0 | AY27: =AA27 -> 1805 | AZ27: =AB27 -> Land | BA27: =IF(ISERROR(E27*(VLOOKUP($A27, 'E1 Categorization'!$A$32:$E$124, 5,0))), E27*0.5, E27*(VLOOKUP($A27, 'E1 Categorization'!$A$32:$E$124, 5,0))) -> 0 | BB27: =IF(ISERROR(F27*(VLOOKUP($A27, 'E1 Categorization'!$A$32:$E$124, 5,0))), F27*0.5, F27*(VLOOKUP($A27, 'E1 Categorization'!$A$32:$E$124, 5,0))) -> 0 | BC27: =IF(ISERROR(G27*(VLOOKUP($A27, 'E1 Categorization'!$A$32:$E$124, 5,0))), G27*0.5, G27*(VLOOKUP($A27, 'E1 Categorization'!$A$32:$E$124, 5,0))) -> 0 | BD27: =IF(ISERROR(H27*(VLOOKUP($A27, 'E1 Categorization'!$A$32:$E$124, 5,0))), H27*0.5, H27*(VLOOKUP($A27, 'E1 Categorization'!$A$32:$E$124, 5,0))) -> 0 | BE27: =IF(ISERROR(I27*(VLOOKUP($A27, 'E1 Categorization'!$A$32:$E$124, 5,0))), I27*0.5, I27*(VLOOKUP($A27, 'E1 Categorization'!$A$32:$E$124, 5,0))) -> 0 | BF27: =IF(ISERROR(J27*(VLOOKUP($A27, 'E1 Categorization'!$A$32:$E$124, 5,0))), J27*0.5, J27*(VLOOKUP($A27, 'E1 Categorization'!$A$32:$E$124, 5,0))) -> 0 | BG27: =IF(ISERROR(K27*(VLOOKUP($A27, 'E1 Categorization'!$A$32:$E$124, 5,0))), K27*0.5, K27*(VLOOKUP($A27, 'E1 Categorization'!$A$32:$E$124, 5,0))) -> 0 | BH27: =IF(ISERROR(L27*(VLOOKUP($A27, 'E1 Categorization'!$A$32:$E$124, 5,0))), L27*0.5, L27*(VLOOKUP($A27, 'E1 Categorization'!$A$32:$E$124, 5,0))) -> 0 | BI27: =IF(ISERROR(M27*(VLOOKUP($A27, 'E1 Categorization'!$A$32:$E$124, 5,0))), M27*0.5, M27*(VLOOKUP($A27, 'E1 Categorization'!$A$32:$E$124, 5,0))) -> 0 | BJ27: =IF(ISERROR(N27*(VLOOKUP($A27, 'E1 Categorization'!$A$32:$E$124, 5,0))), N27*0.5, N27*(VLOOKUP($A27, 'E1 Categorization'!$A$32:$E$124, 5,0))) -> 0 | BK27: =IF(ISERROR(O27*(VLOOKUP($A27, 'E1 Categorization'!$A$32:$E$124, 5,0))), O27*0.5, O27*(VLOOKUP($A27, 'E1 Categorization'!$A$32:$E$124, 5,0))) -> 0 | BL27: =IF(ISERROR(P27*(VLOOKUP($A27, 'E1 Categorization'!$A$32:$E$124, 5,0))), P27*0.5, P27*(VLOOKUP($A27, 'E1 Categorization'!$A$32:$E$124, 5,0))) -> 0 | BM27: =IF(ISERROR(Q27*(VLOOKUP($A27, 'E1 Categorization'!$A$32:$E$124, 5,0))), Q27*0.5, Q27*(VLOOKUP($A27, 'E1 Categorization'!$A$32:$E$124, 5,0))) -> 0 | BN27: =IF(ISERROR(R27*(VLOOKUP($A27, 'E1 Categorization'!$A$32:$E$124, 5,0))), R27*0.5, R27*(VLOOKUP($A27, 'E1 Categorization'!$A$32:$E$124, 5,0))) -> 0 | BO27: =IF(ISERROR(S27*(VLOOKUP($A27, 'E1 Categorization'!$A$32:$E$124, 5,0))), S27*0.5, S27*(VLOOKUP($A27, 'E1 Categorization'!$A$32:$E$124, 5,0))) -> 0 | BP27: =IF(ISERROR(T27*(VLOOKUP($A27, 'E1 Categorization'!$A$32:$E$124, 5,0))), T27*0.5, T27*(VLOOKUP($A27, 'E1 Categorization'!$A$32:$E$124, 5,0))) -> 0 | BQ27: =IF(ISERROR(U27*(VLOOKUP($A27, 'E1 Categorization'!$A$32:$E$124, 5,0))), U27*0.5, U27*(VLOOKUP($A27, 'E1 Categorization'!$A$32:$E$124, 5,0))) -> 0 | BR27: =IF(ISERROR(V27*(VLOOKUP($A27, 'E1 Categorization'!$A$32:$E$124, 5,0))), V27*0.5, V27*(VLOOKUP($A27, 'E1 Categorization'!$A$32:$E$124, 5,0))) -> 0 | BS27: =IF(ISERROR(W27*(VLOOKUP($A27, 'E1 Categorization'!$A$32:$E$124, 5,0))), W27*0.5, W27*(VLOOKUP($A27, 'E1 Categorization'!$A$32:$E$124, 5,0))) -> 0 | BT27: =IF(ISERROR(X27*(VLOOKUP($A27, 'E1 Categorization'!$A$32:$E$124, 5,0))), X27*0.5, X27*(VLOOKUP($A27, 'E1 Categorization'!$A$32:$E$124, 5,0))) -> 0
A28: ='I3 TB Data'!A134:B134 -> 1806 | B28: ='I3 TB Data'!B134 -> Land Rights | C28: ='I3 TB Data'!G134 -> 0 | D28: Yes | AA28: =A28 -> 1806 | AB28: =B28 -> Land Rights | AC28: =IF(ISERROR(E28*(1-VLOOKUP($A28, 'E1 Categorization'!$A$32:$E$124, 5,0))), E28*0.5, E28*(1-VLOOKUP($A28, 'E1 Categorization'!$A$32:$E$124, 5,0))) -> 0 | AD28: =IF(ISERROR(F28*(1-VLOOKUP($A28, 'E1 Categorization'!$A$32:$E$124, 5,0))), F28*0.5, F28*(1-VLOOKUP($A28, 'E1 Categorization'!$A$32:$E$124, 5,0))) -> 0 | AE28: =IF(ISERROR(G28*(1-VLOOKUP($A28, 'E1 Categorization'!$A$32:$E$124, 5,0))), G28*0.5, G28*(1-VLOOKUP($A28, 'E1 Categorization'!$A$32:$E$124, 5,0))) -> 0 | AF28: =IF(ISERROR(H28*(1-VLOOKUP($A28, 'E1 Categorization'!$A$32:$E$124, 5,0))), H28*0.5, H28*(1-VLOOKUP($A28, 'E1 Categorization'!$A$32:$E$124, 5,0))) -> 0 | AG28: =IF(ISERROR(I28*(1-VLOOKUP($A28, 'E1 Categorization'!$A$32:$E$124, 5,0))), I28*0.5, I28*(1-VLOOKUP($A28, 'E1 Categorization'!$A$32:$E$124, 5,0))) -> 0 | AH28: =IF(ISERROR(J28*(1-VLOOKUP($A28, 'E1 Categorization'!$A$32:$E$124, 5,0))), J28*0.5, J28*(1-VLOOKUP($A28, 'E1 Categorization'!$A$32:$E$124, 5,0))) -> 0 | AI28: =IF(ISERROR(K28*(1-VLOOKUP($A28, 'E1 Categorization'!$A$32:$E$124, 5,0))), K28*0.5, K28*(1-VLOOKUP($A28, 'E1 Categorization'!$A$32:$E$124, 5,0))) -> 0 | AJ28: =IF(ISERROR(L28*(1-VLOOKUP($A28, 'E1 Categorization'!$A$32:$E$124, 5,0))), L28*0.5, L28*(1-VLOOKUP($A28, 'E1 Categorization'!$A$32:$E$124, 5,0))) -> 0 | AK28: =IF(ISERROR(M28*(1-VLOOKUP($A28, 'E1 Categorization'!$A$32:$E$124, 5,0))), M28*0.5, M28*(1-VLOOKUP($A28, 'E1 Categorization'!$A$32:$E$124, 5,0))) -> 0 | AL28: =IF(ISERROR(N28*(1-VLOOKUP($A28, 'E1 Categorization'!$A$32:$E$124, 5,0))), N28*0.5, N28*(1-VLOOKUP($A28, 'E1 Categorization'!$A$32:$E$124, 5,0))) -> 0 | AM28: =IF(ISERROR(O28*(1-VLOOKUP($A28, 'E1 Categorization'!$A$32:$E$124, 5,0))), O28*0.5, O28*(1-VLOOKUP($A28, 'E1 Categorization'!$A$32:$E$124, 5,0))) -> 0 | AN28: =IF(ISERROR(P28*(1-VLOOKUP($A28, 'E1 Categorization'!$A$32:$E$124, 5,0))), P28*0.5, P28*(1-VLOOKUP($A28, 'E1 Categorization'!$A$32:$E$124, 5,0))) -> 0 | AO28: =IF(ISERROR(Q28*(1-VLOOKUP($A28, 'E1 Categorization'!$A$32:$E$124, 5,0))), Q28*0.5, Q28*(1-VLOOKUP($A28, 'E1 Categorization'!$A$32:$E$124, 5,0))) -> 0 | AP28: =IF(ISERROR(R28*(1-VLOOKUP($A28, 'E1 Categorization'!$A$32:$E$124, 5,0))), R28*0.5, R28*(1-VLOOKUP($A28, 'E1 Categorization'!$A$32:$E$124, 5,0))) -> 0 | AQ28: =IF(ISERROR(S28*(1-VLOOKUP($A28, 'E1 Categorization'!$A$32:$E$124, 5,0))), S28*0.5, S28*(1-VLOOKUP($A28, 'E1 Categorization'!$A$32:$E$124, 5,0))) -> 0 | AR28: =IF(ISERROR(T28*(1-VLOOKUP($A28, 'E1 Categorization'!$A$32:$E$124, 5,0))), T28*0.5, T28*(1-VLOOKUP($A28, 'E1 Categorization'!$A$32:$E$124, 5,0))) -> 0 | AS28: =IF(ISERROR(U28*(1-VLOOKUP($A28, 'E1 Categorization'!$A$32:$E$124, 5,0))), U28*0.5, U28*(1-VLOOKUP($A28, 'E1 Categorization'!$A$32:$E$124, 5,0))) -> 0 | AT28: =IF(ISERROR(V28*(1-VLOOKUP($A28, 'E1 Categorization'!$A$32:$E$124, 5,0))), V28*0.5, V28*(1-VLOOKUP($A28, 'E1 Categorization'!$A$32:$E$124, 5,0))) -> 0 | AU28: =IF(ISERROR(W28*(1-VLOOKUP($A28, 'E1 Categorization'!$A$32:$E$124, 5,0))), W28*0.5, W28*(1-VLOOKUP($A28, 'E1 Categorization'!$A$32:$E$124, 5,0))) -> 0 | AV28: =IF(ISERROR(X28*(1-VLOOKUP($A28, 'E1 Categorization'!$A$32:$E$124, 5,0))), X28*0.5, X28*(1-VLOOKUP($A28, 'E1 Categorization'!$A$32:$E$124, 5,0))) -> 0 | AY28: =AA28 -> 1806 | AZ28: =AB28 -> Land Rights | BA28: =IF(ISERROR(E28*(VLOOKUP($A28, 'E1 Categorization'!$A$32:$E$124, 5,0))), E28*0.5, E28*(VLOOKUP($A28, 'E1 Categorization'!$A$32:$E$124, 5,0))) -> 0 | BB28: =IF(ISERROR(F28*(VLOOKUP($A28, 'E1 Categorization'!$A$32:$E$124, 5,0))), F28*0.5, F28*(VLOOKUP($A28, 'E1 Categorization'!$A$32:$E$124, 5,0))) -> 0 | BC28: =IF(ISERROR(G28*(VLOOKUP($A28, 'E1 Categorization'!$A$32:$E$124, 5,0))), G28*0.5, G28*(VLOOKUP($A28, 'E1 Categorization'!$A$32:$E$124, 5,0))) -> 0 | BD28: =IF(ISERROR(H28*(VLOOKUP($A28, 'E1 Categorization'!$A$32:$E$124, 5,0))), H28*0.5, H28*(VLOOKUP($A28, 'E1 Categorization'!$A$32:$E$124, 5,0))) -> 0 | BE28: =IF(ISERROR(I28*(VLOOKUP($A28, 'E1 Categorization'!$A$32:$E$124, 5,0))), I28*0.5, I28*(VLOOKUP($A28, 'E1 Categorization'!$A$32:$E$124, 5,0))) -> 0 | BF28: =IF(ISERROR(J28*(VLOOKUP($A28, 'E1 Categorization'!$A$32:$E$124, 5,0))), J28*0.5, J28*(VLOOKUP($A28, 'E1 Categorization'!$A$32:$E$124, 5,0))) -> 0 | BG28: =IF(ISERROR(K28*(VLOOKUP($A28, 'E1 Categorization'!$A$32:$E$124, 5,0))), K28*0.5, K28*(VLOOKUP($A28, 'E1 Categorization'!$A$32:$E$124, 5,0))) -> 0 | BH28: =IF(ISERROR(L28*(VLOOKUP($A28, 'E1 Categorization'!$A$32:$E$124, 5,0))), L28*0.5, L28*(VLOOKUP($A28, 'E1 Categorization'!$A$32:$E$124, 5,0))) -> 0 | BI28: =IF(ISERROR(M28*(VLOOKUP($A28, 'E1 Categorization'!$A$32:$E$124, 5,0))), M28*0.5, M28*(VLOOKUP($A28, 'E1 Categorization'!$A$32:$E$124, 5,0))) -> 0 | BJ28: =IF(ISERROR(N28*(VLOOKUP($A28, 'E1 Categorization'!$A$32:$E$124, 5,0))), N28*0.5, N28*(VLOOKUP($A28, 'E1 Categorization'!$A$32:$E$124, 5,0))) -> 0 | BK28: =IF(ISERROR(O28*(VLOOKUP($A28, 'E1 Categorization'!$A$32:$E$124, 5,0))), O28*0.5, O28*(VLOOKUP($A28, 'E1 Categorization'!$A$32:$E$124, 5,0))) -> 0 | BL28: =IF(ISERROR(P28*(VLOOKUP($A28, 'E1 Categorization'!$A$32:$E$124, 5,0))), P28*0.5, P28*(VLOOKUP($A28, 'E1 Categorization'!$A$32:$E$124, 5,0))) -> 0 | BM28: =IF(ISERROR(Q28*(VLOOKUP($A28, 'E1 Categorization'!$A$32:$E$124, 5,0))), Q28*0.5, Q28*(VLOOKUP($A28, 'E1 Categorization'!$A$32:$E$124, 5,0))) -> 0 | BN28: =IF(ISERROR(R28*(VLOOKUP($A28, 'E1 Categorization'!$A$32:$E$124, 5,0))), R28*0.5, R28*(VLOOKUP($A28, 'E1 Categorization'!$A$32:$E$124, 5,0))) -> 0 | BO28: =IF(ISERROR(S28*(VLOOKUP($A28, 'E1 Categorization'!$A$32:$E$124, 5,0))), S28*0.5, S28*(VLOOKUP($A28, 'E1 Categorization'!$A$32:$E$124, 5,0))) -> 0 | BP28: =IF(ISERROR(T28*(VLOOKUP($A28, 'E1 Categorization'!$A$32:$E$124, 5,0))), T28*0.5, T28*(VLOOKUP($A28, 'E1 Categorization'!$A$32:$E$124, 5,0))) -> 0 | BQ28: =IF(ISERROR(U28*(VLOOKUP($A28, 'E1 Categorization'!$A$32:$E$124, 5,0))), U28*0.5, U28*(VLOOKUP($A28, 'E1 Categorization'!$A$32:$E$124, 5,0))) -> 0 | BR28: =IF(ISERROR(V28*(VLOOKUP($A28, 'E1 Categorization'!$A$32:$E$124, 5,0))), V28*0.5, V28*(VLOOKUP($A28, 'E1 Categorization'!$A$32:$E$124, 5,0))) -> 0 | BS28: =IF(ISERROR(W28*(VLOOKUP($A28, 'E1 Categorization'!$A$32:$E$124, 5,0))), W28*0.5, W28*(VLOOKUP($A28, 'E1 Categorization'!$A$32:$E$124, 5,0))) -> 0 | BT28: =IF(ISERROR(X28*(VLOOKUP($A28, 'E1 Categorization'!$A$32:$E$124, 5,0))), X28*0.5, X28*(VLOOKUP($A28, 'E1 Categorization'!$A$32:$E$124, 5,0))) -> 0
A29: ='I3 TB Data'!A135:B135 -> 1808 | B29: ='I3 TB Data'!B135 -> Buildings and Fixtures | C29: ='I3 TB Data'!G135 -> 0 | D29: Yes | AA29: 1808 | AB29: Buildings and Fixtures | AC29: =IF(ISERROR(E29*(1-VLOOKUP($A29, 'E1 Categorization'!$A$32:$E$124, 5,0))), E29*0.5, E29*(1-VLOOKUP($A29, 'E1 Categorization'!$A$32:$E$124, 5,0))) -> 0 | AD29: =IF(ISERROR(F29*(1-VLOOKUP($A29, 'E1 Categorization'!$A$32:$E$124, 5,0))), F29*0.5, F29*(1-VLOOKUP($A29, 'E1 Categorization'!$A$32:$E$124, 5,0))) -> 0 | AE29: =IF(ISERROR(G29*(1-VLOOKUP($A29, 'E1 Categorization'!$A$32:$E$124, 5,0))), G29*0.5, G29*(1-VLOOKUP($A29, 'E1 Categorization'!$A$32:$E$124, 5,0))) -> 0 | AF29: =IF(ISERROR(H29*(1-VLOOKUP($A29, 'E1 Categorization'!$A$32:$E$124, 5,0))), H29*0.5, H29*(1-VLOOKUP($A29, 'E1 Categorization'!$A$32:$E$124, 5,0))) -> 0 | AG29: =IF(ISERROR(I29*(1-VLOOKUP($A29, 'E1 Categorization'!$A$32:$E$124, 5,0))), I29*0.5, I29*(1-VLOOKUP($A29, 'E1 Categorization'!$A$32:$E$124, 5,0))) -> 0 | AH29: =IF(ISERROR(J29*(1-VLOOKUP($A29, 'E1 Categorization'!$A$32:$E$124, 5,0))), J29*0.5, J29*(1-VLOOKUP($A29, 'E1 Categorization'!$A$32:$E$124, 5,0))) -> 0 | AI29: =IF(ISERROR(K29*(1-VLOOKUP($A29, 'E1 Categorization'!$A$32:$E$124, 5,0))), K29*0.5, K29*(1-VLOOKUP($A29, 'E1 Categorization'!$A$32:$E$124, 5,0))) -> 0 | AJ29: =IF(ISERROR(L29*(1-VLOOKUP($A29, 'E1 Categorization'!$A$32:$E$124, 5,0))), L29*0.5, L29*(1-VLOOKUP($A29, 'E1 Categorization'!$A$32:$E$124, 5,0))) -> 0 | AK29: =IF(ISERROR(M29*(1-VLOOKUP($A29, 'E1 Categorization'!$A$32:$E$124, 5,0))), M29*0.5, M29*(1-VLOOKUP($A29, 'E1 Categorization'!$A$32:$E$124, 5,0))) -> 0 | AL29: =IF(ISERROR(N29*(1-VLOOKUP($A29, 'E1 Categorization'!$A$32:$E$124, 5,0))), N29*0.5, N29*(1-VLOOKUP($A29, 'E1 Categorization'!$A$32:$E$124, 5,0))) -> 0 | AM29: =IF(ISERROR(O29*(1-VLOOKUP($A29, 'E1 Categorization'!$A$32:$E$124, 5,0))), O29*0.5, O29*(1-VLOOKUP($A29, 'E1 Categorization'!$A$32:$E$124, 5,0))) -> 0 | AN29: =IF(ISERROR(P29*(1-VLOOKUP($A29, 'E1 Categorization'!$A$32:$E$124, 5,0))), P29*0.5, P29*(1-VLOOKUP($A29, 'E1 Categorization'!$A$32:$E$124, 5,0))) -> 0 | AO29: =IF(ISERROR(Q29*(1-VLOOKUP($A29, 'E1 Categorization'!$A$32:$E$124, 5,0))), Q29*0.5, Q29*(1-VLOOKUP($A29, 'E1 Categorization'!$A$32:$E$124, 5,0))) -> 0 | AP29: =IF(ISERROR(R29*(1-VLOOKUP($A29, 'E1 Categorization'!$A$32:$E$124, 5,0))), R29*0.5, R29*(1-VLOOKUP($A29, 'E1 Categorization'!$A$32:$E$124, 5,0))) -> 0 | AQ29: =IF(ISERROR(S29*(1-VLOOKUP($A29, 'E1 Categorization'!$A$32:$E$124, 5,0))), S29*0.5, S29*(1-VLOOKUP($A29, 'E1 Categorization'!$A$32:$E$124, 5,0))) -> 0 | AR29: =IF(ISERROR(T29*(1-VLOOKUP($A29, 'E1 Categorization'!$A$32:$E$124, 5,0))), T29*0.5, T29*(1-VLOOKUP($A29, 'E1 Categorization'!$A$32:$E$124, 5,0))) -> 0 | AS29: =IF(ISERROR(U29*(1-VLOOKUP($A29, 'E1 Categorization'!$A$32:$E$124, 5,0))), U29*0.5, U29*(1-VLOOKUP($A29, 'E1 Categorization'!$A$32:$E$124, 5,0))) -> 0 | AT29: =IF(ISERROR(V29*(1-VLOOKUP($A29, 'E1 Categorization'!$A$32:$E$124, 5,0))), V29*0.5, V29*(1-VLOOKUP($A29, 'E1 Categorization'!$A$32:$E$124, 5,0))) -> 0 | AU29: =IF(ISERROR(W29*(1-VLOOKUP($A29, 'E1 Categorization'!$A$32:$E$124, 5,0))), W29*0.5, W29*(1-VLOOKUP($A29, 'E1 Categorization'!$A$32:$E$124, 5,0))) -> 0 | AV29: =IF(ISERROR(X29*(1-VLOOKUP($A29, 'E1 Categorization'!$A$32:$E$124, 5,0))), X29*0.5, X29*(1-VLOOKUP($A29, 'E1 Categorization'!$A$32:$E$124, 5,0))) -> 0 | AY29: 1808 | AZ29: Buildings and Fixtures | BA29: =IF(ISERROR(E29*(VLOOKUP($A29, 'E1 Categorization'!$A$32:$E$124, 5,0))), E29*0.5, E29*(VLOOKUP($A29, 'E1 Categorization'!$A$32:$E$124, 5,0))) -> 0 | BB29: =IF(ISERROR(F29*(VLOOKUP($A29, 'E1 Categorization'!$A$32:$E$124, 5,0))), F29*0.5, F29*(VLOOKUP($A29, 'E1 Categorization'!$A$32:$E$124, 5,0))) -> 0 | BC29: =IF(ISERROR(G29*(VLOOKUP($A29, 'E1 Categorization'!$A$32:$E$124, 5,0))), G29*0.5, G29*(VLOOKUP($A29, 'E1 Categorization'!$A$32:$E$124, 5,0))) -> 0 | BD29: =IF(ISERROR(H29*(VLOOKUP($A29, 'E1 Categorization'!$A$32:$E$124, 5,0))), H29*0.5, H29*(VLOOKUP($A29, 'E1 Categorization'!$A$32:$E$124, 5,0))) -> 0 | BE29: =IF(ISERROR(I29*(VLOOKUP($A29, 'E1 Categorization'!$A$32:$E$124, 5,0))), I29*0.5, I29*(VLOOKUP($A29, 'E1 Categorization'!$A$32:$E$124, 5,0))) -> 0 | BF29: =IF(ISERROR(J29*(VLOOKUP($A29, 'E1 Categorization'!$A$32:$E$124, 5,0))), J29*0.5, J29*(VLOOKUP($A29, 'E1 Categorization'!$A$32:$E$124, 5,0))) -> 0 | BG29: =IF(ISERROR(K29*(VLOOKUP($A29, 'E1 Categorization'!$A$32:$E$124, 5,0))), K29*0.5, K29*(VLOOKUP($A29, 'E1 Categorization'!$A$32:$E$124, 5,0))) -> 0 | BH29: =IF(ISERROR(L29*(VLOOKUP($A29, 'E1 Categorization'!$A$32:$E$124, 5,0))), L29*0.5, L29*(VLOOKUP($A29, 'E1 Categorization'!$A$32:$E$124, 5,0))) -> 0 | BI29: =IF(ISERROR(M29*(VLOOKUP($A29, 'E1 Categorization'!$A$32:$E$124, 5,0))), M29*0.5, M29*(VLOOKUP($A29, 'E1 Categorization'!$A$32:$E$124, 5,0))) -> 0 | BJ29: =IF(ISERROR(N29*(VLOOKUP($A29, 'E1 Categorization'!$A$32:$E$124, 5,0))), N29*0.5, N29*(VLOOKUP($A29, 'E1 Categorization'!$A$32:$E$124, 5,0))) -> 0 | BK29: =IF(ISERROR(O29*(VLOOKUP($A29, 'E1 Categorization'!$A$32:$E$124, 5,0))), O29*0.5, O29*(VLOOKUP($A29, 'E1 Categorization'!$A$32:$E$124, 5,0))) -> 0 | BL29: =IF(ISERROR(P29*(VLOOKUP($A29, 'E1 Categorization'!$A$32:$E$124, 5,0))), P29*0.5, P29*(VLOOKUP($A29, 'E1 Categorization'!$A$32:$E$124, 5,0))) -> 0 | BM29: =IF(ISERROR(Q29*(VLOOKUP($A29, 'E1 Categorization'!$A$32:$E$124, 5,0))), Q29*0.5, Q29*(VLOOKUP($A29, 'E1 Categorization'!$A$32:$E$124, 5,0))) -> 0 | BN29: =IF(ISERROR(R29*(VLOOKUP($A29, 'E1 Categorization'!$A$32:$E$124, 5,0))), R29*0.5, R29*(VLOOKUP($A29, 'E1 Categorization'!$A$32:$E$124, 5,0))) -> 0 | BO29: =IF(ISERROR(S29*(VLOOKUP($A29, 'E1 Categorization'!$A$32:$E$124, 5,0))), S29*0.5, S29*(VLOOKUP($A29, 'E1 Categorization'!$A$32:$E$124, 5,0))) -> 0 | BP29: =IF(ISERROR(T29*(VLOOKUP($A29, 'E1 Categorization'!$A$32:$E$124, 5,0))), T29*0.5, T29*(VLOOKUP($A29, 'E1 Categorization'!$A$32:$E$124, 5,0))) -> 0 | BQ29: =IF(ISERROR(U29*(VLOOKUP($A29, 'E1 Categorization'!$A$32:$E$124, 5,0))), U29*0.5, U29*(VLOOKUP($A29, 'E1 Categorization'!$A$32:$E$124, 5,0))) -> 0 | BR29: =IF(ISERROR(V29*(VLOOKUP($A29, 'E1 Categorization'!$A$32:$E$124, 5,0))), V29*0.5, V29*(VLOOKUP($A29, 'E1 Categorization'!$A$32:$E$124, 5,0))) -> 0 | BS29: =IF(ISERROR(W29*(VLOOKUP($A29, 'E1 Categorization'!$A$32:$E$124, 5,0))), W29*0.5, W29*(VLOOKUP($A29, 'E1 Categorization'!$A$32:$E$124, 5,0))) -> 0 | BT29: =IF(ISERROR(X29*(VLOOKUP($A29, 'E1 Categorization'!$A$32:$E$124, 5,0))), X29*0.5, X29*(VLOOKUP($A29, 'E1 Categorization'!$A$32:$E$124, 5,0))) -> 0
A30: ='I3 TB Data'!A136:B136 -> 1810 | B30: ='I3 TB Data'!B136 -> Leasehold Improvements | C30: ='I3 TB Data'!G136 -> 0 | D30: Yes | AA30: 1810 | AB30: Leasehold Improvements | AC30: =IF(ISERROR(E30*(1-VLOOKUP($A30, 'E1 Categorization'!$A$32:$E$124, 5,0))), E30*0.5, E30*(1-VLOOKUP($A30, 'E1 Categorization'!$A$32:$E$124, 5,0))) -> 0 | AD30: =IF(ISERROR(F30*(1-VLOOKUP($A30, 'E1 Categorization'!$A$32:$E$124, 5,0))), F30*0.5, F30*(1-VLOOKUP($A30, 'E1 Categorization'!$A$32:$E$124, 5,0))) -> 0 | AE30: =IF(ISERROR(G30*(1-VLOOKUP($A30, 'E1 Categorization'!$A$32:$E$124, 5,0))), G30*0.5, G30*(1-VLOOKUP($A30, 'E1 Categorization'!$A$32:$E$124, 5,0))) -> 0 | AF30: =IF(ISERROR(H30*(1-VLOOKUP($A30, 'E1 Categorization'!$A$32:$E$124, 5,0))), H30*0.5, H30*(1-VLOOKUP($A30, 'E1 Categorization'!$A$32:$E$124, 5,0))) -> 0 | AG30: =IF(ISERROR(I30*(1-VLOOKUP($A30, 'E1 Categorization'!$A$32:$E$124, 5,0))), I30*0.5, I30*(1-VLOOKUP($A30, 'E1 Categorization'!$A$32:$E$124, 5,0))) -> 0 | AH30: =IF(ISERROR(J30*(1-VLOOKUP($A30, 'E1 Categorization'!$A$32:$E$124, 5,0))), J30*0.5, J30*(1-VLOOKUP($A30, 'E1 Categorization'!$A$32:$E$124, 5,0))) -> 0 | AI30: =IF(ISERROR(K30*(1-VLOOKUP($A30, 'E1 Categorization'!$A$32:$E$124, 5,0))), K30*0.5, K30*(1-VLOOKUP($A30, 'E1 Categorization'!$A$32:$E$124, 5,0))) -> 0 | AJ30: =IF(ISERROR(L30*(1-VLOOKUP($A30, 'E1 Categorization'!$A$32:$E$124, 5,0))), L30*0.5, L30*(1-VLOOKUP($A30, 'E1 Categorization'!$A$32:$E$124, 5,0))) -> 0 | AK30: =IF(ISERROR(M30*(1-VLOOKUP($A30, 'E1 Categorization'!$A$32:$E$124, 5,0))), M30*0.5, M30*(1-VLOOKUP($A30, 'E1 Categorization'!$A$32:$E$124, 5,0))) -> 0 | AL30: =IF(ISERROR(N30*(1-VLOOKUP($A30, 'E1 Categorization'!$A$32:$E$124, 5,0))), N30*0.5, N30*(1-VLOOKUP($A30, 'E1 Categorization'!$A$32:$E$124, 5,0))) -> 0 | AM30: =IF(ISERROR(O30*(1-VLOOKUP($A30, 'E1 Categorization'!$A$32:$E$124, 5,0))), O30*0.5, O30*(1-VLOOKUP($A30, 'E1 Categorization'!$A$32:$E$124, 5,0))) -> 0 | AN30: =IF(ISERROR(P30*(1-VLOOKUP($A30, 'E1 Categorization'!$A$32:$E$124, 5,0))), P30*0.5, P30*(1-VLOOKUP($A30, 'E1 Categorization'!$A$32:$E$124, 5,0))) -> 0 | AO30: =IF(ISERROR(Q30*(1-VLOOKUP($A30, 'E1 Categorization'!$A$32:$E$124, 5,0))), Q30*0.5, Q30*(1-VLOOKUP($A30, 'E1 Categorization'!$A$32:$E$124, 5,0))) -> 0 | AP30: =IF(ISERROR(R30*(1-VLOOKUP($A30, 'E1 Categorization'!$A$32:$E$124, 5,0))), R30*0.5, R30*(1-VLOOKUP($A30, 'E1 Categorization'!$A$32:$E$124, 5,0))) -> 0 | AQ30: =IF(ISERROR(S30*(1-VLOOKUP($A30, 'E1 Categorization'!$A$32:$E$124, 5,0))), S30*0.5, S30*(1-VLOOKUP($A30, 'E1 Categorization'!$A$32:$E$124, 5,0))) -> 0 | AR30: =IF(ISERROR(T30*(1-VLOOKUP($A30, 'E1 Categorization'!$A$32:$E$124, 5,0))), T30*0.5, T30*(1-VLOOKUP($A30, 'E1 Categorization'!$A$32:$E$124, 5,0))) -> 0 | AS30: =IF(ISERROR(U30*(1-VLOOKUP($A30, 'E1 Categorization'!$A$32:$E$124, 5,0))), U30*0.5, U30*(1-VLOOKUP($A30, 'E1 Categorization'!$A$32:$E$124, 5,0))) -> 0 | AT30: =IF(ISERROR(V30*(1-VLOOKUP($A30, 'E1 Categorization'!$A$32:$E$124, 5,0))), V30*0.5, V30*(1-VLOOKUP($A30, 'E1 Categorization'!$A$32:$E$124, 5,0))) -> 0 | AU30: =IF(ISERROR(W30*(1-VLOOKUP($A30, 'E1 Categorization'!$A$32:$E$124, 5,0))), W30*0.5, W30*(1-VLOOKUP($A30, 'E1 Categorization'!$A$32:$E$124, 5,0))) -> 0 | AV30: =IF(ISERROR(X30*(1-VLOOKUP($A30, 'E1 Categorization'!$A$32:$E$124, 5,0))), X30*0.5, X30*(1-VLOOKUP($A30, 'E1 Categorization'!$A$32:$E$124, 5,0))) -> 0 | AY30: 1810 | AZ30: Leasehold Improvements | BA30: =IF(ISERROR(E30*(VLOOKUP($A30, 'E1 Categorization'!$A$32:$E$124, 5,0))), E30*0.5, E30*(VLOOKUP($A30, 'E1 Categorization'!$A$32:$E$124, 5,0))) -> 0 | BB30: =IF(ISERROR(F30*(VLOOKUP($A30, 'E1 Categorization'!$A$32:$E$124, 5,0))), F30*0.5, F30*(VLOOKUP($A30, 'E1 Categorization'!$A$32:$E$124, 5,0))) -> 0 | BC30: =IF(ISERROR(G30*(VLOOKUP($A30, 'E1 Categorization'!$A$32:$E$124, 5,0))), G30*0.5, G30*(VLOOKUP($A30, 'E1 Categorization'!$A$32:$E$124, 5,0))) -> 0 | BD30: =IF(ISERROR(H30*(VLOOKUP($A30, 'E1 Categorization'!$A$32:$E$124, 5,0))), H30*0.5, H30*(VLOOKUP($A30, 'E1 Categorization'!$A$32:$E$124, 5,0))) -> 0 | BE30: =IF(ISERROR(I30*(VLOOKUP($A30, 'E1 Categorization'!$A$32:$E$124, 5,0))), I30*0.5, I30*(VLOOKUP($A30, 'E1 Categorization'!$A$32:$E$124, 5,0))) -> 0 | BF30: =IF(ISERROR(J30*(VLOOKUP($A30, 'E1 Categorization'!$A$32:$E$124, 5,0))), J30*0.5, J30*(VLOOKUP($A30, 'E1 Categorization'!$A$32:$E$124, 5,0))) -> 0 | BG30: =IF(ISERROR(K30*(VLOOKUP($A30, 'E1 Categorization'!$A$32:$E$124, 5,0))), K30*0.5, K30*(VLOOKUP($A30, 'E1 Categorization'!$A$32:$E$124, 5,0))) -> 0 | BH30: =IF(ISERROR(L30*(VLOOKUP($A30, 'E1 Categorization'!$A$32:$E$124, 5,0))), L30*0.5, L30*(VLOOKUP($A30, 'E1 Categorization'!$A$32:$E$124, 5,0))) -> 0 | BI30: =IF(ISERROR(M30*(VLOOKUP($A30, 'E1 Categorization'!$A$32:$E$124, 5,0))), M30*0.5, M30*(VLOOKUP($A30, 'E1 Categorization'!$A$32:$E$124, 5,0))) -> 0 | BJ30: =IF(ISERROR(N30*(VLOOKUP($A30, 'E1 Categorization'!$A$32:$E$124, 5,0))), N30*0.5, N30*(VLOOKUP($A30, 'E1 Categorization'!$A$32:$E$124, 5,0))) -> 0 | BK30: =IF(ISERROR(O30*(VLOOKUP($A30, 'E1 Categorization'!$A$32:$E$124, 5,0))), O30*0.5, O30*(VLOOKUP($A30, 'E1 Categorization'!$A$32:$E$124, 5,0))) -> 0 | BL30: =IF(ISERROR(P30*(VLOOKUP($A30, 'E1 Categorization'!$A$32:$E$124, 5,0))), P30*0.5, P30*(VLOOKUP($A30, 'E1 Categorization'!$A$32:$E$124, 5,0))) -> 0 | BM30: =IF(ISERROR(Q30*(VLOOKUP($A30, 'E1 Categorization'!$A$32:$E$124, 5,0))), Q30*0.5, Q30*(VLOOKUP($A30, 'E1 Categorization'!$A$32:$E$124, 5,0))) -> 0 | BN30: =IF(ISERROR(R30*(VLOOKUP($A30, 'E1 Categorization'!$A$32:$E$124, 5,0))), R30*0.5, R30*(VLOOKUP($A30, 'E1 Categorization'!$A$32:$E$124, 5,0))) -> 0 | BO30: =IF(ISERROR(S30*(VLOOKUP($A30, 'E1 Categorization'!$A$32:$E$124, 5,0))), S30*0.5, S30*(VLOOKUP($A30, 'E1 Categorization'!$A$32:$E$124, 5,0))) -> 0 | BP30: =IF(ISERROR(T30*(VLOOKUP($A30, 'E1 Categorization'!$A$32:$E$124, 5,0))), T30*0.5, T30*(VLOOKUP($A30, 'E1 Categorization'!$A$32:$E$124, 5,0))) -> 0 | BQ30: =IF(ISERROR(U30*(VLOOKUP($A30, 'E1 Categorization'!$A$32:$E$124, 5,0))), U30*0.5, U30*(VLOOKUP($A30, 'E1 Categorization'!$A$32:$E$124, 5,0))) -> 0 | BR30: =IF(ISERROR(V30*(VLOOKUP($A30, 'E1 Categorization'!$A$32:$E$124, 5,0))), V30*0.5, V30*(VLOOKUP($A30, 'E1 Categorization'!$A$32:$E$124, 5,0))) -> 0 | BS30: =IF(ISERROR(W30*(VLOOKUP($A30, 'E1 Categorization'!$A$32:$E$124, 5,0))), W30*0.5, W30*(VLOOKUP($A30, 'E1 Categorization'!$A$32:$E$124, 5,0))) -> 0 | BT30: =IF(ISERROR(X30*(VLOOKUP($A30, 'E1 Categorization'!$A$32:$E$124, 5,0))), X30*0.5, X30*(VLOOKUP($A30, 'E1 Categorization'!$A$32:$E$124, 5,0))) -> 0
A31: ='I3 TB Data'!A137:B137 -> 1815 | B31: ='I3 TB Data'!B137 -> Transformer Station Equipment - Normally Primary above 50 kV | C31: ='I3 TB Data'!G137 -> 0 | D31: Yes | AA31: 1815 | AB31: Transformer Station Equipment - Normally Primary above 50 kV | AC31: =IF(ISERROR(E31*(1-VLOOKUP($A31, 'E1 Categorization'!$A$32:$E$124, 5,0))), E31*0.5, E31*(1-VLOOKUP($A31, 'E1 Categorization'!$A$32:$E$124, 5,0))) -> 0 | AD31: =IF(ISERROR(F31*(1-VLOOKUP($A31, 'E1 Categorization'!$A$32:$E$124, 5,0))), F31*0.5, F31*(1-VLOOKUP($A31, 'E1 Categorization'!$A$32:$E$124, 5,0))) -> 0 | AE31: =IF(ISERROR(G31*(1-VLOOKUP($A31, 'E1 Categorization'!$A$32:$E$124, 5,0))), G31*0.5, G31*(1-VLOOKUP($A31, 'E1 Categorization'!$A$32:$E$124, 5,0))) -> 0 | AF31: =IF(ISERROR(H31*(1-VLOOKUP($A31, 'E1 Categorization'!$A$32:$E$124, 5,0))), H31*0.5, H31*(1-VLOOKUP($A31, 'E1 Categorization'!$A$32:$E$124, 5,0))) -> 0 | AG31: =IF(ISERROR(I31*(1-VLOOKUP($A31, 'E1 Categorization'!$A$32:$E$124, 5,0))), I31*0.5, I31*(1-VLOOKUP($A31, 'E1 Categorization'!$A$32:$E$124, 5,0))) -> 0 | AH31: =IF(ISERROR(J31*(1-VLOOKUP($A31, 'E1 Categorization'!$A$32:$E$124, 5,0))), J31*0.5, J31*(1-VLOOKUP($A31, 'E1 Categorization'!$A$32:$E$124, 5,0))) -> 0 | AI31: =IF(ISERROR(K31*(1-VLOOKUP($A31, 'E1 Categorization'!$A$32:$E$124, 5,0))), K31*0.5, K31*(1-VLOOKUP($A31, 'E1 Categorization'!$A$32:$E$124, 5,0))) -> 0 | AJ31: =IF(ISERROR(L31*(1-VLOOKUP($A31, 'E1 Categorization'!$A$32:$E$124, 5,0))), L31*0.5, L31*(1-VLOOKUP($A31, 'E1 Categorization'!$A$32:$E$124, 5,0))) -> 0 | AK31: =IF(ISERROR(M31*(1-VLOOKUP($A31, 'E1 Categorization'!$A$32:$E$124, 5,0))), M31*0.5, M31*(1-VLOOKUP($A31, 'E1 Categorization'!$A$32:$E$124, 5,0))) -> 0 | AL31: =IF(ISERROR(N31*(1-VLOOKUP($A31, 'E1 Categorization'!$A$32:$E$124, 5,0))), N31*0.5, N31*(1-VLOOKUP($A31, 'E1 Categorization'!$A$32:$E$124, 5,0))) -> 0 | AM31: =IF(ISERROR(O31*(1-VLOOKUP($A31, 'E1 Categorization'!$A$32:$E$124, 5,0))), O31*0.5, O31*(1-VLOOKUP($A31, 'E1 Categorization'!$A$32:$E$124, 5,0))) -> 0 | AN31: =IF(ISERROR(P31*(1-VLOOKUP($A31, 'E1 Categorization'!$A$32:$E$124, 5,0))), P31*0.5, P31*(1-VLOOKUP($A31, 'E1 Categorization'!$A$32:$E$124, 5,0))) -> 0 | AO31: =IF(ISERROR(Q31*(1-VLOOKUP($A31, 'E1 Categorization'!$A$32:$E$124, 5,0))), Q31*0.5, Q31*(1-VLOOKUP($A31, 'E1 Categorization'!$A$32:$E$124, 5,0))) -> 0 | AP31: =IF(ISERROR(R31*(1-VLOOKUP($A31, 'E1 Categorization'!$A$32:$E$124, 5,0))), R31*0.5, R31*(1-VLOOKUP($A31, 'E1 Categorization'!$A$32:$E$124, 5,0))) -> 0 | AQ31: =IF(ISERROR(S31*(1-VLOOKUP($A31, 'E1 Categorization'!$A$32:$E$124, 5,0))), S31*0.5, S31*(1-VLOOKUP($A31, 'E1 Categorization'!$A$32:$E$124, 5,0))) -> 0 | AR31: =IF(ISERROR(T31*(1-VLOOKUP($A31, 'E1 Categorization'!$A$32:$E$124, 5,0))), T31*0.5, T31*(1-VLOOKUP($A31, 'E1 Categorization'!$A$32:$E$124, 5,0))) -> 0 | AS31: =IF(ISERROR(U31*(1-VLOOKUP($A31, 'E1 Categorization'!$A$32:$E$124, 5,0))), U31*0.5, U31*(1-VLOOKUP($A31, 'E1 Categorization'!$A$32:$E$124, 5,0))) -> 0 | AT31: =IF(ISERROR(V31*(1-VLOOKUP($A31, 'E1 Categorization'!$A$32:$E$124, 5,0))), V31*0.5, V31*(1-VLOOKUP($A31, 'E1 Categorization'!$A$32:$E$124, 5,0))) -> 0 | AU31: =IF(ISERROR(W31*(1-VLOOKUP($A31, 'E1 Categorization'!$A$32:$E$124, 5,0))), W31*0.5, W31*(1-VLOOKUP($A31, 'E1 Categorization'!$A$32:$E$124, 5,0))) -> 0 | AV31: =IF(ISERROR(X31*(1-VLOOKUP($A31, 'E1 Categorization'!$A$32:$E$124, 5,0))), X31*0.5, X31*(1-VLOOKUP($A31, 'E1 Categorization'!$A$32:$E$124, 5,0))) -> 0 | AY31: 1815 | AZ31: Transformer Station Equipment - Normally Primary above 50 kV | BA31: =IF(ISERROR(E31*(VLOOKUP($A31, 'E1 Categorization'!$A$32:$E$124, 5,0))), E31*0.5, E31*(VLOOKUP($A31, 'E1 Categorization'!$A$32:$E$124, 5,0))) -> 0 | BB31: =IF(ISERROR(F31*(VLOOKUP($A31, 'E1 Categorization'!$A$32:$E$124, 5,0))), F31*0.5, F31*(VLOOKUP($A31, 'E1 Categorization'!$A$32:$E$124, 5,0))) -> 0 | BC31: =IF(ISERROR(G31*(VLOOKUP($A31, 'E1 Categorization'!$A$32:$E$124, 5,0))), G31*0.5, G31*(VLOOKUP($A31, 'E1 Categorization'!$A$32:$E$124, 5,0))) -> 0 | BD31: =IF(ISERROR(H31*(VLOOKUP($A31, 'E1 Categorization'!$A$32:$E$124, 5,0))), H31*0.5, H31*(VLOOKUP($A31, 'E1 Categorization'!$A$32:$E$124, 5,0))) -> 0 | BE31: =IF(ISERROR(I31*(VLOOKUP($A31, 'E1 Categorization'!$A$32:$E$124, 5,0))), I31*0.5, I31*(VLOOKUP($A31, 'E1 Categorization'!$A$32:$E$124, 5,0))) -> 0 | BF31: =IF(ISERROR(J31*(VLOOKUP($A31, 'E1 Categorization'!$A$32:$E$124, 5,0))), J31*0.5, J31*(VLOOKUP($A31, 'E1 Categorization'!$A$32:$E$124, 5,0))) -> 0 | BG31: =IF(ISERROR(K31*(VLOOKUP($A31, 'E1 Categorization'!$A$32:$E$124, 5,0))), K31*0.5, K31*(VLOOKUP($A31, 'E1 Categorization'!$A$32:$E$124, 5,0))) -> 0 | BH31: =IF(ISERROR(L31*(VLOOKUP($A31, 'E1 Categorization'!$A$32:$E$124, 5,0))), L31*0.5, L31*(VLOOKUP($A31, 'E1 Categorization'!$A$32:$E$124, 5,0))) -> 0 | BI31: =IF(ISERROR(M31*(VLOOKUP($A31, 'E1 Categorization'!$A$32:$E$124, 5,0))), M31*0.5, M31*(VLOOKUP($A31, 'E1 Categorization'!$A$32:$E$124, 5,0))) -> 0 | BJ31: =IF(ISERROR(N31*(VLOOKUP($A31, 'E1 Categorization'!$A$32:$E$124, 5,0))), N31*0.5, N31*(VLOOKUP($A31, 'E1 Categorization'!$A$32:$E$124, 5,0))) -> 0 | BK31: =IF(ISERROR(O31*(VLOOKUP($A31, 'E1 Categorization'!$A$32:$E$124, 5,0))), O31*0.5, O31*(VLOOKUP($A31, 'E1 Categorization'!$A$32:$E$124, 5,0))) -> 0 | BL31: =IF(ISERROR(P31*(VLOOKUP($A31, 'E1 Categorization'!$A$32:$E$124, 5,0))), P31*0.5, P31*(VLOOKUP($A31, 'E1 Categorization'!$A$32:$E$124, 5,0))) -> 0 | BM31: =IF(ISERROR(Q31*(VLOOKUP($A31, 'E1 Categorization'!$A$32:$E$124, 5,0))), Q31*0.5, Q31*(VLOOKUP($A31, 'E1 Categorization'!$A$32:$E$124, 5,0))) -> 0 | BN31: =IF(ISERROR(R31*(VLOOKUP($A31, 'E1 Categorization'!$A$32:$E$124, 5,0))), R31*0.5, R31*(VLOOKUP($A31, 'E1 Categorization'!$A$32:$E$124, 5,0))) -> 0 | BO31: =IF(ISERROR(S31*(VLOOKUP($A31, 'E1 Categorization'!$A$32:$E$124, 5,0))), S31*0.5, S31*(VLOOKUP($A31, 'E1 Categorization'!$A$32:$E$124, 5,0))) -> 0 | BP31: =IF(ISERROR(T31*(VLOOKUP($A31, 'E1 Categorization'!$A$32:$E$124, 5,0))), T31*0.5, T31*(VLOOKUP($A31, 'E1 Categorization'!$A$32:$E$124, 5,0))) -> 0 | BQ31: =IF(ISERROR(U31*(VLOOKUP($A31, 'E1 Categorization'!$A$32:$E$124, 5,0))), U31*0.5, U31*(VLOOKUP($A31, 'E1 Categorization'!$A$32:$E$124, 5,0))) -> 0 | BR31: =IF(ISERROR(V31*(VLOOKUP($A31, 'E1 Categorization'!$A$32:$E$124, 5,0))), V31*0.5, V31*(VLOOKUP($A31, 'E1 Categorization'!$A$32:$E$124, 5,0))) -> 0 | BS31: =IF(ISERROR(W31*(VLOOKUP($A31, 'E1 Categorization'!$A$32:$E$124, 5,0))), W31*0.5, W31*(VLOOKUP($A31, 'E1 Categorization'!$A$32:$E$124, 5,0))) -> 0 | BT31: =IF(ISERROR(X31*(VLOOKUP($A31, 'E1 Categorization'!$A$32:$E$124, 5,0))), X31*0.5, X31*(VLOOKUP($A31, 'E1 Categorization'!$A$32:$E$124, 5,0))) -> 0
A32: ='I3 TB Data'!A138:B138 -> 1820 | B32: ='I3 TB Data'!B138 -> Distribution Station Equipment - Normally Primary below 50 kV | C32: ='I3 TB Data'!G138 -> 0 | D32: Yes | AA32: 1820 | AB32: Distribution Station Equipment - Normally Primary below 50 kV | AC32: =IF(ISERROR(E32*(1-VLOOKUP($A32, 'E1 Categorization'!$A$32:$E$124, 5,0))), E32*0.5, E32*(1-VLOOKUP($A32, 'E1 Categorization'!$A$32:$E$124, 5,0))) -> 0 | AD32: =IF(ISERROR(F32*(1-VLOOKUP($A32, 'E1 Categorization'!$A$32:$E$124, 5,0))), F32*0.5, F32*(1-VLOOKUP($A32, 'E1 Categorization'!$A$32:$E$124, 5,0))) -> 0 | AE32: =IF(ISERROR(G32*(1-VLOOKUP($A32, 'E1 Categorization'!$A$32:$E$124, 5,0))), G32*0.5, G32*(1-VLOOKUP($A32, 'E1 Categorization'!$A$32:$E$124, 5,0))) -> 0 | AF32: =IF(ISERROR(H32*(1-VLOOKUP($A32, 'E1 Categorization'!$A$32:$E$124, 5,0))), H32*0.5, H32*(1-VLOOKUP($A32, 'E1 Categorization'!$A$32:$E$124, 5,0))) -> 0 | AG32: =IF(ISERROR(I32*(1-VLOOKUP($A32, 'E1 Categorization'!$A$32:$E$124, 5,0))), I32*0.5, I32*(1-VLOOKUP($A32, 'E1 Categorization'!$A$32:$E$124, 5,0))) -> 0 | AH32: =IF(ISERROR(J32*(1-VLOOKUP($A32, 'E1 Categorization'!$A$32:$E$124, 5,0))), J32*0.5, J32*(1-VLOOKUP($A32, 'E1 Categorization'!$A$32:$E$124, 5,0))) -> 0 | AI32: =IF(ISERROR(K32*(1-VLOOKUP($A32, 'E1 Categorization'!$A$32:$E$124, 5,0))), K32*0.5, K32*(1-VLOOKUP($A32, 'E1 Categorization'!$A$32:$E$124, 5,0))) -> 0 | AJ32: =IF(ISERROR(L32*(1-VLOOKUP($A32, 'E1 Categorization'!$A$32:$E$124, 5,0))), L32*0.5, L32*(1-VLOOKUP($A32, 'E1 Categorization'!$A$32:$E$124, 5,0))) -> 0 | AK32: =IF(ISERROR(M32*(1-VLOOKUP($A32, 'E1 Categorization'!$A$32:$E$124, 5,0))), M32*0.5, M32*(1-VLOOKUP($A32, 'E1 Categorization'!$A$32:$E$124, 5,0))) -> 0 | AL32: =IF(ISERROR(N32*(1-VLOOKUP($A32, 'E1 Categorization'!$A$32:$E$124, 5,0))), N32*0.5, N32*(1-VLOOKUP($A32, 'E1 Categorization'!$A$32:$E$124, 5,0))) -> 0 | AM32: =IF(ISERROR(O32*(1-VLOOKUP($A32, 'E1 Categorization'!$A$32:$E$124, 5,0))), O32*0.5, O32*(1-VLOOKUP($A32, 'E1 Categorization'!$A$32:$E$124, 5,0))) -> 0 | AN32: =IF(ISERROR(P32*(1-VLOOKUP($A32, 'E1 Categorization'!$A$32:$E$124, 5,0))), P32*0.5, P32*(1-VLOOKUP($A32, 'E1 Categorization'!$A$32:$E$124, 5,0))) -> 0 | AO32: =IF(ISERROR(Q32*(1-VLOOKUP($A32, 'E1 Categorization'!$A$32:$E$124, 5,0))), Q32*0.5, Q32*(1-VLOOKUP($A32, 'E1 Categorization'!$A$32:$E$124, 5,0))) -> 0 | AP32: =IF(ISERROR(R32*(1-VLOOKUP($A32, 'E1 Categorization'!$A$32:$E$124, 5,0))), R32*0.5, R32*(1-VLOOKUP($A32, 'E1 Categorization'!$A$32:$E$124, 5,0))) -> 0 | AQ32: =IF(ISERROR(S32*(1-VLOOKUP($A32, 'E1 Categorization'!$A$32:$E$124, 5,0))), S32*0.5, S32*(1-VLOOKUP($A32, 'E1 Categorization'!$A$32:$E$124, 5,0))) -> 0 | AR32: =IF(ISERROR(T32*(1-VLOOKUP($A32, 'E1 Categorization'!$A$32:$E$124, 5,0))), T32*0.5, T32*(1-VLOOKUP($A32, 'E1 Categorization'!$A$32:$E$124, 5,0))) -> 0 | AS32: =IF(ISERROR(U32*(1-VLOOKUP($A32, 'E1 Categorization'!$A$32:$E$124, 5,0))), U32*0.5, U32*(1-VLOOKUP($A32, 'E1 Categorization'!$A$32:$E$124, 5,0))) -> 0 | AT32: =IF(ISERROR(V32*(1-VLOOKUP($A32, 'E1 Categorization'!$A$32:$E$124, 5,0))), V32*0.5, V32*(1-VLOOKUP($A32, 'E1 Categorization'!$A$32:$E$124, 5,0))) -> 0 | AU32: =IF(ISERROR(W32*(1-VLOOKUP($A32, 'E1 Categorization'!$A$32:$E$124, 5,0))), W32*0.5, W32*(1-VLOOKUP($A32, 'E1 Categorization'!$A$32:$E$124, 5,0))) -> 0 | AV32: =IF(ISERROR(X32*(1-VLOOKUP($A32, 'E1 Categorization'!$A$32:$E$124, 5,0))), X32*0.5, X32*(1-VLOOKUP($A32, 'E1 Categorization'!$A$32:$E$124, 5,0))) -> 0 | AY32: 1820 | AZ32: Distribution Station Equipment - Normally Primary below 50 kV | BA32: =IF(ISERROR(E32*(VLOOKUP($A32, 'E1 Categorization'!$A$32:$E$124, 5,0))), E32*0.5, E32*(VLOOKUP($A32, 'E1 Categorization'!$A$32:$E$124, 5,0))) -> 0 | BB32: =IF(ISERROR(F32*(VLOOKUP($A32, 'E1 Categorization'!$A$32:$E$124, 5,0))), F32*0.5, F32*(VLOOKUP($A32, 'E1 Categorization'!$A$32:$E$124, 5,0))) -> 0 | BC32: =IF(ISERROR(G32*(VLOOKUP($A32, 'E1 Categorization'!$A$32:$E$124, 5,0))), G32*0.5, G32*(VLOOKUP($A32, 'E1 Categorization'!$A$32:$E$124, 5,0))) -> 0 | BD32: =IF(ISERROR(H32*(VLOOKUP($A32, 'E1 Categorization'!$A$32:$E$124, 5,0))), H32*0.5, H32*(VLOOKUP($A32, 'E1 Categorization'!$A$32:$E$124, 5,0))) -> 0 | BE32: =IF(ISERROR(I32*(VLOOKUP($A32, 'E1 Categorization'!$A$32:$E$124, 5,0))), I32*0.5, I32*(VLOOKUP($A32, 'E1 Categorization'!$A$32:$E$124, 5,0))) -> 0 | BF32: =IF(ISERROR(J32*(VLOOKUP($A32, 'E1 Categorization'!$A$32:$E$124, 5,0))), J32*0.5, J32*(VLOOKUP($A32, 'E1 Categorization'!$A$32:$E$124, 5,0))) -> 0 | BG32: =IF(ISERROR(K32*(VLOOKUP($A32, 'E1 Categorization'!$A$32:$E$124, 5,0))), K32*0.5, K32*(VLOOKUP($A32, 'E1 Categorization'!$A$32:$E$124, 5,0))) -> 0 | BH32: =IF(ISERROR(L32*(VLOOKUP($A32, 'E1 Categorization'!$A$32:$E$124, 5,0))), L32*0.5, L32*(VLOOKUP($A32, 'E1 Categorization'!$A$32:$E$124, 5,0))) -> 0 | BI32: =IF(ISERROR(M32*(VLOOKUP($A32, 'E1 Categorization'!$A$32:$E$124, 5,0))), M32*0.5, M32*(VLOOKUP($A32, 'E1 Categorization'!$A$32:$E$124, 5,0))) -> 0 | BJ32: =IF(ISERROR(N32*(VLOOKUP($A32, 'E1 Categorization'!$A$32:$E$124, 5,0))), N32*0.5, N32*(VLOOKUP($A32, 'E1 Categorization'!$A$32:$E$124, 5,0))) -> 0 | BK32: =IF(ISERROR(O32*(VLOOKUP($A32, 'E1 Categorization'!$A$32:$E$124, 5,0))), O32*0.5, O32*(VLOOKUP($A32, 'E1 Categorization'!$A$32:$E$124, 5,0))) -> 0 | BL32: =IF(ISERROR(P32*(VLOOKUP($A32, 'E1 Categorization'!$A$32:$E$124, 5,0))), P32*0.5, P32*(VLOOKUP($A32, 'E1 Categorization'!$A$32:$E$124, 5,0))) -> 0 | BM32: =IF(ISERROR(Q32*(VLOOKUP($A32, 'E1 Categorization'!$A$32:$E$124, 5,0))), Q32*0.5, Q32*(VLOOKUP($A32, 'E1 Categorization'!$A$32:$E$124, 5,0))) -> 0 | BN32: =IF(ISERROR(R32*(VLOOKUP($A32, 'E1 Categorization'!$A$32:$E$124, 5,0))), R32*0.5, R32*(VLOOKUP($A32, 'E1 Categorization'!$A$32:$E$124, 5,0))) -> 0 | BO32: =IF(ISERROR(S32*(VLOOKUP($A32, 'E1 Categorization'!$A$32:$E$124, 5,0))), S32*0.5, S32*(VLOOKUP($A32, 'E1 Categorization'!$A$32:$E$124, 5,0))) -> 0 | BP32: =IF(ISERROR(T32*(VLOOKUP($A32, 'E1 Categorization'!$A$32:$E$124, 5,0))), T32*0.5, T32*(VLOOKUP($A32, 'E1 Categorization'!$A$32:$E$124, 5,0))) -> 0 | BQ32: =IF(ISERROR(U32*(VLOOKUP($A32, 'E1 Categorization'!$A$32:$E$124, 5,0))), U32*0.5, U32*(VLOOKUP($A32, 'E1 Categorization'!$A$32:$E$124, 5,0))) -> 0 | BR32: =IF(ISERROR(V32*(VLOOKUP($A32, 'E1 Categorization'!$A$32:$E$124, 5,0))), V32*0.5, V32*(VLOOKUP($A32, 'E1 Categorization'!$A$32:$E$124, 5,0))) -> 0 | BS32: =IF(ISERROR(W32*(VLOOKUP($A32, 'E1 Categorization'!$A$32:$E$124, 5,0))), W32*0.5, W32*(VLOOKUP($A32, 'E1 Categorization'!$A$32:$E$124, 5,0))) -> 0 | BT32: =IF(ISERROR(X32*(VLOOKUP($A32, 'E1 Categorization'!$A$32:$E$124, 5,0))), X32*0.5, X32*(VLOOKUP($A32, 'E1 Categorization'!$A$32:$E$124, 5,0))) -> 0
A33: ='I3 TB Data'!A139:B139 -> 1825 | B33: ='I3 TB Data'!B139 -> Storage Battery Equipment | C33: ='I3 TB Data'!G139 -> 0 | D33: Yes | AA33: 1825 | AB33: Storage Battery Equipment | AC33: =IF(ISERROR(E33*(1-VLOOKUP($A33, 'E1 Categorization'!$A$32:$E$124, 5,0))), E33*0.5, E33*(1-VLOOKUP($A33, 'E1 Categorization'!$A$32:$E$124, 5,0))) -> 0 | AD33: =IF(ISERROR(F33*(1-VLOOKUP($A33, 'E1 Categorization'!$A$32:$E$124, 5,0))), F33*0.5, F33*(1-VLOOKUP($A33, 'E1 Categorization'!$A$32:$E$124, 5,0))) -> 0 | AE33: =IF(ISERROR(G33*(1-VLOOKUP($A33, 'E1 Categorization'!$A$32:$E$124, 5,0))), G33*0.5, G33*(1-VLOOKUP($A33, 'E1 Categorization'!$A$32:$E$124, 5,0))) -> 0 | AF33: =IF(ISERROR(H33*(1-VLOOKUP($A33, 'E1 Categorization'!$A$32:$E$124, 5,0))), H33*0.5, H33*(1-VLOOKUP($A33, 'E1 Categorization'!$A$32:$E$124, 5,0))) -> 0 | AG33: =IF(ISERROR(I33*(1-VLOOKUP($A33, 'E1 Categorization'!$A$32:$E$124, 5,0))), I33*0.5, I33*(1-VLOOKUP($A33, 'E1 Categorization'!$A$32:$E$124, 5,0))) -> 0 | AH33: =IF(ISERROR(J33*(1-VLOOKUP($A33, 'E1 Categorization'!$A$32:$E$124, 5,0))), J33*0.5, J33*(1-VLOOKUP($A33, 'E1 Categorization'!$A$32:$E$124, 5,0))) -> 0 | AI33: =IF(ISERROR(K33*(1-VLOOKUP($A33, 'E1 Categorization'!$A$32:$E$124, 5,0))), K33*0.5, K33*(1-VLOOKUP($A33, 'E1 Categorization'!$A$32:$E$124, 5,0))) -> 0 | AJ33: =IF(ISERROR(L33*(1-VLOOKUP($A33, 'E1 Categorization'!$A$32:$E$124, 5,0))), L33*0.5, L33*(1-VLOOKUP($A33, 'E1 Categorization'!$A$32:$E$124, 5,0))) -> 0 | AK33: =IF(ISERROR(M33*(1-VLOOKUP($A33, 'E1 Categorization'!$A$32:$E$124, 5,0))), M33*0.5, M33*(1-VLOOKUP($A33, 'E1 Categorization'!$A$32:$E$124, 5,0))) -> 0 | AL33: =IF(ISERROR(N33*(1-VLOOKUP($A33, 'E1 Categorization'!$A$32:$E$124, 5,0))), N33*0.5, N33*(1-VLOOKUP($A33, 'E1 Categorization'!$A$32:$E$124, 5,0))) -> 0 | AM33: =IF(ISERROR(O33*(1-VLOOKUP($A33, 'E1 Categorization'!$A$32:$E$124, 5,0))), O33*0.5, O33*(1-VLOOKUP($A33, 'E1 Categorization'!$A$32:$E$124, 5,0))) -> 0 | AN33: =IF(ISERROR(P33*(1-VLOOKUP($A33, 'E1 Categorization'!$A$32:$E$124, 5,0))), P33*0.5, P33*(1-VLOOKUP($A33, 'E1 Categorization'!$A$32:$E$124, 5,0))) -> 0 | AO33: =IF(ISERROR(Q33*(1-VLOOKUP($A33, 'E1 Categorization'!$A$32:$E$124, 5,0))), Q33*0.5, Q33*(1-VLOOKUP($A33, 'E1 Categorization'!$A$32:$E$124, 5,0))) -> 0 | AP33: =IF(ISERROR(R33*(1-VLOOKUP($A33, 'E1 Categorization'!$A$32:$E$124, 5,0))), R33*0.5, R33*(1-VLOOKUP($A33, 'E1 Categorization'!$A$32:$E$124, 5,0))) -> 0 | AQ33: =IF(ISERROR(S33*(1-VLOOKUP($A33, 'E1 Categorization'!$A$32:$E$124, 5,0))), S33*0.5, S33*(1-VLOOKUP($A33, 'E1 Categorization'!$A$32:$E$124, 5,0))) -> 0 | AR33: =IF(ISERROR(T33*(1-VLOOKUP($A33, 'E1 Categorization'!$A$32:$E$124, 5,0))), T33*0.5, T33*(1-VLOOKUP($A33, 'E1 Categorization'!$A$32:$E$124, 5,0))) -> 0 | AS33: =IF(ISERROR(U33*(1-VLOOKUP($A33, 'E1 Categorization'!$A$32:$E$124, 5,0))), U33*0.5, U33*(1-VLOOKUP($A33, 'E1 Categorization'!$A$32:$E$124, 5,0))) -> 0 | AT33: =IF(ISERROR(V33*(1-VLOOKUP($A33, 'E1 Categorization'!$A$32:$E$124, 5,0))), V33*0.5, V33*(1-VLOOKUP($A33, 'E1 Categorization'!$A$32:$E$124, 5,0))) -> 0 | AU33: =IF(ISERROR(W33*(1-VLOOKUP($A33, 'E1 Categorization'!$A$32:$E$124, 5,0))), W33*0.5, W33*(1-VLOOKUP($A33, 'E1 Categorization'!$A$32:$E$124, 5,0))) -> 0 | AV33: =IF(ISERROR(X33*(1-VLOOKUP($A33, 'E1 Categorization'!$A$32:$E$124, 5,0))), X33*0.5, X33*(1-VLOOKUP($A33, 'E1 Categorization'!$A$32:$E$124, 5,0))) -> 0 | AY33: 1825 | AZ33: Storage Battery Equipment | BA33: =IF(ISERROR(E33*(VLOOKUP($A33, 'E1 Categorization'!$A$32:$E$124, 5,0))), E33*0.5, E33*(VLOOKUP($A33, 'E1 Categorization'!$A$32:$E$124, 5,0))) -> 0 | BB33: =IF(ISERROR(F33*(VLOOKUP($A33, 'E1 Categorization'!$A$32:$E$124, 5,0))), F33*0.5, F33*(VLOOKUP($A33, 'E1 Categorization'!$A$32:$E$124, 5,0))) -> 0 | BC33: =IF(ISERROR(G33*(VLOOKUP($A33, 'E1 Categorization'!$A$32:$E$124, 5,0))), G33*0.5, G33*(VLOOKUP($A33, 'E1 Categorization'!$A$32:$E$124, 5,0))) -> 0 | BD33: =IF(ISERROR(H33*(VLOOKUP($A33, 'E1 Categorization'!$A$32:$E$124, 5,0))), H33*0.5, H33*(VLOOKUP($A33, 'E1 Categorization'!$A$32:$E$124, 5,0))) -> 0 | BE33: =IF(ISERROR(I33*(VLOOKUP($A33, 'E1 Categorization'!$A$32:$E$124, 5,0))), I33*0.5, I33*(VLOOKUP($A33, 'E1 Categorization'!$A$32:$E$124, 5,0))) -> 0 | BF33: =IF(ISERROR(J33*(VLOOKUP($A33, 'E1 Categorization'!$A$32:$E$124, 5,0))), J33*0.5, J33*(VLOOKUP($A33, 'E1 Categorization'!$A$32:$E$124, 5,0))) -> 0 | BG33: =IF(ISERROR(K33*(VLOOKUP($A33, 'E1 Categorization'!$A$32:$E$124, 5,0))), K33*0.5, K33*(VLOOKUP($A33, 'E1 Categorization'!$A$32:$E$124, 5,0))) -> 0 | BH33: =IF(ISERROR(L33*(VLOOKUP($A33, 'E1 Categorization'!$A$32:$E$124, 5,0))), L33*0.5, L33*(VLOOKUP($A33, 'E1 Categorization'!$A$32:$E$124, 5,0))) -> 0 | BI33: =IF(ISERROR(M33*(VLOOKUP($A33, 'E1 Categorization'!$A$32:$E$124, 5,0))), M33*0.5, M33*(VLOOKUP($A33, 'E1 Categorization'!$A$32:$E$124, 5,0))) -> 0 | BJ33: =IF(ISERROR(N33*(VLOOKUP($A33, 'E1 Categorization'!$A$32:$E$124, 5,0))), N33*0.5, N33*(VLOOKUP($A33, 'E1 Categorization'!$A$32:$E$124, 5,0))) -> 0 | BK33: =IF(ISERROR(O33*(VLOOKUP($A33, 'E1 Categorization'!$A$32:$E$124, 5,0))), O33*0.5, O33*(VLOOKUP($A33, 'E1 Categorization'!$A$32:$E$124, 5,0))) -> 0 | BL33: =IF(ISERROR(P33*(VLOOKUP($A33, 'E1 Categorization'!$A$32:$E$124, 5,0))), P33*0.5, P33*(VLOOKUP($A33, 'E1 Categorization'!$A$32:$E$124, 5,0))) -> 0 | BM33: =IF(ISERROR(Q33*(VLOOKUP($A33, 'E1 Categorization'!$A$32:$E$124, 5,0))), Q33*0.5, Q33*(VLOOKUP($A33, 'E1 Categorization'!$A$32:$E$124, 5,0))) -> 0 | BN33: =IF(ISERROR(R33*(VLOOKUP($A33, 'E1 Categorization'!$A$32:$E$124, 5,0))), R33*0.5, R33*(VLOOKUP($A33, 'E1 Categorization'!$A$32:$E$124, 5,0))) -> 0 | BO33: =IF(ISERROR(S33*(VLOOKUP($A33, 'E1 Categorization'!$A$32:$E$124, 5,0))), S33*0.5, S33*(VLOOKUP($A33, 'E1 Categorization'!$A$32:$E$124, 5,0))) -> 0 | BP33: =IF(ISERROR(T33*(VLOOKUP($A33, 'E1 Categorization'!$A$32:$E$124, 5,0))), T33*0.5, T33*(VLOOKUP($A33, 'E1 Categorization'!$A$32:$E$124, 5,0))) -> 0 | BQ33: =IF(ISERROR(U33*(VLOOKUP($A33, 'E1 Categorization'!$A$32:$E$124, 5,0))), U33*0.5, U33*(VLOOKUP($A33, 'E1 Categorization'!$A$32:$E$124, 5,0))) -> 0 | BR33: =IF(ISERROR(V33*(VLOOKUP($A33, 'E1 Categorization'!$A$32:$E$124, 5,0))), V33*0.5, V33*(VLOOKUP($A33, 'E1 Categorization'!$A$32:$E$124, 5,0))) -> 0 | BS33: =IF(ISERROR(W33*(VLOOKUP($A33, 'E1 Categorization'!$A$32:$E$124, 5,0))), W33*0.5, W33*(VLOOKUP($A33, 'E1 Categorization'!$A$32:$E$124, 5,0))) -> 0 | BT33: =IF(ISERROR(X33*(VLOOKUP($A33, 'E1 Categorization'!$A$32:$E$124, 5,0))), X33*0.5, X33*(VLOOKUP($A33, 'E1 Categorization'!$A$32:$E$124, 5,0))) -> 0
A34: ='I3 TB Data'!A140:B140 -> 1830 | B34: ='I3 TB Data'!B140 -> Poles, Towers and Fixtures | C34: ='I3 TB Data'!G140 -> 0 | D34: Yes | AA34: 1830 | AB34: Poles, Towers and Fixtures | AC34: =IF(ISERROR(E34*(1-VLOOKUP($A34, 'E1 Categorization'!$A$32:$E$124, 5,0))), E34*0.5, E34*(1-VLOOKUP($A34, 'E1 Categorization'!$A$32:$E$124, 5,0))) -> 0 | AD34: =IF(ISERROR(F34*(1-VLOOKUP($A34, 'E1 Categorization'!$A$32:$E$124, 5,0))), F34*0.5, F34*(1-VLOOKUP($A34, 'E1 Categorization'!$A$32:$E$124, 5,0))) -> 0 | AE34: =IF(ISERROR(G34*(1-VLOOKUP($A34, 'E1 Categorization'!$A$32:$E$124, 5,0))), G34*0.5, G34*(1-VLOOKUP($A34, 'E1 Categorization'!$A$32:$E$124, 5,0))) -> 0 | AF34: =IF(ISERROR(H34*(1-VLOOKUP($A34, 'E1 Categorization'!$A$32:$E$124, 5,0))), H34*0.5, H34*(1-VLOOKUP($A34, 'E1 Categorization'!$A$32:$E$124, 5,0))) -> 0 | AG34: =IF(ISERROR(I34*(1-VLOOKUP($A34, 'E1 Categorization'!$A$32:$E$124, 5,0))), I34*0.5, I34*(1-VLOOKUP($A34, 'E1 Categorization'!$A$32:$E$124, 5,0))) -> 0 | AH34: =IF(ISERROR(J34*(1-VLOOKUP($A34, 'E1 Categorization'!$A$32:$E$124, 5,0))), J34*0.5, J34*(1-VLOOKUP($A34, 'E1 Categorization'!$A$32:$E$124, 5,0))) -> 0 | AI34: =IF(ISERROR(K34*(1-VLOOKUP($A34, 'E1 Categorization'!$A$32:$E$124, 5,0))), K34*0.5, K34*(1-VLOOKUP($A34, 'E1 Categorization'!$A$32:$E$124, 5,0))) -> 0 | AJ34: =IF(ISERROR(L34*(1-VLOOKUP($A34, 'E1 Categorization'!$A$32:$E$124, 5,0))), L34*0.5, L34*(1-VLOOKUP($A34, 'E1 Categorization'!$A$32:$E$124, 5,0))) -> 0 | AK34: =IF(ISERROR(M34*(1-VLOOKUP($A34, 'E1 Categorization'!$A$32:$E$124, 5,0))), M34*0.5, M34*(1-VLOOKUP($A34, 'E1 Categorization'!$A$32:$E$124, 5,0))) -> 0 | AL34: =IF(ISERROR(N34*(1-VLOOKUP($A34, 'E1 Categorization'!$A$32:$E$124, 5,0))), N34*0.5, N34*(1-VLOOKUP($A34, 'E1 Categorization'!$A$32:$E$124, 5,0))) -> 0 | AM34: =IF(ISERROR(O34*(1-VLOOKUP($A34, 'E1 Categorization'!$A$32:$E$124, 5,0))), O34*0.5, O34*(1-VLOOKUP($A34, 'E1 Categorization'!$A$32:$E$124, 5,0))) -> 0 | AN34: =IF(ISERROR(P34*(1-VLOOKUP($A34, 'E1 Categorization'!$A$32:$E$124, 5,0))), P34*0.5, P34*(1-VLOOKUP($A34, 'E1 Categorization'!$A$32:$E$124, 5,0))) -> 0 | AO34: =IF(ISERROR(Q34*(1-VLOOKUP($A34, 'E1 Categorization'!$A$32:$E$124, 5,0))), Q34*0.5, Q34*(1-VLOOKUP($A34, 'E1 Categorization'!$A$32:$E$124, 5,0))) -> 0 | AP34: =IF(ISERROR(R34*(1-VLOOKUP($A34, 'E1 Categorization'!$A$32:$E$124, 5,0))), R34*0.5, R34*(1-VLOOKUP($A34, 'E1 Categorization'!$A$32:$E$124, 5,0))) -> 0 | AQ34: =IF(ISERROR(S34*(1-VLOOKUP($A34, 'E1 Categorization'!$A$32:$E$124, 5,0))), S34*0.5, S34*(1-VLOOKUP($A34, 'E1 Categorization'!$A$32:$E$124, 5,0))) -> 0 | AR34: =IF(ISERROR(T34*(1-VLOOKUP($A34, 'E1 Categorization'!$A$32:$E$124, 5,0))), T34*0.5, T34*(1-VLOOKUP($A34, 'E1 Categorization'!$A$32:$E$124, 5,0))) -> 0 | AS34: =IF(ISERROR(U34*(1-VLOOKUP($A34, 'E1 Categorization'!$A$32:$E$124, 5,0))), U34*0.5, U34*(1-VLOOKUP($A34, 'E1 Categorization'!$A$32:$E$124, 5,0))) -> 0 | AT34: =IF(ISERROR(V34*(1-VLOOKUP($A34, 'E1 Categorization'!$A$32:$E$124, 5,0))), V34*0.5, V34*(1-VLOOKUP($A34, 'E1 Categorization'!$A$32:$E$124, 5,0))) -> 0 | AU34: =IF(ISERROR(W34*(1-VLOOKUP($A34, 'E1 Categorization'!$A$32:$E$124, 5,0))), W34*0.5, W34*(1-VLOOKUP($A34, 'E1 Categorization'!$A$32:$E$124, 5,0))) -> 0 | AV34: =IF(ISERROR(X34*(1-VLOOKUP($A34, 'E1 Categorization'!$A$32:$E$124, 5,0))), X34*0.5, X34*(1-VLOOKUP($A34, 'E1 Categorization'!$A$32:$E$124, 5,0))) -> 0 | AY34: 1830 | AZ34: Poles, Towers and Fixtures | BA34: =IF(ISERROR(E34*(VLOOKUP($A34, 'E1 Categorization'!$A$32:$E$124, 5,0))), E34*0.5, E34*(VLOOKUP($A34, 'E1 Categorization'!$A$32:$E$124, 5,0))) -> 0 | BB34: =IF(ISERROR(F34*(VLOOKUP($A34, 'E1 Categorization'!$A$32:$E$124, 5,0))), F34*0.5, F34*(VLOOKUP($A34, 'E1 Categorization'!$A$32:$E$124, 5,0))) -> 0 | BC34: =IF(ISERROR(G34*(VLOOKUP($A34, 'E1 Categorization'!$A$32:$E$124, 5,0))), G34*0.5, G34*(VLOOKUP($A34, 'E1 Categorization'!$A$32:$E$124, 5,0))) -> 0 | BD34: =IF(ISERROR(H34*(VLOOKUP($A34, 'E1 Categorization'!$A$32:$E$124, 5,0))), H34*0.5, H34*(VLOOKUP($A34, 'E1 Categorization'!$A$32:$E$124, 5,0))) -> 0 | BE34: =IF(ISERROR(I34*(VLOOKUP($A34, 'E1 Categorization'!$A$32:$E$124, 5,0))), I34*0.5, I34*(VLOOKUP($A34, 'E1 Categorization'!$A$32:$E$124, 5,0))) -> 0 | BF34: =IF(ISERROR(J34*(VLOOKUP($A34, 'E1 Categorization'!$A$32:$E$124, 5,0))), J34*0.5, J34*(VLOOKUP($A34, 'E1 Categorization'!$A$32:$E$124, 5,0))) -> 0 | BG34: =IF(ISERROR(K34*(VLOOKUP($A34, 'E1 Categorization'!$A$32:$E$124, 5,0))), K34*0.5, K34*(VLOOKUP($A34, 'E1 Categorization'!$A$32:$E$124, 5,0))) -> 0 | BH34: =IF(ISERROR(L34*(VLOOKUP($A34, 'E1 Categorization'!$A$32:$E$124, 5,0))), L34*0.5, L34*(VLOOKUP($A34, 'E1 Categorization'!$A$32:$E$124, 5,0))) -> 0 | BI34: =IF(ISERROR(M34*(VLOOKUP($A34, 'E1 Categorization'!$A$32:$E$124, 5,0))), M34*0.5, M34*(VLOOKUP($A34, 'E1 Categorization'!$A$32:$E$124, 5,0))) -> 0 | BJ34: =IF(ISERROR(N34*(VLOOKUP($A34, 'E1 Categorization'!$A$32:$E$124, 5,0))), N34*0.5, N34*(VLOOKUP($A34, 'E1 Categorization'!$A$32:$E$124, 5,0))) -> 0 | BK34: =IF(ISERROR(O34*(VLOOKUP($A34, 'E1 Categorization'!$A$32:$E$124, 5,0))), O34*0.5, O34*(VLOOKUP($A34, 'E1 Categorization'!$A$32:$E$124, 5,0))) -> 0 | BL34: =IF(ISERROR(P34*(VLOOKUP($A34, 'E1 Categorization'!$A$32:$E$124, 5,0))), P34*0.5, P34*(VLOOKUP($A34, 'E1 Categorization'!$A$32:$E$124, 5,0))) -> 0 | BM34: =IF(ISERROR(Q34*(VLOOKUP($A34, 'E1 Categorization'!$A$32:$E$124, 5,0))), Q34*0.5, Q34*(VLOOKUP($A34, 'E1 Categorization'!$A$32:$E$124, 5,0))) -> 0 | BN34: =IF(ISERROR(R34*(VLOOKUP($A34, 'E1 Categorization'!$A$32:$E$124, 5,0))), R34*0.5, R34*(VLOOKUP($A34, 'E1 Categorization'!$A$32:$E$124, 5,0))) -> 0 | BO34: =IF(ISERROR(S34*(VLOOKUP($A34, 'E1 Categorization'!$A$32:$E$124, 5,0))), S34*0.5, S34*(VLOOKUP($A34, 'E1 Categorization'!$A$32:$E$124, 5,0))) -> 0 | BP34: =IF(ISERROR(T34*(VLOOKUP($A34, 'E1 Categorization'!$A$32:$E$124, 5,0))), T34*0.5, T34*(VLOOKUP($A34, 'E1 Categorization'!$A$32:$E$124, 5,0))) -> 0 | BQ34: =IF(ISERROR(U34*(VLOOKUP($A34, 'E1 Categorization'!$A$32:$E$124, 5,0))), U34*0.5, U34*(VLOOKUP($A34, 'E1 Categorization'!$A$32:$E$124, 5,0))) -> 0 | BR34: =IF(ISERROR(V34*(VLOOKUP($A34, 'E1 Categorization'!$A$32:$E$124, 5,0))), V34*0.5, V34*(VLOOKUP($A34, 'E1 Categorization'!$A$32:$E$124, 5,0))) -> 0 | BS34: =IF(ISERROR(W34*(VLOOKUP($A34, 'E1 Categorization'!$A$32:$E$124, 5,0))), W34*0.5, W34*(VLOOKUP($A34, 'E1 Categorization'!$A$32:$E$124, 5,0))) -> 0 | BT34: =IF(ISERROR(X34*(VLOOKUP($A34, 'E1 Categorization'!$A$32:$E$124, 5,0))), X34*0.5, X34*(VLOOKUP($A34, 'E1 Categorization'!$A$32:$E$124, 5,0))) -> 0
A35: ='I3 TB Data'!A141:B141 -> 1835 | B35: ='I3 TB Data'!B141 -> Overhead Conductors and Devices | C35: ='I3 TB Data'!G141 -> 0 | D35: Yes | AA35: 1835 | AB35: Overhead Conductors and Devices | AC35: =IF(ISERROR(E35*(1-VLOOKUP($A35, 'E1 Categorization'!$A$32:$E$124, 5,0))), E35*0.5, E35*(1-VLOOKUP($A35, 'E1 Categorization'!$A$32:$E$124, 5,0))) -> 0 | AD35: =IF(ISERROR(F35*(1-VLOOKUP($A35, 'E1 Categorization'!$A$32:$E$124, 5,0))), F35*0.5, F35*(1-VLOOKUP($A35, 'E1 Categorization'!$A$32:$E$124, 5,0))) -> 0 | AE35: =IF(ISERROR(G35*(1-VLOOKUP($A35, 'E1 Categorization'!$A$32:$E$124, 5,0))), G35*0.5, G35*(1-VLOOKUP($A35, 'E1 Categorization'!$A$32:$E$124, 5,0))) -> 0 | AF35: =IF(ISERROR(H35*(1-VLOOKUP($A35, 'E1 Categorization'!$A$32:$E$124, 5,0))), H35*0.5, H35*(1-VLOOKUP($A35, 'E1 Categorization'!$A$32:$E$124, 5,0))) -> 0 | AG35: =IF(ISERROR(I35*(1-VLOOKUP($A35, 'E1 Categorization'!$A$32:$E$124, 5,0))), I35*0.5, I35*(1-VLOOKUP($A35, 'E1 Categorization'!$A$32:$E$124, 5,0))) -> 0 | AH35: =IF(ISERROR(J35*(1-VLOOKUP($A35, 'E1 Categorization'!$A$32:$E$124, 5,0))), J35*0.5, J35*(1-VLOOKUP($A35, 'E1 Categorization'!$A$32:$E$124, 5,0))) -> 0 | AI35: =IF(ISERROR(K35*(1-VLOOKUP($A35, 'E1 Categorization'!$A$32:$E$124, 5,0))), K35*0.5, K35*(1-VLOOKUP($A35, 'E1 Categorization'!$A$32:$E$124, 5,0))) -> 0 | AJ35: =IF(ISERROR(L35*(1-VLOOKUP($A35, 'E1 Categorization'!$A$32:$E$124, 5,0))), L35*0.5, L35*(1-VLOOKUP($A35, 'E1 Categorization'!$A$32:$E$124, 5,0))) -> 0 | AK35: =IF(ISERROR(M35*(1-VLOOKUP($A35, 'E1 Categorization'!$A$32:$E$124, 5,0))), M35*0.5, M35*(1-VLOOKUP($A35, 'E1 Categorization'!$A$32:$E$124, 5,0))) -> 0 | AL35: =IF(ISERROR(N35*(1-VLOOKUP($A35, 'E1 Categorization'!$A$32:$E$124, 5,0))), N35*0.5, N35*(1-VLOOKUP($A35, 'E1 Categorization'!$A$32:$E$124, 5,0))) -> 0 | AM35: =IF(ISERROR(O35*(1-VLOOKUP($A35, 'E1 Categorization'!$A$32:$E$124, 5,0))), O35*0.5, O35*(1-VLOOKUP($A35, 'E1 Categorization'!$A$32:$E$124, 5,0))) -> 0 | AN35: =IF(ISERROR(P35*(1-VLOOKUP($A35, 'E1 Categorization'!$A$32:$E$124, 5,0))), P35*0.5, P35*(1-VLOOKUP($A35, 'E1 Categorization'!$A$32:$E$124, 5,0))) -> 0 | AO35: =IF(ISERROR(Q35*(1-VLOOKUP($A35, 'E1 Categorization'!$A$32:$E$124, 5,0))), Q35*0.5, Q35*(1-VLOOKUP($A35, 'E1 Categorization'!$A$32:$E$124, 5,0))) -> 0 | AP35: =IF(ISERROR(R35*(1-VLOOKUP($A35, 'E1 Categorization'!$A$32:$E$124, 5,0))), R35*0.5, R35*(1-VLOOKUP($A35, 'E1 Categorization'!$A$32:$E$124, 5,0))) -> 0 | AQ35: =IF(ISERROR(S35*(1-VLOOKUP($A35, 'E1 Categorization'!$A$32:$E$124, 5,0))), S35*0.5, S35*(1-VLOOKUP($A35, 'E1 Categorization'!$A$32:$E$124, 5,0))) -> 0 | AR35: =IF(ISERROR(T35*(1-VLOOKUP($A35, 'E1 Categorization'!$A$32:$E$124, 5,0))), T35*0.5, T35*(1-VLOOKUP($A35, 'E1 Categorization'!$A$32:$E$124, 5,0))) -> 0 | AS35: =IF(ISERROR(U35*(1-VLOOKUP($A35, 'E1 Categorization'!$A$32:$E$124, 5,0))), U35*0.5, U35*(1-VLOOKUP($A35, 'E1 Categorization'!$A$32:$E$124, 5,0))) -> 0 | AT35: =IF(ISERROR(V35*(1-VLOOKUP($A35, 'E1 Categorization'!$A$32:$E$124, 5,0))), V35*0.5, V35*(1-VLOOKUP($A35, 'E1 Categorization'!$A$32:$E$124, 5,0))) -> 0 | AU35: =IF(ISERROR(W35*(1-VLOOKUP($A35, 'E1 Categorization'!$A$32:$E$124, 5,0))), W35*0.5, W35*(1-VLOOKUP($A35, 'E1 Categorization'!$A$32:$E$124, 5,0))) -> 0 | AV35: =IF(ISERROR(X35*(1-VLOOKUP($A35, 'E1 Categorization'!$A$32:$E$124, 5,0))), X35*0.5, X35*(1-VLOOKUP($A35, 'E1 Categorization'!$A$32:$E$124, 5,0))) -> 0 | AY35: 1835 | AZ35: Overhead Conductors and Devices | BA35: =IF(ISERROR(E35*(VLOOKUP($A35, 'E1 Categorization'!$A$32:$E$124, 5,0))), E35*0.5, E35*(VLOOKUP($A35, 'E1 Categorization'!$A$32:$E$124, 5,0))) -> 0 | BB35: =IF(ISERROR(F35*(VLOOKUP($A35, 'E1 Categorization'!$A$32:$E$124, 5,0))), F35*0.5, F35*(VLOOKUP($A35, 'E1 Categorization'!$A$32:$E$124, 5,0))) -> 0 | BC35: =IF(ISERROR(G35*(VLOOKUP($A35, 'E1 Categorization'!$A$32:$E$124, 5,0))), G35*0.5, G35*(VLOOKUP($A35, 'E1 Categorization'!$A$32:$E$124, 5,0))) -> 0 | BD35: =IF(ISERROR(H35*(VLOOKUP($A35, 'E1 Categorization'!$A$32:$E$124, 5,0))), H35*0.5, H35*(VLOOKUP($A35, 'E1 Categorization'!$A$32:$E$124, 5,0))) -> 0 | BE35: =IF(ISERROR(I35*(VLOOKUP($A35, 'E1 Categorization'!$A$32:$E$124, 5,0))), I35*0.5, I35*(VLOOKUP($A35, 'E1 Categorization'!$A$32:$E$124, 5,0))) -> 0 | BF35: =IF(ISERROR(J35*(VLOOKUP($A35, 'E1 Categorization'!$A$32:$E$124, 5,0))), J35*0.5, J35*(VLOOKUP($A35, 'E1 Categorization'!$A$32:$E$124, 5,0))) -> 0 | BG35: =IF(ISERROR(K35*(VLOOKUP($A35, 'E1 Categorization'!$A$32:$E$124, 5,0))), K35*0.5, K35*(VLOOKUP($A35, 'E1 Categorization'!$A$32:$E$124, 5,0))) -> 0 | BH35: =IF(ISERROR(L35*(VLOOKUP($A35, 'E1 Categorization'!$A$32:$E$124, 5,0))), L35*0.5, L35*(VLOOKUP($A35, 'E1 Categorization'!$A$32:$E$124, 5,0))) -> 0 | BI35: =IF(ISERROR(M35*(VLOOKUP($A35, 'E1 Categorization'!$A$32:$E$124, 5,0))), M35*0.5, M35*(VLOOKUP($A35, 'E1 Categorization'!$A$32:$E$124, 5,0))) -> 0 | BJ35: =IF(ISERROR(N35*(VLOOKUP($A35, 'E1 Categorization'!$A$32:$E$124, 5,0))), N35*0.5, N35*(VLOOKUP($A35, 'E1 Categorization'!$A$32:$E$124, 5,0))) -> 0 | BK35: =IF(ISERROR(O35*(VLOOKUP($A35, 'E1 Categorization'!$A$32:$E$124, 5,0))), O35*0.5, O35*(VLOOKUP($A35, 'E1 Categorization'!$A$32:$E$124, 5,0))) -> 0 | BL35: =IF(ISERROR(P35*(VLOOKUP($A35, 'E1 Categorization'!$A$32:$E$124, 5,0))), P35*0.5, P35*(VLOOKUP($A35, 'E1 Categorization'!$A$32:$E$124, 5,0))) -> 0 | BM35: =IF(ISERROR(Q35*(VLOOKUP($A35, 'E1 Categorization'!$A$32:$E$124, 5,0))), Q35*0.5, Q35*(VLOOKUP($A35, 'E1 Categorization'!$A$32:$E$124, 5,0))) -> 0 | BN35: =IF(ISERROR(R35*(VLOOKUP($A35, 'E1 Categorization'!$A$32:$E$124, 5,0))), R35*0.5, R35*(VLOOKUP($A35, 'E1 Categorization'!$A$32:$E$124, 5,0))) -> 0 | BO35: =IF(ISERROR(S35*(VLOOKUP($A35, 'E1 Categorization'!$A$32:$E$124, 5,0))), S35*0.5, S35*(VLOOKUP($A35, 'E1 Categorization'!$A$32:$E$124, 5,0))) -> 0 | BP35: =IF(ISERROR(T35*(VLOOKUP($A35, 'E1 Categorization'!$A$32:$E$124, 5,0))), T35*0.5, T35*(VLOOKUP($A35, 'E1 Categorization'!$A$32:$E$124, 5,0))) -> 0 | BQ35: =IF(ISERROR(U35*(VLOOKUP($A35, 'E1 Categorization'!$A$32:$E$124, 5,0))), U35*0.5, U35*(VLOOKUP($A35, 'E1 Categorization'!$A$32:$E$124, 5,0))) -> 0 | BR35: =IF(ISERROR(V35*(VLOOKUP($A35, 'E1 Categorization'!$A$32:$E$124, 5,0))), V35*0.5, V35*(VLOOKUP($A35, 'E1 Categorization'!$A$32:$E$124, 5,0))) -> 0 | BS35: =IF(ISERROR(W35*(VLOOKUP($A35, 'E1 Categorization'!$A$32:$E$124, 5,0))), W35*0.5, W35*(VLOOKUP($A35, 'E1 Categorization'!$A$32:$E$124, 5,0))) -> 0 | BT35: =IF(ISERROR(X35*(VLOOKUP($A35, 'E1 Categorization'!$A$32:$E$124, 5,0))), X35*0.5, X35*(VLOOKUP($A35, 'E1 Categorization'!$A$32:$E$124, 5,0))) -> 0
A36: ='I3 TB Data'!A142:B142 -> 1840 | B36: ='I3 TB Data'!B142 -> Underground Conduit | C36: ='I3 TB Data'!G142 -> 0 | D36: Yes | AA36: 1840 | AB36: Underground Conduit | AC36: =IF(ISERROR(E36*(1-VLOOKUP($A36, 'E1 Categorization'!$A$32:$E$124, 5,0))), E36*0.5, E36*(1-VLOOKUP($A36, 'E1 Categorization'!$A$32:$E$124, 5,0))) -> 0 | AD36: =IF(ISERROR(F36*(1-VLOOKUP($A36, 'E1 Categorization'!$A$32:$E$124, 5,0))), F36*0.5, F36*(1-VLOOKUP($A36, 'E1 Categorization'!$A$32:$E$124, 5,0))) -> 0 | AE36: =IF(ISERROR(G36*(1-VLOOKUP($A36, 'E1 Categorization'!$A$32:$E$124, 5,0))), G36*0.5, G36*(1-VLOOKUP($A36, 'E1 Categorization'!$A$32:$E$124, 5,0))) -> 0 | AF36: =IF(ISERROR(H36*(1-VLOOKUP($A36, 'E1 Categorization'!$A$32:$E$124, 5,0))), H36*0.5, H36*(1-VLOOKUP($A36, 'E1 Categorization'!$A$32:$E$124, 5,0))) -> 0 | AG36: =IF(ISERROR(I36*(1-VLOOKUP($A36, 'E1 Categorization'!$A$32:$E$124, 5,0))), I36*0.5, I36*(1-VLOOKUP($A36, 'E1 Categorization'!$A$32:$E$124, 5,0))) -> 0 | AH36: =IF(ISERROR(J36*(1-VLOOKUP($A36, 'E1 Categorization'!$A$32:$E$124, 5,0))), J36*0.5, J36*(1-VLOOKUP($A36, 'E1 Categorization'!$A$32:$E$124, 5,0))) -> 0 | AI36: =IF(ISERROR(K36*(1-VLOOKUP($A36, 'E1 Categorization'!$A$32:$E$124, 5,0))), K36*0.5, K36*(1-VLOOKUP($A36, 'E1 Categorization'!$A$32:$E$124, 5,0))) -> 0 | AJ36: =IF(ISERROR(L36*(1-VLOOKUP($A36, 'E1 Categorization'!$A$32:$E$124, 5,0))), L36*0.5, L36*(1-VLOOKUP($A36, 'E1 Categorization'!$A$32:$E$124, 5,0))) -> 0 | AK36: =IF(ISERROR(M36*(1-VLOOKUP($A36, 'E1 Categorization'!$A$32:$E$124, 5,0))), M36*0.5, M36*(1-VLOOKUP($A36, 'E1 Categorization'!$A$32:$E$124, 5,0))) -> 0 | AL36: =IF(ISERROR(N36*(1-VLOOKUP($A36, 'E1 Categorization'!$A$32:$E$124, 5,0))), N36*0.5, N36*(1-VLOOKUP($A36, 'E1 Categorization'!$A$32:$E$124, 5,0))) -> 0 | AM36: =IF(ISERROR(O36*(1-VLOOKUP($A36, 'E1 Categorization'!$A$32:$E$124, 5,0))), O36*0.5, O36*(1-VLOOKUP($A36, 'E1 Categorization'!$A$32:$E$124, 5,0))) -> 0 | AN36: =IF(ISERROR(P36*(1-VLOOKUP($A36, 'E1 Categorization'!$A$32:$E$124, 5,0))), P36*0.5, P36*(1-VLOOKUP($A36, 'E1 Categorization'!$A$32:$E$124, 5,0))) -> 0 | AO36: =IF(ISERROR(Q36*(1-VLOOKUP($A36, 'E1 Categorization'!$A$32:$E$124, 5,0))), Q36*0.5, Q36*(1-VLOOKUP($A36, 'E1 Categorization'!$A$32:$E$124, 5,0))) -> 0 | AP36: =IF(ISERROR(R36*(1-VLOOKUP($A36, 'E1 Categorization'!$A$32:$E$124, 5,0))), R36*0.5, R36*(1-VLOOKUP($A36, 'E1 Categorization'!$A$32:$E$124, 5,0))) -> 0 | AQ36: =IF(ISERROR(S36*(1-VLOOKUP($A36, 'E1 Categorization'!$A$32:$E$124, 5,0))), S36*0.5, S36*(1-VLOOKUP($A36, 'E1 Categorization'!$A$32:$E$124, 5,0))) -> 0 | AR36: =IF(ISERROR(T36*(1-VLOOKUP($A36, 'E1 Categorization'!$A$32:$E$124, 5,0))), T36*0.5, T36*(1-VLOOKUP($A36, 'E1 Categorization'!$A$32:$E$124, 5,0))) -> 0 | AS36: =IF(ISERROR(U36*(1-VLOOKUP($A36, 'E1 Categorization'!$A$32:$E$124, 5,0))), U36*0.5, U36*(1-VLOOKUP($A36, 'E1 Categorization'!$A$32:$E$124, 5,0))) -> 0 | AT36: =IF(ISERROR(V36*(1-VLOOKUP($A36, 'E1 Categorization'!$A$32:$E$124, 5,0))), V36*0.5, V36*(1-VLOOKUP($A36, 'E1 Categorization'!$A$32:$E$124, 5,0))) -> 0 | AU36: =IF(ISERROR(W36*(1-VLOOKUP($A36, 'E1 Categorization'!$A$32:$E$124, 5,0))), W36*0.5, W36*(1-VLOOKUP($A36, 'E1 Categorization'!$A$32:$E$124, 5,0))) -> 0 | AV36: =IF(ISERROR(X36*(1-VLOOKUP($A36, 'E1 Categorization'!$A$32:$E$124, 5,0))), X36*0.5, X36*(1-VLOOKUP($A36, 'E1 Categorization'!$A$32:$E$124, 5,0))) -> 0 | AY36: 1840 | AZ36: Underground Conduit | BA36: =IF(ISERROR(E36*(VLOOKUP($A36, 'E1 Categorization'!$A$32:$E$124, 5,0))), E36*0.5, E36*(VLOOKUP($A36, 'E1 Categorization'!$A$32:$E$124, 5,0))) -> 0 | BB36: =IF(ISERROR(F36*(VLOOKUP($A36, 'E1 Categorization'!$A$32:$E$124, 5,0))), F36*0.5, F36*(VLOOKUP($A36, 'E1 Categorization'!$A$32:$E$124, 5,0))) -> 0 | BC36: =IF(ISERROR(G36*(VLOOKUP($A36, 'E1 Categorization'!$A$32:$E$124, 5,0))), G36*0.5, G36*(VLOOKUP($A36, 'E1 Categorization'!$A$32:$E$124, 5,0))) -> 0 | BD36: =IF(ISERROR(H36*(VLOOKUP($A36, 'E1 Categorization'!$A$32:$E$124, 5,0))), H36*0.5, H36*(VLOOKUP($A36, 'E1 Categorization'!$A$32:$E$124, 5,0))) -> 0 | BE36: =IF(ISERROR(I36*(VLOOKUP($A36, 'E1 Categorization'!$A$32:$E$124, 5,0))), I36*0.5, I36*(VLOOKUP($A36, 'E1 Categorization'!$A$32:$E$124, 5,0))) -> 0 | BF36: =IF(ISERROR(J36*(VLOOKUP($A36, 'E1 Categorization'!$A$32:$E$124, 5,0))), J36*0.5, J36*(VLOOKUP($A36, 'E1 Categorization'!$A$32:$E$124, 5,0))) -> 0 | BG36: =IF(ISERROR(K36*(VLOOKUP($A36, 'E1 Categorization'!$A$32:$E$124, 5,0))), K36*0.5, K36*(VLOOKUP($A36, 'E1 Categorization'!$A$32:$E$124, 5,0))) -> 0 | BH36: =IF(ISERROR(L36*(VLOOKUP($A36, 'E1 Categorization'!$A$32:$E$124, 5,0))), L36*0.5, L36*(VLOOKUP($A36, 'E1 Categorization'!$A$32:$E$124, 5,0))) -> 0 | BI36: =IF(ISERROR(M36*(VLOOKUP($A36, 'E1 Categorization'!$A$32:$E$124, 5,0))), M36*0.5, M36*(VLOOKUP($A36, 'E1 Categorization'!$A$32:$E$124, 5,0))) -> 0 | BJ36: =IF(ISERROR(N36*(VLOOKUP($A36, 'E1 Categorization'!$A$32:$E$124, 5,0))), N36*0.5, N36*(VLOOKUP($A36, 'E1 Categorization'!$A$32:$E$124, 5,0))) -> 0 | BK36: =IF(ISERROR(O36*(VLOOKUP($A36, 'E1 Categorization'!$A$32:$E$124, 5,0))), O36*0.5, O36*(VLOOKUP($A36, 'E1 Categorization'!$A$32:$E$124, 5,0))) -> 0 | BL36: =IF(ISERROR(P36*(VLOOKUP($A36, 'E1 Categorization'!$A$32:$E$124, 5,0))), P36*0.5, P36*(VLOOKUP($A36, 'E1 Categorization'!$A$32:$E$124, 5,0))) -> 0 | BM36: =IF(ISERROR(Q36*(VLOOKUP($A36, 'E1 Categorization'!$A$32:$E$124, 5,0))), Q36*0.5, Q36*(VLOOKUP($A36, 'E1 Categorization'!$A$32:$E$124, 5,0))) -> 0 | BN36: =IF(ISERROR(R36*(VLOOKUP($A36, 'E1 Categorization'!$A$32:$E$124, 5,0))), R36*0.5, R36*(VLOOKUP($A36, 'E1 Categorization'!$A$32:$E$124, 5,0))) -> 0 | BO36: =IF(ISERROR(S36*(VLOOKUP($A36, 'E1 Categorization'!$A$32:$E$124, 5,0))), S36*0.5, S36*(VLOOKUP($A36, 'E1 Categorization'!$A$32:$E$124, 5,0))) -> 0 | BP36: =IF(ISERROR(T36*(VLOOKUP($A36, 'E1 Categorization'!$A$32:$E$124, 5,0))), T36*0.5, T36*(VLOOKUP($A36, 'E1 Categorization'!$A$32:$E$124, 5,0))) -> 0 | BQ36: =IF(ISERROR(U36*(VLOOKUP($A36, 'E1 Categorization'!$A$32:$E$124, 5,0))), U36*0.5, U36*(VLOOKUP($A36, 'E1 Categorization'!$A$32:$E$124, 5,0))) -> 0 | BR36: =IF(ISERROR(V36*(VLOOKUP($A36, 'E1 Categorization'!$A$32:$E$124, 5,0))), V36*0.5, V36*(VLOOKUP($A36, 'E1 Categorization'!$A$32:$E$124, 5,0))) -> 0 | BS36: =IF(ISERROR(W36*(VLOOKUP($A36, 'E1 Categorization'!$A$32:$E$124, 5,0))), W36*0.5, W36*(VLOOKUP($A36, 'E1 Categorization'!$A$32:$E$124, 5,0))) -> 0 | BT36: =IF(ISERROR(X36*(VLOOKUP($A36, 'E1 Categorization'!$A$32:$E$124, 5,0))), X36*0.5, X36*(VLOOKUP($A36, 'E1 Categorization'!$A$32:$E$124, 5,0))) -> 0
A37: ='I3 TB Data'!A143:B143 -> 1845 | B37: ='I3 TB Data'!B143 -> Underground Conductors and Devices | C37: ='I3 TB Data'!G143 -> 0 | D37: Yes | AA37: 1845 | AB37: Underground Conductors and Devices | AC37: =IF(ISERROR(E37*(1-VLOOKUP($A37, 'E1 Categorization'!$A$32:$E$124, 5,0))), E37*0.5, E37*(1-VLOOKUP($A37, 'E1 Categorization'!$A$32:$E$124, 5,0))) -> 0 | AD37: =IF(ISERROR(F37*(1-VLOOKUP($A37, 'E1 Categorization'!$A$32:$E$124, 5,0))), F37*0.5, F37*(1-VLOOKUP($A37, 'E1 Categorization'!$A$32:$E$124, 5,0))) -> 0 | AE37: =IF(ISERROR(G37*(1-VLOOKUP($A37, 'E1 Categorization'!$A$32:$E$124, 5,0))), G37*0.5, G37*(1-VLOOKUP($A37, 'E1 Categorization'!$A$32:$E$124, 5,0))) -> 0 | AF37: =IF(ISERROR(H37*(1-VLOOKUP($A37, 'E1 Categorization'!$A$32:$E$124, 5,0))), H37*0.5, H37*(1-VLOOKUP($A37, 'E1 Categorization'!$A$32:$E$124, 5,0))) -> 0 | AG37: =IF(ISERROR(I37*(1-VLOOKUP($A37, 'E1 Categorization'!$A$32:$E$124, 5,0))), I37*0.5, I37*(1-VLOOKUP($A37, 'E1 Categorization'!$A$32:$E$124, 5,0))) -> 0 | AH37: =IF(ISERROR(J37*(1-VLOOKUP($A37, 'E1 Categorization'!$A$32:$E$124, 5,0))), J37*0.5, J37*(1-VLOOKUP($A37, 'E1 Categorization'!$A$32:$E$124, 5,0))) -> 0 | AI37: =IF(ISERROR(K37*(1-VLOOKUP($A37, 'E1 Categorization'!$A$32:$E$124, 5,0))), K37*0.5, K37*(1-VLOOKUP($A37, 'E1 Categorization'!$A$32:$E$124, 5,0))) -> 0 | AJ37: =IF(ISERROR(L37*(1-VLOOKUP($A37, 'E1 Categorization'!$A$32:$E$124, 5,0))), L37*0.5, L37*(1-VLOOKUP($A37, 'E1 Categorization'!$A$32:$E$124, 5,0))) -> 0 | AK37: =IF(ISERROR(M37*(1-VLOOKUP($A37, 'E1 Categorization'!$A$32:$E$124, 5,0))), M37*0.5, M37*(1-VLOOKUP($A37, 'E1 Categorization'!$A$32:$E$124, 5,0))) -> 0 | AL37: =IF(ISERROR(N37*(1-VLOOKUP($A37, 'E1 Categorization'!$A$32:$E$124, 5,0))), N37*0.5, N37*(1-VLOOKUP($A37, 'E1 Categorization'!$A$32:$E$124, 5,0))) -> 0 | AM37: =IF(ISERROR(O37*(1-VLOOKUP($A37, 'E1 Categorization'!$A$32:$E$124, 5,0))), O37*0.5, O37*(1-VLOOKUP($A37, 'E1 Categorization'!$A$32:$E$124, 5,0))) -> 0 | AN37: =IF(ISERROR(P37*(1-VLOOKUP($A37, 'E1 Categorization'!$A$32:$E$124, 5,0))), P37*0.5, P37*(1-VLOOKUP($A37, 'E1 Categorization'!$A$32:$E$124, 5,0))) -> 0 | AO37: =IF(ISERROR(Q37*(1-VLOOKUP($A37, 'E1 Categorization'!$A$32:$E$124, 5,0))), Q37*0.5, Q37*(1-VLOOKUP($A37, 'E1 Categorization'!$A$32:$E$124, 5,0))) -> 0 | AP37: =IF(ISERROR(R37*(1-VLOOKUP($A37, 'E1 Categorization'!$A$32:$E$124, 5,0))), R37*0.5, R37*(1-VLOOKUP($A37, 'E1 Categorization'!$A$32:$E$124, 5,0))) -> 0 | AQ37: =IF(ISERROR(S37*(1-VLOOKUP($A37, 'E1 Categorization'!$A$32:$E$124, 5,0))), S37*0.5, S37*(1-VLOOKUP($A37, 'E1 Categorization'!$A$32:$E$124, 5,0))) -> 0 | AR37: =IF(ISERROR(T37*(1-VLOOKUP($A37, 'E1 Categorization'!$A$32:$E$124, 5,0))), T37*0.5, T37*(1-VLOOKUP($A37, 'E1 Categorization'!$A$32:$E$124, 5,0))) -> 0 | AS37: =IF(ISERROR(U37*(1-VLOOKUP($A37, 'E1 Categorization'!$A$32:$E$124, 5,0))), U37*0.5, U37*(1-VLOOKUP($A37, 'E1 Categorization'!$A$32:$E$124, 5,0))) -> 0 | AT37: =IF(ISERROR(V37*(1-VLOOKUP($A37, 'E1 Categorization'!$A$32:$E$124, 5,0))), V37*0.5, V37*(1-VLOOKUP($A37, 'E1 Categorization'!$A$32:$E$124, 5,0))) -> 0 | AU37: =IF(ISERROR(W37*(1-VLOOKUP($A37, 'E1 Categorization'!$A$32:$E$124, 5,0))), W37*0.5, W37*(1-VLOOKUP($A37, 'E1 Categorization'!$A$32:$E$124, 5,0))) -> 0 | AV37: =IF(ISERROR(X37*(1-VLOOKUP($A37, 'E1 Categorization'!$A$32:$E$124, 5,0))), X37*0.5, X37*(1-VLOOKUP($A37, 'E1 Categorization'!$A$32:$E$124, 5,0))) -> 0 | AY37: 1845 | AZ37: Underground Conductors and Devices | BA37: =IF(ISERROR(E37*(VLOOKUP($A37, 'E1 Categorization'!$A$32:$E$124, 5,0))), E37*0.5, E37*(VLOOKUP($A37, 'E1 Categorization'!$A$32:$E$124, 5,0))) -> 0 | BB37: =IF(ISERROR(F37*(VLOOKUP($A37, 'E1 Categorization'!$A$32:$E$124, 5,0))), F37*0.5, F37*(VLOOKUP($A37, 'E1 Categorization'!$A$32:$E$124, 5,0))) -> 0 | BC37: =IF(ISERROR(G37*(VLOOKUP($A37, 'E1 Categorization'!$A$32:$E$124, 5,0))), G37*0.5, G37*(VLOOKUP($A37, 'E1 Categorization'!$A$32:$E$124, 5,0))) -> 0 | BD37: =IF(ISERROR(H37*(VLOOKUP($A37, 'E1 Categorization'!$A$32:$E$124, 5,0))), H37*0.5, H37*(VLOOKUP($A37, 'E1 Categorization'!$A$32:$E$124, 5,0))) -> 0 | BE37: =IF(ISERROR(I37*(VLOOKUP($A37, 'E1 Categorization'!$A$32:$E$124, 5,0))), I37*0.5, I37*(VLOOKUP($A37, 'E1 Categorization'!$A$32:$E$124, 5,0))) -> 0 | BF37: =IF(ISERROR(J37*(VLOOKUP($A37, 'E1 Categorization'!$A$32:$E$124, 5,0))), J37*0.5, J37*(VLOOKUP($A37, 'E1 Categorization'!$A$32:$E$124, 5,0))) -> 0 | BG37: =IF(ISERROR(K37*(VLOOKUP($A37, 'E1 Categorization'!$A$32:$E$124, 5,0))), K37*0.5, K37*(VLOOKUP($A37, 'E1 Categorization'!$A$32:$E$124, 5,0))) -> 0 | BH37: =IF(ISERROR(L37*(VLOOKUP($A37, 'E1 Categorization'!$A$32:$E$124, 5,0))), L37*0.5, L37*(VLOOKUP($A37, 'E1 Categorization'!$A$32:$E$124, 5,0))) -> 0 | BI37: =IF(ISERROR(M37*(VLOOKUP($A37, 'E1 Categorization'!$A$32:$E$124, 5,0))), M37*0.5, M37*(VLOOKUP($A37, 'E1 Categorization'!$A$32:$E$124, 5,0))) -> 0 | BJ37: =IF(ISERROR(N37*(VLOOKUP($A37, 'E1 Categorization'!$A$32:$E$124, 5,0))), N37*0.5, N37*(VLOOKUP($A37, 'E1 Categorization'!$A$32:$E$124, 5,0))) -> 0 | BK37: =IF(ISERROR(O37*(VLOOKUP($A37, 'E1 Categorization'!$A$32:$E$124, 5,0))), O37*0.5, O37*(VLOOKUP($A37, 'E1 Categorization'!$A$32:$E$124, 5,0))) -> 0 | BL37: =IF(ISERROR(P37*(VLOOKUP($A37, 'E1 Categorization'!$A$32:$E$124, 5,0))), P37*0.5, P37*(VLOOKUP($A37, 'E1 Categorization'!$A$32:$E$124, 5,0))) -> 0 | BM37: =IF(ISERROR(Q37*(VLOOKUP($A37, 'E1 Categorization'!$A$32:$E$124, 5,0))), Q37*0.5, Q37*(VLOOKUP($A37, 'E1 Categorization'!$A$32:$E$124, 5,0))) -> 0 | BN37: =IF(ISERROR(R37*(VLOOKUP($A37, 'E1 Categorization'!$A$32:$E$124, 5,0))), R37*0.5, R37*(VLOOKUP($A37, 'E1 Categorization'!$A$32:$E$124, 5,0))) -> 0 | BO37: =IF(ISERROR(S37*(VLOOKUP($A37, 'E1 Categorization'!$A$32:$E$124, 5,0))), S37*0.5, S37*(VLOOKUP($A37, 'E1 Categorization'!$A$32:$E$124, 5,0))) -> 0 | BP37: =IF(ISERROR(T37*(VLOOKUP($A37, 'E1 Categorization'!$A$32:$E$124, 5,0))), T37*0.5, T37*(VLOOKUP($A37, 'E1 Categorization'!$A$32:$E$124, 5,0))) -> 0 | BQ37: =IF(ISERROR(U37*(VLOOKUP($A37, 'E1 Categorization'!$A$32:$E$124, 5,0))), U37*0.5, U37*(VLOOKUP($A37, 'E1 Categorization'!$A$32:$E$124, 5,0))) -> 0 | BR37: =IF(ISERROR(V37*(VLOOKUP($A37, 'E1 Categorization'!$A$32:$E$124, 5,0))), V37*0.5, V37*(VLOOKUP($A37, 'E1 Categorization'!$A$32:$E$124, 5,0))) -> 0 | BS37: =IF(ISERROR(W37*(VLOOKUP($A37, 'E1 Categorization'!$A$32:$E$124, 5,0))), W37*0.5, W37*(VLOOKUP($A37, 'E1 Categorization'!$A$32:$E$124, 5,0))) -> 0 | BT37: =IF(ISERROR(X37*(VLOOKUP($A37, 'E1 Categorization'!$A$32:$E$124, 5,0))), X37*0.5, X37*(VLOOKUP($A37, 'E1 Categorization'!$A$32:$E$124, 5,0))) -> 0
A38: ='I3 TB Data'!A144:B144 -> 1850 | B38: ='I3 TB Data'!B144 -> Line Transformers | C38: ='I3 TB Data'!G144 -> 0 | D38: Yes | AA38: 1850 | AB38: Line Transformers | AC38: =IF(ISERROR(E38*(1-VLOOKUP($A38, 'E1 Categorization'!$A$32:$E$124, 5,0))), E38*0.5, E38*(1-VLOOKUP($A38, 'E1 Categorization'!$A$32:$E$124, 5,0))) -> 0 | AD38: =IF(ISERROR(F38*(1-VLOOKUP($A38, 'E1 Categorization'!$A$32:$E$124, 5,0))), F38*0.5, F38*(1-VLOOKUP($A38, 'E1 Categorization'!$A$32:$E$124, 5,0))) -> 0 | AE38: =IF(ISERROR(G38*(1-VLOOKUP($A38, 'E1 Categorization'!$A$32:$E$124, 5,0))), G38*0.5, G38*(1-VLOOKUP($A38, 'E1 Categorization'!$A$32:$E$124, 5,0))) -> 0 | AF38: =IF(ISERROR(H38*(1-VLOOKUP($A38, 'E1 Categorization'!$A$32:$E$124, 5,0))), H38*0.5, H38*(1-VLOOKUP($A38, 'E1 Categorization'!$A$32:$E$124, 5,0))) -> 0 | AG38: =IF(ISERROR(I38*(1-VLOOKUP($A38, 'E1 Categorization'!$A$32:$E$124, 5,0))), I38*0.5, I38*(1-VLOOKUP($A38, 'E1 Categorization'!$A$32:$E$124, 5,0))) -> 0 | AH38: =IF(ISERROR(J38*(1-VLOOKUP($A38, 'E1 Categorization'!$A$32:$E$124, 5,0))), J38*0.5, J38*(1-VLOOKUP($A38, 'E1 Categorization'!$A$32:$E$124, 5,0))) -> 0 | AI38: =IF(ISERROR(K38*(1-VLOOKUP($A38, 'E1 Categorization'!$A$32:$E$124, 5,0))), K38*0.5, K38*(1-VLOOKUP($A38, 'E1 Categorization'!$A$32:$E$124, 5,0))) -> 0 | AJ38: =IF(ISERROR(L38*(1-VLOOKUP($A38, 'E1 Categorization'!$A$32:$E$124, 5,0))), L38*0.5, L38*(1-VLOOKUP($A38, 'E1 Categorization'!$A$32:$E$124, 5,0))) -> 0 | AK38: =IF(ISERROR(M38*(1-VLOOKUP($A38, 'E1 Categorization'!$A$32:$E$124, 5,0))), M38*0.5, M38*(1-VLOOKUP($A38, 'E1 Categorization'!$A$32:$E$124, 5,0))) -> 0 | AL38: =IF(ISERROR(N38*(1-VLOOKUP($A38, 'E1 Categorization'!$A$32:$E$124, 5,0))), N38*0.5, N38*(1-VLOOKUP($A38, 'E1 Categorization'!$A$32:$E$124, 5,0))) -> 0 | AM38: =IF(ISERROR(O38*(1-VLOOKUP($A38, 'E1 Categorization'!$A$32:$E$124, 5,0))), O38*0.5, O38*(1-VLOOKUP($A38, 'E1 Categorization'!$A$32:$E$124, 5,0))) -> 0 | AN38: =IF(ISERROR(P38*(1-VLOOKUP($A38, 'E1 Categorization'!$A$32:$E$124, 5,0))), P38*0.5, P38*(1-VLOOKUP($A38, 'E1 Categorization'!$A$32:$E$124, 5,0))) -> 0 | AO38: =IF(ISERROR(Q38*(1-VLOOKUP($A38, 'E1 Categorization'!$A$32:$E$124, 5,0))), Q38*0.5, Q38*(1-VLOOKUP($A38, 'E1 Categorization'!$A$32:$E$124, 5,0))) -> 0 | AP38: =IF(ISERROR(R38*(1-VLOOKUP($A38, 'E1 Categorization'!$A$32:$E$124, 5,0))), R38*0.5, R38*(1-VLOOKUP($A38, 'E1 Categorization'!$A$32:$E$124, 5,0))) -> 0 | AQ38: =IF(ISERROR(S38*(1-VLOOKUP($A38, 'E1 Categorization'!$A$32:$E$124, 5,0))), S38*0.5, S38*(1-VLOOKUP($A38, 'E1 Categorization'!$A$32:$E$124, 5,0))) -> 0 | AR38: =IF(ISERROR(T38*(1-VLOOKUP($A38, 'E1 Categorization'!$A$32:$E$124, 5,0))), T38*0.5, T38*(1-VLOOKUP($A38, 'E1 Categorization'!$A$32:$E$124, 5,0))) -> 0 | AS38: =IF(ISERROR(U38*(1-VLOOKUP($A38, 'E1 Categorization'!$A$32:$E$124, 5,0))), U38*0.5, U38*(1-VLOOKUP($A38, 'E1 Categorization'!$A$32:$E$124, 5,0))) -> 0 | AT38: =IF(ISERROR(V38*(1-VLOOKUP($A38, 'E1 Categorization'!$A$32:$E$124, 5,0))), V38*0.5, V38*(1-VLOOKUP($A38, 'E1 Categorization'!$A$32:$E$124, 5,0))) -> 0 | AU38: =IF(ISERROR(W38*(1-VLOOKUP($A38, 'E1 Categorization'!$A$32:$E$124, 5,0))), W38*0.5, W38*(1-VLOOKUP($A38, 'E1 Categorization'!$A$32:$E$124, 5,0))) -> 0 | AV38: =IF(ISERROR(X38*(1-VLOOKUP($A38, 'E1 Categorization'!$A$32:$E$124, 5,0))), X38*0.5, X38*(1-VLOOKUP($A38, 'E1 Categorization'!$A$32:$E$124, 5,0))) -> 0 | AY38: 1850 | AZ38: Line Transformers | BA38: =IF(ISERROR(E38*(VLOOKUP($A38, 'E1 Categorization'!$A$32:$E$124, 5,0))), E38*0.5, E38*(VLOOKUP($A38, 'E1 Categorization'!$A$32:$E$124, 5,0))) -> 0 | BB38: =IF(ISERROR(F38*(VLOOKUP($A38, 'E1 Categorization'!$A$32:$E$124, 5,0))), F38*0.5, F38*(VLOOKUP($A38, 'E1 Categorization'!$A$32:$E$124, 5,0))) -> 0 | BC38: =IF(ISERROR(G38*(VLOOKUP($A38, 'E1 Categorization'!$A$32:$E$124, 5,0))), G38*0.5, G38*(VLOOKUP($A38, 'E1 Categorization'!$A$32:$E$124, 5,0))) -> 0 | BD38: =IF(ISERROR(H38*(VLOOKUP($A38, 'E1 Categorization'!$A$32:$E$124, 5,0))), H38*0.5, H38*(VLOOKUP($A38, 'E1 Categorization'!$A$32:$E$124, 5,0))) -> 0 | BE38: =IF(ISERROR(I38*(VLOOKUP($A38, 'E1 Categorization'!$A$32:$E$124, 5,0))), I38*0.5, I38*(VLOOKUP($A38, 'E1 Categorization'!$A$32:$E$124, 5,0))) -> 0 | BF38: =IF(ISERROR(J38*(VLOOKUP($A38, 'E1 Categorization'!$A$32:$E$124, 5,0))), J38*0.5, J38*(VLOOKUP($A38, 'E1 Categorization'!$A$32:$E$124, 5,0))) -> 0 | BG38: =IF(ISERROR(K38*(VLOOKUP($A38, 'E1 Categorization'!$A$32:$E$124, 5,0))), K38*0.5, K38*(VLOOKUP($A38, 'E1 Categorization'!$A$32:$E$124, 5,0))) -> 0 | BH38: =IF(ISERROR(L38*(VLOOKUP($A38, 'E1 Categorization'!$A$32:$E$124, 5,0))), L38*0.5, L38*(VLOOKUP($A38, 'E1 Categorization'!$A$32:$E$124, 5,0))) -> 0 | BI38: =IF(ISERROR(M38*(VLOOKUP($A38, 'E1 Categorization'!$A$32:$E$124, 5,0))), M38*0.5, M38*(VLOOKUP($A38, 'E1 Categorization'!$A$32:$E$124, 5,0))) -> 0 | BJ38: =IF(ISERROR(N38*(VLOOKUP($A38, 'E1 Categorization'!$A$32:$E$124, 5,0))), N38*0.5, N38*(VLOOKUP($A38, 'E1 Categorization'!$A$32:$E$124, 5,0))) -> 0 | BK38: =IF(ISERROR(O38*(VLOOKUP($A38, 'E1 Categorization'!$A$32:$E$124, 5,0))), O38*0.5, O38*(VLOOKUP($A38, 'E1 Categorization'!$A$32:$E$124, 5,0))) -> 0 | BL38: =IF(ISERROR(P38*(VLOOKUP($A38, 'E1 Categorization'!$A$32:$E$124, 5,0))), P38*0.5, P38*(VLOOKUP($A38, 'E1 Categorization'!$A$32:$E$124, 5,0))) -> 0 | BM38: =IF(ISERROR(Q38*(VLOOKUP($A38, 'E1 Categorization'!$A$32:$E$124, 5,0))), Q38*0.5, Q38*(VLOOKUP($A38, 'E1 Categorization'!$A$32:$E$124, 5,0))) -> 0 | BN38: =IF(ISERROR(R38*(VLOOKUP($A38, 'E1 Categorization'!$A$32:$E$124, 5,0))), R38*0.5, R38*(VLOOKUP($A38, 'E1 Categorization'!$A$32:$E$124, 5,0))) -> 0 | BO38: =IF(ISERROR(S38*(VLOOKUP($A38, 'E1 Categorization'!$A$32:$E$124, 5,0))), S38*0.5, S38*(VLOOKUP($A38, 'E1 Categorization'!$A$32:$E$124, 5,0))) -> 0 | BP38: =IF(ISERROR(T38*(VLOOKUP($A38, 'E1 Categorization'!$A$32:$E$124, 5,0))), T38*0.5, T38*(VLOOKUP($A38, 'E1 Categorization'!$A$32:$E$124, 5,0))) -> 0 | BQ38: =IF(ISERROR(U38*(VLOOKUP($A38, 'E1 Categorization'!$A$32:$E$124, 5,0))), U38*0.5, U38*(VLOOKUP($A38, 'E1 Categorization'!$A$32:$E$124, 5,0))) -> 0 | BR38: =IF(ISERROR(V38*(VLOOKUP($A38, 'E1 Categorization'!$A$32:$E$124, 5,0))), V38*0.5, V38*(VLOOKUP($A38, 'E1 Categorization'!$A$32:$E$124, 5,0))) -> 0 | BS38: =IF(ISERROR(W38*(VLOOKUP($A38, 'E1 Categorization'!$A$32:$E$124, 5,0))), W38*0.5, W38*(VLOOKUP($A38, 'E1 Categorization'!$A$32:$E$124, 5,0))) -> 0 | BT38: =IF(ISERROR(X38*(VLOOKUP($A38, 'E1 Categorization'!$A$32:$E$124, 5,0))), X38*0.5, X38*(VLOOKUP($A38, 'E1 Categorization'!$A$32:$E$124, 5,0))) -> 0
A39: ='I3 TB Data'!A145:B145 -> 1855 | B39: ='I3 TB Data'!B145 -> Services | C39: ='I3 TB Data'!G145 -> 0 | D39: Yes | AA39: 1855 | AB39: Services | AC39: =IF(ISERROR(E39*(1-VLOOKUP($A39, 'E1 Categorization'!$A$32:$E$124, 5,0))), E39*0.5, E39*(1-VLOOKUP($A39, 'E1 Categorization'!$A$32:$E$124, 5,0))) -> 0 | AD39: =IF(ISERROR(F39*(1-VLOOKUP($A39, 'E1 Categorization'!$A$32:$E$124, 5,0))), F39*0.5, F39*(1-VLOOKUP($A39, 'E1 Categorization'!$A$32:$E$124, 5,0))) -> 0 | AE39: =IF(ISERROR(G39*(1-VLOOKUP($A39, 'E1 Categorization'!$A$32:$E$124, 5,0))), G39*0.5, G39*(1-VLOOKUP($A39, 'E1 Categorization'!$A$32:$E$124, 5,0))) -> 0 | AF39: =IF(ISERROR(H39*(1-VLOOKUP($A39, 'E1 Categorization'!$A$32:$E$124, 5,0))), H39*0.5, H39*(1-VLOOKUP($A39, 'E1 Categorization'!$A$32:$E$124, 5,0))) -> 0 | AG39: =IF(ISERROR(I39*(1-VLOOKUP($A39, 'E1 Categorization'!$A$32:$E$124, 5,0))), I39*0.5, I39*(1-VLOOKUP($A39, 'E1 Categorization'!$A$32:$E$124, 5,0))) -> 0 | AH39: =IF(ISERROR(J39*(1-VLOOKUP($A39, 'E1 Categorization'!$A$32:$E$124, 5,0))), J39*0.5, J39*(1-VLOOKUP($A39, 'E1 Categorization'!$A$32:$E$124, 5,0))) -> 0 | AI39: =IF(ISERROR(K39*(1-VLOOKUP($A39, 'E1 Categorization'!$A$32:$E$124, 5,0))), K39*0.5, K39*(1-VLOOKUP($A39, 'E1 Categorization'!$A$32:$E$124, 5,0))) -> 0 | AJ39: =IF(ISERROR(L39*(1-VLOOKUP($A39, 'E1 Categorization'!$A$32:$E$124, 5,0))), L39*0.5, L39*(1-VLOOKUP($A39, 'E1 Categorization'!$A$32:$E$124, 5,0))) -> 0 | AK39: =IF(ISERROR(M39*(1-VLOOKUP($A39, 'E1 Categorization'!$A$32:$E$124, 5,0))), M39*0.5, M39*(1-VLOOKUP($A39, 'E1 Categorization'!$A$32:$E$124, 5,0))) -> 0 | AL39: =IF(ISERROR(N39*(1-VLOOKUP($A39, 'E1 Categorization'!$A$32:$E$124, 5,0))), N39*0.5, N39*(1-VLOOKUP($A39, 'E1 Categorization'!$A$32:$E$124, 5,0))) -> 0 | AM39: =IF(ISERROR(O39*(1-VLOOKUP($A39, 'E1 Categorization'!$A$32:$E$124, 5,0))), O39*0.5, O39*(1-VLOOKUP($A39, 'E1 Categorization'!$A$32:$E$124, 5,0))) -> 0 | AN39: =IF(ISERROR(P39*(1-VLOOKUP($A39, 'E1 Categorization'!$A$32:$E$124, 5,0))), P39*0.5, P39*(1-VLOOKUP($A39, 'E1 Categorization'!$A$32:$E$124, 5,0))) -> 0 | AO39: =IF(ISERROR(Q39*(1-VLOOKUP($A39, 'E1 Categorization'!$A$32:$E$124, 5,0))), Q39*0.5, Q39*(1-VLOOKUP($A39, 'E1 Categorization'!$A$32:$E$124, 5,0))) -> 0 | AP39: =IF(ISERROR(R39*(1-VLOOKUP($A39, 'E1 Categorization'!$A$32:$E$124, 5,0))), R39*0.5, R39*(1-VLOOKUP($A39, 'E1 Categorization'!$A$32:$E$124, 5,0))) -> 0 | AQ39: =IF(ISERROR(S39*(1-VLOOKUP($A39, 'E1 Categorization'!$A$32:$E$124, 5,0))), S39*0.5, S39*(1-VLOOKUP($A39, 'E1 Categorization'!$A$32:$E$124, 5,0))) -> 0 | AR39: =IF(ISERROR(T39*(1-VLOOKUP($A39, 'E1 Categorization'!$A$32:$E$124, 5,0))), T39*0.5, T39*(1-VLOOKUP($A39, 'E1 Categorization'!$A$32:$E$124, 5,0))) -> 0 | AS39: =IF(ISERROR(U39*(1-VLOOKUP($A39, 'E1 Categorization'!$A$32:$E$124, 5,0))), U39*0.5, U39*(1-VLOOKUP($A39, 'E1 Categorization'!$A$32:$E$124, 5,0))) -> 0 | AT39: =IF(ISERROR(V39*(1-VLOOKUP($A39, 'E1 Categorization'!$A$32:$E$124, 5,0))), V39*0.5, V39*(1-VLOOKUP($A39, 'E1 Categorization'!$A$32:$E$124, 5,0))) -> 0 | AU39: =IF(ISERROR(W39*(1-VLOOKUP($A39, 'E1 Categorization'!$A$32:$E$124, 5,0))), W39*0.5, W39*(1-VLOOKUP($A39, 'E1 Categorization'!$A$32:$E$124, 5,0))) -> 0 | AV39: =IF(ISERROR(X39*(1-VLOOKUP($A39, 'E1 Categorization'!$A$32:$E$124, 5,0))), X39*0.5, X39*(1-VLOOKUP($A39, 'E1 Categorization'!$A$32:$E$124, 5,0))) -> 0 | AY39: 1855 | AZ39: Services | BA39: =IF(ISERROR(E39*(VLOOKUP($A39, 'E1 Categorization'!$A$32:$E$124, 5,0))), E39*0.5, E39*(VLOOKUP($A39, 'E1 Categorization'!$A$32:$E$124, 5,0))) -> 0 | BB39: =IF(ISERROR(F39*(VLOOKUP($A39, 'E1 Categorization'!$A$32:$E$124, 5,0))), F39*0.5, F39*(VLOOKUP($A39, 'E1 Categorization'!$A$32:$E$124, 5,0))) -> 0 | BC39: =IF(ISERROR(G39*(VLOOKUP($A39, 'E1 Categorization'!$A$32:$E$124, 5,0))), G39*0.5, G39*(VLOOKUP($A39, 'E1 Categorization'!$A$32:$E$124, 5,0))) -> 0 | BD39: =IF(ISERROR(H39*(VLOOKUP($A39, 'E1 Categorization'!$A$32:$E$124, 5,0))), H39*0.5, H39*(VLOOKUP($A39, 'E1 Categorization'!$A$32:$E$124, 5,0))) -> 0 | BE39: =IF(ISERROR(I39*(VLOOKUP($A39, 'E1 Categorization'!$A$32:$E$124, 5,0))), I39*0.5, I39*(VLOOKUP($A39, 'E1 Categorization'!$A$32:$E$124, 5,0))) -> 0 | BF39: =IF(ISERROR(J39*(VLOOKUP($A39, 'E1 Categorization'!$A$32:$E$124, 5,0))), J39*0.5, J39*(VLOOKUP($A39, 'E1 Categorization'!$A$32:$E$124, 5,0))) -> 0 | BG39: =IF(ISERROR(K39*(VLOOKUP($A39, 'E1 Categorization'!$A$32:$E$124, 5,0))), K39*0.5, K39*(VLOOKUP($A39, 'E1 Categorization'!$A$32:$E$124, 5,0))) -> 0 | BH39: =IF(ISERROR(L39*(VLOOKUP($A39, 'E1 Categorization'!$A$32:$E$124, 5,0))), L39*0.5, L39*(VLOOKUP($A39, 'E1 Categorization'!$A$32:$E$124, 5,0))) -> 0 | BI39: =IF(ISERROR(M39*(VLOOKUP($A39, 'E1 Categorization'!$A$32:$E$124, 5,0))), M39*0.5, M39*(VLOOKUP($A39, 'E1 Categorization'!$A$32:$E$124, 5,0))) -> 0 | BJ39: =IF(ISERROR(N39*(VLOOKUP($A39, 'E1 Categorization'!$A$32:$E$124, 5,0))), N39*0.5, N39*(VLOOKUP($A39, 'E1 Categorization'!$A$32:$E$124, 5,0))) -> 0 | BK39: =IF(ISERROR(O39*(VLOOKUP($A39, 'E1 Categorization'!$A$32:$E$124, 5,0))), O39*0.5, O39*(VLOOKUP($A39, 'E1 Categorization'!$A$32:$E$124, 5,0))) -> 0 | BL39: =IF(ISERROR(P39*(VLOOKUP($A39, 'E1 Categorization'!$A$32:$E$124, 5,0))), P39*0.5, P39*(VLOOKUP($A39, 'E1 Categorization'!$A$32:$E$124, 5,0))) -> 0 | BM39: =IF(ISERROR(Q39*(VLOOKUP($A39, 'E1 Categorization'!$A$32:$E$124, 5,0))), Q39*0.5, Q39*(VLOOKUP($A39, 'E1 Categorization'!$A$32:$E$124, 5,0))) -> 0 | BN39: =IF(ISERROR(R39*(VLOOKUP($A39, 'E1 Categorization'!$A$32:$E$124, 5,0))), R39*0.5, R39*(VLOOKUP($A39, 'E1 Categorization'!$A$32:$E$124, 5,0))) -> 0 | BO39: =IF(ISERROR(S39*(VLOOKUP($A39, 'E1 Categorization'!$A$32:$E$124, 5,0))), S39*0.5, S39*(VLOOKUP($A39, 'E1 Categorization'!$A$32:$E$124, 5,0))) -> 0 | BP39: =IF(ISERROR(T39*(VLOOKUP($A39, 'E1 Categorization'!$A$32:$E$124, 5,0))), T39*0.5, T39*(VLOOKUP($A39, 'E1 Categorization'!$A$32:$E$124, 5,0))) -> 0 | BQ39: =IF(ISERROR(U39*(VLOOKUP($A39, 'E1 Categorization'!$A$32:$E$124, 5,0))), U39*0.5, U39*(VLOOKUP($A39, 'E1 Categorization'!$A$32:$E$124, 5,0))) -> 0 | BR39: =IF(ISERROR(V39*(VLOOKUP($A39, 'E1 Categorization'!$A$32:$E$124, 5,0))), V39*0.5, V39*(VLOOKUP($A39, 'E1 Categorization'!$A$32:$E$124, 5,0))) -> 0 | BS39: =IF(ISERROR(W39*(VLOOKUP($A39, 'E1 Categorization'!$A$32:$E$124, 5,0))), W39*0.5, W39*(VLOOKUP($A39, 'E1 Categorization'!$A$32:$E$124, 5,0))) -> 0 | BT39: =IF(ISERROR(X39*(VLOOKUP($A39, 'E1 Categorization'!$A$32:$E$124, 5,0))), X39*0.5, X39*(VLOOKUP($A39, 'E1 Categorization'!$A$32:$E$124, 5,0))) -> 0
A40: ='I3 TB Data'!A146:B146 -> 1860 | B40: ='I3 TB Data'!B146 -> Meters | C40: ='I3 TB Data'!G146 -> 0 | D40: Yes | AA40: 1860 | AB40: Meters | AC40: =IF(ISERROR(E40*(1-VLOOKUP($A40, 'E1 Categorization'!$A$32:$E$124, 5,0))), E40*0.5, E40*(1-VLOOKUP($A40, 'E1 Categorization'!$A$32:$E$124, 5,0))) -> 0 | AD40: =IF(ISERROR(F40*(1-VLOOKUP($A40, 'E1 Categorization'!$A$32:$E$124, 5,0))), F40*0.5, F40*(1-VLOOKUP($A40, 'E1 Categorization'!$A$32:$E$124, 5,0))) -> 0 | AE40: =IF(ISERROR(G40*(1-VLOOKUP($A40, 'E1 Categorization'!$A$32:$E$124, 5,0))), G40*0.5, G40*(1-VLOOKUP($A40, 'E1 Categorization'!$A$32:$E$124, 5,0))) -> 0 | AF40: =IF(ISERROR(H40*(1-VLOOKUP($A40, 'E1 Categorization'!$A$32:$E$124, 5,0))), H40*0.5, H40*(1-VLOOKUP($A40, 'E1 Categorization'!$A$32:$E$124, 5,0))) -> 0 | AG40: =IF(ISERROR(I40*(1-VLOOKUP($A40, 'E1 Categorization'!$A$32:$E$124, 5,0))), I40*0.5, I40*(1-VLOOKUP($A40, 'E1 Categorization'!$A$32:$E$124, 5,0))) -> 0 | AH40: =IF(ISERROR(J40*(1-VLOOKUP($A40, 'E1 Categorization'!$A$32:$E$124, 5,0))), J40*0.5, J40*(1-VLOOKUP($A40, 'E1 Categorization'!$A$32:$E$124, 5,0))) -> 0 | AI40: =IF(ISERROR(K40*(1-VLOOKUP($A40, 'E1 Categorization'!$A$32:$E$124, 5,0))), K40*0.5, K40*(1-VLOOKUP($A40, 'E1 Categorization'!$A$32:$E$124, 5,0))) -> 0 | AJ40: =IF(ISERROR(L40*(1-VLOOKUP($A40, 'E1 Categorization'!$A$32:$E$124, 5,0))), L40*0.5, L40*(1-VLOOKUP($A40, 'E1 Categorization'!$A$32:$E$124, 5,0))) -> 0 | AK40: =IF(ISERROR(M40*(1-VLOOKUP($A40, 'E1 Categorization'!$A$32:$E$124, 5,0))), M40*0.5, M40*(1-VLOOKUP($A40, 'E1 Categorization'!$A$32:$E$124, 5,0))) -> 0 | AL40: =IF(ISERROR(N40*(1-VLOOKUP($A40, 'E1 Categorization'!$A$32:$E$124, 5,0))), N40*0.5, N40*(1-VLOOKUP($A40, 'E1 Categorization'!$A$32:$E$124, 5,0))) -> 0 | AM40: =IF(ISERROR(O40*(1-VLOOKUP($A40, 'E1 Categorization'!$A$32:$E$124, 5,0))), O40*0.5, O40*(1-VLOOKUP($A40, 'E1 Categorization'!$A$32:$E$124, 5,0))) -> 0 | AN40: =IF(ISERROR(P40*(1-VLOOKUP($A40, 'E1 Categorization'!$A$32:$E$124, 5,0))), P40*0.5, P40*(1-VLOOKUP($A40, 'E1 Categorization'!$A$32:$E$124, 5,0))) -> 0 | AO40: =IF(ISERROR(Q40*(1-VLOOKUP($A40, 'E1 Categorization'!$A$32:$E$124, 5,0))), Q40*0.5, Q40*(1-VLOOKUP($A40, 'E1 Categorization'!$A$32:$E$124, 5,0))) -> 0 | AP40: =IF(ISERROR(R40*(1-VLOOKUP($A40, 'E1 Categorization'!$A$32:$E$124, 5,0))), R40*0.5, R40*(1-VLOOKUP($A40, 'E1 Categorization'!$A$32:$E$124, 5,0))) -> 0 | AQ40: =IF(ISERROR(S40*(1-VLOOKUP($A40, 'E1 Categorization'!$A$32:$E$124, 5,0))), S40*0.5, S40*(1-VLOOKUP($A40, 'E1 Categorization'!$A$32:$E$124, 5,0))) -> 0 | AR40: =IF(ISERROR(T40*(1-VLOOKUP($A40, 'E1 Categorization'!$A$32:$E$124, 5,0))), T40*0.5, T40*(1-VLOOKUP($A40, 'E1 Categorization'!$A$32:$E$124, 5,0))) -> 0 | AS40: =IF(ISERROR(U40*(1-VLOOKUP($A40, 'E1 Categorization'!$A$32:$E$124, 5,0))), U40*0.5, U40*(1-VLOOKUP($A40, 'E1 Categorization'!$A$32:$E$124, 5,0))) -> 0 | AT40: =IF(ISERROR(V40*(1-VLOOKUP($A40, 'E1 Categorization'!$A$32:$E$124, 5,0))), V40*0.5, V40*(1-VLOOKUP($A40, 'E1 Categorization'!$A$32:$E$124, 5,0))) -> 0 | AU40: =IF(ISERROR(W40*(1-VLOOKUP($A40, 'E1 Categorization'!$A$32:$E$124, 5,0))), W40*0.5, W40*(1-VLOOKUP($A40, 'E1 Categorization'!$A$32:$E$124, 5,0))) -> 0 | AV40: =IF(ISERROR(X40*(1-VLOOKUP($A40, 'E1 Categorization'!$A$32:$E$124, 5,0))), X40*0.5, X40*(1-VLOOKUP($A40, 'E1 Categorization'!$A$32:$E$124, 5,0))) -> 0 | AY40: 1860 | AZ40: Meters | BA40: =IF(ISERROR(E40*(VLOOKUP($A40, 'E1 Categorization'!$A$32:$E$124, 5,0))), E40*0.5, E40*(VLOOKUP($A40, 'E1 Categorization'!$A$32:$E$124, 5,0))) -> 0 | BB40: =IF(ISERROR(F40*(VLOOKUP($A40, 'E1 Categorization'!$A$32:$E$124, 5,0))), F40*0.5, F40*(VLOOKUP($A40, 'E1 Categorization'!$A$32:$E$124, 5,0))) -> 0 | BC40: =IF(ISERROR(G40*(VLOOKUP($A40, 'E1 Categorization'!$A$32:$E$124, 5,0))), G40*0.5, G40*(VLOOKUP($A40, 'E1 Categorization'!$A$32:$E$124, 5,0))) -> 0 | BD40: =IF(ISERROR(H40*(VLOOKUP($A40, 'E1 Categorization'!$A$32:$E$124, 5,0))), H40*0.5, H40*(VLOOKUP($A40, 'E1 Categorization'!$A$32:$E$124, 5,0))) -> 0 | BE40: =IF(ISERROR(I40*(VLOOKUP($A40, 'E1 Categorization'!$A$32:$E$124, 5,0))), I40*0.5, I40*(VLOOKUP($A40, 'E1 Categorization'!$A$32:$E$124, 5,0))) -> 0 | BF40: =IF(ISERROR(J40*(VLOOKUP($A40, 'E1 Categorization'!$A$32:$E$124, 5,0))), J40*0.5, J40*(VLOOKUP($A40, 'E1 Categorization'!$A$32:$E$124, 5,0))) -> 0 | BG40: =IF(ISERROR(K40*(VLOOKUP($A40, 'E1 Categorization'!$A$32:$E$124, 5,0))), K40*0.5, K40*(VLOOKUP($A40, 'E1 Categorization'!$A$32:$E$124, 5,0))) -> 0 | BH40: =IF(ISERROR(L40*(VLOOKUP($A40, 'E1 Categorization'!$A$32:$E$124, 5,0))), L40*0.5, L40*(VLOOKUP($A40, 'E1 Categorization'!$A$32:$E$124, 5,0))) -> 0 | BI40: =IF(ISERROR(M40*(VLOOKUP($A40, 'E1 Categorization'!$A$32:$E$124, 5,0))), M40*0.5, M40*(VLOOKUP($A40, 'E1 Categorization'!$A$32:$E$124, 5,0))) -> 0 | BJ40: =IF(ISERROR(N40*(VLOOKUP($A40, 'E1 Categorization'!$A$32:$E$124, 5,0))), N40*0.5, N40*(VLOOKUP($A40, 'E1 Categorization'!$A$32:$E$124, 5,0))) -> 0 | BK40: =IF(ISERROR(O40*(VLOOKUP($A40, 'E1 Categorization'!$A$32:$E$124, 5,0))), O40*0.5, O40*(VLOOKUP($A40, 'E1 Categorization'!$A$32:$E$124, 5,0))) -> 0 | BL40: =IF(ISERROR(P40*(VLOOKUP($A40, 'E1 Categorization'!$A$32:$E$124, 5,0))), P40*0.5, P40*(VLOOKUP($A40, 'E1 Categorization'!$A$32:$E$124, 5,0))) -> 0 | BM40: =IF(ISERROR(Q40*(VLOOKUP($A40, 'E1 Categorization'!$A$32:$E$124, 5,0))), Q40*0.5, Q40*(VLOOKUP($A40, 'E1 Categorization'!$A$32:$E$124, 5,0))) -> 0 | BN40: =IF(ISERROR(R40*(VLOOKUP($A40, 'E1 Categorization'!$A$32:$E$124, 5,0))), R40*0.5, R40*(VLOOKUP($A40, 'E1 Categorization'!$A$32:$E$124, 5,0))) -> 0 | BO40: =IF(ISERROR(S40*(VLOOKUP($A40, 'E1 Categorization'!$A$32:$E$124, 5,0))), S40*0.5, S40*(VLOOKUP($A40, 'E1 Categorization'!$A$32:$E$124, 5,0))) -> 0 | BP40: =IF(ISERROR(T40*(VLOOKUP($A40, 'E1 Categorization'!$A$32:$E$124, 5,0))), T40*0.5, T40*(VLOOKUP($A40, 'E1 Categorization'!$A$32:$E$124, 5,0))) -> 0 | BQ40: =IF(ISERROR(U40*(VLOOKUP($A40, 'E1 Categorization'!$A$32:$E$124, 5,0))), U40*0.5, U40*(VLOOKUP($A40, 'E1 Categorization'!$A$32:$E$124, 5,0))) -> 0 | BR40: =IF(ISERROR(V40*(VLOOKUP($A40, 'E1 Categorization'!$A$32:$E$124, 5,0))), V40*0.5, V40*(VLOOKUP($A40, 'E1 Categorization'!$A$32:$E$124, 5,0))) -> 0 | BS40: =IF(ISERROR(W40*(VLOOKUP($A40, 'E1 Categorization'!$A$32:$E$124, 5,0))), W40*0.5, W40*(VLOOKUP($A40, 'E1 Categorization'!$A$32:$E$124, 5,0))) -> 0 | BT40: =IF(ISERROR(X40*(VLOOKUP($A40, 'E1 Categorization'!$A$32:$E$124, 5,0))), X40*0.5, X40*(VLOOKUP($A40, 'E1 Categorization'!$A$32:$E$124, 5,0))) -> 0
B41: ='I3 TB Data'!B147:D147 -> blank row | C41: ='I3 TB Data'!G147 -> 0 | D41: =IF(SUM(E41:X41)<>C41,"No","Yes") -> Yes | AA41: 0 | AB41: blank row | AC41: =IF(ISERROR(E41*(1-VLOOKUP($A41, 'E1 Categorization'!$A$32:$E$124, 5,0))), E41*0.5, E41*(1-VLOOKUP($A41, 'E1 Categorization'!$A$32:$E$124, 5,0))) -> 0 | AD41: =IF(ISERROR(F41*(1-VLOOKUP($A41, 'E1 Categorization'!$A$32:$E$124, 5,0))), F41*0.5, F41*(1-VLOOKUP($A41, 'E1 Categorization'!$A$32:$E$124, 5,0))) -> 0 | AE41: =IF(ISERROR(G41*(1-VLOOKUP($A41, 'E1 Categorization'!$A$32:$E$124, 5,0))), G41*0.5, G41*(1-VLOOKUP($A41, 'E1 Categorization'!$A$32:$E$124, 5,0))) -> 0 | AF41: =IF(ISERROR(H41*(1-VLOOKUP($A41, 'E1 Categorization'!$A$32:$E$124, 5,0))), H41*0.5, H41*(1-VLOOKUP($A41, 'E1 Categorization'!$A$32:$E$124, 5,0))) -> 0 | AG41: =IF(ISERROR(I41*(1-VLOOKUP($A41, 'E1 Categorization'!$A$32:$E$124, 5,0))), I41*0.5, I41*(1-VLOOKUP($A41, 'E1 Categorization'!$A$32:$E$124, 5,0))) -> 0 | AH41: =IF(ISERROR(J41*(1-VLOOKUP($A41, 'E1 Categorization'!$A$32:$E$124, 5,0))), J41*0.5, J41*(1-VLOOKUP($A41, 'E1 Categorization'!$A$32:$E$124, 5,0))) -> 0 | AI41: =IF(ISERROR(K41*(1-VLOOKUP($A41, 'E1 Categorization'!$A$32:$E$124, 5,0))), K41*0.5, K41*(1-VLOOKUP($A41, 'E1 Categorization'!$A$32:$E$124, 5,0))) -> 0 | AJ41: =IF(ISERROR(L41*(1-VLOOKUP($A41, 'E1 Categorization'!$A$32:$E$124, 5,0))), L41*0.5, L41*(1-VLOOKUP($A41, 'E1 Categorization'!$A$32:$E$124, 5,0))) -> 0 | AK41: =IF(ISERROR(M41*(1-VLOOKUP($A41, 'E1 Categorization'!$A$32:$E$124, 5,0))), M41*0.5, M41*(1-VLOOKUP($A41, 'E1 Categorization'!$A$32:$E$124, 5,0))) -> 0 | AL41: =IF(ISERROR(N41*(1-VLOOKUP($A41, 'E1 Categorization'!$A$32:$E$124, 5,0))), N41*0.5, N41*(1-VLOOKUP($A41, 'E1 Categorization'!$A$32:$E$124, 5,0))) -> 0 | AM41: =IF(ISERROR(O41*(1-VLOOKUP($A41, 'E1 Categorization'!$A$32:$E$124, 5,0))), O41*0.5, O41*(1-VLOOKUP($A41, 'E1 Categorization'!$A$32:$E$124, 5,0))) -> 0 | AN41: =IF(ISERROR(P41*(1-VLOOKUP($A41, 'E1 Categorization'!$A$32:$E$124, 5,0))), P41*0.5, P41*(1-VLOOKUP($A41, 'E1 Categorization'!$A$32:$E$124, 5,0))) -> 0 | AO41: =IF(ISERROR(Q41*(1-VLOOKUP($A41, 'E1 Categorization'!$A$32:$E$124, 5,0))), Q41*0.5, Q41*(1-VLOOKUP($A41, 'E1 Categorization'!$A$32:$E$124, 5,0))) -> 0 | AP41: =IF(ISERROR(R41*(1-VLOOKUP($A41, 'E1 Categorization'!$A$32:$E$124, 5,0))), R41*0.5, R41*(1-VLOOKUP($A41, 'E1 Categorization'!$A$32:$E$124, 5,0))) -> 0 | AQ41: =IF(ISERROR(S41*(1-VLOOKUP($A41, 'E1 Categorization'!$A$32:$E$124, 5,0))), S41*0.5, S41*(1-VLOOKUP($A41, 'E1 Categorization'!$A$32:$E$124, 5,0))) -> 0 | AR41: =IF(ISERROR(T41*(1-VLOOKUP($A41, 'E1 Categorization'!$A$32:$E$124, 5,0))), T41*0.5, T41*(1-VLOOKUP($A41, 'E1 Categorization'!$A$32:$E$124, 5,0))) -> 0 | AS41: =IF(ISERROR(U41*(1-VLOOKUP($A41, 'E1 Categorization'!$A$32:$E$124, 5,0))), U41*0.5, U41*(1-VLOOKUP($A41, 'E1 Categorization'!$A$32:$E$124, 5,0))) -> 0 | AT41: =IF(ISERROR(V41*(1-VLOOKUP($A41, 'E1 Categorization'!$A$32:$E$124, 5,0))), V41*0.5, V41*(1-VLOOKUP($A41, 'E1 Categorization'!$A$32:$E$124, 5,0))) -> 0 | AU41: =IF(ISERROR(W41*(1-VLOOKUP($A41, 'E1 Categorization'!$A$32:$E$124, 5,0))), W41*0.5, W41*(1-VLOOKUP($A41, 'E1 Categorization'!$A$32:$E$124, 5,0))) -> 0 | AV41: =IF(ISERROR(X41*(1-VLOOKUP($A41, 'E1 Categorization'!$A$32:$E$124, 5,0))), X41*0.5, X41*(1-VLOOKUP($A41, 'E1 Categorization'!$A$32:$E$124, 5,0))) -> 0 | AY41: 0 | AZ41: blank row | BA41: =IF(ISERROR(E41*(VLOOKUP($A41, 'E1 Categorization'!$A$32:$E$124, 5,0))), E41*0.5, E41*(VLOOKUP($A41, 'E1 Categorization'!$A$32:$E$124, 5,0))) -> 0 | BB41: =IF(ISERROR(F41*(VLOOKUP($A41, 'E1 Categorization'!$A$32:$E$124, 5,0))), F41*0.5, F41*(VLOOKUP($A41, 'E1 Categorization'!$A$32:$E$124, 5,0))) -> 0 | BC41: =IF(ISERROR(G41*(VLOOKUP($A41, 'E1 Categorization'!$A$32:$E$124, 5,0))), G41*0.5, G41*(VLOOKUP($A41, 'E1 Categorization'!$A$32:$E$124, 5,0))) -> 0 | BD41: =IF(ISERROR(H41*(VLOOKUP($A41, 'E1 Categorization'!$A$32:$E$124, 5,0))), H41*0.5, H41*(VLOOKUP($A41, 'E1 Categorization'!$A$32:$E$124, 5,0))) -> 0 | BE41: =IF(ISERROR(I41*(VLOOKUP($A41, 'E1 Categorization'!$A$32:$E$124, 5,0))), I41*0.5, I41*(VLOOKUP($A41, 'E1 Categorization'!$A$32:$E$124, 5,0))) -> 0 | BF41: =IF(ISERROR(J41*(VLOOKUP($A41, 'E1 Categorization'!$A$32:$E$124, 5,0))), J41*0.5, J41*(VLOOKUP($A41, 'E1 Categorization'!$A$32:$E$124, 5,0))) -> 0 | BG41: =IF(ISERROR(K41*(VLOOKUP($A41, 'E1 Categorization'!$A$32:$E$124, 5,0))), K41*0.5, K41*(VLOOKUP($A41, 'E1 Categorization'!$A$32:$E$124, 5,0))) -> 0 | BH41: =IF(ISERROR(L41*(VLOOKUP($A41, 'E1 Categorization'!$A$32:$E$124, 5,0))), L41*0.5, L41*(VLOOKUP($A41, 'E1 Categorization'!$A$32:$E$124, 5,0))) -> 0 | BI41: =IF(ISERROR(M41*(VLOOKUP($A41, 'E1 Categorization'!$A$32:$E$124, 5,0))), M41*0.5, M41*(VLOOKUP($A41, 'E1 Categorization'!$A$32:$E$124, 5,0))) -> 0 | BJ41: =IF(ISERROR(N41*(VLOOKUP($A41, 'E1 Categorization'!$A$32:$E$124, 5,0))), N41*0.5, N41*(VLOOKUP($A41, 'E1 Categorization'!$A$32:$E$124, 5,0))) -> 0 | BK41: =IF(ISERROR(O41*(VLOOKUP($A41, 'E1 Categorization'!$A$32:$E$124, 5,0))), O41*0.5, O41*(VLOOKUP($A41, 'E1 Categorization'!$A$32:$E$124, 5,0))) -> 0 | BL41: =IF(ISERROR(P41*(VLOOKUP($A41, 'E1 Categorization'!$A$32:$E$124, 5,0))), P41*0.5, P41*(VLOOKUP($A41, 'E1 Categorization'!$A$32:$E$124, 5,0))) -> 0 | BM41: =IF(ISERROR(Q41*(VLOOKUP($A41, 'E1 Categorization'!$A$32:$E$124, 5,0))), Q41*0.5, Q41*(VLOOKUP($A41, 'E1 Categorization'!$A$32:$E$124, 5,0))) -> 0 | BN41: =IF(ISERROR(R41*(VLOOKUP($A41, 'E1 Categorization'!$A$32:$E$124, 5,0))), R41*0.5, R41*(VLOOKUP($A41, 'E1 Categorization'!$A$32:$E$124, 5,0))) -> 0 | BO41: =IF(ISERROR(S41*(VLOOKUP($A41, 'E1 Categorization'!$A$32:$E$124, 5,0))), S41*0.5, S41*(VLOOKUP($A41, 'E1 Categorization'!$A$32:$E$124, 5,0))) -> 0 | BP41: =IF(ISERROR(T41*(VLOOKUP($A41, 'E1 Categorization'!$A$32:$E$124, 5,0))), T41*0.5, T41*(VLOOKUP($A41, 'E1 Categorization'!$A$32:$E$124, 5,0))) -> 0 | BQ41: =IF(ISERROR(U41*(VLOOKUP($A41, 'E1 Categorization'!$A$32:$E$124, 5,0))), U41*0.5, U41*(VLOOKUP($A41, 'E1 Categorization'!$A$32:$E$124, 5,0))) -> 0 | BR41: =IF(ISERROR(V41*(VLOOKUP($A41, 'E1 Categorization'!$A$32:$E$124, 5,0))), V41*0.5, V41*(VLOOKUP($A41, 'E1 Categorization'!$A$32:$E$124, 5,0))) -> 0 | BS41: =IF(ISERROR(W41*(VLOOKUP($A41, 'E1 Categorization'!$A$32:$E$124, 5,0))), W41*0.5, W41*(VLOOKUP($A41, 'E1 Categorization'!$A$32:$E$124, 5,0))) -> 0 | BT41: =IF(ISERROR(X41*(VLOOKUP($A41, 'E1 Categorization'!$A$32:$E$124, 5,0))), X41*0.5, X41*(VLOOKUP($A41, 'E1 Categorization'!$A$32:$E$124, 5,0))) -> 0
A42: ='I3 TB Data'!A151:B151 -> 1905 | B42: ='I3 TB Data'!B151 -> Land | C42: ='I3 TB Data'!G151 -> 0 | D42: Yes | AA42: 1905 | AB42: Land | AC42: =IF(ISERROR(E42*(1-VLOOKUP($A42, 'E1 Categorization'!$A$32:$E$124, 5,0))), E42*0.5, E42*(1-VLOOKUP($A42, 'E1 Categorization'!$A$32:$E$124, 5,0))) -> 0 | AD42: =IF(ISERROR(F42*(1-VLOOKUP($A42, 'E1 Categorization'!$A$32:$E$124, 5,0))), F42*0.5, F42*(1-VLOOKUP($A42, 'E1 Categorization'!$A$32:$E$124, 5,0))) -> 0 | AE42: =IF(ISERROR(G42*(1-VLOOKUP($A42, 'E1 Categorization'!$A$32:$E$124, 5,0))), G42*0.5, G42*(1-VLOOKUP($A42, 'E1 Categorization'!$A$32:$E$124, 5,0))) -> 0 | AF42: =IF(ISERROR(H42*(1-VLOOKUP($A42, 'E1 Categorization'!$A$32:$E$124, 5,0))), H42*0.5, H42*(1-VLOOKUP($A42, 'E1 Categorization'!$A$32:$E$124, 5,0))) -> 0 | AG42: =IF(ISERROR(I42*(1-VLOOKUP($A42, 'E1 Categorization'!$A$32:$E$124, 5,0))), I42*0.5, I42*(1-VLOOKUP($A42, 'E1 Categorization'!$A$32:$E$124, 5,0))) -> 0 | AH42: =IF(ISERROR(J42*(1-VLOOKUP($A42, 'E1 Categorization'!$A$32:$E$124, 5,0))), J42*0.5, J42*(1-VLOOKUP($A42, 'E1 Categorization'!$A$32:$E$124, 5,0))) -> 0 | AI42: =IF(ISERROR(K42*(1-VLOOKUP($A42, 'E1 Categorization'!$A$32:$E$124, 5,0))), K42*0.5, K42*(1-VLOOKUP($A42, 'E1 Categorization'!$A$32:$E$124, 5,0))) -> 0 | AJ42: =IF(ISERROR(L42*(1-VLOOKUP($A42, 'E1 Categorization'!$A$32:$E$124, 5,0))), L42*0.5, L42*(1-VLOOKUP($A42, 'E1 Categorization'!$A$32:$E$124, 5,0))) -> 0 | AK42: =IF(ISERROR(M42*(1-VLOOKUP($A42, 'E1 Categorization'!$A$32:$E$124, 5,0))), M42*0.5, M42*(1-VLOOKUP($A42, 'E1 Categorization'!$A$32:$E$124, 5,0))) -> 0 | AL42: =IF(ISERROR(N42*(1-VLOOKUP($A42, 'E1 Categorization'!$A$32:$E$124, 5,0))), N42*0.5, N42*(1-VLOOKUP($A42, 'E1 Categorization'!$A$32:$E$124, 5,0))) -> 0 | AM42: =IF(ISERROR(O42*(1-VLOOKUP($A42, 'E1 Categorization'!$A$32:$E$124, 5,0))), O42*0.5, O42*(1-VLOOKUP($A42, 'E1 Categorization'!$A$32:$E$124, 5,0))) -> 0 | AN42: =IF(ISERROR(P42*(1-VLOOKUP($A42, 'E1 Categorization'!$A$32:$E$124, 5,0))), P42*0.5, P42*(1-VLOOKUP($A42, 'E1 Categorization'!$A$32:$E$124, 5,0))) -> 0 | AO42: =IF(ISERROR(Q42*(1-VLOOKUP($A42, 'E1 Categorization'!$A$32:$E$124, 5,0))), Q42*0.5, Q42*(1-VLOOKUP($A42, 'E1 Categorization'!$A$32:$E$124, 5,0))) -> 0 | AP42: =IF(ISERROR(R42*(1-VLOOKUP($A42, 'E1 Categorization'!$A$32:$E$124, 5,0))), R42*0.5, R42*(1-VLOOKUP($A42, 'E1 Categorization'!$A$32:$E$124, 5,0))) -> 0 | AQ42: =IF(ISERROR(S42*(1-VLOOKUP($A42, 'E1 Categorization'!$A$32:$E$124, 5,0))), S42*0.5, S42*(1-VLOOKUP($A42, 'E1 Categorization'!$A$32:$E$124, 5,0))) -> 0 | AR42: =IF(ISERROR(T42*(1-VLOOKUP($A42, 'E1 Categorization'!$A$32:$E$124, 5,0))), T42*0.5, T42*(1-VLOOKUP($A42, 'E1 Categorization'!$A$32:$E$124, 5,0))) -> 0 | AS42: =IF(ISERROR(U42*(1-VLOOKUP($A42, 'E1 Categorization'!$A$32:$E$124, 5,0))), U42*0.5, U42*(1-VLOOKUP($A42, 'E1 Categorization'!$A$32:$E$124, 5,0))) -> 0 | AT42: =IF(ISERROR(V42*(1-VLOOKUP($A42, 'E1 Categorization'!$A$32:$E$124, 5,0))), V42*0.5, V42*(1-VLOOKUP($A42, 'E1 Categorization'!$A$32:$E$124, 5,0))) -> 0 | AU42: =IF(ISERROR(W42*(1-VLOOKUP($A42, 'E1 Categorization'!$A$32:$E$124, 5,0))), W42*0.5, W42*(1-VLOOKUP($A42, 'E1 Categorization'!$A$32:$E$124, 5,0))) -> 0 | AV42: =IF(ISERROR(X42*(1-VLOOKUP($A42, 'E1 Categorization'!$A$32:$E$124, 5,0))), X42*0.5, X42*(1-VLOOKUP($A42, 'E1 Categorization'!$A$32:$E$124, 5,0))) -> 0 | AY42: 1905 | AZ42: Land | BA42: =IF(ISERROR(E42*(VLOOKUP($A42, 'E1 Categorization'!$A$32:$E$124, 5,0))), E42*0.5, E42*(VLOOKUP($A42, 'E1 Categorization'!$A$32:$E$124, 5,0))) -> 0 | BB42: =IF(ISERROR(F42*(VLOOKUP($A42, 'E1 Categorization'!$A$32:$E$124, 5,0))), F42*0.5, F42*(VLOOKUP($A42, 'E1 Categorization'!$A$32:$E$124, 5,0))) -> 0 | BC42: =IF(ISERROR(G42*(VLOOKUP($A42, 'E1 Categorization'!$A$32:$E$124, 5,0))), G42*0.5, G42*(VLOOKUP($A42, 'E1 Categorization'!$A$32:$E$124, 5,0))) -> 0 | BD42: =IF(ISERROR(H42*(VLOOKUP($A42, 'E1 Categorization'!$A$32:$E$124, 5,0))), H42*0.5, H42*(VLOOKUP($A42, 'E1 Categorization'!$A$32:$E$124, 5,0))) -> 0 | BE42: =IF(ISERROR(I42*(VLOOKUP($A42, 'E1 Categorization'!$A$32:$E$124, 5,0))), I42*0.5, I42*(VLOOKUP($A42, 'E1 Categorization'!$A$32:$E$124, 5,0))) -> 0 | BF42: =IF(ISERROR(J42*(VLOOKUP($A42, 'E1 Categorization'!$A$32:$E$124, 5,0))), J42*0.5, J42*(VLOOKUP($A42, 'E1 Categorization'!$A$32:$E$124, 5,0))) -> 0 | BG42: =IF(ISERROR(K42*(VLOOKUP($A42, 'E1 Categorization'!$A$32:$E$124, 5,0))), K42*0.5, K42*(VLOOKUP($A42, 'E1 Categorization'!$A$32:$E$124, 5,0))) -> 0 | BH42: =IF(ISERROR(L42*(VLOOKUP($A42, 'E1 Categorization'!$A$32:$E$124, 5,0))), L42*0.5, L42*(VLOOKUP($A42, 'E1 Categorization'!$A$32:$E$124, 5,0))) -> 0 | BI42: =IF(ISERROR(M42*(VLOOKUP($A42, 'E1 Categorization'!$A$32:$E$124, 5,0))), M42*0.5, M42*(VLOOKUP($A42, 'E1 Categorization'!$A$32:$E$124, 5,0))) -> 0 | BJ42: =IF(ISERROR(N42*(VLOOKUP($A42, 'E1 Categorization'!$A$32:$E$124, 5,0))), N42*0.5, N42*(VLOOKUP($A42, 'E1 Categorization'!$A$32:$E$124, 5,0))) -> 0 | BK42: =IF(ISERROR(O42*(VLOOKUP($A42, 'E1 Categorization'!$A$32:$E$124, 5,0))), O42*0.5, O42*(VLOOKUP($A42, 'E1 Categorization'!$A$32:$E$124, 5,0))) -> 0 | BL42: =IF(ISERROR(P42*(VLOOKUP($A42, 'E1 Categorization'!$A$32:$E$124, 5,0))), P42*0.5, P42*(VLOOKUP($A42, 'E1 Categorization'!$A$32:$E$124, 5,0))) -> 0 | BM42: =IF(ISERROR(Q42*(VLOOKUP($A42, 'E1 Categorization'!$A$32:$E$124, 5,0))), Q42*0.5, Q42*(VLOOKUP($A42, 'E1 Categorization'!$A$32:$E$124, 5,0))) -> 0 | BN42: =IF(ISERROR(R42*(VLOOKUP($A42, 'E1 Categorization'!$A$32:$E$124, 5,0))), R42*0.5, R42*(VLOOKUP($A42, 'E1 Categorization'!$A$32:$E$124, 5,0))) -> 0 | BO42: =IF(ISERROR(S42*(VLOOKUP($A42, 'E1 Categorization'!$A$32:$E$124, 5,0))), S42*0.5, S42*(VLOOKUP($A42, 'E1 Categorization'!$A$32:$E$124, 5,0))) -> 0 | BP42: =IF(ISERROR(T42*(VLOOKUP($A42, 'E1 Categorization'!$A$32:$E$124, 5,0))), T42*0.5, T42*(VLOOKUP($A42, 'E1 Categorization'!$A$32:$E$124, 5,0))) -> 0 | BQ42: =IF(ISERROR(U42*(VLOOKUP($A42, 'E1 Categorization'!$A$32:$E$124, 5,0))), U42*0.5, U42*(VLOOKUP($A42, 'E1 Categorization'!$A$32:$E$124, 5,0))) -> 0 | BR42: =IF(ISERROR(V42*(VLOOKUP($A42, 'E1 Categorization'!$A$32:$E$124, 5,0))), V42*0.5, V42*(VLOOKUP($A42, 'E1 Categorization'!$A$32:$E$124, 5,0))) -> 0 | BS42: =IF(ISERROR(W42*(VLOOKUP($A42, 'E1 Categorization'!$A$32:$E$124, 5,0))), W42*0.5, W42*(VLOOKUP($A42, 'E1 Categorization'!$A$32:$E$124, 5,0))) -> 0 | BT42: =IF(ISERROR(X42*(VLOOKUP($A42, 'E1 Categorization'!$A$32:$E$124, 5,0))), X42*0.5, X42*(VLOOKUP($A42, 'E1 Categorization'!$A$32:$E$124, 5,0))) -> 0
A43: ='I3 TB Data'!A152:B152 -> 1906 | B43: ='I3 TB Data'!B152 -> Land Rights | C43: ='I3 TB Data'!G152 -> 0 | D43: Yes | AA43: 1906 | AB43: Land Rights | AC43: =IF(ISERROR(E43*(1-VLOOKUP($A43, 'E1 Categorization'!$A$32:$E$124, 5,0))), E43*0.5, E43*(1-VLOOKUP($A43, 'E1 Categorization'!$A$32:$E$124, 5,0))) -> 0 | AD43: =IF(ISERROR(F43*(1-VLOOKUP($A43, 'E1 Categorization'!$A$32:$E$124, 5,0))), F43*0.5, F43*(1-VLOOKUP($A43, 'E1 Categorization'!$A$32:$E$124, 5,0))) -> 0 | AE43: =IF(ISERROR(G43*(1-VLOOKUP($A43, 'E1 Categorization'!$A$32:$E$124, 5,0))), G43*0.5, G43*(1-VLOOKUP($A43, 'E1 Categorization'!$A$32:$E$124, 5,0))) -> 0 | AF43: =IF(ISERROR(H43*(1-VLOOKUP($A43, 'E1 Categorization'!$A$32:$E$124, 5,0))), H43*0.5, H43*(1-VLOOKUP($A43, 'E1 Categorization'!$A$32:$E$124, 5,0))) -> 0 | AG43: =IF(ISERROR(I43*(1-VLOOKUP($A43, 'E1 Categorization'!$A$32:$E$124, 5,0))), I43*0.5, I43*(1-VLOOKUP($A43, 'E1 Categorization'!$A$32:$E$124, 5,0))) -> 0 | AH43: =IF(ISERROR(J43*(1-VLOOKUP($A43, 'E1 Categorization'!$A$32:$E$124, 5,0))), J43*0.5, J43*(1-VLOOKUP($A43, 'E1 Categorization'!$A$32:$E$124, 5,0))) -> 0 | AI43: =IF(ISERROR(K43*(1-VLOOKUP($A43, 'E1 Categorization'!$A$32:$E$124, 5,0))), K43*0.5, K43*(1-VLOOKUP($A43, 'E1 Categorization'!$A$32:$E$124, 5,0))) -> 0 | AJ43: =IF(ISERROR(L43*(1-VLOOKUP($A43, 'E1 Categorization'!$A$32:$E$124, 5,0))), L43*0.5, L43*(1-VLOOKUP($A43, 'E1 Categorization'!$A$32:$E$124, 5,0))) -> 0 | AK43: =IF(ISERROR(M43*(1-VLOOKUP($A43, 'E1 Categorization'!$A$32:$E$124, 5,0))), M43*0.5, M43*(1-VLOOKUP($A43, 'E1 Categorization'!$A$32:$E$124, 5,0))) -> 0 | AL43: =IF(ISERROR(N43*(1-VLOOKUP($A43, 'E1 Categorization'!$A$32:$E$124, 5,0))), N43*0.5, N43*(1-VLOOKUP($A43, 'E1 Categorization'!$A$32:$E$124, 5,0))) -> 0 | AM43: =IF(ISERROR(O43*(1-VLOOKUP($A43, 'E1 Categorization'!$A$32:$E$124, 5,0))), O43*0.5, O43*(1-VLOOKUP($A43, 'E1 Categorization'!$A$32:$E$124, 5,0))) -> 0 | AN43: =IF(ISERROR(P43*(1-VLOOKUP($A43, 'E1 Categorization'!$A$32:$E$124, 5,0))), P43*0.5, P43*(1-VLOOKUP($A43, 'E1 Categorization'!$A$32:$E$124, 5,0))) -> 0 | AO43: =IF(ISERROR(Q43*(1-VLOOKUP($A43, 'E1 Categorization'!$A$32:$E$124, 5,0))), Q43*0.5, Q43*(1-VLOOKUP($A43, 'E1 Categorization'!$A$32:$E$124, 5,0))) -> 0 | AP43: =IF(ISERROR(R43*(1-VLOOKUP($A43, 'E1 Categorization'!$A$32:$E$124, 5,0))), R43*0.5, R43*(1-VLOOKUP($A43, 'E1 Categorization'!$A$32:$E$124, 5,0))) -> 0 | AQ43: =IF(ISERROR(S43*(1-VLOOKUP($A43, 'E1 Categorization'!$A$32:$E$124, 5,0))), S43*0.5, S43*(1-VLOOKUP($A43, 'E1 Categorization'!$A$32:$E$124, 5,0))) -> 0 | AR43: =IF(ISERROR(T43*(1-VLOOKUP($A43, 'E1 Categorization'!$A$32:$E$124, 5,0))), T43*0.5, T43*(1-VLOOKUP($A43, 'E1 Categorization'!$A$32:$E$124, 5,0))) -> 0 | AS43: =IF(ISERROR(U43*(1-VLOOKUP($A43, 'E1 Categorization'!$A$32:$E$124, 5,0))), U43*0.5, U43*(1-VLOOKUP($A43, 'E1 Categorization'!$A$32:$E$124, 5,0))) -> 0 | AT43: =IF(ISERROR(V43*(1-VLOOKUP($A43, 'E1 Categorization'!$A$32:$E$124, 5,0))), V43*0.5, V43*(1-VLOOKUP($A43, 'E1 Categorization'!$A$32:$E$124, 5,0))) -> 0 | AU43: =IF(ISERROR(W43*(1-VLOOKUP($A43, 'E1 Categorization'!$A$32:$E$124, 5,0))), W43*0.5, W43*(1-VLOOKUP($A43, 'E1 Categorization'!$A$32:$E$124, 5,0))) -> 0 | AV43: =IF(ISERROR(X43*(1-VLOOKUP($A43, 'E1 Categorization'!$A$32:$E$124, 5,0))), X43*0.5, X43*(1-VLOOKUP($A43, 'E1 Categorization'!$A$32:$E$124, 5,0))) -> 0 | AY43: 1906 | AZ43: Land Rights | BA43: =IF(ISERROR(E43*(VLOOKUP($A43, 'E1 Categorization'!$A$32:$E$124, 5,0))), E43*0.5, E43*(VLOOKUP($A43, 'E1 Categorization'!$A$32:$E$124, 5,0))) -> 0 | BB43: =IF(ISERROR(F43*(VLOOKUP($A43, 'E1 Categorization'!$A$32:$E$124, 5,0))), F43*0.5, F43*(VLOOKUP($A43, 'E1 Categorization'!$A$32:$E$124, 5,0))) -> 0 | BC43: =IF(ISERROR(G43*(VLOOKUP($A43, 'E1 Categorization'!$A$32:$E$124, 5,0))), G43*0.5, G43*(VLOOKUP($A43, 'E1 Categorization'!$A$32:$E$124, 5,0))) -> 0 | BD43: =IF(ISERROR(H43*(VLOOKUP($A43, 'E1 Categorization'!$A$32:$E$124, 5,0))), H43*0.5, H43*(VLOOKUP($A43, 'E1 Categorization'!$A$32:$E$124, 5,0))) -> 0 | BE43: =IF(ISERROR(I43*(VLOOKUP($A43, 'E1 Categorization'!$A$32:$E$124, 5,0))), I43*0.5, I43*(VLOOKUP($A43, 'E1 Categorization'!$A$32:$E$124, 5,0))) -> 0 | BF43: =IF(ISERROR(J43*(VLOOKUP($A43, 'E1 Categorization'!$A$32:$E$124, 5,0))), J43*0.5, J43*(VLOOKUP($A43, 'E1 Categorization'!$A$32:$E$124, 5,0))) -> 0 | BG43: =IF(ISERROR(K43*(VLOOKUP($A43, 'E1 Categorization'!$A$32:$E$124, 5,0))), K43*0.5, K43*(VLOOKUP($A43, 'E1 Categorization'!$A$32:$E$124, 5,0))) -> 0 | BH43: =IF(ISERROR(L43*(VLOOKUP($A43, 'E1 Categorization'!$A$32:$E$124, 5,0))), L43*0.5, L43*(VLOOKUP($A43, 'E1 Categorization'!$A$32:$E$124, 5,0))) -> 0 | BI43: =IF(ISERROR(M43*(VLOOKUP($A43, 'E1 Categorization'!$A$32:$E$124, 5,0))), M43*0.5, M43*(VLOOKUP($A43, 'E1 Categorization'!$A$32:$E$124, 5,0))) -> 0 | BJ43: =IF(ISERROR(N43*(VLOOKUP($A43, 'E1 Categorization'!$A$32:$E$124, 5,0))), N43*0.5, N43*(VLOOKUP($A43, 'E1 Categorization'!$A$32:$E$124, 5,0))) -> 0 | BK43: =IF(ISERROR(O43*(VLOOKUP($A43, 'E1 Categorization'!$A$32:$E$124, 5,0))), O43*0.5, O43*(VLOOKUP($A43, 'E1 Categorization'!$A$32:$E$124, 5,0))) -> 0 | BL43: =IF(ISERROR(P43*(VLOOKUP($A43, 'E1 Categorization'!$A$32:$E$124, 5,0))), P43*0.5, P43*(VLOOKUP($A43, 'E1 Categorization'!$A$32:$E$124, 5,0))) -> 0 | BM43: =IF(ISERROR(Q43*(VLOOKUP($A43, 'E1 Categorization'!$A$32:$E$124, 5,0))), Q43*0.5, Q43*(VLOOKUP($A43, 'E1 Categorization'!$A$32:$E$124, 5,0))) -> 0 | BN43: =IF(ISERROR(R43*(VLOOKUP($A43, 'E1 Categorization'!$A$32:$E$124, 5,0))), R43*0.5, R43*(VLOOKUP($A43, 'E1 Categorization'!$A$32:$E$124, 5,0))) -> 0 | BO43: =IF(ISERROR(S43*(VLOOKUP($A43, 'E1 Categorization'!$A$32:$E$124, 5,0))), S43*0.5, S43*(VLOOKUP($A43, 'E1 Categorization'!$A$32:$E$124, 5,0))) -> 0 | BP43: =IF(ISERROR(T43*(VLOOKUP($A43, 'E1 Categorization'!$A$32:$E$124, 5,0))), T43*0.5, T43*(VLOOKUP($A43, 'E1 Categorization'!$A$32:$E$124, 5,0))) -> 0 | BQ43: =IF(ISERROR(U43*(VLOOKUP($A43, 'E1 Categorization'!$A$32:$E$124, 5,0))), U43*0.5, U43*(VLOOKUP($A43, 'E1 Categorization'!$A$32:$E$124, 5,0))) -> 0 | BR43: =IF(ISERROR(V43*(VLOOKUP($A43, 'E1 Categorization'!$A$32:$E$124, 5,0))), V43*0.5, V43*(VLOOKUP($A43, 'E1 Categorization'!$A$32:$E$124, 5,0))) -> 0 | BS43: =IF(ISERROR(W43*(VLOOKUP($A43, 'E1 Categorization'!$A$32:$E$124, 5,0))), W43*0.5, W43*(VLOOKUP($A43, 'E1 Categorization'!$A$32:$E$124, 5,0))) -> 0 | BT43: =IF(ISERROR(X43*(VLOOKUP($A43, 'E1 Categorization'!$A$32:$E$124, 5,0))), X43*0.5, X43*(VLOOKUP($A43, 'E1 Categorization'!$A$32:$E$124, 5,0))) -> 0
A44: ='I3 TB Data'!A153:B153 -> 1908 | B44: ='I3 TB Data'!B153 -> Buildings and Fixtures | C44: ='I3 TB Data'!G153 -> 0 | D44: =IF(SUM(E44:X44)<>C44,"No","Yes") -> Yes | AA44: 1908 | AB44: Buildings and Fixtures | AC44: =IF(ISERROR(E44*(1-VLOOKUP($A44, 'E1 Categorization'!$A$32:$E$124, 5,0))), E44*0.5, E44*(1-VLOOKUP($A44, 'E1 Categorization'!$A$32:$E$124, 5,0))) -> 0 | AD44: =IF(ISERROR(F44*(1-VLOOKUP($A44, 'E1 Categorization'!$A$32:$E$124, 5,0))), F44*0.5, F44*(1-VLOOKUP($A44, 'E1 Categorization'!$A$32:$E$124, 5,0))) -> 0 | AE44: =IF(ISERROR(G44*(1-VLOOKUP($A44, 'E1 Categorization'!$A$32:$E$124, 5,0))), G44*0.5, G44*(1-VLOOKUP($A44, 'E1 Categorization'!$A$32:$E$124, 5,0))) -> 0 | AF44: =IF(ISERROR(H44*(1-VLOOKUP($A44, 'E1 Categorization'!$A$32:$E$124, 5,0))), H44*0.5, H44*(1-VLOOKUP($A44, 'E1 Categorization'!$A$32:$E$124, 5,0))) -> 0 | AG44: =IF(ISERROR(I44*(1-VLOOKUP($A44, 'E1 Categorization'!$A$32:$E$124, 5,0))), I44*0.5, I44*(1-VLOOKUP($A44, 'E1 Categorization'!$A$32:$E$124, 5,0))) -> 0 | AH44: =IF(ISERROR(J44*(1-VLOOKUP($A44, 'E1 Categorization'!$A$32:$E$124, 5,0))), J44*0.5, J44*(1-VLOOKUP($A44, 'E1 Categorization'!$A$32:$E$124, 5,0))) -> 0 | AI44: =IF(ISERROR(K44*(1-VLOOKUP($A44, 'E1 Categorization'!$A$32:$E$124, 5,0))), K44*0.5, K44*(1-VLOOKUP($A44, 'E1 Categorization'!$A$32:$E$124, 5,0))) -> 0 | AJ44: =IF(ISERROR(L44*(1-VLOOKUP($A44, 'E1 Categorization'!$A$32:$E$124, 5,0))), L44*0.5, L44*(1-VLOOKUP($A44, 'E1 Categorization'!$A$32:$E$124, 5,0))) -> 0 | AK44: =IF(ISERROR(M44*(1-VLOOKUP($A44, 'E1 Categorization'!$A$32:$E$124, 5,0))), M44*0.5, M44*(1-VLOOKUP($A44, 'E1 Categorization'!$A$32:$E$124, 5,0))) -> 0 | AL44: =IF(ISERROR(N44*(1-VLOOKUP($A44, 'E1 Categorization'!$A$32:$E$124, 5,0))), N44*0.5, N44*(1-VLOOKUP($A44, 'E1 Categorization'!$A$32:$E$124, 5,0))) -> 0 | AM44: =IF(ISERROR(O44*(1-VLOOKUP($A44, 'E1 Categorization'!$A$32:$E$124, 5,0))), O44*0.5, O44*(1-VLOOKUP($A44, 'E1 Categorization'!$A$32:$E$124, 5,0))) -> 0 | AN44: =IF(ISERROR(P44*(1-VLOOKUP($A44, 'E1 Categorization'!$A$32:$E$124, 5,0))), P44*0.5, P44*(1-VLOOKUP($A44, 'E1 Categorization'!$A$32:$E$124, 5,0))) -> 0 | AO44: =IF(ISERROR(Q44*(1-VLOOKUP($A44, 'E1 Categorization'!$A$32:$E$124, 5,0))), Q44*0.5, Q44*(1-VLOOKUP($A44, 'E1 Categorization'!$A$32:$E$124, 5,0))) -> 0 | AP44: =IF(ISERROR(R44*(1-VLOOKUP($A44, 'E1 Categorization'!$A$32:$E$124, 5,0))), R44*0.5, R44*(1-VLOOKUP($A44, 'E1 Categorization'!$A$32:$E$124, 5,0))) -> 0 | AQ44: =IF(ISERROR(S44*(1-VLOOKUP($A44, 'E1 Categorization'!$A$32:$E$124, 5,0))), S44*0.5, S44*(1-VLOOKUP($A44, 'E1 Categorization'!$A$32:$E$124, 5,0))) -> 0 | AR44: =IF(ISERROR(T44*(1-VLOOKUP($A44, 'E1 Categorization'!$A$32:$E$124, 5,0))), T44*0.5, T44*(1-VLOOKUP($A44, 'E1 Categorization'!$A$32:$E$124, 5,0))) -> 0 | AS44: =IF(ISERROR(U44*(1-VLOOKUP($A44, 'E1 Categorization'!$A$32:$E$124, 5,0))), U44*0.5, U44*(1-VLOOKUP($A44, 'E1 Categorization'!$A$32:$E$124, 5,0))) -> 0 | AT44: =IF(ISERROR(V44*(1-VLOOKUP($A44, 'E1 Categorization'!$A$32:$E$124, 5,0))), V44*0.5, V44*(1-VLOOKUP($A44, 'E1 Categorization'!$A$32:$E$124, 5,0))) -> 0 | AU44: =IF(ISERROR(W44*(1-VLOOKUP($A44, 'E1 Categorization'!$A$32:$E$124, 5,0))), W44*0.5, W44*(1-VLOOKUP($A44, 'E1 Categorization'!$A$32:$E$124, 5,0))) -> 0 | AV44: =IF(ISERROR(X44*(1-VLOOKUP($A44, 'E1 Categorization'!$A$32:$E$124, 5,0))), X44*0.5, X44*(1-VLOOKUP($A44, 'E1 Categorization'!$A$32:$E$124, 5,0))) -> 0 | AY44: 1908 | AZ44: Buildings and Fixtures | BA44: =IF(ISERROR(E44*(VLOOKUP($A44, 'E1 Categorization'!$A$32:$E$124, 5,0))), E44*0.5, E44*(VLOOKUP($A44, 'E1 Categorization'!$A$32:$E$124, 5,0))) -> 0 | BB44: =IF(ISERROR(F44*(VLOOKUP($A44, 'E1 Categorization'!$A$32:$E$124, 5,0))), F44*0.5, F44*(VLOOKUP($A44, 'E1 Categorization'!$A$32:$E$124, 5,0))) -> 0 | BC44: =IF(ISERROR(G44*(VLOOKUP($A44, 'E1 Categorization'!$A$32:$E$124, 5,0))), G44*0.5, G44*(VLOOKUP($A44, 'E1 Categorization'!$A$32:$E$124, 5,0))) -> 0 | BD44: =IF(ISERROR(H44*(VLOOKUP($A44, 'E1 Categorization'!$A$32:$E$124, 5,0))), H44*0.5, H44*(VLOOKUP($A44, 'E1 Categorization'!$A$32:$E$124, 5,0))) -> 0 | BE44: =IF(ISERROR(I44*(VLOOKUP($A44, 'E1 Categorization'!$A$32:$E$124, 5,0))), I44*0.5, I44*(VLOOKUP($A44, 'E1 Categorization'!$A$32:$E$124, 5,0))) -> 0 | BF44: =IF(ISERROR(J44*(VLOOKUP($A44, 'E1 Categorization'!$A$32:$E$124, 5,0))), J44*0.5, J44*(VLOOKUP($A44, 'E1 Categorization'!$A$32:$E$124, 5,0))) -> 0 | BG44: =IF(ISERROR(K44*(VLOOKUP($A44, 'E1 Categorization'!$A$32:$E$124, 5,0))), K44*0.5, K44*(VLOOKUP($A44, 'E1 Categorization'!$A$32:$E$124, 5,0))) -> 0 | BH44: =IF(ISERROR(L44*(VLOOKUP($A44, 'E1 Categorization'!$A$32:$E$124, 5,0))), L44*0.5, L44*(VLOOKUP($A44, 'E1 Categorization'!$A$32:$E$124, 5,0))) -> 0 | BI44: =IF(ISERROR(M44*(VLOOKUP($A44, 'E1 Categorization'!$A$32:$E$124, 5,0))), M44*0.5, M44*(VLOOKUP($A44, 'E1 Categorization'!$A$32:$E$124, 5,0))) -> 0 | BJ44: =IF(ISERROR(N44*(VLOOKUP($A44, 'E1 Categorization'!$A$32:$E$124, 5,0))), N44*0.5, N44*(VLOOKUP($A44, 'E1 Categorization'!$A$32:$E$124, 5,0))) -> 0 | BK44: =IF(ISERROR(O44*(VLOOKUP($A44, 'E1 Categorization'!$A$32:$E$124, 5,0))), O44*0.5, O44*(VLOOKUP($A44, 'E1 Categorization'!$A$32:$E$124, 5,0))) -> 0 | BL44: =IF(ISERROR(P44*(VLOOKUP($A44, 'E1 Categorization'!$A$32:$E$124, 5,0))), P44*0.5, P44*(VLOOKUP($A44, 'E1 Categorization'!$A$32:$E$124, 5,0))) -> 0 | BM44: =IF(ISERROR(Q44*(VLOOKUP($A44, 'E1 Categorization'!$A$32:$E$124, 5,0))), Q44*0.5, Q44*(VLOOKUP($A44, 'E1 Categorization'!$A$32:$E$124, 5,0))) -> 0 | BN44: =IF(ISERROR(R44*(VLOOKUP($A44, 'E1 Categorization'!$A$32:$E$124, 5,0))), R44*0.5, R44*(VLOOKUP($A44, 'E1 Categorization'!$A$32:$E$124, 5,0))) -> 0 | BO44: =IF(ISERROR(S44*(VLOOKUP($A44, 'E1 Categorization'!$A$32:$E$124, 5,0))), S44*0.5, S44*(VLOOKUP($A44, 'E1 Categorization'!$A$32:$E$124, 5,0))) -> 0 | BP44: =IF(ISERROR(T44*(VLOOKUP($A44, 'E1 Categorization'!$A$32:$E$124, 5,0))), T44*0.5, T44*(VLOOKUP($A44, 'E1 Categorization'!$A$32:$E$124, 5,0))) -> 0 | BQ44: =IF(ISERROR(U44*(VLOOKUP($A44, 'E1 Categorization'!$A$32:$E$124, 5,0))), U44*0.5, U44*(VLOOKUP($A44, 'E1 Categorization'!$A$32:$E$124, 5,0))) -> 0 | BR44: =IF(ISERROR(V44*(VLOOKUP($A44, 'E1 Categorization'!$A$32:$E$124, 5,0))), V44*0.5, V44*(VLOOKUP($A44, 'E1 Categorization'!$A$32:$E$124, 5,0))) -> 0 | BS44: =IF(ISERROR(W44*(VLOOKUP($A44, 'E1 Categorization'!$A$32:$E$124, 5,0))), W44*0.5, W44*(VLOOKUP($A44, 'E1 Categorization'!$A$32:$E$124, 5,0))) -> 0 | BT44: =IF(ISERROR(X44*(VLOOKUP($A44, 'E1 Categorization'!$A$32:$E$124, 5,0))), X44*0.5, X44*(VLOOKUP($A44, 'E1 Categorization'!$A$32:$E$124, 5,0))) -> 0
A45: ='I3 TB Data'!A154:B154 -> 1910 | B45: ='I3 TB Data'!B154 -> Leasehold Improvements | C45: ='I3 TB Data'!G154 -> 0 | D45: Yes | AA45: 1910 | AB45: Leasehold Improvements | AC45: =IF(ISERROR(E45*(1-VLOOKUP($A45, 'E1 Categorization'!$A$32:$E$124, 5,0))), E45*0.5, E45*(1-VLOOKUP($A45, 'E1 Categorization'!$A$32:$E$124, 5,0))) -> 0 | AD45: =IF(ISERROR(F45*(1-VLOOKUP($A45, 'E1 Categorization'!$A$32:$E$124, 5,0))), F45*0.5, F45*(1-VLOOKUP($A45, 'E1 Categorization'!$A$32:$E$124, 5,0))) -> 0 | AE45: =IF(ISERROR(G45*(1-VLOOKUP($A45, 'E1 Categorization'!$A$32:$E$124, 5,0))), G45*0.5, G45*(1-VLOOKUP($A45, 'E1 Categorization'!$A$32:$E$124, 5,0))) -> 0 | AF45: =IF(ISERROR(H45*(1-VLOOKUP($A45, 'E1 Categorization'!$A$32:$E$124, 5,0))), H45*0.5, H45*(1-VLOOKUP($A45, 'E1 Categorization'!$A$32:$E$124, 5,0))) -> 0 | AG45: =IF(ISERROR(I45*(1-VLOOKUP($A45, 'E1 Categorization'!$A$32:$E$124, 5,0))), I45*0.5, I45*(1-VLOOKUP($A45, 'E1 Categorization'!$A$32:$E$124, 5,0))) -> 0 | AH45: =IF(ISERROR(J45*(1-VLOOKUP($A45, 'E1 Categorization'!$A$32:$E$124, 5,0))), J45*0.5, J45*(1-VLOOKUP($A45, 'E1 Categorization'!$A$32:$E$124, 5,0))) -> 0 | AI45: =IF(ISERROR(K45*(1-VLOOKUP($A45, 'E1 Categorization'!$A$32:$E$124, 5,0))), K45*0.5, K45*(1-VLOOKUP($A45, 'E1 Categorization'!$A$32:$E$124, 5,0))) -> 0 | AJ45: =IF(ISERROR(L45*(1-VLOOKUP($A45, 'E1 Categorization'!$A$32:$E$124, 5,0))), L45*0.5, L45*(1-VLOOKUP($A45, 'E1 Categorization'!$A$32:$E$124, 5,0))) -> 0 | AK45: =IF(ISERROR(M45*(1-VLOOKUP($A45, 'E1 Categorization'!$A$32:$E$124, 5,0))), M45*0.5, M45*(1-VLOOKUP($A45, 'E1 Categorization'!$A$32:$E$124, 5,0))) -> 0 | AL45: =IF(ISERROR(N45*(1-VLOOKUP($A45, 'E1 Categorization'!$A$32:$E$124, 5,0))), N45*0.5, N45*(1-VLOOKUP($A45, 'E1 Categorization'!$A$32:$E$124, 5,0))) -> 0 | AM45: =IF(ISERROR(O45*(1-VLOOKUP($A45, 'E1 Categorization'!$A$32:$E$124, 5,0))), O45*0.5, O45*(1-VLOOKUP($A45, 'E1 Categorization'!$A$32:$E$124, 5,0))) -> 0 | AN45: =IF(ISERROR(P45*(1-VLOOKUP($A45, 'E1 Categorization'!$A$32:$E$124, 5,0))), P45*0.5, P45*(1-VLOOKUP($A45, 'E1 Categorization'!$A$32:$E$124, 5,0))) -> 0 | AO45: =IF(ISERROR(Q45*(1-VLOOKUP($A45, 'E1 Categorization'!$A$32:$E$124, 5,0))), Q45*0.5, Q45*(1-VLOOKUP($A45, 'E1 Categorization'!$A$32:$E$124, 5,0))) -> 0 | AP45: =IF(ISERROR(R45*(1-VLOOKUP($A45, 'E1 Categorization'!$A$32:$E$124, 5,0))), R45*0.5, R45*(1-VLOOKUP($A45, 'E1 Categorization'!$A$32:$E$124, 5,0))) -> 0 | AQ45: =IF(ISERROR(S45*(1-VLOOKUP($A45, 'E1 Categorization'!$A$32:$E$124, 5,0))), S45*0.5, S45*(1-VLOOKUP($A45, 'E1 Categorization'!$A$32:$E$124, 5,0))) -> 0 | AR45: =IF(ISERROR(T45*(1-VLOOKUP($A45, 'E1 Categorization'!$A$32:$E$124, 5,0))), T45*0.5, T45*(1-VLOOKUP($A45, 'E1 Categorization'!$A$32:$E$124, 5,0))) -> 0 | AS45: =IF(ISERROR(U45*(1-VLOOKUP($A45, 'E1 Categorization'!$A$32:$E$124, 5,0))), U45*0.5, U45*(1-VLOOKUP($A45, 'E1 Categorization'!$A$32:$E$124, 5,0))) -> 0 | AT45: =IF(ISERROR(V45*(1-VLOOKUP($A45, 'E1 Categorization'!$A$32:$E$124, 5,0))), V45*0.5, V45*(1-VLOOKUP($A45, 'E1 Categorization'!$A$32:$E$124, 5,0))) -> 0 | AU45: =IF(ISERROR(W45*(1-VLOOKUP($A45, 'E1 Categorization'!$A$32:$E$124, 5,0))), W45*0.5, W45*(1-VLOOKUP($A45, 'E1 Categorization'!$A$32:$E$124, 5,0))) -> 0 | AV45: =IF(ISERROR(X45*(1-VLOOKUP($A45, 'E1 Categorization'!$A$32:$E$124, 5,0))), X45*0.5, X45*(1-VLOOKUP($A45, 'E1 Categorization'!$A$32:$E$124, 5,0))) -> 0 | AY45: 1910 | AZ45: Leasehold Improvements | BA45: =IF(ISERROR(E45*(VLOOKUP($A45, 'E1 Categorization'!$A$32:$E$124, 5,0))), E45*0.5, E45*(VLOOKUP($A45, 'E1 Categorization'!$A$32:$E$124, 5,0))) -> 0 | BB45: =IF(ISERROR(F45*(VLOOKUP($A45, 'E1 Categorization'!$A$32:$E$124, 5,0))), F45*0.5, F45*(VLOOKUP($A45, 'E1 Categorization'!$A$32:$E$124, 5,0))) -> 0 | BC45: =IF(ISERROR(G45*(VLOOKUP($A45, 'E1 Categorization'!$A$32:$E$124, 5,0))), G45*0.5, G45*(VLOOKUP($A45, 'E1 Categorization'!$A$32:$E$124, 5,0))) -> 0 | BD45: =IF(ISERROR(H45*(VLOOKUP($A45, 'E1 Categorization'!$A$32:$E$124, 5,0))), H45*0.5, H45*(VLOOKUP($A45, 'E1 Categorization'!$A$32:$E$124, 5,0))) -> 0 | BE45: =IF(ISERROR(I45*(VLOOKUP($A45, 'E1 Categorization'!$A$32:$E$124, 5,0))), I45*0.5, I45*(VLOOKUP($A45, 'E1 Categorization'!$A$32:$E$124, 5,0))) -> 0 | BF45: =IF(ISERROR(J45*(VLOOKUP($A45, 'E1 Categorization'!$A$32:$E$124, 5,0))), J45*0.5, J45*(VLOOKUP($A45, 'E1 Categorization'!$A$32:$E$124, 5,0))) -> 0 | BG45: =IF(ISERROR(K45*(VLOOKUP($A45, 'E1 Categorization'!$A$32:$E$124, 5,0))), K45*0.5, K45*(VLOOKUP($A45, 'E1 Categorization'!$A$32:$E$124, 5,0))) -> 0 | BH45: =IF(ISERROR(L45*(VLOOKUP($A45, 'E1 Categorization'!$A$32:$E$124, 5,0))), L45*0.5, L45*(VLOOKUP($A45, 'E1 Categorization'!$A$32:$E$124, 5,0))) -> 0 | BI45: =IF(ISERROR(M45*(VLOOKUP($A45, 'E1 Categorization'!$A$32:$E$124, 5,0))), M45*0.5, M45*(VLOOKUP($A45, 'E1 Categorization'!$A$32:$E$124, 5,0))) -> 0 | BJ45: =IF(ISERROR(N45*(VLOOKUP($A45, 'E1 Categorization'!$A$32:$E$124, 5,0))), N45*0.5, N45*(VLOOKUP($A45, 'E1 Categorization'!$A$32:$E$124, 5,0))) -> 0 | BK45: =IF(ISERROR(O45*(VLOOKUP($A45, 'E1 Categorization'!$A$32:$E$124, 5,0))), O45*0.5, O45*(VLOOKUP($A45, 'E1 Categorization'!$A$32:$E$124, 5,0))) -> 0 | BL45: =IF(ISERROR(P45*(VLOOKUP($A45, 'E1 Categorization'!$A$32:$E$124, 5,0))), P45*0.5, P45*(VLOOKUP($A45, 'E1 Categorization'!$A$32:$E$124, 5,0))) -> 0 | BM45: =IF(ISERROR(Q45*(VLOOKUP($A45, 'E1 Categorization'!$A$32:$E$124, 5,0))), Q45*0.5, Q45*(VLOOKUP($A45, 'E1 Categorization'!$A$32:$E$124, 5,0))) -> 0 | BN45: =IF(ISERROR(R45*(VLOOKUP($A45, 'E1 Categorization'!$A$32:$E$124, 5,0))), R45*0.5, R45*(VLOOKUP($A45, 'E1 Categorization'!$A$32:$E$124, 5,0))) -> 0 | BO45: =IF(ISERROR(S45*(VLOOKUP($A45, 'E1 Categorization'!$A$32:$E$124, 5,0))), S45*0.5, S45*(VLOOKUP($A45, 'E1 Categorization'!$A$32:$E$124, 5,0))) -> 0 | BP45: =IF(ISERROR(T45*(VLOOKUP($A45, 'E1 Categorization'!$A$32:$E$124, 5,0))), T45*0.5, T45*(VLOOKUP($A45, 'E1 Categorization'!$A$32:$E$124, 5,0))) -> 0 | BQ45: =IF(ISERROR(U45*(VLOOKUP($A45, 'E1 Categorization'!$A$32:$E$124, 5,0))), U45*0.5, U45*(VLOOKUP($A45, 'E1 Categorization'!$A$32:$E$124, 5,0))) -> 0 | BR45: =IF(ISERROR(V45*(VLOOKUP($A45, 'E1 Categorization'!$A$32:$E$124, 5,0))), V45*0.5, V45*(VLOOKUP($A45, 'E1 Categorization'!$A$32:$E$124, 5,0))) -> 0 | BS45: =IF(ISERROR(W45*(VLOOKUP($A45, 'E1 Categorization'!$A$32:$E$124, 5,0))), W45*0.5, W45*(VLOOKUP($A45, 'E1 Categorization'!$A$32:$E$124, 5,0))) -> 0 | BT45: =IF(ISERROR(X45*(VLOOKUP($A45, 'E1 Categorization'!$A$32:$E$124, 5,0))), X45*0.5, X45*(VLOOKUP($A45, 'E1 Categorization'!$A$32:$E$124, 5,0))) -> 0
A46: ='I3 TB Data'!A155:B155 -> 1915 | B46: ='I3 TB Data'!B155 -> Office Furniture and Equipment | C46: ='I3 TB Data'!G155 -> 0 | D46: Yes | AA46: 1915 | AB46: Office Furniture and Equipment | AC46: =IF(ISERROR(E46*(1-VLOOKUP($A46, 'E1 Categorization'!$A$32:$E$124, 5,0))), E46*0.5, E46*(1-VLOOKUP($A46, 'E1 Categorization'!$A$32:$E$124, 5,0))) -> 0 | AD46: =IF(ISERROR(F46*(1-VLOOKUP($A46, 'E1 Categorization'!$A$32:$E$124, 5,0))), F46*0.5, F46*(1-VLOOKUP($A46, 'E1 Categorization'!$A$32:$E$124, 5,0))) -> 0 | AE46: =IF(ISERROR(G46*(1-VLOOKUP($A46, 'E1 Categorization'!$A$32:$E$124, 5,0))), G46*0.5, G46*(1-VLOOKUP($A46, 'E1 Categorization'!$A$32:$E$124, 5,0))) -> 0 | AF46: =IF(ISERROR(H46*(1-VLOOKUP($A46, 'E1 Categorization'!$A$32:$E$124, 5,0))), H46*0.5, H46*(1-VLOOKUP($A46, 'E1 Categorization'!$A$32:$E$124, 5,0))) -> 0 | AG46: =IF(ISERROR(I46*(1-VLOOKUP($A46, 'E1 Categorization'!$A$32:$E$124, 5,0))), I46*0.5, I46*(1-VLOOKUP($A46, 'E1 Categorization'!$A$32:$E$124, 5,0))) -> 0 | AH46: =IF(ISERROR(J46*(1-VLOOKUP($A46, 'E1 Categorization'!$A$32:$E$124, 5,0))), J46*0.5, J46*(1-VLOOKUP($A46, 'E1 Categorization'!$A$32:$E$124, 5,0))) -> 0 | AI46: =IF(ISERROR(K46*(1-VLOOKUP($A46, 'E1 Categorization'!$A$32:$E$124, 5,0))), K46*0.5, K46*(1-VLOOKUP($A46, 'E1 Categorization'!$A$32:$E$124, 5,0))) -> 0 | AJ46: =IF(ISERROR(L46*(1-VLOOKUP($A46, 'E1 Categorization'!$A$32:$E$124, 5,0))), L46*0.5, L46*(1-VLOOKUP($A46, 'E1 Categorization'!$A$32:$E$124, 5,0))) -> 0 | AK46: =IF(ISERROR(M46*(1-VLOOKUP($A46, 'E1 Categorization'!$A$32:$E$124, 5,0))), M46*0.5, M46*(1-VLOOKUP($A46, 'E1 Categorization'!$A$32:$E$124, 5,0))) -> 0 | AL46: =IF(ISERROR(N46*(1-VLOOKUP($A46, 'E1 Categorization'!$A$32:$E$124, 5,0))), N46*0.5, N46*(1-VLOOKUP($A46, 'E1 Categorization'!$A$32:$E$124, 5,0))) -> 0 | AM46: =IF(ISERROR(O46*(1-VLOOKUP($A46, 'E1 Categorization'!$A$32:$E$124, 5,0))), O46*0.5, O46*(1-VLOOKUP($A46, 'E1 Categorization'!$A$32:$E$124, 5,0))) -> 0 | AN46: =IF(ISERROR(P46*(1-VLOOKUP($A46, 'E1 Categorization'!$A$32:$E$124, 5,0))), P46*0.5, P46*(1-VLOOKUP($A46, 'E1 Categorization'!$A$32:$E$124, 5,0))) -> 0 | AO46: =IF(ISERROR(Q46*(1-VLOOKUP($A46, 'E1 Categorization'!$A$32:$E$124, 5,0))), Q46*0.5, Q46*(1-VLOOKUP($A46, 'E1 Categorization'!$A$32:$E$124, 5,0))) -> 0 | AP46: =IF(ISERROR(R46*(1-VLOOKUP($A46, 'E1 Categorization'!$A$32:$E$124, 5,0))), R46*0.5, R46*(1-VLOOKUP($A46, 'E1 Categorization'!$A$32:$E$124, 5,0))) -> 0 | AQ46: =IF(ISERROR(S46*(1-VLOOKUP($A46, 'E1 Categorization'!$A$32:$E$124, 5,0))), S46*0.5, S46*(1-VLOOKUP($A46, 'E1 Categorization'!$A$32:$E$124, 5,0))) -> 0 | AR46: =IF(ISERROR(T46*(1-VLOOKUP($A46, 'E1 Categorization'!$A$32:$E$124, 5,0))), T46*0.5, T46*(1-VLOOKUP($A46, 'E1 Categorization'!$A$32:$E$124, 5,0))) -> 0 | AS46: =IF(ISERROR(U46*(1-VLOOKUP($A46, 'E1 Categorization'!$A$32:$E$124, 5,0))), U46*0.5, U46*(1-VLOOKUP($A46, 'E1 Categorization'!$A$32:$E$124, 5,0))) -> 0 | AT46: =IF(ISERROR(V46*(1-VLOOKUP($A46, 'E1 Categorization'!$A$32:$E$124, 5,0))), V46*0.5, V46*(1-VLOOKUP($A46, 'E1 Categorization'!$A$32:$E$124, 5,0))) -> 0 | AU46: =IF(ISERROR(W46*(1-VLOOKUP($A46, 'E1 Categorization'!$A$32:$E$124, 5,0))), W46*0.5, W46*(1-VLOOKUP($A46, 'E1 Categorization'!$A$32:$E$124, 5,0))) -> 0 | AV46: =IF(ISERROR(X46*(1-VLOOKUP($A46, 'E1 Categorization'!$A$32:$E$124, 5,0))), X46*0.5, X46*(1-VLOOKUP($A46, 'E1 Categorization'!$A$32:$E$124, 5,0))) -> 0 | AY46: 1915 | AZ46: Office Furniture and Equipment | BA46: =IF(ISERROR(E46*(VLOOKUP($A46, 'E1 Categorization'!$A$32:$E$124, 5,0))), E46*0.5, E46*(VLOOKUP($A46, 'E1 Categorization'!$A$32:$E$124, 5,0))) -> 0 | BB46: =IF(ISERROR(F46*(VLOOKUP($A46, 'E1 Categorization'!$A$32:$E$124, 5,0))), F46*0.5, F46*(VLOOKUP($A46, 'E1 Categorization'!$A$32:$E$124, 5,0))) -> 0 | BC46: =IF(ISERROR(G46*(VLOOKUP($A46, 'E1 Categorization'!$A$32:$E$124, 5,0))), G46*0.5, G46*(VLOOKUP($A46, 'E1 Categorization'!$A$32:$E$124, 5,0))) -> 0 | BD46: =IF(ISERROR(H46*(VLOOKUP($A46, 'E1 Categorization'!$A$32:$E$124, 5,0))), H46*0.5, H46*(VLOOKUP($A46, 'E1 Categorization'!$A$32:$E$124, 5,0))) -> 0 | BE46: =IF(ISERROR(I46*(VLOOKUP($A46, 'E1 Categorization'!$A$32:$E$124, 5,0))), I46*0.5, I46*(VLOOKUP($A46, 'E1 Categorization'!$A$32:$E$124, 5,0))) -> 0 | BF46: =IF(ISERROR(J46*(VLOOKUP($A46, 'E1 Categorization'!$A$32:$E$124, 5,0))), J46*0.5, J46*(VLOOKUP($A46, 'E1 Categorization'!$A$32:$E$124, 5,0))) -> 0 | BG46: =IF(ISERROR(K46*(VLOOKUP($A46, 'E1 Categorization'!$A$32:$E$124, 5,0))), K46*0.5, K46*(VLOOKUP($A46, 'E1 Categorization'!$A$32:$E$124, 5,0))) -> 0 | BH46: =IF(ISERROR(L46*(VLOOKUP($A46, 'E1 Categorization'!$A$32:$E$124, 5,0))), L46*0.5, L46*(VLOOKUP($A46, 'E1 Categorization'!$A$32:$E$124, 5,0))) -> 0 | BI46: =IF(ISERROR(M46*(VLOOKUP($A46, 'E1 Categorization'!$A$32:$E$124, 5,0))), M46*0.5, M46*(VLOOKUP($A46, 'E1 Categorization'!$A$32:$E$124, 5,0))) -> 0 | BJ46: =IF(ISERROR(N46*(VLOOKUP($A46, 'E1 Categorization'!$A$32:$E$124, 5,0))), N46*0.5, N46*(VLOOKUP($A46, 'E1 Categorization'!$A$32:$E$124, 5,0))) -> 0 | BK46: =IF(ISERROR(O46*(VLOOKUP($A46, 'E1 Categorization'!$A$32:$E$124, 5,0))), O46*0.5, O46*(VLOOKUP($A46, 'E1 Categorization'!$A$32:$E$124, 5,0))) -> 0 | BL46: =IF(ISERROR(P46*(VLOOKUP($A46, 'E1 Categorization'!$A$32:$E$124, 5,0))), P46*0.5, P46*(VLOOKUP($A46, 'E1 Categorization'!$A$32:$E$124, 5,0))) -> 0 | BM46: =IF(ISERROR(Q46*(VLOOKUP($A46, 'E1 Categorization'!$A$32:$E$124, 5,0))), Q46*0.5, Q46*(VLOOKUP($A46, 'E1 Categorization'!$A$32:$E$124, 5,0))) -> 0 | BN46: =IF(ISERROR(R46*(VLOOKUP($A46, 'E1 Categorization'!$A$32:$E$124, 5,0))), R46*0.5, R46*(VLOOKUP($A46, 'E1 Categorization'!$A$32:$E$124, 5,0))) -> 0 | BO46: =IF(ISERROR(S46*(VLOOKUP($A46, 'E1 Categorization'!$A$32:$E$124, 5,0))), S46*0.5, S46*(VLOOKUP($A46, 'E1 Categorization'!$A$32:$E$124, 5,0))) -> 0 | BP46: =IF(ISERROR(T46*(VLOOKUP($A46, 'E1 Categorization'!$A$32:$E$124, 5,0))), T46*0.5, T46*(VLOOKUP($A46, 'E1 Categorization'!$A$32:$E$124, 5,0))) -> 0 | BQ46: =IF(ISERROR(U46*(VLOOKUP($A46, 'E1 Categorization'!$A$32:$E$124, 5,0))), U46*0.5, U46*(VLOOKUP($A46, 'E1 Categorization'!$A$32:$E$124, 5,0))) -> 0 | BR46: =IF(ISERROR(V46*(VLOOKUP($A46, 'E1 Categorization'!$A$32:$E$124, 5,0))), V46*0.5, V46*(VLOOKUP($A46, 'E1 Categorization'!$A$32:$E$124, 5,0))) -> 0 | BS46: =IF(ISERROR(W46*(VLOOKUP($A46, 'E1 Categorization'!$A$32:$E$124, 5,0))), W46*0.5, W46*(VLOOKUP($A46, 'E1 Categorization'!$A$32:$E$124, 5,0))) -> 0 | BT46: =IF(ISERROR(X46*(VLOOKUP($A46, 'E1 Categorization'!$A$32:$E$124, 5,0))), X46*0.5, X46*(VLOOKUP($A46, 'E1 Categorization'!$A$32:$E$124, 5,0))) -> 0
A47: ='I3 TB Data'!A156:B156 -> 1920 | B47: ='I3 TB Data'!B156 -> Computer Equipment - Hardware | C47: ='I3 TB Data'!G156 -> 0 | D47: Yes | AA47: 1920 | AB47: Computer Equipment - Hardware | AC47: =IF(ISERROR(E47*(1-VLOOKUP($A47, 'E1 Categorization'!$A$32:$E$124, 5,0))), E47*0.5, E47*(1-VLOOKUP($A47, 'E1 Categorization'!$A$32:$E$124, 5,0))) -> 0 | AD47: =IF(ISERROR(F47*(1-VLOOKUP($A47, 'E1 Categorization'!$A$32:$E$124, 5,0))), F47*0.5, F47*(1-VLOOKUP($A47, 'E1 Categorization'!$A$32:$E$124, 5,0))) -> 0 | AE47: =IF(ISERROR(G47*(1-VLOOKUP($A47, 'E1 Categorization'!$A$32:$E$124, 5,0))), G47*0.5, G47*(1-VLOOKUP($A47, 'E1 Categorization'!$A$32:$E$124, 5,0))) -> 0 | AF47: =IF(ISERROR(H47*(1-VLOOKUP($A47, 'E1 Categorization'!$A$32:$E$124, 5,0))), H47*0.5, H47*(1-VLOOKUP($A47, 'E1 Categorization'!$A$32:$E$124, 5,0))) -> 0 | AG47: =IF(ISERROR(I47*(1-VLOOKUP($A47, 'E1 Categorization'!$A$32:$E$124, 5,0))), I47*0.5, I47*(1-VLOOKUP($A47, 'E1 Categorization'!$A$32:$E$124, 5,0))) -> 0 | AH47: =IF(ISERROR(J47*(1-VLOOKUP($A47, 'E1 Categorization'!$A$32:$E$124, 5,0))), J47*0.5, J47*(1-VLOOKUP($A47, 'E1 Categorization'!$A$32:$E$124, 5,0))) -> 0 | AI47: =IF(ISERROR(K47*(1-VLOOKUP($A47, 'E1 Categorization'!$A$32:$E$124, 5,0))), K47*0.5, K47*(1-VLOOKUP($A47, 'E1 Categorization'!$A$32:$E$124, 5,0))) -> 0 | AJ47: =IF(ISERROR(L47*(1-VLOOKUP($A47, 'E1 Categorization'!$A$32:$E$124, 5,0))), L47*0.5, L47*(1-VLOOKUP($A47, 'E1 Categorization'!$A$32:$E$124, 5,0))) -> 0 | AK47: =IF(ISERROR(M47*(1-VLOOKUP($A47, 'E1 Categorization'!$A$32:$E$124, 5,0))), M47*0.5, M47*(1-VLOOKUP($A47, 'E1 Categorization'!$A$32:$E$124, 5,0))) -> 0 | AL47: =IF(ISERROR(N47*(1-VLOOKUP($A47, 'E1 Categorization'!$A$32:$E$124, 5,0))), N47*0.5, N47*(1-VLOOKUP($A47, 'E1 Categorization'!$A$32:$E$124, 5,0))) -> 0 | AM47: =IF(ISERROR(O47*(1-VLOOKUP($A47, 'E1 Categorization'!$A$32:$E$124, 5,0))), O47*0.5, O47*(1-VLOOKUP($A47, 'E1 Categorization'!$A$32:$E$124, 5,0))) -> 0 | AN47: =IF(ISERROR(P47*(1-VLOOKUP($A47, 'E1 Categorization'!$A$32:$E$124, 5,0))), P47*0.5, P47*(1-VLOOKUP($A47, 'E1 Categorization'!$A$32:$E$124, 5,0))) -> 0 | AO47: =IF(ISERROR(Q47*(1-VLOOKUP($A47, 'E1 Categorization'!$A$32:$E$124, 5,0))), Q47*0.5, Q47*(1-VLOOKUP($A47, 'E1 Categorization'!$A$32:$E$124, 5,0))) -> 0 | AP47: =IF(ISERROR(R47*(1-VLOOKUP($A47, 'E1 Categorization'!$A$32:$E$124, 5,0))), R47*0.5, R47*(1-VLOOKUP($A47, 'E1 Categorization'!$A$32:$E$124, 5,0))) -> 0 | AQ47: =IF(ISERROR(S47*(1-VLOOKUP($A47, 'E1 Categorization'!$A$32:$E$124, 5,0))), S47*0.5, S47*(1-VLOOKUP($A47, 'E1 Categorization'!$A$32:$E$124, 5,0))) -> 0 | AR47: =IF(ISERROR(T47*(1-VLOOKUP($A47, 'E1 Categorization'!$A$32:$E$124, 5,0))), T47*0.5, T47*(1-VLOOKUP($A47, 'E1 Categorization'!$A$32:$E$124, 5,0))) -> 0 | AS47: =IF(ISERROR(U47*(1-VLOOKUP($A47, 'E1 Categorization'!$A$32:$E$124, 5,0))), U47*0.5, U47*(1-VLOOKUP($A47, 'E1 Categorization'!$A$32:$E$124, 5,0))) -> 0 | AT47: =IF(ISERROR(V47*(1-VLOOKUP($A47, 'E1 Categorization'!$A$32:$E$124, 5,0))), V47*0.5, V47*(1-VLOOKUP($A47, 'E1 Categorization'!$A$32:$E$124, 5,0))) -> 0 | AU47: =IF(ISERROR(W47*(1-VLOOKUP($A47, 'E1 Categorization'!$A$32:$E$124, 5,0))), W47*0.5, W47*(1-VLOOKUP($A47, 'E1 Categorization'!$A$32:$E$124, 5,0))) -> 0 | AV47: =IF(ISERROR(X47*(1-VLOOKUP($A47, 'E1 Categorization'!$A$32:$E$124, 5,0))), X47*0.5, X47*(1-VLOOKUP($A47, 'E1 Categorization'!$A$32:$E$124, 5,0))) -> 0 | AY47: 1920 | AZ47: Computer Equipment - Hardware | BA47: =IF(ISERROR(E47*(VLOOKUP($A47, 'E1 Categorization'!$A$32:$E$124, 5,0))), E47*0.5, E47*(VLOOKUP($A47, 'E1 Categorization'!$A$32:$E$124, 5,0))) -> 0 | BB47: =IF(ISERROR(F47*(VLOOKUP($A47, 'E1 Categorization'!$A$32:$E$124, 5,0))), F47*0.5, F47*(VLOOKUP($A47, 'E1 Categorization'!$A$32:$E$124, 5,0))) -> 0 | BC47: =IF(ISERROR(G47*(VLOOKUP($A47, 'E1 Categorization'!$A$32:$E$124, 5,0))), G47*0.5, G47*(VLOOKUP($A47, 'E1 Categorization'!$A$32:$E$124, 5,0))) -> 0 | BD47: =IF(ISERROR(H47*(VLOOKUP($A47, 'E1 Categorization'!$A$32:$E$124, 5,0))), H47*0.5, H47*(VLOOKUP($A47, 'E1 Categorization'!$A$32:$E$124, 5,0))) -> 0 | BE47: =IF(ISERROR(I47*(VLOOKUP($A47, 'E1 Categorization'!$A$32:$E$124, 5,0))), I47*0.5, I47*(VLOOKUP($A47, 'E1 Categorization'!$A$32:$E$124, 5,0))) -> 0 | BF47: =IF(ISERROR(J47*(VLOOKUP($A47, 'E1 Categorization'!$A$32:$E$124, 5,0))), J47*0.5, J47*(VLOOKUP($A47, 'E1 Categorization'!$A$32:$E$124, 5,0))) -> 0 | BG47: =IF(ISERROR(K47*(VLOOKUP($A47, 'E1 Categorization'!$A$32:$E$124, 5,0))), K47*0.5, K47*(VLOOKUP($A47, 'E1 Categorization'!$A$32:$E$124, 5,0))) -> 0 | BH47: =IF(ISERROR(L47*(VLOOKUP($A47, 'E1 Categorization'!$A$32:$E$124, 5,0))), L47*0.5, L47*(VLOOKUP($A47, 'E1 Categorization'!$A$32:$E$124, 5,0))) -> 0 | BI47: =IF(ISERROR(M47*(VLOOKUP($A47, 'E1 Categorization'!$A$32:$E$124, 5,0))), M47*0.5, M47*(VLOOKUP($A47, 'E1 Categorization'!$A$32:$E$124, 5,0))) -> 0 | BJ47: =IF(ISERROR(N47*(VLOOKUP($A47, 'E1 Categorization'!$A$32:$E$124, 5,0))), N47*0.5, N47*(VLOOKUP($A47, 'E1 Categorization'!$A$32:$E$124, 5,0))) -> 0 | BK47: =IF(ISERROR(O47*(VLOOKUP($A47, 'E1 Categorization'!$A$32:$E$124, 5,0))), O47*0.5, O47*(VLOOKUP($A47, 'E1 Categorization'!$A$32:$E$124, 5,0))) -> 0 | BL47: =IF(ISERROR(P47*(VLOOKUP($A47, 'E1 Categorization'!$A$32:$E$124, 5,0))), P47*0.5, P47*(VLOOKUP($A47, 'E1 Categorization'!$A$32:$E$124, 5,0))) -> 0 | BM47: =IF(ISERROR(Q47*(VLOOKUP($A47, 'E1 Categorization'!$A$32:$E$124, 5,0))), Q47*0.5, Q47*(VLOOKUP($A47, 'E1 Categorization'!$A$32:$E$124, 5,0))) -> 0 | BN47: =IF(ISERROR(R47*(VLOOKUP($A47, 'E1 Categorization'!$A$32:$E$124, 5,0))), R47*0.5, R47*(VLOOKUP($A47, 'E1 Categorization'!$A$32:$E$124, 5,0))) -> 0 | BO47: =IF(ISERROR(S47*(VLOOKUP($A47, 'E1 Categorization'!$A$32:$E$124, 5,0))), S47*0.5, S47*(VLOOKUP($A47, 'E1 Categorization'!$A$32:$E$124, 5,0))) -> 0 | BP47: =IF(ISERROR(T47*(VLOOKUP($A47, 'E1 Categorization'!$A$32:$E$124, 5,0))), T47*0.5, T47*(VLOOKUP($A47, 'E1 Categorization'!$A$32:$E$124, 5,0))) -> 0 | BQ47: =IF(ISERROR(U47*(VLOOKUP($A47, 'E1 Categorization'!$A$32:$E$124, 5,0))), U47*0.5, U47*(VLOOKUP($A47, 'E1 Categorization'!$A$32:$E$124, 5,0))) -> 0 | BR47: =IF(ISERROR(V47*(VLOOKUP($A47, 'E1 Categorization'!$A$32:$E$124, 5,0))), V47*0.5, V47*(VLOOKUP($A47, 'E1 Categorization'!$A$32:$E$124, 5,0))) -> 0 | BS47: =IF(ISERROR(W47*(VLOOKUP($A47, 'E1 Categorization'!$A$32:$E$124, 5,0))), W47*0.5, W47*(VLOOKUP($A47, 'E1 Categorization'!$A$32:$E$124, 5,0))) -> 0 | BT47: =IF(ISERROR(X47*(VLOOKUP($A47, 'E1 Categorization'!$A$32:$E$124, 5,0))), X47*0.5, X47*(VLOOKUP($A47, 'E1 Categorization'!$A$32:$E$124, 5,0))) -> 0
A48: ='I3 TB Data'!A157:B157 -> 1925 | B48: ='I3 TB Data'!B157 -> Computer Software | C48: ='I3 TB Data'!G157 -> 0 | D48: Yes | AA48: 1925 | AB48: Computer Software | AC48: =IF(ISERROR(E48*(1-VLOOKUP($A48, 'E1 Categorization'!$A$32:$E$124, 5,0))), E48*0.5, E48*(1-VLOOKUP($A48, 'E1 Categorization'!$A$32:$E$124, 5,0))) -> 0 | AD48: =IF(ISERROR(F48*(1-VLOOKUP($A48, 'E1 Categorization'!$A$32:$E$124, 5,0))), F48*0.5, F48*(1-VLOOKUP($A48, 'E1 Categorization'!$A$32:$E$124, 5,0))) -> 0 | AE48: =IF(ISERROR(G48*(1-VLOOKUP($A48, 'E1 Categorization'!$A$32:$E$124, 5,0))), G48*0.5, G48*(1-VLOOKUP($A48, 'E1 Categorization'!$A$32:$E$124, 5,0))) -> 0 | AF48: =IF(ISERROR(H48*(1-VLOOKUP($A48, 'E1 Categorization'!$A$32:$E$124, 5,0))), H48*0.5, H48*(1-VLOOKUP($A48, 'E1 Categorization'!$A$32:$E$124, 5,0))) -> 0 | AG48: =IF(ISERROR(I48*(1-VLOOKUP($A48, 'E1 Categorization'!$A$32:$E$124, 5,0))), I48*0.5, I48*(1-VLOOKUP($A48, 'E1 Categorization'!$A$32:$E$124, 5,0))) -> 0 | AH48: =IF(ISERROR(J48*(1-VLOOKUP($A48, 'E1 Categorization'!$A$32:$E$124, 5,0))), J48*0.5, J48*(1-VLOOKUP($A48, 'E1 Categorization'!$A$32:$E$124, 5,0))) -> 0 | AI48: =IF(ISERROR(K48*(1-VLOOKUP($A48, 'E1 Categorization'!$A$32:$E$124, 5,0))), K48*0.5, K48*(1-VLOOKUP($A48, 'E1 Categorization'!$A$32:$E$124, 5,0))) -> 0 | AJ48: =IF(ISERROR(L48*(1-VLOOKUP($A48, 'E1 Categorization'!$A$32:$E$124, 5,0))), L48*0.5, L48*(1-VLOOKUP($A48, 'E1 Categorization'!$A$32:$E$124, 5,0))) -> 0 | AK48: =IF(ISERROR(M48*(1-VLOOKUP($A48, 'E1 Categorization'!$A$32:$E$124, 5,0))), M48*0.5, M48*(1-VLOOKUP($A48, 'E1 Categorization'!$A$32:$E$124, 5,0))) -> 0 | AL48: =IF(ISERROR(N48*(1-VLOOKUP($A48, 'E1 Categorization'!$A$32:$E$124, 5,0))), N48*0.5, N48*(1-VLOOKUP($A48, 'E1 Categorization'!$A$32:$E$124, 5,0))) -> 0 | AM48: =IF(ISERROR(O48*(1-VLOOKUP($A48, 'E1 Categorization'!$A$32:$E$124, 5,0))), O48*0.5, O48*(1-VLOOKUP($A48, 'E1 Categorization'!$A$32:$E$124, 5,0))) -> 0 | AN48: =IF(ISERROR(P48*(1-VLOOKUP($A48, 'E1 Categorization'!$A$32:$E$124, 5,0))), P48*0.5, P48*(1-VLOOKUP($A48, 'E1 Categorization'!$A$32:$E$124, 5,0))) -> 0 | AO48: =IF(ISERROR(Q48*(1-VLOOKUP($A48, 'E1 Categorization'!$A$32:$E$124, 5,0))), Q48*0.5, Q48*(1-VLOOKUP($A48, 'E1 Categorization'!$A$32:$E$124, 5,0))) -> 0 | AP48: =IF(ISERROR(R48*(1-VLOOKUP($A48, 'E1 Categorization'!$A$32:$E$124, 5,0))), R48*0.5, R48*(1-VLOOKUP($A48, 'E1 Categorization'!$A$32:$E$124, 5,0))) -> 0 | AQ48: =IF(ISERROR(S48*(1-VLOOKUP($A48, 'E1 Categorization'!$A$32:$E$124, 5,0))), S48*0.5, S48*(1-VLOOKUP($A48, 'E1 Categorization'!$A$32:$E$124, 5,0))) -> 0 | AR48: =IF(ISERROR(T48*(1-VLOOKUP($A48, 'E1 Categorization'!$A$32:$E$124, 5,0))), T48*0.5, T48*(1-VLOOKUP($A48, 'E1 Categorization'!$A$32:$E$124, 5,0))) -> 0 | AS48: =IF(ISERROR(U48*(1-VLOOKUP($A48, 'E1 Categorization'!$A$32:$E$124, 5,0))), U48*0.5, U48*(1-VLOOKUP($A48, 'E1 Categorization'!$A$32:$E$124, 5,0))) -> 0 | AT48: =IF(ISERROR(V48*(1-VLOOKUP($A48, 'E1 Categorization'!$A$32:$E$124, 5,0))), V48*0.5, V48*(1-VLOOKUP($A48, 'E1 Categorization'!$A$32:$E$124, 5,0))) -> 0 | AU48: =IF(ISERROR(W48*(1-VLOOKUP($A48, 'E1 Categorization'!$A$32:$E$124, 5,0))), W48*0.5, W48*(1-VLOOKUP($A48, 'E1 Categorization'!$A$32:$E$124, 5,0))) -> 0 | AV48: =IF(ISERROR(X48*(1-VLOOKUP($A48, 'E1 Categorization'!$A$32:$E$124, 5,0))), X48*0.5, X48*(1-VLOOKUP($A48, 'E1 Categorization'!$A$32:$E$124, 5,0))) -> 0 | AY48: 1925 | AZ48: Computer Software | BA48: =IF(ISERROR(E48*(VLOOKUP($A48, 'E1 Categorization'!$A$32:$E$124, 5,0))), E48*0.5, E48*(VLOOKUP($A48, 'E1 Categorization'!$A$32:$E$124, 5,0))) -> 0 | BB48: =IF(ISERROR(F48*(VLOOKUP($A48, 'E1 Categorization'!$A$32:$E$124, 5,0))), F48*0.5, F48*(VLOOKUP($A48, 'E1 Categorization'!$A$32:$E$124, 5,0))) -> 0 | BC48: =IF(ISERROR(G48*(VLOOKUP($A48, 'E1 Categorization'!$A$32:$E$124, 5,0))), G48*0.5, G48*(VLOOKUP($A48, 'E1 Categorization'!$A$32:$E$124, 5,0))) -> 0 | BD48: =IF(ISERROR(H48*(VLOOKUP($A48, 'E1 Categorization'!$A$32:$E$124, 5,0))), H48*0.5, H48*(VLOOKUP($A48, 'E1 Categorization'!$A$32:$E$124, 5,0))) -> 0 | BE48: =IF(ISERROR(I48*(VLOOKUP($A48, 'E1 Categorization'!$A$32:$E$124, 5,0))), I48*0.5, I48*(VLOOKUP($A48, 'E1 Categorization'!$A$32:$E$124, 5,0))) -> 0 | BF48: =IF(ISERROR(J48*(VLOOKUP($A48, 'E1 Categorization'!$A$32:$E$124, 5,0))), J48*0.5, J48*(VLOOKUP($A48, 'E1 Categorization'!$A$32:$E$124, 5,0))) -> 0 | BG48: =IF(ISERROR(K48*(VLOOKUP($A48, 'E1 Categorization'!$A$32:$E$124, 5,0))), K48*0.5, K48*(VLOOKUP($A48, 'E1 Categorization'!$A$32:$E$124, 5,0))) -> 0 | BH48: =IF(ISERROR(L48*(VLOOKUP($A48, 'E1 Categorization'!$A$32:$E$124, 5,0))), L48*0.5, L48*(VLOOKUP($A48, 'E1 Categorization'!$A$32:$E$124, 5,0))) -> 0 | BI48: =IF(ISERROR(M48*(VLOOKUP($A48, 'E1 Categorization'!$A$32:$E$124, 5,0))), M48*0.5, M48*(VLOOKUP($A48, 'E1 Categorization'!$A$32:$E$124, 5,0))) -> 0 | BJ48: =IF(ISERROR(N48*(VLOOKUP($A48, 'E1 Categorization'!$A$32:$E$124, 5,0))), N48*0.5, N48*(VLOOKUP($A48, 'E1 Categorization'!$A$32:$E$124, 5,0))) -> 0 | BK48: =IF(ISERROR(O48*(VLOOKUP($A48, 'E1 Categorization'!$A$32:$E$124, 5,0))), O48*0.5, O48*(VLOOKUP($A48, 'E1 Categorization'!$A$32:$E$124, 5,0))) -> 0 | BL48: =IF(ISERROR(P48*(VLOOKUP($A48, 'E1 Categorization'!$A$32:$E$124, 5,0))), P48*0.5, P48*(VLOOKUP($A48, 'E1 Categorization'!$A$32:$E$124, 5,0))) -> 0 | BM48: =IF(ISERROR(Q48*(VLOOKUP($A48, 'E1 Categorization'!$A$32:$E$124, 5,0))), Q48*0.5, Q48*(VLOOKUP($A48, 'E1 Categorization'!$A$32:$E$124, 5,0))) -> 0 | BN48: =IF(ISERROR(R48*(VLOOKUP($A48, 'E1 Categorization'!$A$32:$E$124, 5,0))), R48*0.5, R48*(VLOOKUP($A48, 'E1 Categorization'!$A$32:$E$124, 5,0))) -> 0 | BO48: =IF(ISERROR(S48*(VLOOKUP($A48, 'E1 Categorization'!$A$32:$E$124, 5,0))), S48*0.5, S48*(VLOOKUP($A48, 'E1 Categorization'!$A$32:$E$124, 5,0))) -> 0 | BP48: =IF(ISERROR(T48*(VLOOKUP($A48, 'E1 Categorization'!$A$32:$E$124, 5,0))), T48*0.5, T48*(VLOOKUP($A48, 'E1 Categorization'!$A$32:$E$124, 5,0))) -> 0 | BQ48: =IF(ISERROR(U48*(VLOOKUP($A48, 'E1 Categorization'!$A$32:$E$124, 5,0))), U48*0.5, U48*(VLOOKUP($A48, 'E1 Categorization'!$A$32:$E$124, 5,0))) -> 0 | BR48: =IF(ISERROR(V48*(VLOOKUP($A48, 'E1 Categorization'!$A$32:$E$124, 5,0))), V48*0.5, V48*(VLOOKUP($A48, 'E1 Categorization'!$A$32:$E$124, 5,0))) -> 0 | BS48: =IF(ISERROR(W48*(VLOOKUP($A48, 'E1 Categorization'!$A$32:$E$124, 5,0))), W48*0.5, W48*(VLOOKUP($A48, 'E1 Categorization'!$A$32:$E$124, 5,0))) -> 0 | BT48: =IF(ISERROR(X48*(VLOOKUP($A48, 'E1 Categorization'!$A$32:$E$124, 5,0))), X48*0.5, X48*(VLOOKUP($A48, 'E1 Categorization'!$A$32:$E$124, 5,0))) -> 0
A49: ='I3 TB Data'!A158:B158 -> 1930 | B49: ='I3 TB Data'!B158 -> Transportation Equipment | C49: ='I3 TB Data'!G158 -> 0 | D49: Yes | AA49: 1930 | AB49: Transportation Equipment | AC49: =IF(ISERROR(E49*(1-VLOOKUP($A49, 'E1 Categorization'!$A$32:$E$124, 5,0))), E49*0.5, E49*(1-VLOOKUP($A49, 'E1 Categorization'!$A$32:$E$124, 5,0))) -> 0 | AD49: =IF(ISERROR(F49*(1-VLOOKUP($A49, 'E1 Categorization'!$A$32:$E$124, 5,0))), F49*0.5, F49*(1-VLOOKUP($A49, 'E1 Categorization'!$A$32:$E$124, 5,0))) -> 0 | AE49: =IF(ISERROR(G49*(1-VLOOKUP($A49, 'E1 Categorization'!$A$32:$E$124, 5,0))), G49*0.5, G49*(1-VLOOKUP($A49, 'E1 Categorization'!$A$32:$E$124, 5,0))) -> 0 | AF49: =IF(ISERROR(H49*(1-VLOOKUP($A49, 'E1 Categorization'!$A$32:$E$124, 5,0))), H49*0.5, H49*(1-VLOOKUP($A49, 'E1 Categorization'!$A$32:$E$124, 5,0))) -> 0 | AG49: =IF(ISERROR(I49*(1-VLOOKUP($A49, 'E1 Categorization'!$A$32:$E$124, 5,0))), I49*0.5, I49*(1-VLOOKUP($A49, 'E1 Categorization'!$A$32:$E$124, 5,0))) -> 0 | AH49: =IF(ISERROR(J49*(1-VLOOKUP($A49, 'E1 Categorization'!$A$32:$E$124, 5,0))), J49*0.5, J49*(1-VLOOKUP($A49, 'E1 Categorization'!$A$32:$E$124, 5,0))) -> 0 | AI49: =IF(ISERROR(K49*(1-VLOOKUP($A49, 'E1 Categorization'!$A$32:$E$124, 5,0))), K49*0.5, K49*(1-VLOOKUP($A49, 'E1 Categorization'!$A$32:$E$124, 5,0))) -> 0 | AJ49: =IF(ISERROR(L49*(1-VLOOKUP($A49, 'E1 Categorization'!$A$32:$E$124, 5,0))), L49*0.5, L49*(1-VLOOKUP($A49, 'E1 Categorization'!$A$32:$E$124, 5,0))) -> 0 | AK49: =IF(ISERROR(M49*(1-VLOOKUP($A49, 'E1 Categorization'!$A$32:$E$124, 5,0))), M49*0.5, M49*(1-VLOOKUP($A49, 'E1 Categorization'!$A$32:$E$124, 5,0))) -> 0 | AL49: =IF(ISERROR(N49*(1-VLOOKUP($A49, 'E1 Categorization'!$A$32:$E$124, 5,0))), N49*0.5, N49*(1-VLOOKUP($A49, 'E1 Categorization'!$A$32:$E$124, 5,0))) -> 0 | AM49: =IF(ISERROR(O49*(1-VLOOKUP($A49, 'E1 Categorization'!$A$32:$E$124, 5,0))), O49*0.5, O49*(1-VLOOKUP($A49, 'E1 Categorization'!$A$32:$E$124, 5,0))) -> 0 | AN49: =IF(ISERROR(P49*(1-VLOOKUP($A49, 'E1 Categorization'!$A$32:$E$124, 5,0))), P49*0.5, P49*(1-VLOOKUP($A49, 'E1 Categorization'!$A$32:$E$124, 5,0))) -> 0 | AO49: =IF(ISERROR(Q49*(1-VLOOKUP($A49, 'E1 Categorization'!$A$32:$E$124, 5,0))), Q49*0.5, Q49*(1-VLOOKUP($A49, 'E1 Categorization'!$A$32:$E$124, 5,0))) -> 0 | AP49: =IF(ISERROR(R49*(1-VLOOKUP($A49, 'E1 Categorization'!$A$32:$E$124, 5,0))), R49*0.5, R49*(1-VLOOKUP($A49, 'E1 Categorization'!$A$32:$E$124, 5,0))) -> 0 | AQ49: =IF(ISERROR(S49*(1-VLOOKUP($A49, 'E1 Categorization'!$A$32:$E$124, 5,0))), S49*0.5, S49*(1-VLOOKUP($A49, 'E1 Categorization'!$A$32:$E$124, 5,0))) -> 0 | AR49: =IF(ISERROR(T49*(1-VLOOKUP($A49, 'E1 Categorization'!$A$32:$E$124, 5,0))), T49*0.5, T49*(1-VLOOKUP($A49, 'E1 Categorization'!$A$32:$E$124, 5,0))) -> 0 | AS49: =IF(ISERROR(U49*(1-VLOOKUP($A49, 'E1 Categorization'!$A$32:$E$124, 5,0))), U49*0.5, U49*(1-VLOOKUP($A49, 'E1 Categorization'!$A$32:$E$124, 5,0))) -> 0 | AT49: =IF(ISERROR(V49*(1-VLOOKUP($A49, 'E1 Categorization'!$A$32:$E$124, 5,0))), V49*0.5, V49*(1-VLOOKUP($A49, 'E1 Categorization'!$A$32:$E$124, 5,0))) -> 0 | AU49: =IF(ISERROR(W49*(1-VLOOKUP($A49, 'E1 Categorization'!$A$32:$E$124, 5,0))), W49*0.5, W49*(1-VLOOKUP($A49, 'E1 Categorization'!$A$32:$E$124, 5,0))) -> 0 | AV49: =IF(ISERROR(X49*(1-VLOOKUP($A49, 'E1 Categorization'!$A$32:$E$124, 5,0))), X49*0.5, X49*(1-VLOOKUP($A49, 'E1 Categorization'!$A$32:$E$124, 5,0))) -> 0 | AY49: 1930 | AZ49: Transportation Equipment | BA49: =IF(ISERROR(E49*(VLOOKUP($A49, 'E1 Categorization'!$A$32:$E$124, 5,0))), E49*0.5, E49*(VLOOKUP($A49, 'E1 Categorization'!$A$32:$E$124, 5,0))) -> 0 | BB49: =IF(ISERROR(F49*(VLOOKUP($A49, 'E1 Categorization'!$A$32:$E$124, 5,0))), F49*0.5, F49*(VLOOKUP($A49, 'E1 Categorization'!$A$32:$E$124, 5,0))) -> 0 | BC49: =IF(ISERROR(G49*(VLOOKUP($A49, 'E1 Categorization'!$A$32:$E$124, 5,0))), G49*0.5, G49*(VLOOKUP($A49, 'E1 Categorization'!$A$32:$E$124, 5,0))) -> 0 | BD49: =IF(ISERROR(H49*(VLOOKUP($A49, 'E1 Categorization'!$A$32:$E$124, 5,0))), H49*0.5, H49*(VLOOKUP($A49, 'E1 Categorization'!$A$32:$E$124, 5,0))) -> 0 | BE49: =IF(ISERROR(I49*(VLOOKUP($A49, 'E1 Categorization'!$A$32:$E$124, 5,0))), I49*0.5, I49*(VLOOKUP($A49, 'E1 Categorization'!$A$32:$E$124, 5,0))) -> 0 | BF49: =IF(ISERROR(J49*(VLOOKUP($A49, 'E1 Categorization'!$A$32:$E$124, 5,0))), J49*0.5, J49*(VLOOKUP($A49, 'E1 Categorization'!$A$32:$E$124, 5,0))) -> 0 | BG49: =IF(ISERROR(K49*(VLOOKUP($A49, 'E1 Categorization'!$A$32:$E$124, 5,0))), K49*0.5, K49*(VLOOKUP($A49, 'E1 Categorization'!$A$32:$E$124, 5,0))) -> 0 | BH49: =IF(ISERROR(L49*(VLOOKUP($A49, 'E1 Categorization'!$A$32:$E$124, 5,0))), L49*0.5, L49*(VLOOKUP($A49, 'E1 Categorization'!$A$32:$E$124, 5,0))) -> 0 | BI49: =IF(ISERROR(M49*(VLOOKUP($A49, 'E1 Categorization'!$A$32:$E$124, 5,0))), M49*0.5, M49*(VLOOKUP($A49, 'E1 Categorization'!$A$32:$E$124, 5,0))) -> 0 | BJ49: =IF(ISERROR(N49*(VLOOKUP($A49, 'E1 Categorization'!$A$32:$E$124, 5,0))), N49*0.5, N49*(VLOOKUP($A49, 'E1 Categorization'!$A$32:$E$124, 5,0))) -> 0 | BK49: =IF(ISERROR(O49*(VLOOKUP($A49, 'E1 Categorization'!$A$32:$E$124, 5,0))), O49*0.5, O49*(VLOOKUP($A49, 'E1 Categorization'!$A$32:$E$124, 5,0))) -> 0 | BL49: =IF(ISERROR(P49*(VLOOKUP($A49, 'E1 Categorization'!$A$32:$E$124, 5,0))), P49*0.5, P49*(VLOOKUP($A49, 'E1 Categorization'!$A$32:$E$124, 5,0))) -> 0 | BM49: =IF(ISERROR(Q49*(VLOOKUP($A49, 'E1 Categorization'!$A$32:$E$124, 5,0))), Q49*0.5, Q49*(VLOOKUP($A49, 'E1 Categorization'!$A$32:$E$124, 5,0))) -> 0 | BN49: =IF(ISERROR(R49*(VLOOKUP($A49, 'E1 Categorization'!$A$32:$E$124, 5,0))), R49*0.5, R49*(VLOOKUP($A49, 'E1 Categorization'!$A$32:$E$124, 5,0))) -> 0 | BO49: =IF(ISERROR(S49*(VLOOKUP($A49, 'E1 Categorization'!$A$32:$E$124, 5,0))), S49*0.5, S49*(VLOOKUP($A49, 'E1 Categorization'!$A$32:$E$124, 5,0))) -> 0 | BP49: =IF(ISERROR(T49*(VLOOKUP($A49, 'E1 Categorization'!$A$32:$E$124, 5,0))), T49*0.5, T49*(VLOOKUP($A49, 'E1 Categorization'!$A$32:$E$124, 5,0))) -> 0 | BQ49: =IF(ISERROR(U49*(VLOOKUP($A49, 'E1 Categorization'!$A$32:$E$124, 5,0))), U49*0.5, U49*(VLOOKUP($A49, 'E1 Categorization'!$A$32:$E$124, 5,0))) -> 0 | BR49: =IF(ISERROR(V49*(VLOOKUP($A49, 'E1 Categorization'!$A$32:$E$124, 5,0))), V49*0.5, V49*(VLOOKUP($A49, 'E1 Categorization'!$A$32:$E$124, 5,0))) -> 0 | BS49: =IF(ISERROR(W49*(VLOOKUP($A49, 'E1 Categorization'!$A$32:$E$124, 5,0))), W49*0.5, W49*(VLOOKUP($A49, 'E1 Categorization'!$A$32:$E$124, 5,0))) -> 0 | BT49: =IF(ISERROR(X49*(VLOOKUP($A49, 'E1 Categorization'!$A$32:$E$124, 5,0))), X49*0.5, X49*(VLOOKUP($A49, 'E1 Categorization'!$A$32:$E$124, 5,0))) -> 0
A50: ='I3 TB Data'!A159:B159 -> 1935 | B50: ='I3 TB Data'!B159 -> Stores Equipment | C50: ='I3 TB Data'!G159 -> 0 | D50: Yes | AA50: 1935 | AB50: Stores Equipment | AC50: =IF(ISERROR(E50*(1-VLOOKUP($A50, 'E1 Categorization'!$A$32:$E$124, 5,0))), E50*0.5, E50*(1-VLOOKUP($A50, 'E1 Categorization'!$A$32:$E$124, 5,0))) -> 0 | AD50: =IF(ISERROR(F50*(1-VLOOKUP($A50, 'E1 Categorization'!$A$32:$E$124, 5,0))), F50*0.5, F50*(1-VLOOKUP($A50, 'E1 Categorization'!$A$32:$E$124, 5,0))) -> 0 | AE50: =IF(ISERROR(G50*(1-VLOOKUP($A50, 'E1 Categorization'!$A$32:$E$124, 5,0))), G50*0.5, G50*(1-VLOOKUP($A50, 'E1 Categorization'!$A$32:$E$124, 5,0))) -> 0 | AF50: =IF(ISERROR(H50*(1-VLOOKUP($A50, 'E1 Categorization'!$A$32:$E$124, 5,0))), H50*0.5, H50*(1-VLOOKUP($A50, 'E1 Categorization'!$A$32:$E$124, 5,0))) -> 0 | AG50: =IF(ISERROR(I50*(1-VLOOKUP($A50, 'E1 Categorization'!$A$32:$E$124, 5,0))), I50*0.5, I50*(1-VLOOKUP($A50, 'E1 Categorization'!$A$32:$E$124, 5,0))) -> 0 | AH50: =IF(ISERROR(J50*(1-VLOOKUP($A50, 'E1 Categorization'!$A$32:$E$124, 5,0))), J50*0.5, J50*(1-VLOOKUP($A50, 'E1 Categorization'!$A$32:$E$124, 5,0))) -> 0 | AI50: =IF(ISERROR(K50*(1-VLOOKUP($A50, 'E1 Categorization'!$A$32:$E$124, 5,0))), K50*0.5, K50*(1-VLOOKUP($A50, 'E1 Categorization'!$A$32:$E$124, 5,0))) -> 0 | AJ50: =IF(ISERROR(L50*(1-VLOOKUP($A50, 'E1 Categorization'!$A$32:$E$124, 5,0))), L50*0.5, L50*(1-VLOOKUP($A50, 'E1 Categorization'!$A$32:$E$124, 5,0))) -> 0 | AK50: =IF(ISERROR(M50*(1-VLOOKUP($A50, 'E1 Categorization'!$A$32:$E$124, 5,0))), M50*0.5, M50*(1-VLOOKUP($A50, 'E1 Categorization'!$A$32:$E$124, 5,0))) -> 0 | AL50: =IF(ISERROR(N50*(1-VLOOKUP($A50, 'E1 Categorization'!$A$32:$E$124, 5,0))), N50*0.5, N50*(1-VLOOKUP($A50, 'E1 Categorization'!$A$32:$E$124, 5,0))) -> 0 | AM50: =IF(ISERROR(O50*(1-VLOOKUP($A50, 'E1 Categorization'!$A$32:$E$124, 5,0))), O50*0.5, O50*(1-VLOOKUP($A50, 'E1 Categorization'!$A$32:$E$124, 5,0))) -> 0 | AN50: =IF(ISERROR(P50*(1-VLOOKUP($A50, 'E1 Categorization'!$A$32:$E$124, 5,0))), P50*0.5, P50*(1-VLOOKUP($A50, 'E1 Categorization'!$A$32:$E$124, 5,0))) -> 0 | AO50: =IF(ISERROR(Q50*(1-VLOOKUP($A50, 'E1 Categorization'!$A$32:$E$124, 5,0))), Q50*0.5, Q50*(1-VLOOKUP($A50, 'E1 Categorization'!$A$32:$E$124, 5,0))) -> 0 | AP50: =IF(ISERROR(R50*(1-VLOOKUP($A50, 'E1 Categorization'!$A$32:$E$124, 5,0))), R50*0.5, R50*(1-VLOOKUP($A50, 'E1 Categorization'!$A$32:$E$124, 5,0))) -> 0 | AQ50: =IF(ISERROR(S50*(1-VLOOKUP($A50, 'E1 Categorization'!$A$32:$E$124, 5,0))), S50*0.5, S50*(1-VLOOKUP($A50, 'E1 Categorization'!$A$32:$E$124, 5,0))) -> 0 | AR50: =IF(ISERROR(T50*(1-VLOOKUP($A50, 'E1 Categorization'!$A$32:$E$124, 5,0))), T50*0.5, T50*(1-VLOOKUP($A50, 'E1 Categorization'!$A$32:$E$124, 5,0))) -> 0 | AS50: =IF(ISERROR(U50*(1-VLOOKUP($A50, 'E1 Categorization'!$A$32:$E$124, 5,0))), U50*0.5, U50*(1-VLOOKUP($A50, 'E1 Categorization'!$A$32:$E$124, 5,0))) -> 0 | AT50: =IF(ISERROR(V50*(1-VLOOKUP($A50, 'E1 Categorization'!$A$32:$E$124, 5,0))), V50*0.5, V50*(1-VLOOKUP($A50, 'E1 Categorization'!$A$32:$E$124, 5,0))) -> 0 | AU50: =IF(ISERROR(W50*(1-VLOOKUP($A50, 'E1 Categorization'!$A$32:$E$124, 5,0))), W50*0.5, W50*(1-VLOOKUP($A50, 'E1 Categorization'!$A$32:$E$124, 5,0))) -> 0 | AV50: =IF(ISERROR(X50*(1-VLOOKUP($A50, 'E1 Categorization'!$A$32:$E$124, 5,0))), X50*0.5, X50*(1-VLOOKUP($A50, 'E1 Categorization'!$A$32:$E$124, 5,0))) -> 0 | AY50: 1935 | AZ50: Stores Equipment | BA50: =IF(ISERROR(E50*(VLOOKUP($A50, 'E1 Categorization'!$A$32:$E$124, 5,0))), E50*0.5, E50*(VLOOKUP($A50, 'E1 Categorization'!$A$32:$E$124, 5,0))) -> 0 | BB50: =IF(ISERROR(F50*(VLOOKUP($A50, 'E1 Categorization'!$A$32:$E$124, 5,0))), F50*0.5, F50*(VLOOKUP($A50, 'E1 Categorization'!$A$32:$E$124, 5,0))) -> 0 | BC50: =IF(ISERROR(G50*(VLOOKUP($A50, 'E1 Categorization'!$A$32:$E$124, 5,0))), G50*0.5, G50*(VLOOKUP($A50, 'E1 Categorization'!$A$32:$E$124, 5,0))) -> 0 | BD50: =IF(ISERROR(H50*(VLOOKUP($A50, 'E1 Categorization'!$A$32:$E$124, 5,0))), H50*0.5, H50*(VLOOKUP($A50, 'E1 Categorization'!$A$32:$E$124, 5,0))) -> 0 | BE50: =IF(ISERROR(I50*(VLOOKUP($A50, 'E1 Categorization'!$A$32:$E$124, 5,0))), I50*0.5, I50*(VLOOKUP($A50, 'E1 Categorization'!$A$32:$E$124, 5,0))) -> 0 | BF50: =IF(ISERROR(J50*(VLOOKUP($A50, 'E1 Categorization'!$A$32:$E$124, 5,0))), J50*0.5, J50*(VLOOKUP($A50, 'E1 Categorization'!$A$32:$E$124, 5,0))) -> 0 | BG50: =IF(ISERROR(K50*(VLOOKUP($A50, 'E1 Categorization'!$A$32:$E$124, 5,0))), K50*0.5, K50*(VLOOKUP($A50, 'E1 Categorization'!$A$32:$E$124, 5,0))) -> 0 | BH50: =IF(ISERROR(L50*(VLOOKUP($A50, 'E1 Categorization'!$A$32:$E$124, 5,0))), L50*0.5, L50*(VLOOKUP($A50, 'E1 Categorization'!$A$32:$E$124, 5,0))) -> 0 | BI50: =IF(ISERROR(M50*(VLOOKUP($A50, 'E1 Categorization'!$A$32:$E$124, 5,0))), M50*0.5, M50*(VLOOKUP($A50, 'E1 Categorization'!$A$32:$E$124, 5,0))) -> 0 | BJ50: =IF(ISERROR(N50*(VLOOKUP($A50, 'E1 Categorization'!$A$32:$E$124, 5,0))), N50*0.5, N50*(VLOOKUP($A50, 'E1 Categorization'!$A$32:$E$124, 5,0))) -> 0 | BK50: =IF(ISERROR(O50*(VLOOKUP($A50, 'E1 Categorization'!$A$32:$E$124, 5,0))), O50*0.5, O50*(VLOOKUP($A50, 'E1 Categorization'!$A$32:$E$124, 5,0))) -> 0 | BL50: =IF(ISERROR(P50*(VLOOKUP($A50, 'E1 Categorization'!$A$32:$E$124, 5,0))), P50*0.5, P50*(VLOOKUP($A50, 'E1 Categorization'!$A$32:$E$124, 5,0))) -> 0 | BM50: =IF(ISERROR(Q50*(VLOOKUP($A50, 'E1 Categorization'!$A$32:$E$124, 5,0))), Q50*0.5, Q50*(VLOOKUP($A50, 'E1 Categorization'!$A$32:$E$124, 5,0))) -> 0 | BN50: =IF(ISERROR(R50*(VLOOKUP($A50, 'E1 Categorization'!$A$32:$E$124, 5,0))), R50*0.5, R50*(VLOOKUP($A50, 'E1 Categorization'!$A$32:$E$124, 5,0))) -> 0 | BO50: =IF(ISERROR(S50*(VLOOKUP($A50, 'E1 Categorization'!$A$32:$E$124, 5,0))), S50*0.5, S50*(VLOOKUP($A50, 'E1 Categorization'!$A$32:$E$124, 5,0))) -> 0 | BP50: =IF(ISERROR(T50*(VLOOKUP($A50, 'E1 Categorization'!$A$32:$E$124, 5,0))), T50*0.5, T50*(VLOOKUP($A50, 'E1 Categorization'!$A$32:$E$124, 5,0))) -> 0 | BQ50: =IF(ISERROR(U50*(VLOOKUP($A50, 'E1 Categorization'!$A$32:$E$124, 5,0))), U50*0.5, U50*(VLOOKUP($A50, 'E1 Categorization'!$A$32:$E$124, 5,0))) -> 0 | BR50: =IF(ISERROR(V50*(VLOOKUP($A50, 'E1 Categorization'!$A$32:$E$124, 5,0))), V50*0.5, V50*(VLOOKUP($A50, 'E1 Categorization'!$A$32:$E$124, 5,0))) -> 0 | BS50: =IF(ISERROR(W50*(VLOOKUP($A50, 'E1 Categorization'!$A$32:$E$124, 5,0))), W50*0.5, W50*(VLOOKUP($A50, 'E1 Categorization'!$A$32:$E$124, 5,0))) -> 0 | BT50: =IF(ISERROR(X50*(VLOOKUP($A50, 'E1 Categorization'!$A$32:$E$124, 5,0))), X50*0.5, X50*(VLOOKUP($A50, 'E1 Categorization'!$A$32:$E$124, 5,0))) -> 0
A51: ='I3 TB Data'!A160:B160 -> 1940 | B51: ='I3 TB Data'!B160 -> Tools, Shop and Garage Equipment | C51: ='I3 TB Data'!G160 -> 0 | D51: Yes | AA51: 1940 | AB51: Tools, Shop and Garage Equipment | AC51: =IF(ISERROR(E51*(1-VLOOKUP($A51, 'E1 Categorization'!$A$32:$E$124, 5,0))), E51*0.5, E51*(1-VLOOKUP($A51, 'E1 Categorization'!$A$32:$E$124, 5,0))) -> 0 | AD51: =IF(ISERROR(F51*(1-VLOOKUP($A51, 'E1 Categorization'!$A$32:$E$124, 5,0))), F51*0.5, F51*(1-VLOOKUP($A51, 'E1 Categorization'!$A$32:$E$124, 5,0))) -> 0 | AE51: =IF(ISERROR(G51*(1-VLOOKUP($A51, 'E1 Categorization'!$A$32:$E$124, 5,0))), G51*0.5, G51*(1-VLOOKUP($A51, 'E1 Categorization'!$A$32:$E$124, 5,0))) -> 0 | AF51: =IF(ISERROR(H51*(1-VLOOKUP($A51, 'E1 Categorization'!$A$32:$E$124, 5,0))), H51*0.5, H51*(1-VLOOKUP($A51, 'E1 Categorization'!$A$32:$E$124, 5,0))) -> 0 | AG51: =IF(ISERROR(I51*(1-VLOOKUP($A51, 'E1 Categorization'!$A$32:$E$124, 5,0))), I51*0.5, I51*(1-VLOOKUP($A51, 'E1 Categorization'!$A$32:$E$124, 5,0))) -> 0 | AH51: =IF(ISERROR(J51*(1-VLOOKUP($A51, 'E1 Categorization'!$A$32:$E$124, 5,0))), J51*0.5, J51*(1-VLOOKUP($A51, 'E1 Categorization'!$A$32:$E$124, 5,0))) -> 0 | AI51: =IF(ISERROR(K51*(1-VLOOKUP($A51, 'E1 Categorization'!$A$32:$E$124, 5,0))), K51*0.5, K51*(1-VLOOKUP($A51, 'E1 Categorization'!$A$32:$E$124, 5,0))) -> 0 | AJ51: =IF(ISERROR(L51*(1-VLOOKUP($A51, 'E1 Categorization'!$A$32:$E$124, 5,0))), L51*0.5, L51*(1-VLOOKUP($A51, 'E1 Categorization'!$A$32:$E$124, 5,0))) -> 0 | AK51: =IF(ISERROR(M51*(1-VLOOKUP($A51, 'E1 Categorization'!$A$32:$E$124, 5,0))), M51*0.5, M51*(1-VLOOKUP($A51, 'E1 Categorization'!$A$32:$E$124, 5,0))) -> 0 | AL51: =IF(ISERROR(N51*(1-VLOOKUP($A51, 'E1 Categorization'!$A$32:$E$124, 5,0))), N51*0.5, N51*(1-VLOOKUP($A51, 'E1 Categorization'!$A$32:$E$124, 5,0))) -> 0 | AM51: =IF(ISERROR(O51*(1-VLOOKUP($A51, 'E1 Categorization'!$A$32:$E$124, 5,0))), O51*0.5, O51*(1-VLOOKUP($A51, 'E1 Categorization'!$A$32:$E$124, 5,0))) -> 0 | AN51: =IF(ISERROR(P51*(1-VLOOKUP($A51, 'E1 Categorization'!$A$32:$E$124, 5,0))), P51*0.5, P51*(1-VLOOKUP($A51, 'E1 Categorization'!$A$32:$E$124, 5,0))) -> 0 | AO51: =IF(ISERROR(Q51*(1-VLOOKUP($A51, 'E1 Categorization'!$A$32:$E$124, 5,0))), Q51*0.5, Q51*(1-VLOOKUP($A51, 'E1 Categorization'!$A$32:$E$124, 5,0))) -> 0 | AP51: =IF(ISERROR(R51*(1-VLOOKUP($A51, 'E1 Categorization'!$A$32:$E$124, 5,0))), R51*0.5, R51*(1-VLOOKUP($A51, 'E1 Categorization'!$A$32:$E$124, 5,0))) -> 0 | AQ51: =IF(ISERROR(S51*(1-VLOOKUP($A51, 'E1 Categorization'!$A$32:$E$124, 5,0))), S51*0.5, S51*(1-VLOOKUP($A51, 'E1 Categorization'!$A$32:$E$124, 5,0))) -> 0 | AR51: =IF(ISERROR(T51*(1-VLOOKUP($A51, 'E1 Categorization'!$A$32:$E$124, 5,0))), T51*0.5, T51*(1-VLOOKUP($A51, 'E1 Categorization'!$A$32:$E$124, 5,0))) -> 0 | AS51: =IF(ISERROR(U51*(1-VLOOKUP($A51, 'E1 Categorization'!$A$32:$E$124, 5,0))), U51*0.5, U51*(1-VLOOKUP($A51, 'E1 Categorization'!$A$32:$E$124, 5,0))) -> 0 | AT51: =IF(ISERROR(V51*(1-VLOOKUP($A51, 'E1 Categorization'!$A$32:$E$124, 5,0))), V51*0.5, V51*(1-VLOOKUP($A51, 'E1 Categorization'!$A$32:$E$124, 5,0))) -> 0 | AU51: =IF(ISERROR(W51*(1-VLOOKUP($A51, 'E1 Categorization'!$A$32:$E$124, 5,0))), W51*0.5, W51*(1-VLOOKUP($A51, 'E1 Categorization'!$A$32:$E$124, 5,0))) -> 0 | AV51: =IF(ISERROR(X51*(1-VLOOKUP($A51, 'E1 Categorization'!$A$32:$E$124, 5,0))), X51*0.5, X51*(1-VLOOKUP($A51, 'E1 Categorization'!$A$32:$E$124, 5,0))) -> 0 | AY51: 1940 | AZ51: Tools, Shop and Garage Equipment | BA51: =IF(ISERROR(E51*(VLOOKUP($A51, 'E1 Categorization'!$A$32:$E$124, 5,0))), E51*0.5, E51*(VLOOKUP($A51, 'E1 Categorization'!$A$32:$E$124, 5,0))) -> 0 | BB51: =IF(ISERROR(F51*(VLOOKUP($A51, 'E1 Categorization'!$A$32:$E$124, 5,0))), F51*0.5, F51*(VLOOKUP($A51, 'E1 Categorization'!$A$32:$E$124, 5,0))) -> 0 | BC51: =IF(ISERROR(G51*(VLOOKUP($A51, 'E1 Categorization'!$A$32:$E$124, 5,0))), G51*0.5, G51*(VLOOKUP($A51, 'E1 Categorization'!$A$32:$E$124, 5,0))) -> 0 | BD51: =IF(ISERROR(H51*(VLOOKUP($A51, 'E1 Categorization'!$A$32:$E$124, 5,0))), H51*0.5, H51*(VLOOKUP($A51, 'E1 Categorization'!$A$32:$E$124, 5,0))) -> 0 | BE51: =IF(ISERROR(I51*(VLOOKUP($A51, 'E1 Categorization'!$A$32:$E$124, 5,0))), I51*0.5, I51*(VLOOKUP($A51, 'E1 Categorization'!$A$32:$E$124, 5,0))) -> 0 | BF51: =IF(ISERROR(J51*(VLOOKUP($A51, 'E1 Categorization'!$A$32:$E$124, 5,0))), J51*0.5, J51*(VLOOKUP($A51, 'E1 Categorization'!$A$32:$E$124, 5,0))) -> 0 | BG51: =IF(ISERROR(K51*(VLOOKUP($A51, 'E1 Categorization'!$A$32:$E$124, 5,0))), K51*0.5, K51*(VLOOKUP($A51, 'E1 Categorization'!$A$32:$E$124, 5,0))) -> 0 | BH51: =IF(ISERROR(L51*(VLOOKUP($A51, 'E1 Categorization'!$A$32:$E$124, 5,0))), L51*0.5, L51*(VLOOKUP($A51, 'E1 Categorization'!$A$32:$E$124, 5,0))) -> 0 | BI51: =IF(ISERROR(M51*(VLOOKUP($A51, 'E1 Categorization'!$A$32:$E$124, 5,0))), M51*0.5, M51*(VLOOKUP($A51, 'E1 Categorization'!$A$32:$E$124, 5,0))) -> 0 | BJ51: =IF(ISERROR(N51*(VLOOKUP($A51, 'E1 Categorization'!$A$32:$E$124, 5,0))), N51*0.5, N51*(VLOOKUP($A51, 'E1 Categorization'!$A$32:$E$124, 5,0))) -> 0 | BK51: =IF(ISERROR(O51*(VLOOKUP($A51, 'E1 Categorization'!$A$32:$E$124, 5,0))), O51*0.5, O51*(VLOOKUP($A51, 'E1 Categorization'!$A$32:$E$124, 5,0))) -> 0 | BL51: =IF(ISERROR(P51*(VLOOKUP($A51, 'E1 Categorization'!$A$32:$E$124, 5,0))), P51*0.5, P51*(VLOOKUP($A51, 'E1 Categorization'!$A$32:$E$124, 5,0))) -> 0 | BM51: =IF(ISERROR(Q51*(VLOOKUP($A51, 'E1 Categorization'!$A$32:$E$124, 5,0))), Q51*0.5, Q51*(VLOOKUP($A51, 'E1 Categorization'!$A$32:$E$124, 5,0))) -> 0 | BN51: =IF(ISERROR(R51*(VLOOKUP($A51, 'E1 Categorization'!$A$32:$E$124, 5,0))), R51*0.5, R51*(VLOOKUP($A51, 'E1 Categorization'!$A$32:$E$124, 5,0))) -> 0 | BO51: =IF(ISERROR(S51*(VLOOKUP($A51, 'E1 Categorization'!$A$32:$E$124, 5,0))), S51*0.5, S51*(VLOOKUP($A51, 'E1 Categorization'!$A$32:$E$124, 5,0))) -> 0 | BP51: =IF(ISERROR(T51*(VLOOKUP($A51, 'E1 Categorization'!$A$32:$E$124, 5,0))), T51*0.5, T51*(VLOOKUP($A51, 'E1 Categorization'!$A$32:$E$124, 5,0))) -> 0 | BQ51: =IF(ISERROR(U51*(VLOOKUP($A51, 'E1 Categorization'!$A$32:$E$124, 5,0))), U51*0.5, U51*(VLOOKUP($A51, 'E1 Categorization'!$A$32:$E$124, 5,0))) -> 0 | BR51: =IF(ISERROR(V51*(VLOOKUP($A51, 'E1 Categorization'!$A$32:$E$124, 5,0))), V51*0.5, V51*(VLOOKUP($A51, 'E1 Categorization'!$A$32:$E$124, 5,0))) -> 0 | BS51: =IF(ISERROR(W51*(VLOOKUP($A51, 'E1 Categorization'!$A$32:$E$124, 5,0))), W51*0.5, W51*(VLOOKUP($A51, 'E1 Categorization'!$A$32:$E$124, 5,0))) -> 0 | BT51: =IF(ISERROR(X51*(VLOOKUP($A51, 'E1 Categorization'!$A$32:$E$124, 5,0))), X51*0.5, X51*(VLOOKUP($A51, 'E1 Categorization'!$A$32:$E$124, 5,0))) -> 0
